Workbook

Sheet Input
E2: Figure 1: Retirement Plan - Expectation
B6: Provide your input in the yellow cells
B8: Current Age | C8: 35 | P8: =CONCATENATE("Based on this approach, you require a Retirement Corpus of ",C18) -> Based on this approach, you require a Retirement Corpus of INR 300.09 lakhs
B10: Current Monthly Expenses (in INR) | C10: 50000
B12: Retirement Age | C12: 55
B14: Share of Equity in Portfolio (%) | C14: 0.6
B16: At the time of retirement, your monthly expenses will be (in INR) * | C16: =FV(5%,C12-C8,0,-C10,0) -> 132664.8853
B18: Required retirement corpus based on typical calculations (in INR) ** | C18: =CONCATENATE("INR ",TEXT(WSOR!K6,"##\.##,")," lakhs") -> INR 300.09 lakhs
B20: Required retirement corpus based on Safe Withdrawal Rates (in INR) *** | C20: =CONCATENATE("INR ",TEXT(IF(AND($C$14=60%,$C$12=55),$C$16*12*Sheet3!$C$27,IF(AND($C$14=60%,$C$12=60),$C$16*12*Sheet3!$D$27,IF(AND($C$14=60%,$C$12=65),$C$16*12*Sheet3!$E$27,IF(AND($C$14=50%,$C$12=55),$C$16*12*Sheet3!$C$24,IF(AND($C$14=50%,$C$12=60),$C$16*12*Sheet3!$D$24,IF(AND($C$14=50%,$C$12=65),$C$16*12*Sheet3!$E$24,IF(AND($C$14=40%,$C$12=55),$C$16*12*Sheet3!$C$21,IF(AND($C$14=40%,$C$12=60),$C$16*12*Sheet3!$D$21,IF(AND($C$14=40%,$C$12=65),$C$16*12*Sheet3!$E$21))))))))),"##\.##,")," lakhs") -> INR 692.16 lakhs
E22: Figure 2: Retirement Plan - Reality (Based on Simulations)
B24: Note:
B25: Current Age should not be more than Retirement Age
B26: * Based on inflation at 5% p.a.
B27: ** Based on constant Equity Return of 11% and constant Debt Return of 6%
B28: *** Based on our co-authored research which can be downloaded from the below link,
B33: Available at:
B34: https://ssrn.com/abstract=4697720
P37: =CONCATENATE("Based on our research, the required Retirement Corpus should be ",C20) -> Based on our research, the required Retirement Corpus should be INR 692.16 lakhs
P39: Source: Samasthiti Advisors, www.samasthiti.in

Sheet Disclaimer

Sheet Copyright
B7: Retirement Calculator © 2024 by Samasthiti Advisors is licensed under CC BY-NC-ND 4.0
B32: https://creativecommons.org/licenses/by-nc-nd/4.0/

Sheet SOR (hidden)
N1: =SOR!C28 -> 0.05
F2: =(-F6/(L6+S6))*12 -> 0.05304934479 | G2: 0.05157516265 | K2: =CONCATENATE("K",366+((60-SOR!$C$12)*12)) -> K426 | AY2: =J6 -> 2024-04-30 | BI2: 10000000 | BJ2: 100000
AY3: =EOMONTH(AY2,(SOR!C13-SOR!C12)*12) -> 2059-04-30
F6: =-Input!C16 -> -132664.8853 | G6: =-(G2*(L6+S6))/12 -> -128978.276 | I6: =SOR!C12 -> 55 | J6: =EOMONTH(SOR!C11,0) -> 45412 | K6: =R6+Y6 -> 32117820.09 | L6: =WSOR!$K$6*SOR!C32 -> 18005635.65 | M6: =L6*BD6 -> 2208824.637 | Q6: =F6*AK6 -> -79598.93115 | R6: =L6+M6+N6+O6+Q6+P6 -> 20134861.36 | S6: =WSOR!$K$6*SOR!C31 -> 12003757.1 | T6: =S6*BC6 -> 32267.58949 | X6: =F6*AJ6 -> -53065.9541 | Y6: =S6+T6+U6+V6+X6+W6 -> 11982958.74 | AA6: =I6 -> 55 | AB6: =J6 -> 45412 | AC6: =AD6+AE6 -> 1 | AD6: =Y6/K6 -> 0.3730937748 | AE6: =R6/K6 -> 0.6269062252 | AG6: =AA6 -> 55 | AH6: 45412 | AI6: =AJ6+AK6 -> 1 | AJ6: =VLOOKUP($AG6,$AM:$AP,3,FALSE) -> 0.4 | AK6: =VLOOKUP($AG6,$AM:$AP,4,FALSE) -> 0.6 | AM6: =AG6 -> 55 | AN6: =AO6+AP6 -> 1 | AO6: =SOR!C31 -> 0.4 | AP6: =SOR!C32 -> 0.6 | AR6: =AG6 -> 55 | AS6: =AH6 -> 45412 | AT6: =AU6+AV6 -> 32117820.09 | AU6: =AJ6*K6 -> 12847128.04 | AV6: =AK6*K6 -> 19270692.06 | AX6: =AY2 -> 45412 | AY6: =(((BC6*Y6)+(BD6*R6))/(R6+Y6)) -> 0.07790806155 | BC6: =VLOOKUP($BF6,RD!$B:$F,5,FALSE)/100 -> 0.002688124161 | BD6: =VLOOKUP($BF6,RD!$B:$F,4,FALSE)/100 -> 0.1226740716 | BE6: =(VLOOKUP($BF6,RD!$B:$F,3,FALSE)/100)/12 -> 0.001908333333 | BF6: =RANDBETWEEN(1,270) -> 251 | BH6: =I6 -> 55 | BI6: =(K6)/10000000 -> 3.211782009 | BJ6: =BJ7 -> 0.7443602073 | BK6: =-F6/100000 -> 1.326648853
F7: =F6*(1+(BE7)) -> -133496.5501 | G7: =G6*(1+(BB7)) -> -128978.276 | I7: =IF(MONTH(J7)=MONTH($J$6),I6+1,I6) -> 55 | J7: =EOMONTH(J6,1) -> 45443 | K7: 32058759.57 | L7: =R6 -> 20134861.36 | M7: =L7*BA7 -> 0 | P7: =AV6-R6 -> -864169.3011 | Q7: =F7*AK7 -> -80097.93007 | R7: =L7+M7+N7+O7+Q7+P7 -> 19190594.13 | S7: =Y6 -> 11982958.74 | T7: =S7*BC7 -> 74436.02073 | V7: =-O7 -> 0 | W7: =AU6-Y6 -> 864169.3011 | X7: =F7*AJ7 -> -53398.62005 | Y7: =S7+T7+U7+V7+X7+W7 -> 12868165.44 | AA7: =I7 -> 55 | AB7: 45443 | AC7: =AD7+AE7 -> 1 | AD7: =Y7/K7 -> 0.4013931173 | AE7: =R7/K7 -> 0.5986068827 | AG7: 55 | AH7: 45443 | AI7: 1 | AJ7: 0.4 | AK7: 0.6 | AM7: =AM6+1 -> 56 | AN7: =AO7+AP7 -> 1 | AO7: =AO6 -> 0.4 | AP7: 0.6 | AR7: =AG7 -> 55 | AS7: 45443 | AT7: 32058759.57 | AU7: =AJ7*K7 -> 12823503.83 | AV7: =AK7*K7 -> 19235255.74 | AX7: =EOMONTH(AX6,1) -> 45443 | AY7: =(((BC7*Y7)+(BD7*R7))/(R7+Y7)) -> -0.003954398339 | BC7: =VLOOKUP($BF7,RD!$B:$F,5,FALSE)/100 -> 0.00621182317 | BD7: =VLOOKUP($BF7,RD!$B:$F,4,FALSE)/100 -> -0.01077131184 | BE7: =(VLOOKUP($BF7,RD!$B:$F,3,FALSE)/100)/12 -> 0.006268914829 | BF7: =RANDBETWEEN(1,270) -> 151 | BH7: =I7 -> 55 | BI7: =(K7)/10000000 -> 3.205875957 | BJ7: =(M7+T7)/100000 -> 0.7443602073 | BK7: =-F7/100000 -> 1.334965501
F8: =F7*(1+(BE8)) -> -132934.031 | G8: =G7*(1+(BB8)) -> -128978.276 | I8: =IF(MONTH(J8)=MONTH($J$6),I7+1,I7) -> 55 | J8: =EOMONTH(J7,1) -> 45473 | K8: 32220063.82 | L8: =R7 -> 19190594.13 | M8: 0 | P8: =AV7-R7 -> 44661.61244 | Q8: -79760.41862 | R8: 19155495.32 | S8: =Y7 -> 12868165.44 | T8: 294238.2809 | V8: =-O8 -> 0 | W8: =AU7-Y7 -> -44661.61244 | X8: -53173.61242 | Y8: 13064568.49 | AA8: 55 | AB8: 45473 | AC8: 1 | AD8: 0.4054792867 | AE8: 0.5945207133 | AG8: 55 | AH8: 45473 | AI8: 1 | AJ8: 0.4 | AK8: 0.6 | AM8: =AM7+1 -> 57 | AN8: 1 | AO8: 0.4 | AP8: 0.6 | AR8: 55 | AS8: 45473 | AT8: 32220063.82 | AU8: 12888025.53 | AV8: 19332038.29 | AX8: =EOMONTH(AX7,1) -> 45473 | AY8: -0.02945740504 | BC8: =VLOOKUP($BF8,RD!$B:$F,5,FALSE)/100 -> 0.02286559668 | BD8: =VLOOKUP($BF8,RD!$B:$F,4,FALSE)/100 -> -0.06514311446 | BE8: =(VLOOKUP($BF8,RD!$B:$F,3,FALSE)/100)/12 -> -0.004213734983 | BF8: 188 | BH8: 55 | BI8: 3.222006382 | BJ8: =(M8+T8)/100000 -> 2.942382809 | BK8: 1.32934031
F9: -133379.36 | G9: -128978.276 | I9: 55 | J9: 45504 | K9: 31997758.2 | L9: 19155495.32 | M9: 0 | P9: 176542.9685 | Q9: -80027.61603 | R9: 19252010.67 | S9: 13064568.49 | T9: -88926.25855 | V9: 0 | W9: -176542.9685 | X9: -53351.74402 | Y9: 12745747.52 | AA9: 55 | AB9: 45504 | AC9: 1 | AD9: 0.3983325158 | AE9: 0.6016674842 | AG9: 55 | AH9: 45504 | AI9: 1 | AJ9: 0.4 | AK9: 0.6 | AM9: 58 | AN9: 1 | AO9: 0.4 | AP9: 0.6 | AR9: 55 | AS9: 45504 | AT9: 31997758.2 | AU9: 12799103.28 | AV9: 19198654.92 | AX9: 45504 | AY9: -0.003866716616 | BC9: =VLOOKUP($BF9,RD!$B:$F,5,FALSE)/100 -> -0.006806673989 | BD9: =VLOOKUP($BF9,RD!$B:$F,4,FALSE)/100 -> -0.001920324884 | BE9: =(VLOOKUP($BF9,RD!$B:$F,3,FALSE)/100)/12 -> 0.00335 | BF9: 215 | BH9: 55 | BI9: 3.19977582 | BJ9: =(M9+T9)/100000 -> -0.8892625855 | BK9: 1.3337936
F10: -134101.3679 | G10: -128978.276 | I10: 55 | J10: 45535 | K10: 31843319.92 | L10: 19252010.67 | M10: 0 | P10: -53355.75513 | Q10: -80460.82074 | R10: 19118194.1 | S10: 12745747.52 | T10: -20336.91226 | V10: 0 | W10: 53355.75513 | X10: -53640.54716 | Y10: 12725125.82 | AA10: 55 | AB10: 45535 | AC10: 1 | AD10: 0.3996168067 | AE10: 0.6003831933 | AG10: 55 | AH10: 45535 | AI10: 1 | AJ10: 0.4 | AK10: 0.6 | AM10: 59 | AN10: 1 | AO10: 0.4 | AP10: 0.6 | AR10: 55 | AS10: 45535 | AT10: 31843319.92 | AU10: 12737327.97 | AV10: 19105991.95 | AX10: 45535 | AY10: -0.01586234342 | BC10: =VLOOKUP($BF10,RD!$B:$F,5,FALSE)/100 -> -0.001595584113 | BD10: =VLOOKUP($BF10,RD!$B:$F,4,FALSE)/100 -> -0.02535834007 | BE10: =(VLOOKUP($BF10,RD!$B:$F,3,FALSE)/100)/12 -> 0.005413190306 | BF10: 49 | BH10: 55 | BI10: 3.184331992 | BJ10: -0.2033691226 | BK10: 1.341013679 | BN10: =C12 -> 55
C11: =TODAY() -> 45391 | F11: -134101.3679 | G11: -128978.276 | I11: 55 | J11: 45565 | K11: 31803071.1 | L11: 19118194.1 | M11: 0 | P11: -12202.14736 | Q11: -80460.82074 | R11: 19025531.13 | S11: 12725125.82 | T11: 93852.54717 | V11: 0 | W11: 12202.14736 | X11: -53640.54716 | Y11: 12777539.97 | AA11: 55 | AB11: 45565 | AC11: 1 | AD11: 0.4017706318 | AE11: 0.5982293682 | AG11: 55 | AH11: 45565 | AI11: 1 | AJ11: 0.4 | AK11: 0.6 | AM11: 60 | AN11: 1 | AO11: 0.4 | AP11: 0.6 | AR11: 55 | AS11: 45565 | AT11: 31803071.1 | AU11: 12721228.44 | AV11: 19081842.66 | AX11: 45565 | AY11: 0.02557781998 | BC11: =VLOOKUP($BF11,RD!$B:$F,5,FALSE)/100 -> 0.007375372826 | BD11: =VLOOKUP($BF11,RD!$B:$F,4,FALSE)/100 -> 0.03780257703 | BE11: =(VLOOKUP($BF11,RD!$B:$F,3,FALSE)/100)/12 -> 0 | BF11: 238 | BH11: 55 | BI11: 3.18030711 | BJ11: 0.9385254717 | BK11: 1.341013679
C12: =Input!C12 -> 55 | F12: -134286.8983 | G12: -128978.276 | I12: 55 | J12: 45596 | K12: 31950944.93 | L12: 19025531.13 | M12: 0 | P12: 56311.5283 | Q12: -80572.13898 | R12: 19001270.52 | S12: 12777539.97 | T12: 282160.7355 | V12: 0 | W12: -56311.5283 | X12: -53714.75932 | Y12: 12949674.41 | AA12: 55 | AB12: 45596 | AC12: 1 | AD12: 0.4052986364 | AE12: 0.5947013636 | AG12: 55 | AH12: 45596 | AI12: 1 | AJ12: 0.4 | AK12: 0.6 | AM12: 61 | AN12: 1 | AO12: 0.4 | AP12: 0.6 | AR12: 55 | AS12: 45596 | AT12: 31950944.93 | AU12: 12780377.97 | AV12: 19170566.96 | AX12: 45596 | AY12: 0.036536677 | BC12: =VLOOKUP($BF12,RD!$B:$F,5,FALSE)/100 -> 0.0220825555 | BD12: =VLOOKUP($BF12,RD!$B:$F,4,FALSE)/100 -> 0.04638739551 | BE12: =(VLOOKUP($BF12,RD!$B:$F,3,FALSE)/100)/12 -> 0.001383508578 | BF12: 178 | BH12: 55 | BI12: 3.195094493 | BJ12: 2.821607355 | BK12: 1.342868983
C13: 90 | F13: -134820.7606 | G13: -128978.276 | I13: 55 | J13: 45626 | K13: 32213749.72 | L13: 19001270.52 | M13: 0 | P13: 169296.4413 | Q13: -80892.45635 | R13: 19089674.5 | S13: 12949674.41 | T13: 397625.546 | V13: 0 | W13: -169296.4413 | X13: -53928.30423 | Y13: 13124075.21 | AA13: 55 | AB13: 45626 | AC13: 1 | AD13: 0.4074060092 | AE13: 0.5925939908 | AG13: 55 | AH13: 45626 | AI13: 1 | AJ13: 0.4 | AK13: 0.6 | AM13: 62 | AN13: 1 | AO13: 0.4 | AP13: 0.6 | AR13: 55 | AS13: 45626 | AT13: 32213749.72 | AU13: 12885499.89 | AV13: 19328249.83 | AX13: 45626 | AY13: 0.03162677648 | BC13: =VLOOKUP($BF13,RD!$B:$F,5,FALSE)/100 -> 0.03070544736 | BD13: =VLOOKUP($BF13,RD!$B:$F,4,FALSE)/100 -> 0.03226018658 | BE13: =(VLOOKUP($BF13,RD!$B:$F,3,FALSE)/100)/12 -> 0.003975535168 | BF13: 160 | BH13: 55 | BI13: 3.221374972 | BJ13: 3.97625546 | BK13: 1.348207606
F14: -135637.3921 | G14: -128978.276 | I14: 55 | J14: 45657 | K14: 32078742.23 | L14: 19089674.5 | M14: 0 | P14: 238575.3276 | Q14: -81382.43526 | R14: 19246867.4 | S14: 13124075.21 | T14: 629.9060817 | V14: 0 | W14: -238575.3276 | X14: -54254.95684 | Y14: 12831874.84 | AA14: 55 | AB14: 45657 | AC14: 1 | AD14: 0.4000117817 | AE14: 0.5999882183 | AG14: 55 | AH14: 45657 | AI14: 1 | AJ14: 0.4 | AK14: 0.6 | AM14: 63 | AN14: 1 | AO14: 0.4 | AP14: 0.6 | AR14: 55 | AS14: 45657 | AT14: 32078742.23 | AU14: 12831496.89 | AV14: 19247245.34 | AX14: 45657 | AY14: 0.01020321496 | BC14: =VLOOKUP($BF14,RD!$B:$F,5,FALSE)/100 -> 4.799622613e-05 | BD14: =VLOOKUP($BF14,RD!$B:$F,4,FALSE)/100 -> 0.01697369314 | BE14: =(VLOOKUP($BF14,RD!$B:$F,3,FALSE)/100)/12 -> 0.00605716449 | BF14: 58 | BH14: 55 | BI14: 3.207874223 | BJ14: 0.006299060817 | BK14: 1.356373921 | BN14: =C13 -> 90
F15: -136083.8347 | G15: -128978.276 | I15: 55 | J15: 45688 | K15: 32048237.23 | L15: 19246867.4 | M15: 0 | P15: 377.943649 | Q15: -81650.30085 | R15: 19165595.04 | S15: 12831874.84 | T15: 105578.8356 | V15: 0 | W15: -377.943649 | X15: -54433.5339 | Y15: 12882642.19 | AA15: 55 | AB15: 45688 | AC15: 1 | AD15: 0.4019766236 | AE15: 0.5980233764 | AG15: 55 | AH15: 45688 | AI15: 1 | AJ15: 0.4 | AK15: 0.6 | AM15: 64 | AN15: 1 | AO15: 0.4 | AP15: 0.6 | AR15: 55 | AS15: 45688 | AT15: 32048237.23 | AU15: 12819294.89 | AV15: 19228942.34 | AX15: 45688 | AY15: 0.07951484928 | BC15: =VLOOKUP($BF15,RD!$B:$F,5,FALSE)/100 -> 0.008227857344 | BD15: =VLOOKUP($BF15,RD!$B:$F,4,FALSE)/100 -> 0.1274322141 | BE15: =(VLOOKUP($BF15,RD!$B:$F,3,FALSE)/100)/12 -> 0.00329144225 | BF15: 44 | BH15: 55 | BI15: 3.204823723 | BJ15: 1.055788356 | BK15: 1.360838347
C16: =100*C32 -> 60 | F16: -136780.0527 | G16: -128978.276 | I16: 55 | J16: 45716 | K16: 32055421.35 | L16: 19165595.04 | M16: 0 | P16: 63347.30136 | Q16: -82068.03163 | R16: 19146874.31 | S16: 12882642.19 | T16: 143964.165 | V16: 0 | W16: -63347.30136 | X16: -54712.02109 | Y16: 12908547.04 | AA16: 55 | AB16: 45716 | AC16: 1 | AD16: 0.4026946612 | AE16: 0.5973053388 | AG16: 55 | AH16: 45716 | AI16: 1 | AJ16: 0.4 | AK16: 0.6 | AM16: 65 | AN16: 1 | AO16: 0.4 | AP16: 0.6 | AR16: 55 | AS16: 45716 | AT16: 32055421.35 | AU16: 12822168.54 | AV16: 19233252.81 | AX16: 45716 | AY16: 0.001546991491 | BC16: =VLOOKUP($BF16,RD!$B:$F,5,FALSE)/100 -> 0.01117504956 | BD16: =VLOOKUP($BF16,RD!$B:$F,4,FALSE)/100 -> -0.004944106663 | BE16: =(VLOOKUP($BF16,RD!$B:$F,3,FALSE)/100)/12 -> 0.005116096025 | BF16: 50 | BH16: 55 | BI16: 3.205542135 | BJ16: 1.43964165 | BK16: 1.367800527
C17: =100*C31 -> 40 | F17: -137362.3518 | G17: -128978.276 | I17: 55 | J17: 45747 | K17: 31885501.42 | L17: 19146874.31 | M17: 0 | P17: 86378.49901 | Q17: -82417.41109 | R17: 19150835.4 | S17: 12908547.04 | T17: -32557.57675 | V17: 0 | W17: -86378.49901 | X17: -54944.94073 | Y17: 12734666.02 | AA17: 55 | AB17: 45747 | AC17: 1 | AD17: 0.3993873533 | AE17: 0.6006126467 | AG17: 55 | AH17: 45747 | AI17: 1 | AJ17: 0.4 | AK17: 0.6 | AM17: 66 | AN17: 1 | AO17: 0.4 | AP17: 0.6 | AR17: 55 | AS17: 45747 | AT17: 31885501.42 | AU17: 12754200.57 | AV17: 19131300.85 | AX17: 45747 | AY17: -0.01964162442 | BC17: =VLOOKUP($BF17,RD!$B:$F,5,FALSE)/100 -> -0.002522172066 | BD17: =VLOOKUP($BF17,RD!$B:$F,4,FALSE)/100 -> -0.03102548855 | BE17: =(VLOOKUP($BF17,RD!$B:$F,3,FALSE)/100)/12 -> 0.004257193188 | BF17: 169 | BH17: 55 | BI17: 3.188550142 | BJ17: -0.3255757675 | BK17: 1.373623518
F18: -138195.8961 | G18: -128978.276 | I18: 56 | J18: 45777 | K18: 31818667.51 | L18: 19150835.4 | M18: 0 | P18: -19534.54605 | Q18: -82917.53767 | R18: 19048383.31 | S18: 12734666.02 | T18: 71361.99206 | V18: 0 | W18: 19534.54605 | X18: -55278.35845 | Y18: 12770284.2 | AA18: 56 | AB18: 45777 | AC18: 1 | AD18: 0.4013456627 | AE18: 0.5986543373 | AG18: 56 | AH18: 45777 | AI18: 1 | AJ18: 0.4 | AK18: 0.6 | AM18: 67 | AN18: 1 | AO18: 0.4 | AP18: 0.6 | AR18: 56 | AS18: 45777 | AT18: 31818667.51 | AU18: 12727467.01 | AV18: 19091200.51 | AX18: 45777 | AY18: -0.0288479129 | BC18: =VLOOKUP($BF18,RD!$B:$F,5,FALSE)/100 -> 0.00560375843 | BD18: =VLOOKUP($BF18,RD!$B:$F,4,FALSE)/100 -> -0.05194476194 | BE18: =(VLOOKUP($BF18,RD!$B:$F,3,FALSE)/100)/12 -> 0.006068215108 | BF18: 158 | BH18: 56 | BI18: 3.181866751 | BJ18: 0.7136199206 | BK18: 1.381958961
F19: -138660.6805 | G19: -128978.276 | I19: 56 | J19: 45808 | K19: 31865129.8 | L19: 19048383.31 | M19: 0 | P19: 42817.19524 | Q19: -83196.40832 | R19: 19008004.1 | S19: 12770284.2 | T19: 185122.9666 | V19: 0 | W19: -42817.19524 | X19: -55464.27221 | Y19: 12857125.7 | AA19: 56 | AB19: 45808 | AC19: 1 | AD19: 0.403485747 | AE19: 0.596514253 | AG19: 56 | AH19: 45808 | AI19: 1 | AJ19: 0.4 | AK19: 0.6 | AM19: 68 | AN19: 1 | AO19: 0.4 | AP19: 0.6 | AR19: 56 | AS19: 45808 | AT19: 31865129.8 | AU19: 12746051.92 | AV19: 19119077.88 | AX19: 45808 | AY19: -0.003065070717 | BC19: =VLOOKUP($BF19,RD!$B:$F,5,FALSE)/100 -> 0.0144963858 | BD19: =VLOOKUP($BF19,RD!$B:$F,4,FALSE)/100 -> -0.01494374313 | BE19: =(VLOOKUP($BF19,RD!$B:$F,3,FALSE)/100)/12 -> 0.0033632287 | BF19: 92 | BH19: 56 | BI19: 3.18651298 | BJ19: 1.851229666 | BK19: 1.386606805
C20: 600 | F20: -138608.1874 | G20: -128978.276 | I20: 56 | J20: 45838 | K20: 31895611.48 | L20: 19008004.1 | M20: 0 | P20: 111073.7799 | Q20: -83164.91242 | R20: 19035912.97 | S20: 12857125.7 | T20: 169089.8724 | V20: 0 | W20: -111073.7799 | X20: -55443.27495 | Y20: 12859698.52 | AA20: 56 | AB20: 45838 | AC20: 1 | AD20: 0.4031808114 | AE20: 0.5968191886 | AG20: 56 | AH20: 45838 | AI20: 1 | AJ20: 0.4 | AK20: 0.6 | AM20: 69 | AN20: 1 | AO20: 0.4 | AP20: 0.6 | AR20: 56 | AS20: 45838 | AT20: 31895611.48 | AU20: 12758244.59 | AV20: 19137366.89 | AX20: 45838 | AY20: 0.06601336637 | BC20: =VLOOKUP($BF20,RD!$B:$F,5,FALSE)/100 -> 0.01315145207 | BD20: =VLOOKUP($BF20,RD!$B:$F,4,FALSE)/100 -> 0.1017241979 | BE20: =(VLOOKUP($BF20,RD!$B:$F,3,FALSE)/100)/12 -> -0.0003785727806 | BF20: 195 | BH20: 56 | BI20: 3.189561148 | BJ20: 1.690898724 | BK20: 1.386081874
C21: 200 | F21: -139264.7093 | G21: -128978.276 | I21: 56 | J21: 45869 | K21: 31590991.94 | L21: 19035912.97 | M21: 0 | P21: 101453.9234 | Q21: -83558.82556 | R21: 19053808.06 | S21: 12859698.52 | T21: -165354.8336 | V21: 0 | W21: -101453.9234 | X21: -55705.88371 | Y21: 12537183.88 | AA21: 56 | AB21: 45869 | AC21: 1 | AD21: 0.396859456 | AE21: 0.603140544 | AG21: 56 | AH21: 45869 | AI21: 1 | AJ21: 0.4 | AK21: 0.6 | AM21: 70 | AN21: 1 | AO21: 0.4 | AP21: 0.6 | AR21: 56 | AS21: 45869 | AT21: 31590991.94 | AU21: 12636396.78 | AV21: 18954595.16 | AX21: 45869 | AY21: -0.007412380825 | BC21: =VLOOKUP($BF21,RD!$B:$F,5,FALSE)/100 -> -0.0128583756 | BD21: =VLOOKUP($BF21,RD!$B:$F,4,FALSE)/100 -> -0.003828979666 | BE21: =(VLOOKUP($BF21,RD!$B:$F,3,FALSE)/100)/12 -> 0.004736530491 | BF21: 98 | BH21: 56 | BI21: 3.159099194 | BJ21: -1.653548336 | BK21: 1.392647093
F22: -139892.9214 | G22: -128978.276 | I22: 56 | J22: 45900 | K22: 31452402.15 | L22: 19053808.06 | M22: 0 | P22: -99212.90019 | Q22: -83935.75284 | R22: 18870659.41 | S22: 12537183.88 | T22: 1303.132737 | V22: 0 | W22: 99212.90019 | X22: -55957.16856 | Y22: 12581742.74 | AA22: 56 | AB22: 45900 | AC22: 1 | AD22: 0.4000248591 | AE22: 0.5999751409 | AG22: 56 | AH22: 45900 | AI22: 1 | AJ22: 0.4 | AK22: 0.6 | AM22: 71 | AN22: 1 | AO22: 0.4 | AP22: 0.6 | AR22: 56 | AS22: 45900 | AT22: 31452402.15 | AU22: 12580960.86 | AV22: 18871441.29 | AX22: 45900 | AY22: 0.01140163807 | BC22: =VLOOKUP($BF22,RD!$B:$F,5,FALSE)/100 -> 0.0001039414233 | BD22: =VLOOKUP($BF22,RD!$B:$F,4,FALSE)/100 -> 0.018934216 | BE22: =(VLOOKUP($BF22,RD!$B:$F,3,FALSE)/100)/12 -> 0.004510921178 | BF22: 175 | BH22: 56 | BI22: 3.145240215 | BJ22: 0.01303132737 | BK22: 1.398929214
F23: -141421.2516 | G23: -128978.276 | I23: 56 | J23: 45930 | K23: 31316968.22 | L23: 18870659.41 | M23: 0 | P23: 781.8796421 | Q23: -84852.75094 | R23: 18786588.54 | S23: 12581742.74 | T23: 5987.314524 | V23: 0 | W23: -781.8796421 | X23: -56568.50063 | Y23: 12530379.67 | AA23: 56 | AB23: 45930 | AC23: 1 | AD23: 0.4001147106 | AE23: 0.5998852894 | AG23: 56 | AH23: 45930 | AI23: 1 | AJ23: 0.4 | AK23: 0.6 | AM23: 72 | AN23: 1 | AO23: =AO22 -> 0.4 | AP23: 0.6 | AR23: 56 | AS23: 45930 | AT23: 31316968.22 | AU23: 12526787.29 | AV23: 18790180.93 | AX23: 45930 | AY23: 0.0389890209 | BC23: =VLOOKUP($BF23,RD!$B:$F,5,FALSE)/100 -> 0.0004758732274 | BD23: =VLOOKUP($BF23,RD!$B:$F,4,FALSE)/100 -> 0.06467672689 | BE23: =(VLOOKUP($BF23,RD!$B:$F,3,FALSE)/100)/12 -> 0.010925 | BF23: 257 | BH23: 56 | BI23: 3.131696822 | BJ23: 0.05987314524 | BK23: 1.414212516
F24: -142466.9977 | G24: -128978.276 | I24: 56 | J24: 45961 | K24: 31266091.13 | L24: 18786588.54 | M24: 0 | P24: 3592.388714 | Q24: -85480.19862 | R24: 18704700.73 | S24: 12530379.67 | T24: 91589.91494 | V24: 0 | W24: -3592.388714 | X24: -56986.79908 | Y24: 12561390.4 | AA24: 56 | AB24: 45961 | AC24: 1 | AD24: 0.4017576213 | AE24: 0.5982423787 | AG24: 56 | AH24: 45961 | AI24: 1 | AJ24: 0.4 | AK24: 0.6 | AM24: 73 | AN24: 1 | AO24: 0.4 | AP24: 0.6 | AR24: 56 | AS24: 45961 | AT24: 31266091.13 | AU24: 12506436.45 | AV24: 18759654.68 | AX24: 45961 | AY24: 0.006271848205 | BC24: =VLOOKUP($BF24,RD!$B:$F,5,FALSE)/100 -> 0.007309428551 | BD24: =VLOOKUP($BF24,RD!$B:$F,4,FALSE)/100 -> 0.005575047332 | BE24: =(VLOOKUP($BF24,RD!$B:$F,3,FALSE)/100)/12 -> 0.007394547325 | BF24: 128 | BH24: 56 | BI24: 3.126609113 | BJ24: 0.9158991494 | BK24: 1.424669977
F25: -143092.6653 | G25: -128978.276 | I25: 56 | J25: 45991 | K25: 31130606.86 | L25: 18704700.73 | M25: 0 | P25: 54953.94897 | Q25: -85855.59916 | R25: 18673799.08 | S25: 12561390.4 | T25: 7608.39283 | V25: 0 | W25: -54953.94897 | X25: -57237.06611 | Y25: 12456807.78 | AA25: 56 | AB25: 45991 | AC25: 1 | AD25: 0.4001466414 | AE25: 0.5998533586 | AG25: 56 | AH25: 45991 | AI25: 1 | AJ25: 0.4 | AK25: 0.6 | AM25: 74 | AN25: 1 | AO25: 0.4 | AP25: 0.6 | AR25: 56 | AS25: 45991 | AT25: 31130606.86 | AU25: 12452242.74 | AV25: 18678364.12 | AX25: 45991 | AY25: 0.0360552449 | BC25: =VLOOKUP($BF25,RD!$B:$F,5,FALSE)/100 -> 0.0006056967092 | BD25: =VLOOKUP($BF25,RD!$B:$F,4,FALSE)/100 -> 0.05970272048 | BE25: =(VLOOKUP($BF25,RD!$B:$F,3,FALSE)/100)/12 -> 0.004391666667 | BF25: 223 | BH25: 56 | BI25: 3.113060686 | BJ25: 0.0760839283 | BK25: 1.430926653
F26: -143926.5885 | G26: -128978.276 | I26: 56 | J26: 46022 | K26: 30987947.75 | L26: 18673799.08 | M26: 0 | P26: 4565.035698 | Q26: -86355.95307 | R26: 18592008.16 | S26: 12456807.78 | T26: 1267.474737 | V26: 0 | W26: -4565.035698 | X26: -57570.63538 | Y26: 12395939.58 | AA26: 56 | AB26: 46022 | AC26: 1 | AD26: 0.4000245413 | AE26: 0.5999754587 | AG26: 56 | AH26: 46022 | AI26: 1 | AJ26: 0.4 | AK26: 0.6 | AM26: 75 | AN26: 1 | AO26: 0.4 | AP26: 0.6 | AR26: 56 | AS26: 46022 | AT26: 30987947.75 | AU26: 12395179.1 | AV26: 18592768.65 | AX26: 46022 | AY26: -0.02322489105 | BC26: =VLOOKUP($BF26,RD!$B:$F,5,FALSE)/100 -> 0.0001017495621 | BD26: =VLOOKUP($BF26,RD!$B:$F,4,FALSE)/100 -> -0.03877757503 | BE26: =(VLOOKUP($BF26,RD!$B:$F,3,FALSE)/100)/12 -> 0.005827854154 | BF26: 164 | BH26: 56 | BI26: 3.098794775 | BJ26: 0.01267474737 | BK26: 1.439265885
F27: -144910.2854 | G27: -128978.276 | I27: 56 | J27: 46053 | K27: 30912366.37 | L27: 18592008.16 | M27: 0 | P27: 760.4848423 | Q27: -86946.17121 | R27: 18505822.48 | S27: 12395939.58 | T27: 69328.91004 | V27: 0 | W27: -760.4848423 | X27: -57964.11414 | Y27: 12406543.89 | AA27: 56 | AB27: 46053 | AC27: 1 | AD27: 0.4013456539 | AE27: 0.5986543461 | AG27: 56 | AH27: 46053 | AI27: 1 | AJ27: 0.4 | AK27: 0.6 | AM27: 76 | AN27: 1 | AO27: 0.4 | AP27: 0.6 | AR27: 56 | AS27: 46053 | AT27: 30912366.37 | AU27: 12364946.55 | AV27: 18547419.82 | AX27: 46053 | AY27: -0.01207433903 | BC27: =VLOOKUP($BF27,RD!$B:$F,5,FALSE)/100 -> 0.005592872535 | BD27: =VLOOKUP($BF27,RD!$B:$F,4,FALSE)/100 -> -0.02391866727 | BE27: =(VLOOKUP($BF27,RD!$B:$F,3,FALSE)/100)/12 -> 0.006834712817 | BF27: 131 | BH27: 56 | BI27: 3.091236637 | BJ27: 0.6932891004 | BK27: 1.449102854
C28: 0.05 | F28: -145247.5998 | G28: -128978.276 | I28: 56 | J28: 46081 | K28: 30961936.6 | L28: 18505822.48 | M28: 0 | P28: 41597.34602 | Q28: -87148.55988 | R28: 18460271.26 | S28: 12406543.89 | T28: 194817.8273 | V28: 0 | W28: -41597.34602 | X28: -58099.03992 | Y28: 12501665.34 | AA28: 56 | AB28: 46081 | AC28: 1 | AD28: 0.4037753031 | AE28: 0.5962246969 | AG28: 56 | AH28: 46081 | AI28: 1 | AJ28: 0.4 | AK28: 0.6 | AM28: 77 | AN28: 1 | AO28: 0.4 | AP28: 0.6 | AR28: 56 | AS28: 46081 | AT28: 30961936.6 | AU28: 12384774.64 | AV28: 18577161.96 | AX28: 46081 | AY28: -0.03803074498 | BC28: =VLOOKUP($BF28,RD!$B:$F,5,FALSE)/100 -> 0.0157028282 | BD28: =VLOOKUP($BF28,RD!$B:$F,4,FALSE)/100 -> -0.07442019667 | BE28: =(VLOOKUP($BF28,RD!$B:$F,3,FALSE)/100)/12 -> 0.002327746741 | BF28: 31 | BH28: 56 | BI28: 3.09619366 | BJ28: 1.948178273 | BK28: 1.452475998
F29: -145620.0295 | G29: -128978.276 | I29: 56 | J29: 46112 | K29: 31106096.28 | L29: 18460271.26 | M29: 0 | P29: 116890.6964 | Q29: -87372.01772 | R29: 18489789.94 | S29: 12501665.34 | T29: 289779.71 | V29: 0 | W29: -116890.6964 | X29: -58248.01182 | Y29: 12616306.34 | AA29: 56 | AB29: 46112 | AC29: 1 | AD29: 0.4055895097 | AE29: 0.5944104903 | AG29: 56 | AH29: 46112 | AI29: 1 | AJ29: 0.4 | AK29: 0.6 | AM29: 78 | AN29: 1 | AO29: 0.4 | AP29: 0.6 | AR29: 56 | AS29: 46112 | AT29: 31106096.28 | AU29: 12442438.51 | AV29: 18663657.77 | AX29: 46112 | AY29: 0.001047545252 | BC29: =VLOOKUP($BF29,RD!$B:$F,5,FALSE)/100 -> 0.02317928869 | BD29: =VLOOKUP($BF29,RD!$B:$F,4,FALSE)/100 -> -0.0140538083 | BE29: =(VLOOKUP($BF29,RD!$B:$F,3,FALSE)/100)/12 -> 0.002564102564 | BF29: 34 | BH29: 56 | BI29: 3.110609628 | BJ29: 2.8977971 | BK29: 1.456200295
F30: -146087.5537 | G30: -128978.276 | I30: 57 | J30: 46142 | K30: 31127944.86 | L30: 18489789.94 | M30: 0 | P30: 173867.826 | Q30: -87652.53223 | R30: 18576005.24 | S30: 12616306.34 | T30: 167936.1344 | V30: 0 | W30: -173867.826 | X30: -58435.02148 | Y30: 12551939.62 | AA30: 57 | AB30: 46142 | AC30: 1 | AD30: 0.4032370168 | AE30: 0.5967629832 | AG30: 57 | AH30: 46142 | AI30: 1 | AJ30: 0.4 | AK30: 0.6 | AM30: 79 | AN30: 1 | AO30: 0.4 | AP30: 0.6 | AR30: 57 | AS30: 46142 | AT30: 31127944.86 | AU30: 12451177.94 | AV30: 18676766.92 | AX30: 46142 | AY30: 0.0133674005 | BC30: =VLOOKUP($BF30,RD!$B:$F,5,FALSE)/100 -> 0.01331103811 | BD30: =VLOOKUP($BF30,RD!$B:$F,4,FALSE)/100 -> 0.01340548498 | BE30: =(VLOOKUP($BF30,RD!$B:$F,3,FALSE)/100)/12 -> 0.003210576015 | BF30: 200 | BH30: 57 | BI30: 3.112794486 | BJ30: 1.679361344 | BK30: 1.460875537
C31: =100%-C32 -> 0.4 | F31: -146362.6853 | G31: -128978.276 | I31: 57 | J31: 46173 | K31: 31226268.74 | L31: 18576005.24 | M31: 0 | P31: 100761.6807 | Q31: -87817.61116 | R31: 18588949.3 | S31: 12551939.62 | T31: 244686.5639 | W31: -100761.6807 | X31: -58545.07411 | Y31: 12637319.43 | AA31: 57 | AB31: 46173 | AC31: 1 | AD31: 0.4047015524 | AE31: 0.5952984476 | AG31: 57 | AH31: 46173 | AI31: 1 | AJ31: 0.4 | AK31: 0.6 | AM31: 80 | AN31: 1 | AO31: 0.4 | AP31: 0.6 | AR31: 57 | AS31: 46173 | AT31: 31226268.74 | AU31: 12490507.5 | AV31: 18735761.24 | AX31: 46173 | AY31: 0.03083116781 | BC31: =VLOOKUP($BF31,RD!$B:$F,5,FALSE)/100 -> 0.01949392454 | BD31: =VLOOKUP($BF31,RD!$B:$F,4,FALSE)/100 -> 0.03853856226 | BE31: =(VLOOKUP($BF31,RD!$B:$F,3,FALSE)/100)/12 -> 0.001883333333 | BF31: 209 | BH31: 57 | BI31: 3.122626874 | BJ31: 2.446865639 | BK31: 1.463626853
C32: =Input!C14 -> 0.6 | F32: -147523.0475 | G32: -128978.276 | I32: 57 | J32: 46203 | K32: 31226820.38 | L32: 18588949.3 | M32: 0 | P32: 146811.9383 | Q32: -88513.82851 | R32: 18647247.41 | S32: 12637319.43 | T32: 148074.6922 | W32: -146811.9383 | X32: -59009.21901 | Y32: 12579572.97 | AA32: 57 | AB32: 46203 | AC32: 1 | AD32: 0.4028451445 | AE32: 0.5971548555 | AG32: 57 | AH32: 46203 | AI32: 1 | AJ32: 0.4 | AK32: 0.6 | AM32: 81 | AN32: 1 | AO32: 0.4 | AP32: 0.6 | AR32: 57 | AS32: 46203 | AT32: 31226820.38 | AU32: 12490728.15 | AV32: 18736092.23 | AX32: 46203 | AY32: 0.01577661851 | BC32: =VLOOKUP($BF32,RD!$B:$F,5,FALSE)/100 -> 0.01171725483 | BD32: =VLOOKUP($BF32,RD!$B:$F,4,FALSE)/100 -> 0.0185150957 | BE32: =(VLOOKUP($BF32,RD!$B:$F,3,FALSE)/100)/12 -> 0.00792799237 | BF32: 138 | BH32: 57 | BI32: 3.122682038 | BJ32: 1.480746922 | BK32: 1.475230475
F33: -147707.5667 | G33: -128978.276 | I33: 57 | J33: 46234 | K33: 31002872.98 | L33: 18647247.41 | M33: 0 | P33: 88844.81531 | Q33: -88624.53999 | R33: 18647467.69 | S33: 12579572.97 | T33: -76239.83617 | W33: -88844.81531 | X33: -59083.02666 | Y33: 12355405.29 | AA33: 57 | AB33: 46234 | AC33: 1 | AD33: 0.398524527 | AE33: 0.601475473 | AG33: 57 | AH33: 46234 | AI33: 1 | AJ33: 0.4 | AK33: 0.6 | AM33: 82 | AN33: 1 | AO33: 0.4 | AP33: 0.6 | AR33: 57 | AS33: 46234 | AT33: 31002872.98 | AU33: 12401149.19 | AV33: 18601723.79 | AX33: 46234 | AY33: -0.0230918396 | BC33: =VLOOKUP($BF33,RD!$B:$F,5,FALSE)/100 -> -0.006060606061 | BD33: =VLOOKUP($BF33,RD!$B:$F,4,FALSE)/100 -> -0.0343763634 | BE33: =(VLOOKUP($BF33,RD!$B:$F,3,FALSE)/100)/12 -> 0.001250781739 | BF33: 28 | BH33: 57 | BI33: 3.100287298 | BJ33: -0.7623983617 | BK33: 1.477075667
F34: -148911.42 | G34: -128978.276 | I34: 57 | J34: 46265 | K34: 30868000.77 | L34: 18647467.69 | M34: 0 | P34: -45743.9017 | Q34: -89346.85198 | R34: 18512376.94 | S34: 12355405.29 | T34: 14039.21344 | W34: 45743.9017 | X34: -59564.56799 | Y34: 12355623.84 | AA34: 57 | AB34: 46265 | AC34: 1 | AD34: 0.4002728887 | AE34: 0.5997271113 | AG34: 57 | AH34: 46265 | AI34: 1 | AJ34: 0.4 | AK34: 0.6 | AM34: 83 | AN34: =AO34+AP34 -> 1 | AO34: 0.4 | AP34: 0.6 | AR34: 57 | AS34: 46265 | AT34: 30868000.77 | AU34: 12347200.31 | AV34: 18520800.46 | AX34: 46265 | AY34: -0.04808888833 | BC34: =VLOOKUP($BF34,RD!$B:$F,5,FALSE)/100 -> 0.001136281094 | BD34: =VLOOKUP($BF34,RD!$B:$F,4,FALSE)/100 -> -0.08094299879 | BE34: =(VLOOKUP($BF34,RD!$B:$F,3,FALSE)/100)/12 -> 0.008150248051 | BF34: 140 | BH34: 57 | BI34: 3.086800077 | BJ34: 0.1403921344 | BK34: 1.4891142
C35: =SOR!G2 -> 0.05157516265 | F35: -149886.6371 | G35: -128978.276 | I35: 57 | J35: 46295 | K35: 30611136.52 | L35: 18512376.94 | M35: 0 | P35: 8423.528066 | Q35: -89931.98227 | R35: 18430868.48 | S35: 12355623.84 | T35: -106977.6203 | W35: -8423.528066 | X35: -59954.65485 | Y35: 12180268.03 | AA35: 57 | AB35: 46295 | AC35: 1 | AD35: 0.3979031627 | AE35: 0.6020968373 | AG35: 57 | AH35: 46295 | AI35: 1 | AJ35: 0.4 | AK35: 0.6 | AM35: 84 | AN35: =AO35+AP35 -> 1 | AO35: 0.4 | AP35: 0.6 | AR35: 57 | AS35: 46295 | AT35: 30611136.52 | AU35: 12244454.61 | AV35: 18366681.91 | AX35: 46295 | AY35: 0.04195844109 | BC35: =VLOOKUP($BF35,RD!$B:$F,5,FALSE)/100 -> -0.008658212788 | BD35: =VLOOKUP($BF35,RD!$B:$F,4,FALSE)/100 -> 0.07540908461 | BE35: =(VLOOKUP($BF35,RD!$B:$F,3,FALSE)/100)/12 -> 0.006548974943 | BF35: 57 | BH35: 57 | BI35: 3.061113652 | BJ35: -1.069776203 | BK35: 1.498866371
F36: -150515.1846 | G36: -128978.276 | I36: 57 | J36: 46326 | K36: 30643260.94 | L36: 18430868.48 | M36: 0 | P36: -64186.57219 | Q36: -90309.11073 | R36: 18276372.8 | S36: 12180268.03 | T36: 182639.6093 | W36: 64186.57219 | X36: -60206.07382 | Y36: 12366888.14 | AA36: 57 | AB36: 46326 | AC36: 1 | AD36: 0.4035761131 | AE36: 0.5964238869 | AG36: 57 | AH36: 46326 | AI36: 1 | AJ36: 0.4 | AK36: 0.6 | AM36: 85 | AN36: =AO36+AP36 -> 1 | AO36: 0.4 | AP36: 0.6 | AR36: 57 | AS36: 46326 | AT36: 30643260.94 | AU36: 12257304.38 | AV36: 18385956.56 | AX36: 46326 | AY36: 0.02367838132 | BC36: =VLOOKUP($BF36,RD!$B:$F,5,FALSE)/100 -> 0.01499471184 | BD36: =VLOOKUP($BF36,RD!$B:$F,4,FALSE)/100 -> 0.02955427204 | BE36: =(VLOOKUP($BF36,RD!$B:$F,3,FALSE)/100)/12 -> 0.004193485469 | BF36: 170 | BH36: 57 | BI36: 3.064326094 | BJ36: 1.826396093 | BK36: 1.505151846
C37: 900 | F37: -150494.4524 | G37: -128978.276 | I37: 57 | J37: 46356 | K37: 30750360.76 | L37: 18276372.8 | M37: 0 | P37: 109583.7656 | Q37: -90296.67146 | R37: 18295659.89 | S37: 12366888.14 | T37: 257594.268 | W37: -109583.7656 | X37: -60197.78098 | Y37: 12454700.86 | AA37: 57 | AB37: 46356 | AC37: 1 | AD37: 0.4050261707 | AE37: 0.5949738293 | AG37: 57 | AH37: 46356 | AI37: 1 | AJ37: 0.4 | AK37: 0.6 | AM37: 86 | AN37: =AO37+AP37 -> 1 | AO37: 0.4 | AP37: 0.6 | AR37: 57 | AS37: 46356 | AT37: 30750360.76 | AU37: 12300144.3 | AV37: 18450216.45 | AX37: 46356 | AY37: 0.02738181417 | BC37: =VLOOKUP($BF37,RD!$B:$F,5,FALSE)/100 -> 0.02082935214 | BD37: =VLOOKUP($BF37,RD!$B:$F,4,FALSE)/100 -> 0.03184237777 | BE37: =(VLOOKUP($BF37,RD!$B:$F,3,FALSE)/100)/12 -> -0.0001377410468 | BF37: 179 | BH37: 57 | BI37: 3.075036076 | BJ37: 2.57594268 | BK37: 1.504944524
C38: 200 | F38: -151845.8753 | G38: -128978.276 | I38: 57 | J38: 46387 | K38: 30518358.98 | L38: 18295659.89 | M38: 0 | P38: 154556.5608 | Q38: -91107.52519 | R38: 18359108.93 | S38: 12454700.86 | T38: -80155.90503 | W38: -154556.5608 | X38: -60738.35013 | Y38: 12159250.05 | AA38: 57 | AB38: 46387 | AC38: 1 | AD38: 0.3984241111 | AE38: 0.6015758889 | AG38: 57 | AH38: 46387 | AI38: 1 | AJ38: 0.4 | AK38: 0.6 | AM38: 87 | AN38: =AO38+AP38 -> 1 | AO38: 0.4 | AP38: 0.6 | AR38: 57 | AS38: 46387 | AT38: 30518358.98 | AU38: 12207343.59 | AV38: 18311015.39 | AX38: 46387 | AY38: -0.06855146707 | BC38: =VLOOKUP($BF38,RD!$B:$F,5,FALSE)/100 -> -0.00643579528 | BD38: =VLOOKUP($BF38,RD!$B:$F,4,FALSE)/100 -> -0.1096907178 | BE38: =(VLOOKUP($BF38,RD!$B:$F,3,FALSE)/100)/12 -> 0.008979885057 | BF38: 105 | BH38: 57 | BI38: 3.051835898 | BJ38: -0.8015590503 | BK38: 1.518458753
F39: -152250.0791 | G39: -128978.276 | I39: 57 | J39: 46418 | K39: 30416712.7 | L39: 18359108.93 | M39: 0 | P39: -48093.54302 | Q39: -91350.04744 | R39: 18219665.34 | S39: 12159250.05 | T39: 50603.79873 | W39: 48093.54302 | X39: -60900.03163 | Y39: 12197047.36 | AA39: 57 | AB39: 46418 | AC39: 1 | AD39: 0.4009982104 | AE39: 0.5990017896 | AG39: 57 | AH39: 46418 | AI39: 1 | AJ39: 0.4 | AK39: 0.6 | AM39: 88 | AN39: 1 | AO39: =AO38 -> 0.4 | AP39: 0.6 | AR39: 57 | AS39: 46418 | AT39: 30416712.7 | AU39: 12166685.08 | AV39: 18250027.62 | AX39: 46418 | AY39: 0.08455146961 | BC39: =VLOOKUP($BF39,RD!$B:$F,5,FALSE)/100 -> 0.004161753277 | BD39: =VLOOKUP($BF39,RD!$B:$F,4,FALSE)/100 -> 0.1383678904 | BE39: =(VLOOKUP($BF39,RD!$B:$F,3,FALSE)/100)/12 -> 0.002661934339 | BF39: 94 | BH39: 57 | BI39: 3.04167127 | BJ39: 0.5060379873 | BK39: 1.522500791
F40: -153128.8153 | G40: -128978.276 | I40: 57 | J40: 46446 | K40: 30384580.46 | L40: 18219665.34 | M40: 0 | P40: 30362.27924 | Q40: -91877.28918 | R40: 18158150.33 | S40: 12197047.36 | T40: 120996.5789 | W40: -30362.27924 | X40: -61251.52612 | Y40: 12226430.13 | AA40: 57 | AB40: 46446 | AC40: 1 | AD40: 0.4023893023 | AE40: 0.5976106977 | AG40: 57 | AH40: 46446 | AI40: 1 | AJ40: 0.4 | AK40: 0.6 | AM40: 89 | AN40: 1 | AO40: 0.4 | AP40: 0.6 | AR40: 57 | AS40: 46446 | AT40: 30384580.46 | AU40: 12153832.18 | AV40: 18230748.28 | AX40: 46446 | AY40: 0.02758163109 | BC40: =VLOOKUP($BF40,RD!$B:$F,5,FALSE)/100 -> 0.009920153242 | BD40: =VLOOKUP($BF40,RD!$B:$F,4,FALSE)/100 -> 0.03947363667 | BE40: =(VLOOKUP($BF40,RD!$B:$F,3,FALSE)/100)/12 -> 0.005771663504 | BF40: 82 | BH40: 57 | BI40: 3.038458046 | BJ40: 1.209965789 | BK40: 1.531288153
F41: -154135.6373 | G41: -128978.276 | I41: 57 | J41: 46477 | K41: 30341648.17 | L41: 18158150.33 | M41: 0 | P41: 72597.94733 | Q41: -92481.38236 | R41: 18138266.89 | S41: 12226430.13 | T41: 111203.3515 | W41: -72597.94733 | X41: -61654.2549 | Y41: 12203381.28 | AA41: 57 | AB41: 46477 | AC41: 1 | AD41: 0.4021990239 | AE41: 0.5978009761 | AG41: 57 | AH41: 46477 | AI41: 1 | AJ41: 0.4 | AK41: 0.6 | AM41: 90 | AN41: 1 | AO41: 0.4 | AP41: 0.6 | AR41: 57 | AS41: 46477 | AT41: 30341648.17 | AU41: 12136659.27 | AV41: 18204988.9 | AX41: 46477 | AY41: 0.008337834815 | BC41: =VLOOKUP($BF41,RD!$B:$F,5,FALSE)/100 -> 0.009095324659 | BD41: =VLOOKUP($BF41,RD!$B:$F,4,FALSE)/100 -> 0.007828197514 | BE41: =(VLOOKUP($BF41,RD!$B:$F,3,FALSE)/100)/12 -> 0.006575 | BF41: 255 | BH41: 57 | BI41: 3.034164817 | BJ41: 1.112033515 | BK41: 1.541356373
F42: -154623.224 | G42: -128978.276 | I42: 58 | J42: 46507 | K42: 30263924.21 | L42: 18138266.89 | M42: 0 | P42: 66722.01088 | Q42: -92773.93441 | R42: 18112214.97 | S42: 12203381.28 | T42: 76899.25763 | W42: -66722.01088 | X42: -61849.28961 | Y42: 12151709.24 | AA42: 58 | AB42: 46507 | AC42: 1 | AD42: 0.4015245728 | AE42: 0.5984754272 | AG42: 58 | AH42: 46507 | AI42: 1 | AJ42: 0.4 | AK42: 0.6 | AM42: 91 | AN42: 1 | AO42: 0.4 | AP42: 0.6 | AR42: 58 | AS42: 46507 | AT42: 30263924.21 | AU42: 12105569.68 | AV42: 18158354.52 | AX42: 46507 | AY42: -0.009800402746 | BC42: =VLOOKUP($BF42,RD!$B:$F,5,FALSE)/100 -> 0.006301471359 | BD42: =VLOOKUP($BF42,RD!$B:$F,4,FALSE)/100 -> -0.02060334941 | BE42: =(VLOOKUP($BF42,RD!$B:$F,3,FALSE)/100)/12 -> 0.003163361662 | BF42: 201 | BH42: 58 | BI42: 3.026392421 | BJ42: 0.7689925763 | BK42: 1.54623224
F43: -155829.5045 | G43: -128978.276 | I43: 58 | J43: 46538 | K43: 30217088.13 | L43: 18112214.97 | M43: 0 | P43: 46139.55458 | Q43: -93497.7027 | R43: 18064856.82 | S43: 12151709.24 | T43: 108993.4294 | W43: -46139.55458 | X43: -62331.8018 | Y43: 12152231.31 | AA43: 58 | AB43: 46538 | AC43: 1 | AD43: 0.4021642078 | AE43: 0.5978357922 | AG43: 58 | AH43: 46538 | AI43: 1 | AJ43: 0.4 | AK43: 0.6 | AM43: 92 | AN43: 1 | AO43: 0.4 | AP43: 0.6 | AR43: 58 | AS43: 46538 | AT43: 30217088.13 | AU43: 12086835.25 | AV43: 18130252.88 | AX43: 46538 | AY43: -0.01838931418 | BC43: =VLOOKUP($BF43,RD!$B:$F,5,FALSE)/100 -> 0.008969390829 | BD43: =VLOOKUP($BF43,RD!$B:$F,4,FALSE)/100 -> -0.03679351827 | BE43: =(VLOOKUP($BF43,RD!$B:$F,3,FALSE)/100)/12 -> 0.00780141844 | BF43: 139 | BH43: 58 | BI43: 3.021708813 | BJ43: 1.089934294 | BK43: 1.558295045
F44: -156507.3628 | G44: -128978.276 | I44: 58 | J44: 46568 | K44: 30206565.27 | L44: 18064856.82 | M44: 0 | P44: 65396.05763 | Q44: -93904.4177 | R44: 18036348.46 | S44: 12152231.31 | T44: 145984.4966 | W44: -65396.05763 | X44: -62602.94514 | Y44: 12170216.8 | AA44: 58 | AB44: 46568 | AC44: 1 | AD44: 0.4028997239 | AE44: 0.5971002761 | AG44: 58 | AH44: 46568 | AI44: 1 | AJ44: 0.4 | AK44: 0.6 | AM44: 93 | AN44: 1 | AO44: 0.4 | AP44: 0.6 | AR44: 58 | AS44: 46568 | AT44: 30206565.27 | AU44: 12082626.11 | AV44: 18123939.16 | AX44: 46568 | AY44: -0.03518762668 | BC44: =VLOOKUP($BF44,RD!$B:$F,5,FALSE)/100 -> 0.01201297876 | BD44: =VLOOKUP($BF44,RD!$B:$F,4,FALSE)/100 -> -0.0670367342 | BE44: =(VLOOKUP($BF44,RD!$B:$F,3,FALSE)/100)/12 -> 0.00435 | BF44: 225 | BH44: 58 | BI44: 3.020656527 | BJ44: 1.459844966 | BK44: 1.565073628
F45: -156949.08 | G45: -128978.276 | I45: 58 | J45: 46599 | K45: 30258894.04 | L45: 18036348.46 | M45: 0 | P45: 87590.69796 | Q45: -94169.448 | R45: 18029769.71 | S45: 12170216.8 | T45: 209277.8515 | W45: -87590.69796 | X45: -62779.632 | Y45: 12229124.33 | AA45: 58 | AB45: 46599 | AC45: 1 | AD45: 0.4041497456 | AE45: 0.5958502544 | AG45: 58 | AH45: 46599 | AI45: 1 | AJ45: 0.4 | AK45: 0.6 | AM45: 94 | AN45: 1 | AO45: 0.4 | AP45: 0.6 | AR45: 58 | AS45: 46599 | AT45: 30258894.04 | AU45: 12103557.61 | AV45: 18155336.42 | AX45: 46599 | AY45: 0.08915472964 | BC45: =VLOOKUP($BF45,RD!$B:$F,5,FALSE)/100 -> 0.01719590167 | BD45: =VLOOKUP($BF45,RD!$B:$F,4,FALSE)/100 -> 0.1379625329 | BE45: =(VLOOKUP($BF45,RD!$B:$F,3,FALSE)/100)/12 -> 0.002822341058 | BF45: 93 | BH45: 58 | BI45: 3.025889404 | BJ45: 2.092778515 | BK45: 1.5694908
F46: -157929.3668 | G46: -128978.276 | I46: 58 | J46: 46630 | K46: 30251903.59 | L46: 18029769.71 | M46: 0 | P46: 125566.7109 | Q46: -94757.62009 | R46: 18060578.8 | S46: 12229124.33 | T46: 150938.9164 | W46: -125566.7109 | X46: -63171.74673 | Y46: 12191324.78 | AA46: 58 | AB46: 46630 | AC46: 1 | AD46: 0.4029936414 | AE46: 0.5970063586 | AG46: 58 | AH46: 46630 | AI46: 1 | AJ46: 0.4 | AK46: 0.6 | AM46: 95 | AN46: 1 | AO46: 0.4 | AP46: 0.6 | AR46: 58 | AS46: 46630 | AT46: 30251903.59 | AU46: 12100761.43 | AV46: 18151142.15 | AX46: 46630 | AY46: 0.002139382374 | BC46: =VLOOKUP($BF46,RD!$B:$F,5,FALSE)/100 -> 0.01234257764 | BD46: =VLOOKUP($BF46,RD!$B:$F,4,FALSE)/100 -> -0.004748019666 | BE46: =(VLOOKUP($BF46,RD!$B:$F,3,FALSE)/100)/12 -> 0.006245890861 | BF46: 148 | BH46: 58 | BI46: 3.025190359 | BJ46: 1.509389164 | BK46: 1.579293668
F47: -159332.5799 | G47: -128978.276 | I47: 58 | J47: 46660 | K47: 30580196.24 | L47: 18060578.8 | M47: 0 | P47: 90563.34985 | Q47: -95599.54793 | R47: 18055542.6 | S47: 12191324.78 | T47: 487625.2358 | W47: -90563.34985 | X47: -63733.03195 | Y47: 12524653.64 | AA47: 58 | AB47: 46660 | AC47: 1 | AD47: 0.409567471 | AE47: 0.590432529 | AG47: 58 | AH47: 46660 | AI47: 1 | AJ47: 0.4 | AK47: 0.6 | AM47: 96 | AN47: 1 | AO47: 0.4 | AP47: 0.6 | AR47: 58 | AS47: 46660 | AT47: 30580196.24 | AU47: 12232078.5 | AV47: 18348117.75 | AX47: 46660 | AY47: -0.1246731742 | BC47: =VLOOKUP($BF47,RD!$B:$F,5,FALSE)/100 -> 0.03999772333 | BD47: =VLOOKUP($BF47,RD!$B:$F,4,FALSE)/100 -> -0.2389010321 | BE47: =(VLOOKUP($BF47,RD!$B:$F,3,FALSE)/100)/12 -> 0.008885067355 | BF47: 106 | BH47: 58 | BI47: 3.058019624 | BJ47: 4.876252358 | BK47: 1.593325799
F48: -160899.3503 | G48: -128978.276 | I48: 58 | J48: 46691 | K48: 30410584.52 | L48: 18055542.6 | M48: 0 | P48: 292575.1415 | Q48: -96539.61015 | R48: 18251578.14 | S48: 12524653.64 | T48: -8712.369618 | W48: -292575.1415 | X48: -64359.7401 | Y48: 12159006.39 | AA48: 58 | AB48: 46691 | AC48: 1 | AD48: 0.3998281052 | AE48: 0.6001718948 | AG48: 58 | AH48: 46691 | AI48: 1 | AJ48: 0.4 | AK48: 0.6 | AM48: 97 | AN48: 1 | AO48: 0.4 | AP48: 0.6 | AR48: 58 | AS48: 46691 | AT48: 30410584.52 | AU48: 12164233.81 | AV48: 18246350.71 | AX48: 46691 | AY48: 0.01613574638 | BC48: =VLOOKUP($BF48,RD!$B:$F,5,FALSE)/100 -> -0.0006956176091 | BD48: =VLOOKUP($BF48,RD!$B:$F,4,FALSE)/100 -> 0.02734862128 | BE48: =(VLOOKUP($BF48,RD!$B:$F,3,FALSE)/100)/12 -> 0.009833333333 | BF48: 261 | BH48: 58 | BI48: 3.041058452 | BJ48: -0.08712369618 | BK48: 1.608993503
F49: -161800.001 | G49: -128978.276 | I49: 58 | J49: 46721 | K49: 30326384.59 | L49: 18251578.14 | M49: 0 | P49: -5227.421771 | Q49: -97080.00059 | R49: 18149270.71 | S49: 12159006.39 | T49: 77600.06862 | W49: 5227.421771 | X49: -64720.00039 | Y49: 12177113.88 | AA49: 58 | AB49: 46721 | AC49: 1 | AD49: 0.4015352981 | AE49: 0.5984647019 | AG49: 58 | AH49: 46721 | AI49: 1 | AJ49: 0.4 | AK49: 0.6 | AM49: 98 | AN49: 1 | AO49: 0.4 | AP49: 0.6 | AR49: 58 | AS49: 46721 | AT49: 30326384.59 | AU49: 12130553.84 | AV49: 18195830.75 | AX49: 46721 | AY49: 0.008968037378 | BC49: =VLOOKUP($BF49,RD!$B:$F,5,FALSE)/100 -> 0.006382106082 | BD49: =VLOOKUP($BF49,RD!$B:$F,4,FALSE)/100 -> 0.01070304813 | BE49: =(VLOOKUP($BF49,RD!$B:$F,3,FALSE)/100)/12 -> 0.00559760328 | BF49: 87 | BH49: 58 | BI49: 3.032638459 | BJ49: 0.7760006862 | BK49: 1.61800001
F50: -162390.3161 | G50: -128978.276 | I50: 58 | J50: 46752 | K50: 30171744.07 | L50: 18149270.71 | M50: 0 | P50: 46560.04117 | Q50: -97434.18965 | R50: 18098396.56 | S50: 12177113.88 | T50: 7749.792987 | W50: -46560.04117 | X50: -64956.12643 | Y50: 12073347.5 | AA50: 58 | AB50: 46752 | AC50: 1 | AD50: 0.4001541136 | AE50: 0.5998458864 | AG50: 58 | AH50: 46752 | AI50: 1 | AJ50: 0.4 | AK50: 0.6 | AM50: 99 | AN50: 1 | AO50: 0.4 | AP50: 0.6 | AR50: 58 | AS50: 46752 | AT50: 30171744.07 | AU50: 12068697.63 | AV50: 18103046.44 | AX50: 46752 | AY50: 0.043213543 | BC50: =VLOOKUP($BF50,RD!$B:$F,5,FALSE)/100 -> 0.0006364228063 | BD50: =VLOOKUP($BF50,RD!$B:$F,4,FALSE)/100 -> 0.07161652146 | BE50: =(VLOOKUP($BF50,RD!$B:$F,3,FALSE)/100)/12 -> 0.003648424544 | BF50: 72 | BH50: 58 | BI50: 3.017174407 | BJ50: 0.07749792987 | BK50: 1.623903161
F51: -162677.4384 | G51: -128978.276 | I51: 58 | J51: 46783 | K51: 30443793.26 | L51: 18098396.56 | M51: 0 | P51: 4649.875792 | Q51: -97606.46301 | R51: 18005439.98 | S51: 12073347.5 | T51: 434726.6314 | W51: -4649.875792 | X51: -65070.97534 | Y51: 12438353.28 | AA51: 58 | AB51: 46783 | AC51: 1 | AD51: 0.4085677884 | AE51: 0.5914322116 | AG51: 58 | AH51: 46783 | AI51: 1 | AJ51: 0.4 | AK51: 0.6 | AM51: 100 | AN51: 1 | AO51: 0.4 | AP51: 0.6 | AR51: 58 | AS51: 46783 | AT51: 30443793.26 | AU51: 12177517.3 | AV51: 18266275.96 | AX51: 46783 | AY51: 0.02206900607 | BC51: =VLOOKUP($BF51,RD!$B:$F,5,FALSE)/100 -> 0.03600713318 | BD51: =VLOOKUP($BF51,RD!$B:$F,4,FALSE)/100 -> 0.01244039664 | BE51: =(VLOOKUP($BF51,RD!$B:$F,3,FALSE)/100)/12 -> 0.001768099758 | BF51: 198 | BH51: 58 | BI51: 3.044379326 | BJ51: 4.347266314 | BK51: 1.626774384
F52: -163281.8662 | G52: -128978.276 | I52: 58 | J52: 46812 | K52: 30835952.43 | L52: 18005439.98 | M52: 0 | P52: 260835.9788 | Q52: -97969.11972 | R52: 18168306.84 | S52: 12438353.28 | T52: 555441.0371 | W52: -260835.9788 | X52: -65312.74648 | Y52: 12667645.59 | AA52: 58 | AB52: 46812 | AC52: 1 | AD52: 0.4108076643 | AE52: 0.5891923357 | AG52: 58 | AH52: 46812 | AI52: 1 | AJ52: 0.4 | AK52: 0.6 | AM52: 101 | AN52: 1 | AO52: 0.4 | AP52: 0.6 | AR52: 58 | AS52: 46812 | AT52: 30835952.43 | AU52: 12334380.97 | AV52: 18501571.46 | AX52: 46812 | AY52: 0.02278902485 | BC52: =VLOOKUP($BF52,RD!$B:$F,5,FALSE)/100 -> 0.04465551222 | BD52: =VLOOKUP($BF52,RD!$B:$F,4,FALSE)/100 -> 0.007542864881 | BE52: =(VLOOKUP($BF52,RD!$B:$F,3,FALSE)/100)/12 -> 0.003715498938 | BF52: 90 | BH52: 58 | BI52: 3.083595243 | BJ52: 5.554410371 | BK52: 1.632818662
F53: -163654.6931 | G53: -128978.276 | I53: 58 | J53: 46843 | K53: 30969095.54 | L53: 18168306.84 | M53: 0 | P53: 333264.6222 | Q53: -98192.81588 | R53: 18403378.64 | S53: 12667645.59 | T53: 296797.8014 | W53: -333264.6222 | X53: -65461.87725 | Y53: 12565716.9 | AA53: 58 | AB53: 46843 | AC53: 1 | AD53: 0.4057502061 | AE53: 0.5942497939 | AG53: 58 | AH53: 46843 | AI53: 1 | AJ53: 0.4 | AK53: 0.6 | AM53: 102 | AN53: 1 | AO53: 0.4 | AP53: 0.6 | AR53: 58 | AS53: 46843 | AT53: 30969095.54 | AU53: 12387638.22 | AV53: 18581457.32 | AX53: 46843 | AY53: -0.01992055822 | BC53: =VLOOKUP($BF53,RD!$B:$F,5,FALSE)/100 -> 0.02342959464 | BD53: =VLOOKUP($BF53,RD!$B:$F,4,FALSE)/100 -> -0.04951978339 | BE53: =(VLOOKUP($BF53,RD!$B:$F,3,FALSE)/100)/12 -> 0.002283333333 | BF53: 218 | BH53: 58 | BI53: 3.096909554 | BJ53: 2.967978014 | BK53: 1.636546931
F54: -164546.4014 | G54: -128978.276 | I54: 59 | J54: 46873 | K54: 30900393.76 | L54: 18403378.64 | M54: 0 | P54: 178078.6808 | Q54: -98727.84084 | R54: 18482729.48 | S54: 12565716.9 | T54: 95844.62562 | W54: -178078.6808 | X54: -65818.56056 | Y54: 12417664.28 | AA54: 59 | AB54: 46873 | AC54: 1 | AD54: 0.401861037 | AE54: 0.598138963 | AG54: 59 | AH54: 46873 | AI54: 1 | AJ54: 0.4 | AK54: 0.6 | AM54: 103 | AN54: 1 | AO54: 0.4 | AP54: 0.6 | AR54: 59 | AS54: 46873 | AT54: 30900393.76 | AU54: 12360157.51 | AV54: 18540236.26 | AX54: 46873 | AY54: 0.0106554884 | BC54: =VLOOKUP($BF54,RD!$B:$F,5,FALSE)/100 -> 0.007627469758 | BD54: =VLOOKUP($BF54,RD!$B:$F,4,FALSE)/100 -> 0.01268986969 | BE54: =(VLOOKUP($BF54,RD!$B:$F,3,FALSE)/100)/12 -> 0.005448717949 | BF54: 79 | BH54: 59 | BI54: 3.090039376 | BJ54: 0.9584462562 | BK54: 1.645464014
F55: -165234.3838 | G55: -128978.276 | I55: 59 | J55: 46904 | K55: 30557908.71 | L55: 18482729.48 | M55: 0 | P55: 57506.77537 | Q55: -99140.63025 | R55: 18441095.63 | S55: 12417664.28 | T55: -177250.6719 | W55: -57506.77537 | X55: -66093.7535 | Y55: 12116813.08 | AA55: 59 | AB55: 46904 | AC55: 1 | AD55: 0.3965197094 | AE55: 0.6034802906 | AG55: 59 | AH55: 46904 | AI55: 1 | AJ55: 0.4 | AK55: 0.6 | AM55: 104 | AN55: 1 | AO55: =AO54 -> 0.4 | AP55: 0.6 | AR55: 59 | AS55: 46904 | AT55: 30557908.71 | AU55: 12223163.48 | AV55: 18334745.22 | AX55: 46904 | AY55: -0.1012196153 | BC55: =VLOOKUP($BF55,RD!$B:$F,5,FALSE)/100 -> -0.01427407505 | BD55: =VLOOKUP($BF55,RD!$B:$F,4,FALSE)/100 -> -0.1583476125 | BE55: =(VLOOKUP($BF55,RD!$B:$F,3,FALSE)/100)/12 -> 0.004181084198 | BF55: 53 | BH55: 59 | BI55: 3.055790871 | BJ55: -1.772506719 | BK55: 1.652343838
F56: -165970.0965 | G56: -128978.276 | I56: 59 | J56: 46934 | K56: 30486213.12 | L56: 18441095.63 | M56: 0 | P56: -106350.4031 | Q56: -99582.05787 | R56: 18235163.17 | S56: 12116813.08 | T56: 94274.513 | W56: 106350.4031 | X56: -66388.03858 | Y56: 12251049.96 | AA56: 59 | AB56: 46934 | AC56: 1 | AD56: 0.4018554193 | AE56: 0.5981445807 | AG56: 59 | AH56: 46934 | AI56: 1 | AJ56: 0.4 | AK56: 0.6 | AM56: 105 | AN56: 1 | AO56: 0.4 | AP56: 0.6 | AR56: 59 | AS56: 46934 | AT56: 30486213.12 | AU56: 12194485.25 | AV56: 18291727.87 | AX56: 46934 | AY56: 0.08072149672 | BC56: =VLOOKUP($BF56,RD!$B:$F,5,FALSE)/100 -> 0.007780471018 | BD56: =VLOOKUP($BF56,RD!$B:$F,4,FALSE)/100 -> 0.1297259472 | BE56: =(VLOOKUP($BF56,RD!$B:$F,3,FALSE)/100)/12 -> 0.004452539972 | BF56: 42 | BH56: 59 | BI56: 3.048621312 | BJ56: 0.94274513 | BK56: 1.659700965
F57: -166764.2117 | G57: -128978.276 | I57: 59 | J57: 46965 | K57: 30289630.01 | L57: 18235163.17 | M57: 0 | P57: 56564.7078 | Q57: -100058.527 | R57: 18191669.35 | S57: 12251049.96 | T57: -29818.90406 | W57: -56564.7078 | X57: -66705.6847 | Y57: 12097960.66 | AA57: 59 | AB57: 46965 | AC57: 1 | AD57: 0.3994093245 | AE57: 0.6005906755 | AG57: 59 | AH57: 46965 | AI57: 1 | AJ57: 0.4 | AK57: 0.6 | AM57: 106 | AN57: 1 | AO57: 0.4 | AP57: 0.6 | AR57: 59 | AS57: 46965 | AT57: 30289630.01 | AU57: 12115852 | AV57: 18173778.01 | AX57: 46965 | AY57: 0.08784108709 | BC57: =VLOOKUP($BF57,RD!$B:$F,5,FALSE)/100 -> -0.002433987631 | BD57: =VLOOKUP($BF57,RD!$B:$F,4,FALSE)/100 -> 0.1478764957 | BE57: =(VLOOKUP($BF57,RD!$B:$F,3,FALSE)/100)/12 -> 0.004784688995 | BF57: 48 | BH57: 59 | BI57: 3.028963001 | BJ57: -0.2981890406 | BK57: 1.667642117
F58: -167035.2036 | G58: -128978.276 | I58: 59 | J58: 46996 | K58: 30117305.31 | L58: 18191669.35 | M58: 0 | P58: -17891.34244 | Q58: -100221.1222 | R58: 18073556.88 | S58: 12097960.66 | T58: -5289.495794 | W58: 17891.34244 | X58: -66814.08144 | Y58: 12043748.43 | AA58: 59 | AB58: 46996 | AC58: 1 | AD58: 0.3998946221 | AE58: 0.6001053779 | AG58: 59 | AH58: 46996 | AI58: 1 | AJ58: 0.4 | AK58: 0.6 | AM58: 107 | AN58: 1 | AO58: 0.4 | AP58: 0.6 | AR58: 59 | AS58: 46996 | AT58: 30117305.31 | AU58: 12046922.12 | AV58: 18070383.19 | AX58: 46996 | AY58: 0.04446058461 | BC58: =VLOOKUP($BF58,RD!$B:$F,5,FALSE)/100 -> -0.0004372221023 | BD58: =VLOOKUP($BF58,RD!$B:$F,4,FALSE)/100 -> 0.07437931575 | BE58: =(VLOOKUP($BF58,RD!$B:$F,3,FALSE)/100)/12 -> 0.001625 | BF58: 252 | BH58: 59 | BI58: 3.011730531 | BJ58: -0.05289495794 | BK58: 1.670352036
F59: -167764.3255 | G59: -128978.276 | I59: 59 | J59: 47026 | K59: 29922791.96 | L59: 18073556.88 | M59: 0 | P59: -3173.697476 | Q59: -100658.5953 | R59: 17969724.59 | S59: 12043748.43 | T59: -26749.02482 | W59: 3173.697476 | X59: -67105.7302 | Y59: 11953067.37 | AA59: 59 | AB59: 47026 | AC59: 1 | AD59: 0.3994636391 | AE59: 0.6005363609 | AG59: 59 | AH59: 47026 | AI59: 1 | AJ59: 0.4 | AK59: 0.6 | AM59: 108 | AN59: 1 | AO59: 0.4 | AP59: 0.6 | AR59: 59 | AS59: 47026 | AT59: 29922791.96 | AU59: 11969116.78 | AV59: 17953675.18 | AX59: 47026 | AY59: 0.04180149418 | BC59: =VLOOKUP($BF59,RD!$B:$F,5,FALSE)/100 -> -0.00222098834 | BD59: =VLOOKUP($BF59,RD!$B:$F,4,FALSE)/100 -> 0.07108428572 | BE59: =(VLOOKUP($BF59,RD!$B:$F,3,FALSE)/100)/12 -> 0.004365079365 | BF59: 6 | BH59: 59 | BI59: 2.992279196 | BJ59: -0.2674902482 | BK59: 1.677643255
F60: -168520.7596 | G60: -128978.276 | I60: 59 | J60: 47057 | K60: 29717801.74 | L60: 17969724.59 | M60: 0 | P60: -16049.41489 | Q60: -101112.4558 | R60: 17852562.72 | S60: 11953067.37 | T60: -36469.4577 | W60: 16049.41489 | X60: -67408.30385 | Y60: 11865239.02 | AA60: 59 | AB60: 47057 | AC60: 1 | AD60: 0.3992636846 | AE60: 0.6007363154 | AG60: 59 | AH60: 47057 | AI60: 1 | AJ60: 0.4 | AK60: 0.6 | AM60: 109 | AN60: 1 | AO60: 0.4 | AP60: 0.6 | AR60: 59 | AS60: 47057 | AT60: 29717801.74 | AU60: 11887120.7 | AV60: 17830681.05 | AX60: 47057 | AY60: -0.01643470653 | BC60: =VLOOKUP($BF60,RD!$B:$F,5,FALSE)/100 -> -0.003051054309 | BD60: =VLOOKUP($BF60,RD!$B:$F,4,FALSE)/100 -> -0.02532980104 | BE60: =(VLOOKUP($BF60,RD!$B:$F,3,FALSE)/100)/12 -> 0.00450890917 | BF60: 20 | BH60: 59 | BI60: 2.971780174 | BJ60: -0.364694577 | BK60: 1.685207596
F61: -169176.2111 | G61: -128978.276 | I61: 59 | J61: 47087 | K61: 29590534.89 | L61: 17852562.72 | M61: 0 | P61: -21881.67462 | Q61: -101505.7267 | R61: 17729175.32 | S61: 11865239.02 | T61: 41909.35521 | W61: 21881.67462 | X61: -67670.48444 | Y61: 11861359.57 | AA61: 59 | AB61: 47087 | AC61: 1 | AD61: 0.4008497857 | AE61: 0.5991502143 | AG61: 59 | AH61: 47087 | AI61: 1 | AJ61: 0.4 | AK61: 0.6 | AM61: 110 | AN61: 1 | AO61: 0.4 | AP61: 0.6 | AR61: 59 | AS61: 47087 | AT61: 29590534.89 | AU61: 11836213.95 | AV61: 17754320.93 | AX61: 47087 | AY61: -0.05008294947 | BC61: =VLOOKUP($BF61,RD!$B:$F,5,FALSE)/100 -> 0.003532112175 | BD61: =VLOOKUP($BF61,RD!$B:$F,4,FALSE)/100 -> -0.0859530626 | BE61: =(VLOOKUP($BF61,RD!$B:$F,3,FALSE)/100)/12 -> 0.003889440583 | BF61: 70 | BH61: 59 | BI61: 2.959053489 | BJ61: 0.4190935521 | BK61: 1.691762111
F62: -170110.7388 | G62: -128978.276 | I62: 59 | J62: 47118 | K62: 29431478.62 | L62: 17729175.32 | M62: 0 | P62: 25145.61313 | Q62: -102066.4433 | R62: 17652254.49 | S62: 11861359.57 | T62: 11054.47316 | W62: -25145.61313 | X62: -68044.29551 | Y62: 11779224.13 | AA62: 59 | AB62: 47118 | AC62: 1 | AD62: 0.4002253602 | AE62: 0.5997746398 | AG62: 59 | AH62: 47118 | AI62: 1 | AJ62: 0.4 | AK62: 0.6 | AM62: 111 | AN62: 1 | AO62: 0.4 | AP62: 0.6 | AR62: 59 | AS62: 47118 | AT62: 29431478.62 | AU62: =AJ62*K62 -> 11772591.45 | AV62: 17658887.17 | AX62: 47118 | AY62: -0.04869677017 | BC62: =VLOOKUP($BF62,RD!$B:$F,5,FALSE)/100 -> 0.0009319735308 | BD62: =VLOOKUP($BF62,RD!$B:$F,4,FALSE)/100 -> -0.0818136786 | BE62: =(VLOOKUP($BF62,RD!$B:$F,3,FALSE)/100)/12 -> 0.005523989899 | BF62: 86 | BH62: 59 | BI62: 2.943147862 | BJ62: 0.1105447316 | BK62: 1.701107388
F63: -170916.4735 | G63: -128978.276 | I63: 59 | J63: 47149 | K63: 29109100.46 | L63: 17652254.49 | M63: 0 | P63: 6632.683893 | Q63: -102549.8841 | R63: 17556337.29 | S63: 11779224.13 | T63: -151461.6882 | W63: -6632.683893 | X63: -68366.58939 | Y63: 11552763.17 | AA63: 59 | AB63: 47149 | AC63: 1 | AD63: 0.3968780549 | AE63: 0.6031219451 | AG63: 59 | AH63: 47149 | AI63: 1 | AJ63: 0.4 | AK63: 0.6 | AR63: 59 | AS63: 47149 | AT63: 29109100.46 | AU63: 11643640.18 | AV63: 17465460.28 | AX63: 47149 | AY63: -0.007412548762 | BC63: =VLOOKUP($BF63,RD!$B:$F,5,FALSE)/100 -> -0.0128583756 | BD63: =VLOOKUP($BF63,RD!$B:$F,4,FALSE)/100 -> -0.003828979666 | BE63: =(VLOOKUP($BF63,RD!$B:$F,3,FALSE)/100)/12 -> 0.004736530491 | BF63: 98 | BH63: 59 | BI63: 2.910910046 | BJ63: -1.514616882 | BK63: 1.709164735
F64: -170892.9313 | G64: -128978.276 | I64: 59 | J64: 47177 | K64: 29178844.1 | L64: 17556337.29 | M64: 0 | P64: -90877.01291 | Q64: -102535.7588 | R64: 17362924.52 | S64: 11552763.17 | T64: 240636.5723 | W64: 90877.01291 | X64: -68357.17251 | Y64: 11815919.58 | AA64: 59 | AB64: 47177 | AC64: 1 | AD64: 0.4049481721 | AE64: 0.5950518279 | AG64: 59 | AH64: 47177 | AI64: 1 | AJ64: 0.4 | AK64: 0.6 | AR64: 59 | AS64: 47177 | AT64: 29178844.1 | AU64: 11671537.64 | AV64: 17507306.46 | AX64: 47177 | AY64: 0.02738267317 | BC64: =VLOOKUP($BF64,RD!$B:$F,5,FALSE)/100 -> 0.02082935214 | BD64: =VLOOKUP($BF64,RD!$B:$F,4,FALSE)/100 -> 0.03184237777 | BE64: =(VLOOKUP($BF64,RD!$B:$F,3,FALSE)/100)/12 -> -0.0001377410468 | BF64: 179 | BH64: 59 | BI64: 2.91788441 | BJ64: 2.406365723 | BK64: 1.708929313
F65: -171529.5074 | G65: -128978.276 | I65: 59 | J65: 47208 | K65: 29163144.33 | L65: 17362924.52 | M65: 0 | P65: 144381.9434 | Q65: -102917.7045 | R65: 17404388.76 | S65: 11815919.58 | T65: 155829.7334 | W65: -144381.9434 | X65: -68611.80297 | Y65: 11758755.57 | AA65: 59 | AB65: 47208 | AC65: 1 | AD65: 0.4032060274 | AE65: 0.5967939726 | AG65: 59 | AH65: 47208 | AI65: 1 | AJ65: 0.4 | AK65: 0.6 | AR65: 59 | AS65: 47208 | AT65: 29163144.33 | AU65: 11665257.73 | AV65: 17497886.6 | AX65: 47208 | AY65: 0.03567960725 | BC65: =VLOOKUP($BF65,RD!$B:$F,5,FALSE)/100 -> 0.0131881173 | BD65: =VLOOKUP($BF65,RD!$B:$F,4,FALSE)/100 -> 0.05087531085 | BE65: =(VLOOKUP($BF65,RD!$B:$F,3,FALSE)/100)/12 -> 0.003725 | BF65: 227 | BH65: 59 | BI65: 2.916314433 | BJ65: 1.558297334 | BK65: 1.715295074
F66: -172220.0449 | G66: -128978.276 | I66: 60 | J66: 47238 | K66: 29198752.12 | L66: 17404388.76 | M66: 0 | P66: 93497.84005 | Q66: -103332.0269 | R66: 17394554.57 | S66: 11758755.57 | T66: 207827.8349 | W66: -93497.84005 | X66: -68888.01796 | Y66: 11804197.55 | AA66: 60 | AB66: 47238 | AC66: 1 | AD66: 0.4042706175 | AE66: 0.5957293825 | AG66: 60 | AH66: 47238 | AI66: 1 | AJ66: 0.4 | AK66: 0.6 | AR66: 60 | AS66: 47238 | AT66: 29198752.12 | AU66: 11679500.85 | AV66: 17519251.27 | AX66: 47238 | AY66: -0.04160044866 | BC66: =VLOOKUP($BF66,RD!$B:$F,5,FALSE)/100 -> 0.01767430522 | BD66: =VLOOKUP($BF66,RD!$B:$F,4,FALSE)/100 -> -0.08182515816 | BE66: =(VLOOKUP($BF66,RD!$B:$F,3,FALSE)/100)/12 -> 0.004025764895 | BF66: 3 | BH66: 60 | BI66: 2.919875212 | BJ66: 2.078278349 | BK66: 1.722200449
F67: -173015.9636 | G67: -128978.276 | I67: 60 | J67: 47269 | K67: 29258925.61 | L67: 17394554.57 | M67: 0 | P67: 124696.701 | Q67: -103809.5781 | R67: 17415441.69 | S67: 11804197.55 | T67: 233189.4533 | W67: -124696.701 | X67: -69206.38543 | Y67: 11843483.91 | AA67: 60 | AB67: 47269 | AC67: 1 | AD67: 0.4047819142 | AE67: 0.5952180858 | AG67: 60 | AH67: 47269 | AI67: 1 | AJ67: 0.4 | AK67: 0.6 | AR67: 60 | AS67: 47269 | AT67: 29258925.61 | AU67: 11703570.24 | AV67: 17555355.36 | AX67: 47269 | AY67: 0.008834705198 | BC67: =VLOOKUP($BF67,RD!$B:$F,5,FALSE)/100 -> 0.01975479081 | BD67: =VLOOKUP($BF67,RD!$B:$F,4,FALSE)/100 -> 0.00140843025 | BE67: =(VLOOKUP($BF67,RD!$B:$F,3,FALSE)/100)/12 -> 0.004621521697 | BF67: 172 | BH67: 60 | BI67: 2.925892561 | BJ67: 2.331894533 | BK67: 1.730159636
F68: -173815.5606 | G68: -128978.276 | I68: 60 | J68: 47299 | K68: 29319075.59 | L68: 17415441.69 | M68: 0 | P68: 139913.672 | Q68: -104289.3364 | R68: 17451066.03 | S68: 11843483.91 | T68: 233965.5472 | W68: -139913.672 | X68: -69526.22424 | Y68: 11868009.57 | AA68: 60 | AB68: 47299 | AC68: 1 | AD68: 0.4047879862 | AE68: 0.5952120138 | AG68: 60 | AH68: 47299 | AI68: 1 | AJ68: 0.4 | AK68: 0.6 | AR68: 60 | AS68: 47299 | AT68: 29319075.59 | AU68: 11727630.24 | AV68: 17591445.36 | AX68: 47299 | AY68: 0.008834816596 | BC68: =VLOOKUP($BF68,RD!$B:$F,5,FALSE)/100 -> 0.01975479081 | BD68: =VLOOKUP($BF68,RD!$B:$F,4,FALSE)/100 -> 0.00140843025 | BE68: =(VLOOKUP($BF68,RD!$B:$F,3,FALSE)/100)/12 -> 0.004621521697 | BF68: 172 | BH68: 60 | BI68: 2.931907559 | BJ68: 2.339655472 | BK68: 1.738155606
F69: -174762.6326 | G69: -128978.276 | I69: 60 | J69: 47330 | K69: 29234835.84 | L69: 17451066.03 | M69: 0 | P69: 140379.3283 | Q69: -104857.5795 | R69: 17486587.78 | S69: 11868009.57 | T69: 90522.88405 | W69: -140379.3283 | X69: -69905.05303 | Y69: 11748248.07 | AA69: 60 | AB69: 47330 | AC69: 1 | AD69: 0.4018578428 | AE69: 0.5981421572 | AG69: 60 | AH69: 47330 | AI69: 1 | AJ69: 0.4 | AK69: 0.6 | AR69: 60 | AS69: 47330 | AT69: 29234835.84 | AU69: 11693934.34 | AV69: 17540901.51 | AX69: 47330 | AY69: 0.01065550457 | BC69: =VLOOKUP($BF69,RD!$B:$F,5,FALSE)/100 -> 0.007627469758 | BD69: =VLOOKUP($BF69,RD!$B:$F,4,FALSE)/100 -> 0.01268986969 | BE69: =(VLOOKUP($BF69,RD!$B:$F,3,FALSE)/100)/12 -> 0.005448717949 | BF69: 79 | BH69: 60 | BI69: 2.923483584 | BJ69: 0.9052288405 | BK69: 1.747626326
F70: -174726.2237 | G70: -128978.276 | I70: 60 | J70: 47361 | K70: 28931542.37 | L70: 17486587.78 | M70: 0 | P70: 54313.73043 | Q70: -104835.7342 | R70: 17436065.77 | S70: 11748248.07 | T70: -128567.2481 | W70: -54313.73043 | X70: -69890.48948 | Y70: 11495476.6 | AA70: 60 | AB70: 47361 | AC70: 1 | AD70: 0.3973336939 | AE70: 0.6026663061 | AG70: =AA70 -> 60 | AH70: 47361 | AI70: =AJ70+AK70 -> 1 | AJ70: =VLOOKUP($AG70,$AM:$AP,3,FALSE) -> 0.4 | AK70: =VLOOKUP($AG70,$AM:$AP,4,FALSE) -> 0.6 | AR70: 60 | AS70: 47361 | AT70: =AU70+AV70 -> 28931542.37 | AU70: 11572616.95 | AV70: 17358925.42 | AX70: 47361 | AY70: 0.04210157442 | BC70: =VLOOKUP($BF70,RD!$B:$F,5,FALSE)/100 -> -0.01094352514 | BD70: =VLOOKUP($BF70,RD!$B:$F,4,FALSE)/100 -> 0.07707383874 | BE70: =(VLOOKUP($BF70,RD!$B:$F,3,FALSE)/100)/12 -> -0.0002083333333 | BF70: 247 | BH70: 60 | BI70: 2.893154237 | BJ70: -1.285672481 | BK70: 1.747262237
F71: -175849.2424 | G71: -128978.276 | I71: 60 | J71: 47391 | K71: =R71+Y71 -> 28800498.62 | L71: 17436065.77 | M71: =L71*BA71 -> 0 | P71: -77140.34886 | Q71: =F71*AK71 -> -105509.5455 | R71: =L71+M71+N71+O71+Q71+P71 -> 17253415.88 | S71: 11495476.6 | T71: =S71*BC71 -> 44805.48871 | W71: 77140.34886 | X71: =F71*AJ71 -> -70339.69697 | Y71: =S71+T71+U71+V71+X71+W71 -> 11547082.74 | AA71: =I71 -> 60 | AB71: 47391 | AC71: =AD71+AE71 -> 1 | AD71: =Y71/K71 -> 0.4009334315 | AE71: =R71/K71 -> 0.5990665685 | AG71: 60 | AH71: 47391 | AI71: 1 | AJ71: 0.4 | AK71: 0.6 | AR71: =AG71 -> 60 | AS71: 47391 | AT71: 28800498.62 | AU71: =AJ71*K71 -> 11520199.45 | AV71: =AK71*K71 -> 17280299.17 | AX71: 47391 | AY71: =(((BC71*Y71)+(BD71*R71))/(R71+Y71)) -> -0.0643557756 | BC71: =VLOOKUP($BF71,RD!$B:$F,5,FALSE)/100 -> 0.003897662556 | BD71: =VLOOKUP($BF71,RD!$B:$F,4,FALSE)/100 -> -0.1100353154 | BE71: =(VLOOKUP($BF71,RD!$B:$F,3,FALSE)/100)/12 -> 0.006427304965 | BF71: =RANDBETWEEN(1,270) -> 99 | BH71: =I71 -> 60 | BI71: =(K71)/10000000 -> 2.880049862 | BJ71: 0.4480548871 | BK71: =-F71/100000 -> 1.758492424
F72: =F71*(1+(BE72)) -> -176404.2593 | G72: =G71*(1+(BB72)) -> -128978.276 | I72: =IF(MONTH(J72)=MONTH($J$6),I71+1,I71) -> 60 | J72: =EOMONTH(J71,1) -> 47422 | K72: 29127717.31 | L72: =R71 -> 17253415.88 | M72: 0 | P72: =AV71-R71 -> 26883.29323 | Q72: -105842.5556 | R72: 17174456.62 | S72: =Y71 -> 11547082.74 | T72: 503622.9542 | W72: =AU71-Y71 -> -26883.29323 | X72: -70561.70374 | Y72: 11953260.7 | AA72: 60 | AB72: 47422 | AC72: 1 | AD72: 0.4103740973 | AE72: 0.5896259027 | AG72: 60 | AH72: 47422 | AI72: 1 | AJ72: 0.4 | AK72: 0.6 | AR72: 60 | AS72: 47422 | AT72: 29127717.31 | AU72: 11651086.93 | AV72: 17476630.39 | AX72: =EOMONTH(AX71,1) -> 47422 | AY72: 0.01930316275 | BC72: =VLOOKUP($BF72,RD!$B:$F,5,FALSE)/100 -> 0.04361473504 | BD72: =VLOOKUP($BF72,RD!$B:$F,4,FALSE)/100 -> 0.002382536495 | BE72: =(VLOOKUP($BF72,RD!$B:$F,3,FALSE)/100)/12 -> 0.003156208781 | BF72: 202 | BH72: 60 | BI72: 2.912771731 | BJ72: 5.036229542 | BK72: 1.764042593
F73: -177386.8023 | G73: -128978.276 | I73: 60 | J73: 47452 | K73: 28326495.01 | L73: 17174456.62 | M73: 0 | P73: 302173.7725 | Q73: -106432.0814 | R73: 17370198.31 | S73: 11953260.7 | T73: -623835.4969 | W73: -302173.7725 | X73: -70954.72094 | Y73: 10956296.71 | AA73: 60 | AB73: 47452 | AC73: 1 | AD73: 0.3867861768 | AE73: 0.6132138232 | AG73: 60 | AH73: 47452 | AI73: 1 | AJ73: 0.4 | AK73: 0.6 | AR73: 60 | AS73: 47452 | AT73: 28326495.01 | AU73: 11330598.01 | AV73: 16995897.01 | AX73: 47452 | AY73: 0.01494863109 | BC73: =VLOOKUP($BF73,RD!$B:$F,5,FALSE)/100 -> -0.05218956673 | BD73: =VLOOKUP($BF73,RD!$B:$F,4,FALSE)/100 -> 0.05729621993 | BE73: =(VLOOKUP($BF73,RD!$B:$F,3,FALSE)/100)/12 -> 0.005569837189 | BF73: 108 | BH73: 60 | BI73: 2.832649501 | BJ73: =(M73+T73)/100000 -> -6.238354969 | BK73: 1.773868023
F74: -179372.0563 | G74: -128978.276 | I74: 60 | J74: 47483 | K74: 28208511.23 | L74: 17370198.31 | M74: 0 | P74: -374301.2981 | Q74: -107623.2338 | R74: 16888273.77 | S74: 10956296.71 | T74: 61388.27034 | W74: 374301.2981 | X74: -71748.82252 | Y74: 11320237.45 | AA74: 60 | AB74: 47483 | AC74: 1 | AD74: 0.4013057393 | AE74: 0.5986942607 | AG74: 60 | AH74: 47483 | AI74: 1 | AJ74: 0.4 | AK74: 0.6 | AR74: 60 | AS74: 47483 | AT74: 28208511.23 | AU74: 11283404.49 | AV74: 16925106.74 | AX74: 47483 | AY74: -0.01598545128 | BC74: =VLOOKUP($BF74,RD!$B:$F,5,FALSE)/100 -> 0.005603012768 | BD74: =VLOOKUP($BF74,RD!$B:$F,4,FALSE)/100 -> -0.03045623394 | BE74: =(VLOOKUP($BF74,RD!$B:$F,3,FALSE)/100)/12 -> 0.01119166667 | BF74: 266 | BH74: 60 | BI74: 2.820851123 | BJ74: 0.6138827034 | BK74: 1.793720563
F75: -179714.358 | G75: -128978.276 | I75: 60 | J75: 47514 | K75: 28059227.07 | L75: 16888273.77 | M75: 0 | P75: 36832.9622 | Q75: -107828.6148 | R75: 16817278.12 | S75: 11320237.45 | T75: 30430.20381 | W75: -36832.9622 | X75: -71885.74319 | Y75: 11241948.95 | AA75: 60 | AB75: 47514 | AC75: 1 | AD75: 0.4006506994 | AE75: 0.5993493006 | AG75: 60 | AH75: 47514 | AI75: 1 | AJ75: 0.4 | AK75: 0.6 | AR75: 60 | AS75: 47514 | AT75: 28059227.07 | AU75: 11223690.83 | AV75: 16835536.24 | AX75: 47514 | AY75: 0.07460161784 | BC75: =VLOOKUP($BF75,RD!$B:$F,5,FALSE)/100 -> 0.002688124161 | BD75: =VLOOKUP($BF75,RD!$B:$F,4,FALSE)/100 -> 0.1226740716 | BE75: =(VLOOKUP($BF75,RD!$B:$F,3,FALSE)/100)/12 -> 0.001908333333 | BF75: 251 | BH75: 60 | BI75: 2.805922707 | BJ75: 0.3043020381 | BK75: 1.79714358
F76: -180419.7585 | G76: -128978.276 | I76: 60 | J76: 47542 | K76: 28079573.67 | L76: 16817278.12 | M76: 0 | P76: 18258.12228 | Q76: -108251.8551 | R76: 16727284.39 | S76: 11241948.95 | T76: 200766.3548 | W76: -18258.12228 | X76: -72167.90342 | Y76: 11352289.28 | AA76: 60 | AB76: 47542 | AC76: 1 | AD76: 0.4042899445 | AE76: 0.5957100555 | AG76: 60 | AH76: 47542 | AI76: 1 | AJ76: 0.4 | AK76: 0.6 | AR76: 60 | AS76: 47542 | AT76: 28079573.67 | AU76: 11231829.47 | AV76: 16847744.2 | AX76: 47542 | AY76: 0.03785172244 | BC76: =VLOOKUP($BF76,RD!$B:$F,5,FALSE)/100 -> 0.01785867875 | BD76: =VLOOKUP($BF76,RD!$B:$F,4,FALSE)/100 -> 0.0514203813 | BE76: =(VLOOKUP($BF76,RD!$B:$F,3,FALSE)/100)/12 -> 0.003925120773 | BF76: 43 | BH76: 60 | BI76: 2.807957367 | BJ76: 2.007663548 | BK76: 1.804197585
F77: -181252.6981 | G77: -128978.276 | I77: 60 | J77: 47573 | K77: 27961502.22 | L77: 16727284.39 | M77: 0 | P77: 120459.8129 | Q77: -108751.6189 | R77: 16738992.58 | S77: 11352289.28 | T77: 63181.25201 | W77: -120459.8129 | X77: -72501.07924 | Y77: 11222509.64 | AA77: 60 | AB77: 47573 | AC77: 1 | AD77: 0.401355748 | AE77: 0.598644252 | AG77: 60 | AH77: 47573 | AI77: 1 | AJ77: 0.4 | AK77: 0.6 | AR77: 60 | AS77: 47573 | AT77: 27961502.22 | AU77: 11184600.89 | AV77: 16776901.33 | AX77: 47573 | AY77: -0.002004920749 | BC77: =VLOOKUP($BF77,RD!$B:$F,5,FALSE)/100 -> 0.005565507577 | BD77: =VLOOKUP($BF77,RD!$B:$F,4,FALSE)/100 -> -0.007080447515 | BE77: =(VLOOKUP($BF77,RD!$B:$F,3,FALSE)/100)/12 -> 0.004616675993 | BF77: 61 | BH77: 60 | BI77: 2.796150222 | BJ77: 0.6318125201 | BK77: 1.812526981
F78: -182069.9501 | G78: -128978.276 | I78: 61 | J78: 47603 | K78: 27745191.79 | L78: 16738992.58 | M78: 0 | P78: 37908.75121 | Q78: -109241.97 | R78: 16667659.36 | S78: 11222509.64 | T78: -34240.48639 | W78: -37908.75121 | X78: -72827.98002 | Y78: 11077532.42 | AA78: 61 | AB78: 47603 | AC78: 1 | AD78: 0.3992595369 | AE78: 0.6007404631 | AG78: 61 | AH78: 47603 | AI78: 1 | AJ78: 0.4 | AK78: 0.6 | AR78: 61 | AS78: 47603 | AT78: 27745191.79 | AU78: 11098076.71 | AV78: 16647115.07 | AX78: 47603 | AY78: -0.01643479894 | BC78: =VLOOKUP($BF78,RD!$B:$F,5,FALSE)/100 -> -0.003051054309 | BD78: =VLOOKUP($BF78,RD!$B:$F,4,FALSE)/100 -> -0.02532980104 | BE78: =(VLOOKUP($BF78,RD!$B:$F,3,FALSE)/100)/12 -> 0.00450890917 | BF78: 20 | BH78: 61 | BI78: 2.774519179 | BJ78: -0.3424048639 | BK78: 1.820699501
F79: -182907.4383 | G79: -128978.276 | I79: 61 | J79: 47634 | K79: 27637861.1 | L79: 16667659.36 | M79: 0 | P79: -20544.29184 | Q79: -109744.463 | R79: 16537370.61 | S79: 11077532.42 | T79: 75576.75327 | W79: 20544.29184 | X79: -73162.97533 | Y79: 11100490.49 | AA79: 61 | AB79: 47634 | AC79: 1 | AD79: 0.4016407222 | AE79: 0.5983592778 | AG79: 61 | AH79: 47634 | AI79: 1 | AJ79: 0.4 | AK79: 0.6 | AR79: 61 | AS79: 47634 | AT79: 27637861.1 | AU79: 11055144.44 | AV79: 16582716.66 | AX79: 47634 | AY79: 0.03172957575 | BC79: =VLOOKUP($BF79,RD!$B:$F,5,FALSE)/100 -> 0.006822526027 | BD79: =VLOOKUP($BF79,RD!$B:$F,4,FALSE)/100 -> 0.04844810223 | BE79: =(VLOOKUP($BF79,RD!$B:$F,3,FALSE)/100)/12 -> 0.004599816007 | BF79: 89 | BH79: 61 | BI79: 2.76378611 | BJ79: 0.7557675327 | BK79: 1.829074383
F80: -184062.3079 | G80: -128978.276 | I80: 61 | J80: 47664 | K80: 27530263.02 | L80: 16537370.61 | M80: 0 | P80: 45346.05196 | Q80: -110437.3847 | R80: 16472279.28 | S80: 11100490.49 | T80: 76464.222 | W80: -45346.05196 | X80: -73624.92314 | Y80: 11057983.74 | AA80: 61 | AB80: 47664 | AC80: 1 | AD80: 0.4016664764 | AE80: 0.5983335236 | AG80: 61 | AH80: 47664 | AI80: 1 | AJ80: 0.4 | AK80: 0.6 | AR80: 61 | AS80: 47664 | AT80: 27530263.02 | AU80: 11012105.21 | AV80: 16518157.81 | AX80: 47664 | AY80: 0.04900073241 | BC80: =VLOOKUP($BF80,RD!$B:$F,5,FALSE)/100 -> 0.006888364262 | BD80: =VLOOKUP($BF80,RD!$B:$F,4,FALSE)/100 -> 0.07727112987 | BE80: =(VLOOKUP($BF80,RD!$B:$F,3,FALSE)/100)/12 -> 0.00631395602 | BF80: 150 | BH80: 61 | BI80: 2.753026302 | BJ80: 0.76464222 | BK80: 1.840623079
F81: -184616.5571 | G81: -128978.276 | I81: 61 | J81: 47695 | K81: 27242339.28 | L81: 16472279.28 | M81: 0 | P81: 45878.5332 | Q81: -110769.9343 | R81: 16407387.88 | S81: 11057983.74 | T81: -103307.1818 | W81: -45878.5332 | X81: -73846.62284 | Y81: 10834951.4 | AA81: 61 | AB81: 47695 | AC81: 1 | AD81: 0.3977247068 | AE81: 0.6022752932 | AG81: 61 | AH81: 47695 | AI81: 1 | AJ81: 0.4 | AK81: 0.6 | AR81: 61 | AS81: 47695 | AT81: 27242339.28 | AU81: 10896935.71 | AV81: 16345403.57 | AX81: 47695 | AY81: -0.03775447733 | BC81: =VLOOKUP($BF81,RD!$B:$F,5,FALSE)/100 -> -0.009342316309 | BD81: =VLOOKUP($BF81,RD!$B:$F,4,FALSE)/100 -> -0.05651702418 | BE81: =(VLOOKUP($BF81,RD!$B:$F,3,FALSE)/100)/12 -> 0.003011204482 | BF81: 110 | BH81: 61 | BI81: 2.724233928 | BJ81: -1.033071818 | BK81: 1.846165571
F82: -185486.1278 | G82: -128978.276 | I82: 61 | J82: 47726 | K82: 27322500.68 | L82: 16407387.88 | M82: 0 | P82: -61984.3091 | Q82: -111291.6767 | R82: 16234111.89 | S82: 10834951.4 | T82: 265647.535 | W82: 61984.3091 | X82: -74194.45114 | Y82: 11088388.79 | AA82: 61 | AB82: 47726 | AC82: 1 | AD82: 0.4058335993 | AE82: 0.5941664007 | AG82: 61 | AH82: 47726 | AI82: 1 | AJ82: 0.4 | AK82: 0.6 | AR82: 61 | AS82: 47726 | AT82: 27322500.68 | AU82: 10929000.27 | AV82: 16393500.41 | AX82: 47726 | AY82: 0.009051314787 | BC82: =VLOOKUP($BF82,RD!$B:$F,5,FALSE)/100 -> 0.02451764896 | BD82: =VLOOKUP($BF82,RD!$B:$F,4,FALSE)/100 -> -0.001512658639 | BE82: =(VLOOKUP($BF82,RD!$B:$F,3,FALSE)/100)/12 -> 0.004710144928 | BF82: 159 | BH82: 61 | BI82: 2.732250068 | BJ82: 2.65647535 | BK82: 1.854861278
F83: -186752.8887 | G83: -128978.276 | I83: 61 | J83: 47756 | K83: 27070701.48 | L83: 16234111.89 | M83: 0 | P83: 159388.521 | Q83: -112051.7332 | R83: 16281448.68 | S83: 11088388.79 | T83: -65046.31452 | W83: -159388.521 | X83: -74701.15547 | Y83: 10789252.8 | AA83: 61 | AB83: 47756 | AC83: 1 | AD83: 0.3985583015 | AE83: 0.6014416985 | AG83: 61 | AH83: 47756 | AI83: 1 | AJ83: 0.4 | AK83: 0.6 | AR83: 61 | AS83: 47756 | AT83: 27070701.48 | AU83: 10828280.59 | AV83: 16242420.89 | AX83: 47756 | AY83: -0.03367761433 | BC83: =VLOOKUP($BF83,RD!$B:$F,5,FALSE)/100 -> -0.005866164663 | BD83: =VLOOKUP($BF83,RD!$B:$F,4,FALSE)/100 -> -0.05210747074 | BE83: =(VLOOKUP($BF83,RD!$B:$F,3,FALSE)/100)/12 -> 0.006829410055 | BF83: 101 | BH83: 61 | BI83: 2.707070148 | BJ83: -0.6504631452 | BK83: 1.867528887
F84: -186421.2237 | G84: -128978.276 | I84: 61 | J84: 47787 | K84: 27002409.94 | L84: 16281448.68 | M84: 0 | P84: -39027.78871 | Q84: -111852.7342 | R84: 16130568.15 | S84: 10789252.8 | T84: 118129.6842 | W84: 39027.78871 | X84: -74568.48948 | Y84: 10871841.79 | AA84: 61 | AB84: 47787 | AC84: 1 | AD84: 0.4026248698 | AE84: 0.5973751302 | AG84: 61 | AH84: 47787 | AI84: 1 | AJ84: 0.4 | AK84: 0.6 | AR84: 61 | AS84: 47787 | AT84: 27002409.94 | AU84: 10800963.98 | AV84: 16201445.97 | AX84: 47787 | AY84: 0.003450133587 | BC84: =VLOOKUP($BF84,RD!$B:$F,5,FALSE)/100 -> 0.01094882902 | BD84: =VLOOKUP($BF84,RD!$B:$F,4,FALSE)/100 -> -0.001603912221 | BE84: =(VLOOKUP($BF84,RD!$B:$F,3,FALSE)/100)/12 -> -0.001775956284 | BF84: 186 | BH84: 61 | BI84: 2.700240994 | BJ84: 1.181296842 | BK84: 1.864212237
F85: -187773.491 | G85: -128978.276 | I85: 61 | J85: 47817 | K85: 26972520.03 | L85: 16130568.15 | M85: 0 | P85: 70877.81051 | Q85: -112664.0946 | R85: 16088781.87 | S85: 10871841.79 | T85: 157883.5804 | W85: -70877.81051 | X85: -75109.39639 | Y85: 10883738.16 | AA85: 61 | AB85: 47817 | AC85: 1 | AD85: 0.4035120985 | AE85: 0.5964879015 | AG85: 61 | AH85: 47817 | AI85: 1 | AJ85: 0.4 | AK85: 0.6 | AR85: 61 | AS85: 47817 | AT85: 26972520.03 | AU85: 10789008.01 | AV85: 16183512.02 | AX85: 47817 | AY85: 0.05588244545 | BC85: =VLOOKUP($BF85,RD!$B:$F,5,FALSE)/100 -> 0.01452224779 | BD85: =VLOOKUP($BF85,RD!$B:$F,4,FALSE)/100 -> 0.0838617894 | BE85: =(VLOOKUP($BF85,RD!$B:$F,3,FALSE)/100)/12 -> 0.007253826822 | BF85: 13 | BH85: 61 | BI85: 2.697252003 | BJ85: 1.578835804 | BK85: 1.87773491
F86: -189454.0637 | G86: -128978.276 | I86: 61 | J86: 47848 | K86: 27511822.69 | L86: 16088781.87 | M86: 0 | P86: 94730.14823 | Q86: -113672.4382 | R86: 16069839.58 | S86: 10883738.16 | T86: 728756.7218 | W86: -94730.14823 | X86: -75781.62549 | Y86: 11441983.11 | AA86: 61 | AB86: 47848 | AC86: 1 | AD86: 0.4158933139 | AE86: 0.5841066861 | AG86: 61 | AH86: 47848 | AI86: 1 | AJ86: 0.4 | AK86: 0.6 | AR86: 61 | AS86: 47848 | AT86: 27511822.69 | AU86: 11004729.08 | AV86: 16507093.61 | AX86: 47848 | AY86: 0.01927285603 | BC86: =VLOOKUP($BF86,RD!$B:$F,5,FALSE)/100 -> 0.06695831074 | BD86: =VLOOKUP($BF86,RD!$B:$F,4,FALSE)/100 -> -0.01467995132 | BE86: =(VLOOKUP($BF86,RD!$B:$F,3,FALSE)/100)/12 -> 0.00895 | BF86: 256 | BH86: 61 | BI86: 2.751182269 | BJ86: 7.287567218 | BK86: 1.894540637
F87: -190308.2949 | G87: -128978.276 | I87: 61 | J87: 47879 | K87: 27286604.28 | L87: 16069839.58 | M87: 0 | P87: 437254.0331 | Q87: -114184.9769 | R87: 16392908.64 | S87: 11441983.11 | T87: -34910.11186 | W87: -437254.0331 | X87: -76123.31795 | Y87: 10893695.65 | AA87: 61 | AB87: 47879 | AC87: 1 | AD87: 0.3992323681 | AE87: 0.6007676319 | AG87: 61 | AH87: 47879 | AI87: 1 | AJ87: 0.4 | AK87: 0.6 | AR87: 61 | AS87: 47879 | AT87: 27286604.28 | AU87: 10914641.71 | AV87: 16371962.57 | AX87: 47879 | AY87: -0.01643540422 | BC87: =VLOOKUP($BF87,RD!$B:$F,5,FALSE)/100 -> -0.003051054309 | BD87: =VLOOKUP($BF87,RD!$B:$F,4,FALSE)/100 -> -0.02532980104 | BE87: =(VLOOKUP($BF87,RD!$B:$F,3,FALSE)/100)/12 -> 0.00450890917 | BF87: 20 | BH87: 61 | BI87: 2.728660428 | BJ87: -0.3491011186 | BK87: 1.903082949
F88: -190172.8249 | G88: -128978.276 | I88: 61 | J88: 47907 | K88: 27462953.61 | L88: 16392908.64 | M88: 0 | P88: -20946.06712 | Q88: -114103.6949 | R88: 16257858.87 | S88: 10893695.65 | T88: 366522.1519 | W88: 20946.06712 | X88: -76069.12994 | Y88: 11205094.73 | AA88: 61 | AB88: 47907 | AC88: 1 | AD88: 0.4080076344 | AE88: 0.5919923656 | AG88: 61 | AH88: 47907 | AI88: 1 | AJ88: 0.4 | AK88: 0.6 | AR88: 61 | AS88: 47907 | AT88: 27462953.61 | AU88: 10985181.44 | AV88: 16477772.17 | AX88: 47907 | AY88: -0.02644799594 | BC88: =VLOOKUP($BF88,RD!$B:$F,5,FALSE)/100 -> 0.03364534533 | BD88: =VLOOKUP($BF88,RD!$B:$F,4,FALSE)/100 -> -0.06786498614 | BE88: =(VLOOKUP($BF88,RD!$B:$F,3,FALSE)/100)/12 -> -0.0007118451025 | BF88: 194 | BH88: 61 | BI88: 2.746295361 | BJ88: 3.665221519 | BK88: 1.901728249
F89: -190930.3466 | G89: -128978.276 | I89: 61 | J89: 47938 | K89: 27294965.49 | L89: 16257858.87 | M89: 0 | P89: 219913.2911 | Q89: -114558.208 | R89: 16363213.96 | S89: 11205094.73 | T89: 22942.23103 | W89: -219913.2911 | X89: -76372.13864 | Y89: 10931751.54 | AA89: 61 | AB89: 47938 | AC89: 1 | AD89: 0.4005043179 | AE89: 0.5994956821 | AG89: 61 | AH89: 47938 | AI89: 1 | AJ89: 0.4 | AK89: 0.6 | AR89: 61 | AS89: 47938 | AT89: 27294965.49 | AU89: 10917986.2 | AV89: 16376979.3 | AX89: 47938 | AY89: 0.003582519622 | BC89: =VLOOKUP($BF89,RD!$B:$F,5,FALSE)/100 -> 0.002047482111 | BD89: =VLOOKUP($BF89,RD!$B:$F,4,FALSE)/100 -> 0.004608030179 | BE89: =(VLOOKUP($BF89,RD!$B:$F,3,FALSE)/100)/12 -> 0.003983333333 | BF89: 221 | BH89: 61 | BI89: 2.729496549 | BJ89: 0.2294223103 | BK89: 1.909303466
F90: -191781.3007 | G90: -128978.276 | I90: 62 | J90: 47968 | K90: 27098476.45 | L90: 16363213.96 | M90: 0 | P90: 13765.33862 | Q90: -115068.7804 | R90: 16261910.52 | S90: 10931751.54 | T90: -4707.738944 | W90: -13765.33862 | X90: -76712.52027 | Y90: 10836565.94 | AA90: 62 | AB90: 47968 | AC90: 1 | AD90: 0.3998957638 | AE90: 0.6001042362 | AG90: 62 | AH90: 47968 | AI90: 1 | AJ90: 0.4 | AK90: 0.6 | AR90: 62 | AS90: 47968 | AT90: 27098476.45 | AU90: 10839390.58 | AV90: 16259085.87 | AX90: 47968 | AY90: 0.005972134579 | BC90: =VLOOKUP($BF90,RD!$B:$F,5,FALSE)/100 -> -0.0004306481837 | BD90: =VLOOKUP($BF90,RD!$B:$F,4,FALSE)/100 -> 0.01023880285 | BE90: =(VLOOKUP($BF90,RD!$B:$F,3,FALSE)/100)/12 -> 0.004456882255 | BF90: 38 | BH90: 62 | BI90: 2.709847645 | BJ90: -0.04707738944 | BK90: 1.917813007
F91: -193042.2627 | G91: -128978.276 | I91: 62 | J91: 47999 | K91: 27003996.28 | L91: 16261910.52 | M91: 0 | P91: -2824.643366 | Q91: -115825.3576 | R91: 16143260.51 | S91: 10836565.94 | T91: 98562.0854 | W91: 2824.643366 | X91: -77216.90509 | Y91: 10860735.76 | AA91: 62 | AB91: 47999 | AC91: 1 | AD91: 0.4021899444 | AE91: 0.5978100556 | AG91: 62 | AH91: 47999 | AI91: 1 | AJ91: 0.4 | AK91: 0.6 | AR91: 62 | AS91: 47999 | AT91: 27003996.28 | AU91: 10801598.51 | AV91: 16202397.77 | AX91: 47999 | AY91: 0.00833782331 | BC91: =VLOOKUP($BF91,RD!$B:$F,5,FALSE)/100 -> 0.009095324659 | BD91: =VLOOKUP($BF91,RD!$B:$F,4,FALSE)/100 -> 0.007828197514 | BE91: =(VLOOKUP($BF91,RD!$B:$F,3,FALSE)/100)/12 -> 0.006575 | BF91: 255 | BH91: 62 | BI91: 2.700399628 | BJ91: 0.985620854 | BK91: 1.930422627
F92: -193275.5934 | G92: -128978.276 | I92: 62 | J92: 48029 | K92: 26923583.27 | L92: 16143260.51 | M92: 0 | P92: 59137.25124 | Q92: -115965.3561 | R92: 16086432.41 | S92: 10860735.76 | T92: 112862.5872 | W92: -59137.25124 | X92: -77310.23737 | Y92: 10837150.86 | AA92: 62 | AB92: 48029 | AC92: 1 | AD92: 0.4025151761 | AE92: 0.5974848239 | AG92: 62 | AH92: 48029 | AI92: 1 | AJ92: 0.4 | AK92: 0.6 | AR92: 62 | AS92: 48029 | AT92: 26923583.27 | AU92: 10769433.31 | AV92: 16154149.96 | AX92: 48029 | AY92: 0.1786301393 | BC92: =VLOOKUP($BF92,RD!$B:$F,5,FALSE)/100 -> 0.01039179938 | BD92: =VLOOKUP($BF92,RD!$B:$F,4,FALSE)/100 -> 0.2919693947 | BE92: =(VLOOKUP($BF92,RD!$B:$F,3,FALSE)/100)/12 -> 0.001208702659 | BF92: 113 | BH92: 62 | BI92: 2.692358327 | BJ92: 1.128625872 | BK92: 1.932755934
F93: -194168.8208 | G93: -128978.276 | I93: 62 | J93: 48060 | K93: 26943500.1 | L93: 16086432.41 | M93: 0 | P93: 67717.5523 | Q93: -116501.2925 | R93: 16037648.67 | S93: 10837150.86 | T93: 214085.6483 | W93: -67717.5523 | X93: -77667.52831 | Y93: 10905851.43 | AA93: 62 | AB93: 48060 | AC93: 1 | AD93: 0.4047674351 | AE93: 0.5952325649 | AG93: 62 | AH93: 48060 | AI93: 1 | AJ93: 0.4 | AK93: 0.6 | AR93: 62 | AS93: 48060 | AT93: 26943500.1 | AU93: 10777400.04 | AV93: 16166100.06 | AX93: 48060 | AY93: 0.008834439559 | BC93: =VLOOKUP($BF93,RD!$B:$F,5,FALSE)/100 -> 0.01975479081 | BD93: =VLOOKUP($BF93,RD!$B:$F,4,FALSE)/100 -> 0.00140843025 | BE93: =(VLOOKUP($BF93,RD!$B:$F,3,FALSE)/100)/12 -> 0.004621521697 | BF93: 172 | BH93: 62 | BI93: 2.69435001 | BJ93: 2.140856483 | BK93: 1.941688208
F94: -194620.2633 | G94: -128978.276 | I94: 62 | J94: 48091 | K94: 26875253.28 | L94: 16037648.67 | M94: 0 | P94: 128451.389 | Q94: -116772.158 | R94: 16049327.9 | S94: 10905851.43 | T94: 126373.449 | W94: -128451.389 | X94: -77848.10531 | Y94: 10825925.38 | AA94: 62 | AB94: 48091 | AC94: 1 | AD94: 0.4028213341 | AE94: 0.5971786659 | AG94: 62 | AH94: 48091 | AI94: 1 | AJ94: 0.4 | AK94: 0.6 | AR94: 62 | AS94: 48091 | AT94: 26875253.28 | AU94: 10750101.31 | AV94: 16125151.97 | AX94: 48091 | AY94: 0.01511229914 | BC94: =VLOOKUP($BF94,RD!$B:$F,5,FALSE)/100 -> 0.01158767382 | BD94: =VLOOKUP($BF94,RD!$B:$F,4,FALSE)/100 -> 0.01748980248 | BE94: =(VLOOKUP($BF94,RD!$B:$F,3,FALSE)/100)/12 -> 0.002325 | BF94: 233 | BH94: 62 | BI94: 2.687525328 | BJ94: 1.26373449 | BK94: 1.946202633
F95: -195773.1531 | G95: -128978.276 | I95: 62 | J95: 48121 | K95: 26758820.05 | L95: 16049327.9 | M95: 0 | P95: 75824.06942 | Q95: -117463.8919 | R95: 16007688.08 | S95: 10825925.38 | T95: 79339.91699 | W95: -75824.06942 | X95: -78309.26124 | Y95: 10751131.97 | AA95: 62 | AB95: 48121 | AC95: 1 | AD95: 0.4017790003 | AE95: 0.5982209997 | AG95: 62 | AH95: 48121 | AI95: 1 | AJ95: 0.4 | AK95: 0.6 | AR95: 62 | AS95: 48121 | AT95: 26758820.05 | AU95: 10703528.02 | AV95: 16055292.03 | AX95: 48121 | AY95: 0.05612853837 | BC95: =VLOOKUP($BF95,RD!$B:$F,5,FALSE)/100 -> 0.007328696087 | BD95: =VLOOKUP($BF95,RD!$B:$F,4,FALSE)/100 -> 0.0889036363 | BE95: =(VLOOKUP($BF95,RD!$B:$F,3,FALSE)/100)/12 -> 0.005923791226 | BF95: 80 | BH95: 62 | BI95: 2.675882005 | BJ95: 0.7933991699 | BK95: 1.957731531
F96: -197193.2576 | G96: -128978.276 | I96: 62 | J96: 48152 | K96: 26717757.39 | L96: 16007688.08 | M96: 0 | P96: 47603.9502 | Q96: -118315.9546 | R96: 15936976.07 | S96: 10751131.97 | T96: 156130.6025 | W96: -47603.9502 | X96: -78877.30306 | Y96: 10780781.32 | AA96: 62 | AB96: 48152 | AC96: 1 | AD96: 0.403506221 | AE96: 0.596493779 | AG96: 62 | AH96: 48152 | AI96: 1 | AJ96: 0.4 | AK96: 0.6 | AR96: 62 | AS96: 48152 | AT96: 26717757.39 | AU96: 10687102.96 | AV96: 16030654.44 | AX96: 48152 | AY96: 0.055882853 | BC96: =VLOOKUP($BF96,RD!$B:$F,5,FALSE)/100 -> 0.01452224779 | BD96: =VLOOKUP($BF96,RD!$B:$F,4,FALSE)/100 -> 0.0838617894 | BE96: =(VLOOKUP($BF96,RD!$B:$F,3,FALSE)/100)/12 -> 0.007253826822 | BF96: 13 | BH96: 62 | BI96: 2.671775739 | BJ96: 1.561306025 | BK96: 1.971932576
F97: -197652.2736 | G97: -128978.276 | I97: 62 | J97: 48182 | K97: 26689393.88 | L97: 15936976.07 | M97: 0 | P97: 93678.3615 | Q97: -118591.3642 | R97: 15912063.07 | S97: 10780781.32 | T97: 169288.7569 | W97: -93678.3615 | X97: -79060.90944 | Y97: 10777330.8 | AA97: 62 | AB97: 48182 | AC97: 1 | AD97: 0.4038057535 | AE97: 0.5961942465 | AG97: 62 | AH97: 48182 | AI97: 1 | AJ97: 0.4 | AK97: 0.6 | AR97: 62 | AS97: 48182 | AT97: 26689393.88 | AU97: 10675757.55 | AV97: 16013636.33 | AX97: 48182 | AY97: -0.0380280007 | BC97: =VLOOKUP($BF97,RD!$B:$F,5,FALSE)/100 -> 0.0157028282 | BD97: =VLOOKUP($BF97,RD!$B:$F,4,FALSE)/100 -> -0.07442019667 | BE97: =(VLOOKUP($BF97,RD!$B:$F,3,FALSE)/100)/12 -> 0.002327746741 | BF97: 31 | BH97: 62 | BI97: 2.668939388 | BJ97: 1.692887569 | BK97: 1.976522736
F98: -198970.8061 | G98: -128978.276 | I98: 62 | J98: 48213 | K98: 26675021.14 | L98: 15912063.07 | M98: 0 | P98: 101573.2541 | Q98: -119382.4837 | R98: 15894253.84 | S98: 10777330.8 | T98: 184598.0655 | W98: -101573.2541 | X98: -79588.32244 | Y98: 10780767.29 | AA98: 62 | AB98: 48213 | AC98: 1 | AD98: 0.4041521556 | AE98: 0.5958478444 | AG98: 62 | AH98: 48213 | AI98: 1 | AJ98: 0.4 | AK98: 0.6 | AR98: 62 | AS98: 48213 | AT98: 26675021.14 | AU98: 10670008.45 | AV98: 16005012.68 | AX98: 48213 | AY98: 0.01360753521 | BC98: =VLOOKUP($BF98,RD!$B:$F,5,FALSE)/100 -> 0.01712836591 | BD98: =VLOOKUP($BF98,RD!$B:$F,4,FALSE)/100 -> 0.01121942333 | BE98: =(VLOOKUP($BF98,RD!$B:$F,3,FALSE)/100)/12 -> 0.006670970519 | BF98: 152 | BH98: 62 | BI98: 2.667502114 | BJ98: 1.845980655 | BK98: 1.989708061
F99: -199944.493 | G99: -128978.276 | I99: 62 | J99: 48244 | K99: 26460110.35 | L99: 15894253.84 | M99: 0 | P99: 110758.8393 | Q99: -119966.6958 | R99: 15885045.99 | S99: 10780767.29 | T99: -14966.29676 | W99: -110758.8393 | X99: -79977.79721 | Y99: 10575064.36 | AA99: 62 | AB99: 48244 | AC99: 1 | AD99: 0.3996606296 | AE99: 0.6003393704 | AG99: 62 | AH99: 48244 | AI99: 1 | AJ99: 0.4 | AK99: 0.6 | AR99: 62 | AS99: 48244 | AT99: 26460110.35 | AU99: 10584044.14 | AV99: 15876066.21 | AX99: 48244 | AY99: -0.01489888849 | BC99: =VLOOKUP($BF99,RD!$B:$F,5,FALSE)/100 -> -0.001388240405 | BD99: =VLOOKUP($BF99,RD!$B:$F,4,FALSE)/100 -> -0.02389325798 | BE99: =(VLOOKUP($BF99,RD!$B:$F,3,FALSE)/100)/12 -> 0.004893617021 | BF99: 109 | BH99: 62 | BI99: 2.646011035 | BJ99: -0.1496629676 | BK99: 1.99944493
F100: -201385.3031 | G100: -128978.276 | I100: 62 | J100: 48273 | K100: 27861615.42 | L100: 15885045.99 | M100: 0 | P100: -8979.778054 | Q100: -120831.1818 | R100: 15755235.03 | S100: 10575064.36 | T100: 1602890.382 | W100: 8979.778054 | X100: -80554.12123 | Y100: 12106380.4 | AA100: 62 | AB100: 48273 | AC100: 1 | AD100: 0.4345182508 | AE100: 0.5654817492 | AG100: 62 | AH100: 48273 | AI100: 1 | AJ100: 0.4 | AK100: 0.6 | AR100: 62 | AS100: 48273 | AT100: 27861615.42 | AU100: 11144646.17 | AV100: 16716969.25 | AX100: 48273 | AY100: 0.02282007139 | BC100: =VLOOKUP($BF100,RD!$B:$F,5,FALSE)/100 -> 0.1515726361 | BD100: =VLOOKUP($BF100,RD!$B:$F,4,FALSE)/100 -> -0.07611387168 | BE100: =(VLOOKUP($BF100,RD!$B:$F,3,FALSE)/100)/12 -> 0.007206050228 | BF100: 107 | BH100: 62 | BI100: 2.786161542 | BJ100: 16.02890382 | BK100: 2.013853031
F101: -202972.4844 | G101: -128978.276 | I101: 62 | J101: 48304 | K101: 27900126.4 | L101: 15755235.03 | M101: 0 | P101: 961734.2289 | Q101: -121783.4907 | R101: 16595185.76 | S101: 12106380.4 | T101: 241483.4591 | W101: -961734.2289 | X101: -81188.99377 | Y101: 11304940.63 | AA101: 62 | AB101: 48304 | AC101: 1 | AD101: 0.4051931691 | AE101: 0.5948068309 | AG101: 62 | AH101: 48304 | AI101: 1 | AJ101: 0.4 | AK101: 0.6 | AR101: 62 | AS101: 48304 | AT101: 27900126.4 | AU101: 11160050.56 | AV101: 16740075.84 | AX101: 48304 | AY101: -0.04505049521 | BC101: =VLOOKUP($BF101,RD!$B:$F,5,FALSE)/100 -> 0.01994679262 | BD101: =VLOOKUP($BF101,RD!$B:$F,4,FALSE)/100 -> -0.08932782303 | BE101: =(VLOOKUP($BF101,RD!$B:$F,3,FALSE)/100)/12 -> 0.007881316643 | BF101: 143 | BH101: 62 | BI101: 2.79001264 | BJ101: 2.414834591 | BK101: 2.029724844
F102: -205540.0863 | G102: -128978.276 | I102: 63 | J102: 48334 | K102: 27823767.21 | L102: 16595185.76 | M102: 0 | P102: 144890.0755 | Q102: -123324.0518 | R102: 16616751.79 | S102: 11304940.63 | T102: 129180.893 | W102: -144890.0755 | X102: -82216.03454 | Y102: 11207015.42 | AA102: 63 | AB102: 48334 | AC102: 1 | AD102: 0.4027856952 | AE102: 0.5972143048 | AG102: 63 | AH102: 48334 | AI102: 1 | AJ102: 0.4 | AK102: 0.6 | AR102: 63 | AS102: 48334 | AT102: 27823767.21 | AU102: 11129506.88 | AV102: 16694260.32 | AX102: 48334 | AY102: -0.02277696802 | BC102: =VLOOKUP($BF102,RD!$B:$F,5,FALSE)/100 -> 0.0114269413 | BD102: =VLOOKUP($BF102,RD!$B:$F,4,FALSE)/100 -> -0.04584548008 | BE102: =(VLOOKUP($BF102,RD!$B:$F,3,FALSE)/100)/12 -> 0.01265 | BF102: 270 | BH102: 63 | BI102: 2.782376721 | BJ102: 1.29180893 | BK102: 2.055400863
F103: -206346.856 | G103: -128978.276 | I103: 63 | J103: 48365 | K103: 27817562.84 | L103: 16616751.79 | M103: 0 | P103: 77508.53581 | Q103: -123808.1136 | R103: 16570452.21 | S103: 11207015.42 | T103: 200142.4881 | W103: -77508.53581 | X103: -82538.7424 | Y103: 11247110.63 | AA103: 63 | AB103: 48365 | AC103: 1 | AD103: 0.4043168948 | AE103: 0.5956831052 | AG103: 63 | AH103: 48365 | AI103: 1 | AJ103: 0.4 | AK103: 0.6 | AR103: 63 | AS103: 48365 | AT103: 27817562.84 | AU103: 11127025.13 | AV103: 16690537.7 | AX103: 48365 | AY103: 0.03785081794 | BC103: =VLOOKUP($BF103,RD!$B:$F,5,FALSE)/100 -> 0.01785867875 | BD103: =VLOOKUP($BF103,RD!$B:$F,4,FALSE)/100 -> 0.0514203813 | BE103: =(VLOOKUP($BF103,RD!$B:$F,3,FALSE)/100)/12 -> 0.003925120773 | BF103: 43 | BH103: 63 | BI103: 2.781756284 | BJ103: 2.001424881 | BK103: 2.06346856
F104: -208656.2212 | G104: -128978.276 | I104: 63 | J104: 48395 | K104: 27671924.32 | L104: 16570452.21 | M104: 0 | P104: 120085.4928 | Q104: -125193.7327 | R104: 16565343.97 | S104: 11247110.63 | T104: 63017.70445 | W104: -120085.4928 | X104: -83462.4885 | Y104: 11106580.35 | AA104: 63 | AB104: 48395 | AC104: 1 | AD104: 0.4013663893 | AE104: 0.5986336107 | AG104: 63 | AH104: 48395 | AI104: 1 | AJ104: 0.4 | AK104: 0.6 | AR104: 63 | AS104: 48395 | AT104: 27671924.32 | AU104: 11068769.73 | AV104: 16603154.59 | AX104: 48395 | AY104: -0.01598326429 | BC104: =VLOOKUP($BF104,RD!$B:$F,5,FALSE)/100 -> 0.005603012768 | BD104: =VLOOKUP($BF104,RD!$B:$F,4,FALSE)/100 -> -0.03045623394 | BE104: =(VLOOKUP($BF104,RD!$B:$F,3,FALSE)/100)/12 -> 0.01119166667 | BF104: 266 | BH104: 63 | BI104: 2.767192432 | BJ104: 0.6301770445 | BK104: 2.086562212
F105: -209165.6902 | G105: -128978.276 | I105: 63 | J105: 48426 | K105: 27659815.9 | L105: 16565343.97 | M105: 0 | P105: 37810.62267 | Q105: -125499.4141 | R105: 16477655.18 | S105: 11106580.35 | T105: 197057.2709 | W105: -37810.62267 | X105: -83666.27607 | Y105: 11182160.72 | AA105: 63 | AB105: 48426 | AC105: 1 | AD105: 0.4042745896 | AE105: 0.5957254104 | AG105: 63 | AH105: 48426 | AI105: 1 | AJ105: 0.4 | AK105: 0.6 | AR105: 63 | AS105: 48426 | AT105: 27659815.9 | AU105: 11063926.36 | AV105: 16595889.54 | AX105: 48426 | AY105: 0.0007771190625 | BC105: =VLOOKUP($BF105,RD!$B:$F,5,FALSE)/100 -> 0.01774238917 | BD105: =VLOOKUP($BF105,RD!$B:$F,4,FALSE)/100 -> -0.0107359497 | BE105: =(VLOOKUP($BF105,RD!$B:$F,3,FALSE)/100)/12 -> 0.002441666667 | BF105: 230 | BH105: 63 | BI105: 2.76598159 | BJ105: 1.970572709 | BK105: 2.091656902
F106: -209429.4552 | G106: -128978.276 | I106: 63 | J106: 48457 | K106: 27535175.35 | L106: 16477655.18 | M106: 0 | P106: 118234.3626 | Q106: -125657.6731 | R106: 16470231.87 | S106: 11182160.72 | T106: 84788.90825 | W106: -118234.3626 | X106: -83771.7821 | Y106: 11064943.49 | AA106: 63 | AB106: 48457 | AC106: 1 | AD106: 0.4018475766 | AE106: 0.5981524234 | AG106: 63 | AH106: 48457 | AI106: 1 | AJ106: 0.4 | AK106: 0.6 | AR106: 63 | AS106: 48457 | AT106: 27535175.35 | AU106: 11014070.14 | AV106: 16521105.21 | AX106: 48457 | AY106: 0.01197622349 | BC106: =VLOOKUP($BF106,RD!$B:$F,5,FALSE)/100 -> 0.007582515611 | BD106: =VLOOKUP($BF106,RD!$B:$F,4,FALSE)/100 -> 0.01492798092 | BE106: =(VLOOKUP($BF106,RD!$B:$F,3,FALSE)/100)/12 -> 0.001261034048 | BF106: 25 | BH106: 63 | BI106: 2.753517535 | BJ106: 0.8478890825 | BK106: 2.094294552
F107: -211080.0351 | G107: -128978.276 | I107: 63 | J107: 48487 | K107: 27544805.45 | L107: 16470231.87 | M107: 0 | P107: 50873.34495 | Q107: -126648.0211 | R107: 16394457.19 | S107: 11064943.49 | T107: 220710.133 | W107: -50873.34495 | X107: -84432.01404 | Y107: 11150348.26 | AA107: 63 | AB107: 48487 | AC107: 1 | AD107: 0.4048076607 | AE107: 0.5951923393 | AG107: 63 | AH107: 48487 | AI107: 1 | AJ107: 0.4 | AK107: 0.6 | AR107: 63 | AS107: 48487 | AT107: 27544805.45 | AU107: 11017922.18 | AV107: 16526883.27 | AX107: 48487 | AY107: -0.04509262149 | BC107: =VLOOKUP($BF107,RD!$B:$F,5,FALSE)/100 -> 0.01994679262 | BD107: =VLOOKUP($BF107,RD!$B:$F,4,FALSE)/100 -> -0.08932782303 | BE107: =(VLOOKUP($BF107,RD!$B:$F,3,FALSE)/100)/12 -> 0.007881316643 | BF107: 143 | BH107: 63 | BI107: 2.754480545 | BJ107: 2.20710133 | BK107: 2.110800351
F108: -211570.7962 | G108: -128978.276 | I108: 63 | J108: 48518 | K108: 27462441.25 | L108: 16394457.19 | M108: 0 | P108: 132426.0798 | Q108: -126942.4777 | R108: 16399940.79 | S108: 11150348.26 | T108: 129206.5986 | W108: -132426.0798 | X108: -84628.31847 | Y108: 11062500.46 | AA108: 63 | AB108: 48518 | AC108: 1 | AD108: 0.4028229085 | AE108: 0.5971770915 | AG108: 63 | AH108: 48518 | AI108: 1 | AJ108: 0.4 | AK108: 0.6 | AR108: 63 | AS108: 48518 | AT108: 27462441.25 | AU108: 10984976.5 | AV108: 16477464.75 | AX108: 48518 | AY108: 0.01511228984 | BC108: =VLOOKUP($BF108,RD!$B:$F,5,FALSE)/100 -> 0.01158767382 | BD108: =VLOOKUP($BF108,RD!$B:$F,4,FALSE)/100 -> 0.01748980248 | BE108: =(VLOOKUP($BF108,RD!$B:$F,3,FALSE)/100)/12 -> 0.002325 | BF108: 233 | BH108: 63 | BI108: 2.746244125 | BJ108: 1.292065986 | BK108: 2.115707962
F109: -211881.0823 | G109: -128978.276 | I109: 63 | J109: 48548 | K109: 27365042.35 | L109: 16399940.79 | M109: 0 | P109: 77523.95914 | Q109: -127128.6494 | R109: 16350336.1 | S109: 11062500.46 | T109: 114482.1732 | W109: -77523.95914 | X109: -84752.43291 | Y109: 11014706.24 | AA109: 63 | AB109: 48548 | AC109: 1 | AD109: 0.4025101114 | AE109: 0.5974898886 | AG109: 63 | AH109: 48548 | AI109: 1 | AJ109: 0.4 | AK109: 0.6 | AR109: 63 | AS109: 48548 | AT109: 27365042.35 | AU109: 10946016.94 | AV109: 16419025.41 | AX109: 48548 | AY109: -0.01309685416 | BC109: =VLOOKUP($BF109,RD!$B:$F,5,FALSE)/100 -> 0.01034867059 | BD109: =VLOOKUP($BF109,RD!$B:$F,4,FALSE)/100 -> -0.02889136543 | BE109: =(VLOOKUP($BF109,RD!$B:$F,3,FALSE)/100)/12 -> 0.001466582862 | BF109: 27 | BH109: 63 | BI109: 2.736504235 | BJ109: 1.144821732 | BK109: 2.118810823
F110: -211693.3495 | G110: -128978.276 | I110: 63 | J110: 48579 | K110: 27087889.68 | L110: 16350336.1 | M110: 0 | P110: 68689.30393 | Q110: -127016.0097 | R110: 16292009.4 | S110: 11014706.24 | T110: -65459.31669 | W110: -68689.30393 | X110: -84677.33982 | Y110: 10795880.28 | AA110: 63 | AB110: 48579 | AC110: 1 | AD110: 0.3985500683 | AE110: 0.6014499317 | AG110: 63 | AH110: 48579 | AI110: 1 | AJ110: 0.4 | AK110: 0.6 | AR110: 63 | AS110: 48579 | AT110: 27087889.68 | AU110: 10835155.87 | AV110: 16252733.81 | AX110: 48579 | AY110: -0.003015640962 | BC110: =VLOOKUP($BF110,RD!$B:$F,5,FALSE)/100 -> -0.005942901722 | BD110: =VLOOKUP($BF110,RD!$B:$F,4,FALSE)/100 -> -0.001075895167 | BE110: =(VLOOKUP($BF110,RD!$B:$F,3,FALSE)/100)/12 -> -0.000886028726 | BF110: 192 | BH110: 63 | BI110: 2.708788968 | BJ110: -0.6545931669 | BK110: 2.116933495
F111: -212136.1415 | G111: -128978.276 | I111: 63 | J111: 48610 | K111: 26649856.4 | L111: 16292009.4 | M111: 0 | P111: -39275.59002 | Q111: -127281.6849 | R111: 16125452.12 | S111: 10795880.28 | T111: -225897.1343 | W111: 39275.59002 | X111: -84854.45659 | Y111: 10524404.28 | AA111: 63 | AB111: 48610 | AC111: 1 | AD111: 0.3949141084 | AE111: 0.6050858916 | AG111: 63 | AH111: 48610 | AI111: 1 | AJ111: 0.4 | AK111: 0.6 | AR111: 63 | AS111: 48610 | AT111: 26649856.4 | AU111: 10659942.56 | AV111: 15989913.84 | AX111: 48610 | AY111: -0.02811508473 | BC111: =VLOOKUP($BF111,RD!$B:$F,5,FALSE)/100 -> -0.02092438304 | BD111: =VLOOKUP($BF111,RD!$B:$F,4,FALSE)/100 -> -0.03280815325 | BE111: =(VLOOKUP($BF111,RD!$B:$F,3,FALSE)/100)/12 -> 0.002091666667 | BF111: 253 | BH111: 63 | BI111: 2.66498564 | BJ111: -2.258971343 | BK111: 2.121361415
F112: -213382.3994 | G112: -128978.276 | I112: 63 | J112: 48638 | K112: 26648285.38 | L112: 16125452.12 | M112: 0 | P112: -135538.2806 | Q112: -128029.4396 | R112: 15861884.4 | S112: 10524404.28 | T112: 211811.3787 | W112: 135538.2806 | X112: -85352.95976 | Y112: 10786400.98 | AA112: 63 | AB112: 48638 | AC112: 1 | AD112: 0.4047690433 | AE112: 0.5952309567 | AG112: 63 | AH112: 48638 | AI112: 1 | AJ112: 0.4 | AK112: 0.6 | AR112: 63 | AS112: 48638 | AT112: 26648285.38 | AU112: 10659314.15 | AV112: 15988971.23 | AX112: 48638 | AY112: 0.03165965771 | BC112: =VLOOKUP($BF112,RD!$B:$F,5,FALSE)/100 -> 0.02012573567 | BD112: =VLOOKUP($BF112,RD!$B:$F,4,FALSE)/100 -> 0.03950295708 | BE112: =(VLOOKUP($BF112,RD!$B:$F,3,FALSE)/100)/12 -> 0.005874802528 | BF112: 165 | BH112: 63 | BI112: 2.664828538 | BJ112: 2.118113787 | BK112: 2.133823994
F113: -213485.5342 | G113: -128978.276 | I113: 63 | J113: 48669 | K113: 26412054.19 | L113: 15861884.4 | M113: 0 | P113: 127086.8272 | Q113: -128091.3205 | R113: 15860879.91 | S113: 10786400.98 | T113: -22745.65682 | W113: -127086.8272 | X113: -85394.2137 | Y113: 10551174.28 | AA113: 63 | AB113: 48669 | AC113: 1 | AD113: 0.3994832892 | AE113: 0.6005167108 | AG113: 63 | AH113: 48669 | AI113: 1 | AJ113: 0.4 | AK113: 0.6 | AR113: 63 | AS113: 48669 | AT113: 26412054.19 | AU113: 10564821.68 | AV113: 15847232.52 | AX113: 48669 | AY113: 0.009448486518 | BC113: =VLOOKUP($BF113,RD!$B:$F,5,FALSE)/100 -> -0.002108734587 | BD113: =VLOOKUP($BF113,RD!$B:$F,4,FALSE)/100 -> 0.01713672669 | BE113: =(VLOOKUP($BF113,RD!$B:$F,3,FALSE)/100)/12 -> 0.0004833333333 | BF113: 239 | BH113: 63 | BI113: 2.641205419 | BJ113: -0.2274565682 | BK113: 2.134855342
F114: -216088.2787 | G114: -128978.276 | I114: 64 | J114: 48699 | K114: 26103246.17 | L114: 15860879.91 | M114: 0 | P114: -13647.39409 | Q114: -129652.9672 | R114: 15717579.55 | S114: 10551174.28 | T114: -92719.74175 | W114: 13647.39409 | X114: -86435.31148 | Y114: 10385666.62 | AA114: 64 | AB114: 48699 | AC114: 1 | AD114: 0.3978687768 | AE114: 0.6021312232 | AG114: 64 | AH114: 48699 | AI114: 1 | AJ114: 0.4 | AK114: 0.6 | AR114: 64 | AS114: 48699 | AT114: 26103246.17 | AU114: 10441298.47 | AV114: 15661947.7 | AX114: 48699 | AY114: 0.02135261595 | BC114: =VLOOKUP($BF114,RD!$B:$F,5,FALSE)/100 -> -0.008787622995 | BD114: =VLOOKUP($BF114,RD!$B:$F,4,FALSE)/100 -> 0.04126830797 | BE114: =(VLOOKUP($BF114,RD!$B:$F,3,FALSE)/100)/12 -> 0.01219166667 | BF114: 267 | BH114: 64 | BI114: 2.610324617 | BJ114: -0.9271974175 | BK114: 2.160882787
F115: -216781.5619 | G115: -128978.276 | I115: 64 | J115: 48730 | K115: 26053069.65 | L115: 15717579.55 | M115: 0 | P115: -55631.84505 | Q115: -130068.9372 | R115: 15531878.77 | S115: =Y114 -> 10385666.62 | T115: 166605.0399 | W115: 55631.84505 | X115: -86712.62478 | Y115: 10521190.88 | AA115: 64 | AB115: 48730 | AC115: 1 | AD115: 0.4038369 | AE115: 0.5961631 | AG115: 64 | AH115: 48730 | AI115: 1 | AJ115: 0.4 | AK115: 0.6 | AR115: 64 | AS115: 48730 | AT115: 26053069.65 | AU115: 10421227.86 | AV115: 15631841.79 | AX115: 48730 | AY115: 0.02991785417 | BC115: =VLOOKUP($BF115,RD!$B:$F,5,FALSE)/100 -> 0.01604182437 | BD115: =VLOOKUP($BF115,RD!$B:$F,4,FALSE)/100 -> 0.03931738403 | BE115: =(VLOOKUP($BF115,RD!$B:$F,3,FALSE)/100)/12 -> 0.003208333333 | BF115: 206 | BH115: 64 | BI115: 2.605306965 | BJ115: 1.666050399 | BK115: 2.167815619
F116: -217601.2431 | G116: -128978.276 | I116: 64 | J116: 48760 | K116: 25804031.94 | L116: 15531878.77 | M116: 0 | P116: 99963.02395 | Q116: -130560.7459 | R116: 15501281.04 | S116: 10521190.88 | T116: -31436.46612 | W116: -99963.02395 | X116: -87040.49724 | Y116: 10302750.9 | AA116: 64 | AB116: 48760 | AC116: 1 | AD116: 0.3992690336 | AE116: 0.6007309664 | AG116: 64 | AH116: 48760 | AI116: 1 | AJ116: 0.4 | AK116: 0.6 | AR116: 64 | AS116: 48760 | AT116: 25804031.94 | AU116: 10321612.78 | AV116: 15482419.16 | AX116: 48760 | AY116: -0.07931677094 | BC116: =VLOOKUP($BF116,RD!$B:$F,5,FALSE)/100 -> -0.002987918998 | BD116: =VLOOKUP($BF116,RD!$B:$F,4,FALSE)/100 -> -0.130047878 | BE116: =(VLOOKUP($BF116,RD!$B:$F,3,FALSE)/100)/12 -> 0.00378113879 | BF116: 97 | BH116: 64 | BI116: 2.580403194 | BJ116: -0.3143646612 | BK116: 2.176012431
F117: -219480.6601 | G117: -128978.276 | I117: 64 | J117: 48791 | K117: 25704700.62 | L117: 15501281.04 | M117: 0 | P117: -18861.87967 | Q117: -131688.396 | R117: 15350730.77 | S117: 10302750.9 | T117: 120149.3431 | W117: 18861.87967 | X117: -87792.26402 | Y117: 10353969.86 | AA117: 64 | AB117: 48791 | AC117: 1 | AD117: 0.4028045301 | AE117: 0.5971954699 | AG117: 64 | AH117: 48791 | AI117: 1 | AJ117: 0.4 | AK117: 0.6 | AR117: 64 | AS117: 48791 | AT117: 25704700.62 | AU117: 10281880.25 | AV117: 15422820.37 | AX117: 48791 | AY117: 0.04219716668 | BC117: =VLOOKUP($BF117,RD!$B:$F,5,FALSE)/100 -> 0.01166187014 | BD117: =VLOOKUP($BF117,RD!$B:$F,4,FALSE)/100 -> 0.06279302915 | BE117: =(VLOOKUP($BF117,RD!$B:$F,3,FALSE)/100)/12 -> 0.008636977058 | BF117: 123 | BH117: 64 | BI117: 2.570470062 | BJ117: 1.201493431 | BK117: 2.194806601
F118: -219480.6601 | G118: -128978.276 | I118: 64 | J118: 48822 | K118: 25561584.35 | L118: 15350730.77 | M118: 0 | P118: 72089.60584 | Q118: -131688.396 | R118: 15291131.98 | S118: 10353969.86 | T118: 76364.38791 | W118: -72089.60584 | X118: -87792.26402 | Y118: 10270452.37 | AA118: 64 | AB118: 48822 | AC118: 1 | AD118: 0.4017924802 | AE118: 0.5982075198 | AG118: 64 | AH118: 48822 | AI118: 1 | AJ118: 0.4 | AK118: 0.6 | AR118: 64 | AS118: 48822 | AT118: 25561584.35 | AU118: 10224633.74 | AV118: 15336950.61 | AX118: 48822 | AY118: 0.02557715519 | BC118: =VLOOKUP($BF118,RD!$B:$F,5,FALSE)/100 -> 0.007375372826 | BD118: =VLOOKUP($BF118,RD!$B:$F,4,FALSE)/100 -> 0.03780257703 | BE118: =(VLOOKUP($BF118,RD!$B:$F,3,FALSE)/100)/12 -> 0 | BF118: 238 | BH118: 64 | BI118: 2.556158435 | BJ118: 0.7636438791 | BK118: 2.194806601
F119: -221609.6225 | G119: -128978.276 | I119: 64 | J119: 48852 | K119: 25415959.53 | L119: 15291131.98 | M119: 0 | P119: 45818.63274 | Q119: -132965.7735 | R119: 15203984.84 | S119: 10270452.37 | T119: 75984.80403 | W119: -45818.63274 | X119: -88643.84898 | Y119: 10211974.7 | AA119: 64 | AB119: 48852 | AC119: 1 | AD119: 0.4017937895 | AE119: 0.5982062105 | AG119: 64 | AH119: 48852 | AI119: 1 | AJ119: 0.4 | AK119: 0.6 | AR119: 64 | AS119: 48852 | AT119: 25415959.53 | AU119: 10166383.81 | AV119: 15249575.72 | AX119: 48852 | AY119: 0.05769342183 | BC119: =VLOOKUP($BF119,RD!$B:$F,5,FALSE)/100 -> 0.007398389211 | BD119: =VLOOKUP($BF119,RD!$B:$F,4,FALSE)/100 -> 0.09147480257 | BE119: =(VLOOKUP($BF119,RD!$B:$F,3,FALSE)/100)/12 -> 0.0097 | BF119: 260 | BH119: 64 | BI119: 2.541595953 | BJ119: 0.7598480403 | BK119: 2.216096225
F120: -221994.1186 | G120: -128978.276 | I120: 64 | J120: 48883 | K120: 25388921.29 | L120: 15203984.84 | M120: 0 | P120: 45590.88242 | Q120: -133196.4712 | R120: 15116379.25 | S120: 10211974.7 | T120: 194955.8805 | W120: -45590.88242 | X120: -88797.64746 | Y120: 10272542.05 | AA120: 64 | AB120: 48883 | AC120: 1 | AD120: 0.4046072666 | AE120: 0.5953927334 | AG120: 64 | AH120: 48883 | AI120: 1 | AJ120: 0.4 | AK120: 0.6 | AR120: 64 | AS120: 48883 | AT120: 25388921.29 | AU120: 10155568.52 | AV120: 15233352.78 | AX120: 48883 | AY120: 0.003297837466 | BC120: =VLOOKUP($BF120,RD!$B:$F,5,FALSE)/100 -> 0.01909090909 | BD120: =VLOOKUP($BF120,RD!$B:$F,4,FALSE)/100 -> -0.00743456013 | BE120: =(VLOOKUP($BF120,RD!$B:$F,3,FALSE)/100)/12 -> 0.001735015773 | BF120: 24 | BH120: 64 | BI120: 2.538892129 | BJ120: 1.949558805 | BK120: 2.219941186
F121: -223203.702 | G121: -128978.276 | I121: 64 | J121: 48913 | K121: 25244071.1 | L121: 15116379.25 | M121: 0 | P121: 116973.5283 | Q121: -133922.2212 | R121: 15099430.56 | S121: 10272542.05 | T121: 78353.5038 | W121: -116973.5283 | X121: -89281.48079 | Y121: 10144640.54 | AA121: 64 | AB121: 48913 | AC121: 1 | AD121: 0.4018623027 | AE121: 0.5981376973 | AG121: 64 | AH121: 48913 | AI121: 1 | AJ121: 0.4 | AK121: 0.6 | AR121: 64 | AS121: 48913 | AT121: 25244071.1 | AU121: 10097628.44 | AV121: 15146442.66 | AX121: 48913 | AY121: 0.010655482 | BC121: =VLOOKUP($BF121,RD!$B:$F,5,FALSE)/100 -> 0.007627469758 | BD121: =VLOOKUP($BF121,RD!$B:$F,4,FALSE)/100 -> 0.01268986969 | BE121: =(VLOOKUP($BF121,RD!$B:$F,3,FALSE)/100)/12 -> 0.005448717949 | BF121: 79 | BH121: 64 | BI121: 2.52440711 | BJ121: 0.783535038 | BK121: 2.23203702
F122: -225063.7328 | G122: -128978.276 | I122: 64 | J122: 48944 | K122: 24948089.77 | L122: 15099430.56 | M122: 0 | P122: 47012.10228 | Q122: -135038.2397 | R122: 15011404.42 | S122: 10144640.54 | T122: -70917.59342 | W122: -47012.10228 | X122: -90025.49313 | Y122: 9936685.352 | AA122: 64 | AB122: 48944 | AC122: 1 | AD122: 0.3982944363 | AE122: 0.6017055637 | AG122: 64 | AH122: 48944 | AI122: 1 | AJ122: 0.4 | AK122: 0.6 | AR122: 64 | AS122: 48944 | AT122: 24948089.77 | AU122: 9979235.908 | AV122: 14968853.86 | AX122: 48944 | AY122: -0.01057039213 | BC122: =VLOOKUP($BF122,RD!$B:$F,5,FALSE)/100 -> -0.006990646257 | BD122: =VLOOKUP($BF122,RD!$B:$F,4,FALSE)/100 -> -0.01293997777 | BE122: =(VLOOKUP($BF122,RD!$B:$F,3,FALSE)/100)/12 -> 0.008333333333 | BF122: 141 | BH122: 64 | BI122: 2.494808977 | BJ122: -0.7091759342 | BK122: 2.250637328
F123: -225742.6751 | G123: -128978.276 | I123: 64 | J123: 48975 | K123: 24741229.36 | L123: 15011404.42 | M123: 0 | P123: -42550.55605 | Q123: -135445.6051 | R123: 14833408.26 | S123: 9936685.352 | T123: 18882.264 | W123: 42550.55605 | X123: -90297.07004 | Y123: 9907821.102 | AA123: 64 | AB123: 48975 | AC123: 1 | AD123: 0.4004579141 | AE123: 0.5995420859 | AG123: 64 | AH123: 48975 | AI123: 1 | AJ123: 0.4 | AK123: 0.6 | AR123: 64 | AS123: 48975 | AT123: 24741229.36 | AU123: 9896491.744 | AV123: 14844737.62 | AX123: 48975 | AY123: 0.03699382984 | BC123: =VLOOKUP($BF123,RD!$B:$F,5,FALSE)/100 -> 0.001900257816 | BD123: =VLOOKUP($BF123,RD!$B:$F,4,FALSE)/100 -> 0.06043421707 | BE123: =(VLOOKUP($BF123,RD!$B:$F,3,FALSE)/100)/12 -> 0.003016666667 | BF123: 220 | BH123: 64 | BI123: 2.474122936 | BJ123: 0.18882264 | BK123: 2.257426751
F124: -226434.2887 | G124: -128978.276 | I124: 64 | J124: 49003 | K124: 24619009.97 | L124: 14833408.26 | M124: 0 | P124: 11329.3584 | Q124: -135860.5732 | R124: 14708877.04 | S124: 9907821.102 | T124: 104214.9029 | W124: -11329.3584 | X124: -90573.71547 | Y124: 9910132.931 | AA124: 64 | AB124: 49003 | AC124: 1 | AD124: 0.4025398642 | AE124: 0.5974601358 | AG124: 64 | AH124: 49003 | AI124: 1 | AJ124: 0.4 | AK124: 0.6 | AR124: 64 | AS124: 49003 | AT124: 24619009.97 | AU124: 9847603.989 | AV124: 14771405.98 | AX124: 49003 | AY124: 0.003623733404 | BC124: =VLOOKUP($BF124,RD!$B:$F,5,FALSE)/100 -> 0.01051844818 | BD124: =VLOOKUP($BF124,RD!$B:$F,4,FALSE)/100 -> -0.001021593345 | BE124: =(VLOOKUP($BF124,RD!$B:$F,3,FALSE)/100)/12 -> 0.00306372549 | BF124: 204 | BH124: 64 | BI124: 2.461900997 | BJ124: 1.042149029 | BK124: 2.264342887
F125: -228128.6358 | G125: -128978.276 | I125: 64 | J125: 49034 | K125: 24336942.71 | L125: 14708877.04 | M125: 0 | P125: 62528.94172 | Q125: -136877.1815 | R125: 14634528.8 | S125: 9910132.931 | T125: -53938.62422 | W125: -62528.94172 | X125: -91251.45433 | Y125: 9702413.911 | AA125: 64 | AB125: 49034 | AC125: 1 | AD125: 0.3986702038 | AE125: 0.6013297962 | AG125: 64 | AH125: 49034 | AI125: 1 | AJ125: 0.4 | AK125: 0.6 | AR125: 64 | AS125: 49034 | AT125: 24336942.71 | AU125: 9734777.085 | AV125: 14602165.63 | AX125: 49034 | AY125: 0.06803108978 | BC125: =VLOOKUP($BF125,RD!$B:$F,5,FALSE)/100 -> -0.005442775046 | BD125: =VLOOKUP($BF125,RD!$B:$F,4,FALSE)/100 -> 0.116742863 | BE125: =(VLOOKUP($BF125,RD!$B:$F,3,FALSE)/100)/12 -> 0.007482732157 | BF125: 129 | BH125: 64 | BI125: 2.433694271 | BJ125: -0.5393862422 | BK125: 2.281286358
F126: -229018.2524 | G126: -128978.276 | I126: 65 | J126: 49064 | K126: 24125949.93 | L126: 14634528.8 | M126: 0 | P126: -32363.17453 | Q126: -137410.9514 | R126: 14464754.68 | S126: 9702413.911 | T126: 18025.46799 | W126: 32363.17453 | X126: -91607.30096 | Y126: 9661195.252 | AA126: 65 | AB126: 49064 | AC126: 1 | AD126: 0.4004482841 | AE126: 0.5995517159 | AG126: 65 | AH126: 49064 | AI126: 1 | AJ126: 0.4 | AK126: 0.6 | AR126: 65 | AS126: 49064 | AT126: 24125949.93 | AU126: 9650379.971 | AV126: 14475569.96 | AX126: 49064 | AY126: 0.04348777654 | BC126: =VLOOKUP($BF126,RD!$B:$F,5,FALSE)/100 -> 0.001857833335 | BD126: =VLOOKUP($BF126,RD!$B:$F,4,FALSE)/100 -> 0.07129294978 | BE126: =(VLOOKUP($BF126,RD!$B:$F,3,FALSE)/100)/12 -> 0.003899626992 | BF126: 66 | BH126: 65 | BI126: 2.412594993 | BJ126: 0.1802546799 | BK126: 2.290182524
F127: -230316.5418 | G127: -128978.276 | I127: 65 | J127: 49095 | K127: 23944006.14 | L127: 14464754.68 | M127: 0 | P127: 10815.2808 | Q127: -138189.9251 | R127: 14337380.03 | S127: 9661195.252 | T127: 48372.74846 | W127: -10815.2808 | X127: -92126.61673 | Y127: 9606626.103 | AA127: 65 | AB127: 49095 | AC127: 1 | AD127: 0.4012121467 | AE127: 0.5987878533 | AG127: 65 | AH127: 49095 | AI127: 1 | AJ127: 0.4 | AK127: 0.6 | AR127: 65 | AS127: 49095 | AT127: 23944006.14 | AU127: 9577602.454 | AV127: 14366403.68 | AX127: 49095 | AY127: 0.01413821186 | BC127: =VLOOKUP($BF127,RD!$B:$F,5,FALSE)/100 -> 0.005006911381 | BD127: =VLOOKUP($BF127,RD!$B:$F,4,FALSE)/100 -> 0.02025655352 | BE127: =(VLOOKUP($BF127,RD!$B:$F,3,FALSE)/100)/12 -> 0.00566893424 | BF127: 78 | BH127: 65 | BI127: 2.394400614 | BJ127: 0.4837274846 | BK127: 2.303165418
F128: -231402.5224 | G128: -128978.276 | I128: 65 | J128: 49125 | K128: 23801602.04 | L128: 14337380.03 | M128: 0 | P128: 29023.64908 | Q128: -138841.5135 | R128: 14227562.17 | S128: 9606626.103 | T128: 88998.4258 | W128: -29023.64908 | X128: -92561.00897 | Y128: 9574039.871 | AA128: 65 | AB128: 49125 | AC128: 1 | AD128: 0.4022435068 | AE128: 0.5977564932 | AG128: 65 | AH128: 49125 | AI128: 1 | AJ128: 0.4 | AK128: 0.6 | AR128: 65 | AS128: 49125 | AT128: 23801602.04 | AU128: 9520640.815 | AV128: 14280961.22 | AX128: 49125 | AY128: 0.03230558131 | BC128: =VLOOKUP($BF128,RD!$B:$F,5,FALSE)/100 -> 0.009264274975 | BD128: =VLOOKUP($BF128,RD!$B:$F,4,FALSE)/100 -> 0.04781058371 | BE128: =(VLOOKUP($BF128,RD!$B:$F,3,FALSE)/100)/12 -> 0.004715165512 | BF128: 174 | BH128: 65 | BI128: 2.380160204 | BJ128: 0.889984258 | BK128: 2.314025224
F129: -232054.3605 | G129: -128978.276 | I129: 65 | J129: 49156 | K129: 23254798.31 | L129: 14227562.17 | M129: 0 | P129: 53399.05548 | Q129: -139232.6163 | R129: 14141728.61 | S129: 9574039.871 | T129: -314749.3685 | W129: -53399.05548 | X129: -92821.74421 | Y129: 9113069.703 | AA129: 65 | AB129: 49156 | AC129: 1 | AD129: 0.3918791116 | AE129: 0.6081208884 | AG129: 65 | AH129: 49156 | AI129: 1 | AJ129: 0.4 | AK129: 0.6 | AR129: 65 | AS129: 49156 | AT129: 23254798.31 | AU129: 9301919.324 | AV129: 13952878.99 | AX129: 49156 | AY129: -0.03979862467 | BC129: =VLOOKUP($BF129,RD!$B:$F,5,FALSE)/100 -> -0.03287529327 | BD129: =VLOOKUP($BF129,RD!$B:$F,4,FALSE)/100 -> -0.04426008785 | BE129: =(VLOOKUP($BF129,RD!$B:$F,3,FALSE)/100)/12 -> 0.002816901408 | BF129: 203 | BH129: 65 | BI129: 2.325479831 | BJ129: -3.147493685 | BK129: 2.320543605
F130: -233085.7132 | G130: -128978.276 | I130: 65 | J130: 49187 | K130: 23069785.17 | L130: 14141728.61 | M130: 0 | P130: -188849.6211 | Q130: -139851.4279 | R130: 13813027.56 | S130: 9113069.703 | T130: 48072.57315 | W130: 188849.6211 | X130: -93234.28529 | Y130: 9256757.612 | AA130: 65 | AB130: 49187 | AC130: 1 | AD130: 0.4012502736 | AE130: 0.5987497264 | AG130: 65 | AH130: 49187 | AI130: 1 | AJ130: 0.4 | AK130: 0.6 | AR130: 65 | AS130: 49187 | AT130: 23069785.17 | AU130: 9227914.068 | AV130: 13841871.1 | AX130: 49187 | AY130: -0.03016382937 | BC130: =VLOOKUP($BF130,RD!$B:$F,5,FALSE)/100 -> 0.005275124049 | BD130: =VLOOKUP($BF130,RD!$B:$F,4,FALSE)/100 -> -0.05391313418 | BE130: =(VLOOKUP($BF130,RD!$B:$F,3,FALSE)/100)/12 -> 0.004444444444 | BF130: 64 | BH130: 65 | BI130: 2.306978517 | BJ130: 0.4807257315 | BK130: 2.330857132
F131: -233757.777 | G131: -128978.276 | I131: 65 | J131: 49217 | K131: 22846799.81 | L131: 13813027.56 | M131: 0 | P131: 28843.54389 | Q131: -140254.6662 | R131: 13701616.44 | S131: 9256757.612 | T131: 10772.41549 | W131: -28843.54389 | X131: -93503.11082 | Y131: 9145183.372 | AA131: 65 | AB131: 49217 | AC131: 1 | AD131: 0.4002829039 | AE131: 0.5997170961 | AG131: 65 | AH131: 49217 | AI131: 1 | AJ131: 0.4 | AK131: 0.6 | AR131: 65 | AS131: 49217 | AT131: 22846799.81 | AU131: 9138719.923 | AV131: 13708079.88 | AX131: 49217 | AY131: -0.001621421408 | BC131: =VLOOKUP($BF131,RD!$B:$F,5,FALSE)/100 -> 0.001163735288 | BD131: =VLOOKUP($BF131,RD!$B:$F,4,FALSE)/100 -> -0.00348038227 | BE131: =(VLOOKUP($BF131,RD!$B:$F,3,FALSE)/100)/12 -> 0.002883333333 | BF131: 228 | BH131: 65 | BI131: 2.284679981 | BJ131: 0.1077241549 | BK131: 2.33757777
F132: -234455.1544 | G132: -128978.276 | I132: 65 | J132: 49248 | K132: 22561270.57 | L132: 13701616.44 | M132: 0 | P132: 6463.449291 | Q132: -140673.0926 | R132: 13567406.79 | S132: 9145183.372 | T132: -51074.08741 | W132: -6463.449291 | X132: -93782.06176 | Y132: 8993863.774 | AA132: 65 | AB132: 49248 | AC132: 1 | AD132: 0.3986417231 | AE132: 0.6013582769 | AG132: 65 | AH132: 49248 | AI132: 1 | AJ132: 0.4 | AK132: 0.6 | AR132: 65 | AS132: 49248 | AT132: 22561270.57 | AU132: 9024508.226 | AV132: 13536762.34 | AX132: 49248 | AY132: 0.01537148937 | BC132: =VLOOKUP($BF132,RD!$B:$F,5,FALSE)/100 -> -0.00558480736 | BD132: =VLOOKUP($BF132,RD!$B:$F,4,FALSE)/100 -> 0.02926346452 | BE132: =(VLOOKUP($BF132,RD!$B:$F,3,FALSE)/100)/12 -> 0.002983333333 | BF132: 216 | BH132: 65 | BI132: 2.256127057 | BJ132: -0.5107408741 | BK132: 2.344551544
F133: -235870.2268 | G133: -128978.276 | I133: 65 | J133: 49278 | K133: 22454205.1 | L133: 13567406.79 | M133: 0 | P133: -30644.45245 | Q133: -141522.1361 | R133: 13395240.2 | S133: 8993863.774 | T133: 128804.7573 | W133: 30644.45245 | X133: -94348.09073 | Y133: 9058964.893 | AA133: 65 | AB133: 49278 | AC133: 1 | AD133: 0.4034417987 | AE133: 0.5965582013 | AG133: 65 | AH133: 49278 | AI133: 1 | AJ133: 0.4 | AK133: 0.6 | AR133: 65 | AS133: 49278 | AT133: 22454205.1 | AU133: 8981682.039 | AV133: 13472523.06 | AX133: 49278 | AY133: 0.03268028626 | BC133: =VLOOKUP($BF133,RD!$B:$F,5,FALSE)/100 -> 0.01432140407 | BD133: =VLOOKUP($BF133,RD!$B:$F,4,FALSE)/100 -> 0.04509607476 | BE133: =(VLOOKUP($BF133,RD!$B:$F,3,FALSE)/100)/12 -> 0.006035578145 | BF133: 155 | BH133: 65 | BI133: 2.24542051 | BJ133: 1.288047573 | BK133: 2.358702268
F134: -236626.9771 | G134: -128978.276 | I134: 65 | J134: 49309 | K134: 22362900.44 | L134: 13395240.2 | M134: 0 | P134: 77282.85436 | Q134: -141976.1863 | R134: 13330546.87 | S134: 9058964.893 | T134: 145322.3238 | W134: -77282.85436 | X134: -94650.79085 | Y134: 9032353.572 | AA134: 65 | AB134: 49309 | AC134: 1 | AD134: 0.4038990199 | AE134: 0.5961009801 | AG134: =AA134 -> 65 | AH134: 49309 | AI134: =AJ134+AK134 -> 1 | AJ134: =VLOOKUP($AG134,$AM:$AP,3,FALSE) -> 0.4 | AK134: =VLOOKUP($AG134,$AM:$AP,4,FALSE) -> 0.6 | AR134: 65 | AS134: 49309 | AT134: =AU134+AV134 -> 22362900.44 | AU134: 8945160.177 | AV134: 13417740.27 | AX134: 49309 | AY134: 0.02991640829 | BC134: =VLOOKUP($BF134,RD!$B:$F,5,FALSE)/100 -> 0.01604182437 | BD134: =VLOOKUP($BF134,RD!$B:$F,4,FALSE)/100 -> 0.03931738403 | BE134: =(VLOOKUP($BF134,RD!$B:$F,3,FALSE)/100)/12 -> 0.003208333333 | BF134: 206 | BH134: 65 | BI134: 2.236290044 | BJ134: 1.453223238 | BK134: 2.366269771
F135: -237603.6215 | G135: -128978.276 | I135: 65 | J135: 49340 | K135: =R135+Y135 -> 22165507.63 | L135: 13330546.87 | M135: =L135*BA135 -> 0 | P135: 87193.39426 | Q135: =F135*AK135 -> -142562.1729 | R135: =L135+M135+N135+O135+Q135+P135 -> 13275178.09 | S135: 9032353.572 | T135: =S135*BC135 -> 40210.81167 | W135: -87193.39426 | X135: =F135*AJ135 -> -95041.4486 | Y135: =S135+T135+U135+V135+X135+W135 -> 8890329.54 | AA135: =I135 -> 65 | AB135: 49340 | AC135: =AD135+AE135 -> 1 | AD135: =Y135/K135 -> 0.4010884699 | AE135: =R135/K135 -> 0.5989115301 | AG135: 65 | AH135: 49340 | AI135: 1 | AJ135: 0.4 | AK135: 0.6 | AR135: =AG135 -> 65 | AS135: 49340 | AT135: 22165507.63 | AU135: =AJ135*K135 -> 8866203.053 | AV135: =AK135*K135 -> 13299304.58 | AX135: 49340 | AY135: =(((BC135*Y135)+(BD135*R135))/(R135+Y135)) -> -0.05735300777 | BC135: =VLOOKUP($BF135,RD!$B:$F,5,FALSE)/100 -> 0.004451864218 | BD135: =VLOOKUP($BF135,RD!$B:$F,4,FALSE)/100 -> -0.0987434641 | BE135: =(VLOOKUP($BF135,RD!$B:$F,3,FALSE)/100)/12 -> 0.004127358491 | BF135: =RANDBETWEEN(1,270) -> 7 | BH135: =I135 -> 65 | BI135: =(K135)/10000000 -> 2.216550763 | BJ135: 0.4021081167 | BK135: =-F135/100000 -> 2.376036215
F136: =F135*(1+(BE136)) -> -238548.223 | G136: =G135*(1+(BB136)) -> -128978.276 | I136: =IF(MONTH(J136)=MONTH($J$6),I135+1,I135) -> 65 | J136: =EOMONTH(J135,1) -> 49368 | K136: 22199940.96 | L136: =R135 -> 13275178.09 | M136: 0 | P136: =AV135-R135 -> 24126.487 | Q136: -143128.9338 | R136: 13156175.65 | S136: =Y135 -> 8890329.54 | T136: 272981.5457 | W136: =AU135-Y135 -> -24126.487 | X136: -95419.28922 | Y136: 9043765.31 | AA136: 65 | AB136: 49368 | AC136: 1 | AD136: 0.4073778992 | AE136: 0.5926221008 | AG136: 65 | AH136: 49368 | AI136: 1 | AJ136: 0.4 | AK136: 0.6 | AR136: 65 | AS136: 49368 | AT136: 22199940.96 | AU136: 8879976.382 | AV136: 13319964.57 | AX136: =EOMONTH(AX135,1) -> 49368 | AY136: 0.03162682018 | BC136: =VLOOKUP($BF136,RD!$B:$F,5,FALSE)/100 -> 0.03070544736 | BD136: =VLOOKUP($BF136,RD!$B:$F,4,FALSE)/100 -> 0.03226018658 | BE136: =(VLOOKUP($BF136,RD!$B:$F,3,FALSE)/100)/12 -> 0.003975535168 | BF136: 160 | BH136: 65 | BI136: 2.219994096 | BJ136: 2.729815457 | BK136: 2.38548223
F137: -239003.4526 | G137: -128978.276 | I137: 65 | J137: 49399 | K137: 21985248.27 | L137: 13156175.65 | M137: 0 | P137: 163788.9274 | Q137: -143402.0715 | R137: 13176562.5 | S137: 9043765.31 | T137: 24310.76404 | W137: -163788.9274 | X137: -95601.38103 | Y137: 8808685.765 | AA137: 65 | AB137: 49399 | AC137: 1 | AD137: 0.4006634657 | AE137: 0.5993365343 | AG137: 65 | AH137: 49399 | AI137: 1 | AJ137: 0.4 | AK137: 0.6 | AR137: 65 | AS137: 49399 | AT137: 21985248.27 | AU137: 8794099.307 | AV137: 13191148.96 | AX137: 49399 | AY137: 0.07460008606 | BC137: =VLOOKUP($BF137,RD!$B:$F,5,FALSE)/100 -> 0.002688124161 | BD137: =VLOOKUP($BF137,RD!$B:$F,4,FALSE)/100 -> 0.1226740716 | BE137: =(VLOOKUP($BF137,RD!$B:$F,3,FALSE)/100)/12 -> 0.001908333333 | BF137: 251 | BH137: 65 | BI137: 2.198524827 | BJ137: =(M137+T137)/100000 -> 0.2431076404 | BK137: 2.390034526
F138: -239723.1408 | G138: -128978.276 | I138: 66 | J138: 49429 | K138: 21663231.6 | L138: 13176562.5 | M138: 0 | P138: 14586.45842 | Q138: -143833.8845 | R138: 13047315.08 | S138: 8808685.765 | T138: -82293.52869 | W138: -14586.45842 | X138: -95889.25634 | Y138: 8615916.522 | AA138: 66 | AB138: 49429 | AC138: 1 | AD138: 0.3977207409 | AE138: 0.6022792591 | AG138: 66 | AH138: 49429 | AI138: 1 | AJ138: 0.4 | AK138: 0.6 | AR138: 66 | AS138: 49429 | AT138: 21663231.6 | AU138: 8665292.639 | AV138: 12997938.96 | AX138: 49429 | AY138: -0.03775466442 | BC138: =VLOOKUP($BF138,RD!$B:$F,5,FALSE)/100 -> -0.009342316309 | BD138: =VLOOKUP($BF138,RD!$B:$F,4,FALSE)/100 -> -0.05651702418 | BE138: =(VLOOKUP($BF138,RD!$B:$F,3,FALSE)/100)/12 -> 0.003011204482 | BF138: 110 | BH138: 66 | BI138: 2.16632316 | BJ138: -0.8229352869 | BK138: 2.397231408
F139: -239289.1017 | G139: -128978.276 | I139: 66 | J139: 49460 | K139: 21448126.24 | L139: 13047315.08 | M139: 0 | P139: -49376.11721 | Q139: -143573.461 | R139: 12854365.5 | S139: 8615916.522 | T139: 24183.74624 | W139: 49376.11721 | X139: -95715.64069 | Y139: 8593760.745 | AA139: 66 | AB139: 49460 | AC139: 1 | AD139: 0.4006765275 | AE139: 0.5993234725 | AG139: 66 | AH139: 49460 | AI139: 1 | AJ139: 0.4 | AK139: 0.6 | AR139: 66 | AS139: 49460 | AT139: 21448126.24 | AU139: 8579250.497 | AV139: 12868875.75 | AX139: 49460 | AY139: 0.004665043559 | BC139: =VLOOKUP($BF139,RD!$B:$F,5,FALSE)/100 -> 0.00280686868 | BD139: =VLOOKUP($BF139,RD!$B:$F,4,FALSE)/100 -> 0.005907322716 | BE139: =(VLOOKUP($BF139,RD!$B:$F,3,FALSE)/100)/12 -> -0.001810584958 | BF139: 182 | BH139: 66 | BI139: 2.144812624 | BJ139: 0.2418374624 | BK139: 2.392891017
F140: -238803.8178 | G140: -128978.276 | I140: 66 | J140: 49490 | K140: 21240674.94 | L140: 12854365.5 | M140: 0 | P140: 14510.24774 | Q140: -143282.2907 | R140: 12725593.45 | S140: 8593760.745 | T140: 31352.51833 | W140: -14510.24774 | X140: -95521.52711 | Y140: 8515081.488 | AA140: 66 | AB140: 49490 | AC140: 1 | AD140: 0.4008856362 | AE140: 0.5991143638 | AG140: 66 | AH140: 49490 | AI140: 1 | AJ140: 0.4 | AK140: 0.6 | AR140: 66 | AS140: 49490 | AT140: 21240674.94 | AU140: 8496269.977 | AV140: 12744404.97 | AX140: 49490 | AY140: -0.01881359525 | BC140: =VLOOKUP($BF140,RD!$B:$F,5,FALSE)/100 -> 0.00364828848 | BD140: =VLOOKUP($BF140,RD!$B:$F,4,FALSE)/100 -> -0.03384352458 | BE140: =(VLOOKUP($BF140,RD!$B:$F,3,FALSE)/100)/12 -> -0.002028023599 | BF140: 184 | BH140: 66 | BI140: 2.124067494 | BJ140: 0.3135251833 | BK140: 2.388038178
F141: -239349.032 | G141: -128978.276 | I141: 66 | J141: 49521 | K141: 21118838.49 | L141: 12725593.45 | M141: 0 | P141: 18811.511 | Q141: -143609.4192 | R141: 12600795.55 | S141: 8515081.488 | T141: 117512.5786 | W141: -18811.511 | X141: -95739.61279 | Y141: 8518042.943 | AA141: 66 | AB141: 49521 | AC141: 1 | AD141: 0.4033386091 | AE141: 0.5966613909 | AG141: 66 | AH141: 49521 | AI141: 1 | AJ141: 0.4 | AK141: 0.6 | AR141: 66 | AS141: 49521 | AT141: 21118838.49 | AU141: 8447535.396 | AV141: 12671303.09 | AX141: 49521 | AY141: 0.0517055984 | BC141: =VLOOKUP($BF141,RD!$B:$F,5,FALSE)/100 -> 0.01380052308 | BD141: =VLOOKUP($BF141,RD!$B:$F,4,FALSE)/100 -> 0.07732914401 | BE141: =(VLOOKUP($BF141,RD!$B:$F,3,FALSE)/100)/12 -> 0.002283105023 | BF141: 11 | BH141: 66 | BI141: 2.111883849 | BJ141: 1.175125786 | BK141: 2.39349032
F142: -240302.439 | G142: -128978.276 | I142: 66 | J142: 49552 | K142: 20895976.59 | L142: 12600795.55 | M142: 0 | P142: 70507.54719 | Q142: -144181.4634 | R142: 12527121.63 | S142: 8518042.943 | T142: 17440.54055 | W142: -70507.54719 | X142: -96120.97558 | Y142: 8368854.961 | AA142: 66 | AB142: 49552 | AC142: 1 | AD142: 0.4005007818 | AE142: 0.5994992182 | AG142: 66 | AH142: 49552 | AI142: 1 | AJ142: 0.4 | AK142: 0.6 | AR142: 66 | AS142: 49552 | AT142: 20895976.59 | AU142: 8358390.637 | AV142: 12537585.95 | AX142: 49552 | AY142: 0.003582528676 | BC142: =VLOOKUP($BF142,RD!$B:$F,5,FALSE)/100 -> 0.002047482111 | BD142: =VLOOKUP($BF142,RD!$B:$F,4,FALSE)/100 -> 0.004608030179 | BE142: =(VLOOKUP($BF142,RD!$B:$F,3,FALSE)/100)/12 -> 0.003983333333 | BF142: 221 | BH142: 66 | BI142: 2.089597659 | BJ142: 0.1744054055 | BK142: 2.40302439
F143: -241435.5047 | G143: -128978.276 | I143: 66 | J143: 49582 | K143: 20732072.46 | L143: 12527121.63 | M143: 0 | P143: 10464.32433 | Q143: -144861.3028 | R143: 12392724.65 | S143: 8368854.961 | T143: 77531.37358 | W143: -10464.32433 | X143: -96574.20189 | Y143: 8339347.808 | AA143: 66 | AB143: 49582 | AC143: 1 | AD143: 0.4022438096 | AE143: 0.5977561904 | AG143: 66 | AH143: 49582 | AI143: 1 | AJ143: 0.4 | AK143: 0.6 | AR143: 66 | AS143: 49582 | AT143: 20732072.46 | AU143: 8292828.984 | AV143: 12439243.48 | AX143: 49582 | AY143: 0.03230556964 | BC143: =VLOOKUP($BF143,RD!$B:$F,5,FALSE)/100 -> 0.009264274975 | BD143: =VLOOKUP($BF143,RD!$B:$F,4,FALSE)/100 -> 0.04781058371 | BE143: =(VLOOKUP($BF143,RD!$B:$F,3,FALSE)/100)/12 -> 0.004715165512 | BF143: 174 | BH143: 66 | BI143: 2.073207246 | BJ143: 0.7753137358 | BK143: 2.414355047
F144: -243377.3015 | G144: -128978.276 | I144: 66 | J144: 49613 | K144: 20532667.82 | L144: 12392724.65 | M144: 0 | P144: 46518.82415 | Q144: -146026.3809 | R144: 12293217.1 | S144: 8339347.808 | T144: 43972.6578 | W144: -46518.82415 | X144: -97350.9206 | Y144: 8239450.721 | AA144: 66 | AB144: 49613 | AC144: 1 | AD144: 0.401284957 | AE144: 0.598715043 | AG144: 66 | AH144: 49613 | AI144: 1 | AJ144: 0.4 | AK144: 0.6 | AR144: 66 | AS144: 49613 | AT144: 20532667.82 | AU144: 8213067.127 | AV144: 12319600.69 | AX144: 49613 | AY144: 0.004736194767 | BC144: =VLOOKUP($BF144,RD!$B:$F,5,FALSE)/100 -> 0.005272913279 | BD144: =VLOOKUP($BF144,RD!$B:$F,4,FALSE)/100 -> 0.004376462591 | BE144: =(VLOOKUP($BF144,RD!$B:$F,3,FALSE)/100)/12 -> 0.008042714247 | BF144: 122 | BH144: 66 | BI144: 2.053266782 | BJ144: 0.439726578 | BK144: 2.433773015
F145: -246344.4764 | G145: -128978.276 | I145: 66 | J145: 49643 | K145: 20213918.15 | L145: 12293217.1 | M145: 0 | P145: 26383.59468 | Q145: -147806.6859 | R145: 12171794 | S145: 8239450.721 | T145: -72405.18663 | W145: -26383.59468 | X145: -98537.79057 | Y145: 8042124.149 | AA145: 66 | AB145: 49643 | AC145: 1 | AD145: 0.3978508317 | AE145: 0.6021491683 | AG145: 66 | AH145: 49643 | AI145: 1 | AJ145: 0.4 | AK145: 0.6 | AR145: 66 | AS145: 49643 | AT145: 20213918.15 | AU145: 8085567.261 | AV145: 12128350.89 | AX145: 49643 | AY145: 0.0213535142 | BC145: =VLOOKUP($BF145,RD!$B:$F,5,FALSE)/100 -> -0.008787622995 | BD145: =VLOOKUP($BF145,RD!$B:$F,4,FALSE)/100 -> 0.04126830797 | BE145: =(VLOOKUP($BF145,RD!$B:$F,3,FALSE)/100)/12 -> 0.01219166667 | BF145: 267 | BH145: 66 | BI145: 2.021391815 | BJ145: -0.7240518663 | BK145: 2.463444764
F146: -247243.2457 | G146: -128978.276 | I146: 66 | J146: 49674 | K146: 20000957.83 | L146: 12171794 | M146: 0 | P146: -43443.11198 | Q146: -148345.9474 | R146: 11980004.94 | S146: 8042124.149 | T146: 34282.9204 | W146: 43443.11198 | X146: -98897.29827 | Y146: 8020952.884 | AA146: 66 | AB146: 49674 | AC146: 1 | AD146: 0.4010284384 | AE146: 0.5989715616 | AG146: 66 | AH146: 49674 | AI146: 1 | AJ146: 0.4 | AK146: 0.6 | AR146: 66 | AS146: 49674 | AT146: 20000957.83 | AU146: 8000383.131 | AV146: 12000574.7 | AX146: 49674 | AY146: 0.06532902843 | BC146: =VLOOKUP($BF146,RD!$B:$F,5,FALSE)/100 -> 0.004262918573 | BD146: =VLOOKUP($BF146,RD!$B:$F,4,FALSE)/100 -> 0.1062145199 | BE146: =(VLOOKUP($BF146,RD!$B:$F,3,FALSE)/100)/12 -> 0.003648424544 | BF146: 69 | BH146: 66 | BI146: 2.000095783 | BJ146: 0.342829204 | BK146: 2.472432457
F147: -247890.1988 | G147: -128978.276 | I147: 66 | J147: 49705 | K147: 19734005.39 | L147: 11980004.94 | M147: 0 | P147: 20569.75224 | Q147: -148734.1193 | R147: 11851840.58 | S147: 8020952.884 | T147: -19062.24104 | W147: -20569.75224 | X147: -99156.07953 | Y147: 7882164.811 | AA147: 66 | AB147: 49705 | AC147: 1 | AD147: 0.3994204246 | AE147: 0.6005795754 | AG147: 66 | AH147: 49705 | AI147: 1 | AJ147: 0.4 | AK147: 0.6 | AR147: 66 | AS147: 49705 | AT147: 19734005.39 | AU147: 7893602.155 | AV147: 11840403.23 | AX147: 49705 | AY147: -0.009697089077 | BC147: =VLOOKUP($BF147,RD!$B:$F,5,FALSE)/100 -> -0.002376555668 | BD147: =VLOOKUP($BF147,RD!$B:$F,4,FALSE)/100 -> -0.0145656705 | BE147: =(VLOOKUP($BF147,RD!$B:$F,3,FALSE)/100)/12 -> 0.002616666667 | BF147: 213 | BH147: 66 | BI147: 1.973400539 | BJ147: -0.1906224104 | BK147: 2.478901988
F148: -248995.0163 | G148: -128978.276 | I148: 66 | J148: 49734 | K148: 19481615.93 | L148: 11851840.58 | M148: 0 | P148: -11437.34462 | Q148: -149397.0098 | R148: 11691006.22 | S148: 7882164.811 | T148: -3394.439959 | W148: 11437.34462 | X148: -99598.0065 | Y148: 7790609.709 | AA148: 66 | AB148: 49734 | AC148: 1 | AD148: 0.3998954571 | AE148: 0.6001045429 | AG148: 66 | AH148: 49734 | AI148: 1 | AJ148: 0.4 | AK148: 0.6 | AR148: 66 | AS148: 49734 | AT148: 19481615.93 | AU148: 7792646.373 | AV148: 11688969.56 | AX148: 49734 | AY148: 0.00597213785 | BC148: =VLOOKUP($BF148,RD!$B:$F,5,FALSE)/100 -> -0.0004306481837 | BD148: =VLOOKUP($BF148,RD!$B:$F,4,FALSE)/100 -> 0.01023880285 | BE148: =(VLOOKUP($BF148,RD!$B:$F,3,FALSE)/100)/12 -> 0.004456882255 | BF148: 38 | BH148: 66 | BI148: 1.948161593 | BJ148: -0.03394439959 | BK148: 2.489950163
F149: -252186.3024 | G149: -128978.276 | I149: 66 | J149: 49765 | K149: 19131396.59 | L149: 11691006.22 | M149: 0 | P149: -2036.663976 | Q149: -151311.7814 | R149: 11537657.78 | S149: 7790609.709 | T149: -98033.035 | W149: 2036.663976 | X149: -100874.521 | Y149: 7593738.817 | AA149: 66 | AB149: 49765 | AC149: 1 | AD149: 0.3969254821 | AE149: 0.6030745179 | AG149: 66 | AH149: 49765 | AI149: 1 | AJ149: 0.4 | AK149: 0.6 | AR149: 66 | AS149: 49765 | AT149: 19131396.59 | AU149: 7652558.638 | AV149: 11478837.96 | AX149: 49765 | AY149: -0.02105399099 | BC149: =VLOOKUP($BF149,RD!$B:$F,5,FALSE)/100 -> -0.01258348687 | BD149: =VLOOKUP($BF149,RD!$B:$F,4,FALSE)/100 -> -0.02662902165 | BE149: =(VLOOKUP($BF149,RD!$B:$F,3,FALSE)/100)/12 -> 0.01281666667 | BF149: 268 | BH149: 66 | BI149: 1.913139659 | BJ149: -0.98033035 | BK149: 2.521863024
F150: -255260.8737 | G150: -128978.276 | I150: 67 | J150: 49795 | K150: 18809404.81 | L150: 11537657.78 | M150: 0 | P150: -58819.821 | Q150: -153156.5242 | R150: 11325681.43 | S150: =Y149 -> 7593738.817 | T150: -66730.91385 | W150: 58819.821 | X150: -102104.3495 | Y150: 7483723.375 | AA150: 67 | AB150: 49795 | AC150: 1 | AD150: 0.3978713549 | AE150: 0.6021286451 | AG150: 67 | AH150: 49795 | AI150: 1 | AJ150: 0.4 | AK150: 0.6 | AR150: 67 | AS150: 49795 | AT150: 18809404.81 | AU150: 7523761.923 | AV150: 11285642.88 | AX150: 49795 | AY150: 0.0213524869 | BC150: =VLOOKUP($BF150,RD!$B:$F,5,FALSE)/100 -> -0.008787622995 | BD150: =VLOOKUP($BF150,RD!$B:$F,4,FALSE)/100 -> 0.04126830797 | BE150: =(VLOOKUP($BF150,RD!$B:$F,3,FALSE)/100)/12 -> 0.01219166667 | BF150: 267 | BH150: 67 | BI150: 1.880940481 | BJ150: -0.6673091385 | BK150: 2.552608737
F151: -257005.5085 | G151: -128978.276 | I151: 67 | J151: 49826 | K151: 18594254.81 | L151: 11325681.43 | M151: 0 | P151: -40038.54831 | Q151: -154203.3051 | R151: 11131439.58 | S151: 7483723.375 | T151: 41855.51092 | W151: 40038.54831 | X151: -102802.2034 | Y151: 7462815.23 | AA151: 67 | AB151: 49826 | AC151: 1 | AD151: 0.4013505949 | AE151: 0.5986494051 | AG151: 67 | AH151: 49826 | AI151: 1 | AJ151: 0.4 | AK151: 0.6 | AR151: 67 | AS151: 49826 | AT151: 18594254.81 | AU151: 7437701.924 | AV151: 11156552.89 | AX151: 49826 | AY151: -0.01207419321 | BC151: =VLOOKUP($BF151,RD!$B:$F,5,FALSE)/100 -> 0.005592872535 | BD151: =VLOOKUP($BF151,RD!$B:$F,4,FALSE)/100 -> -0.02391866727 | BE151: =(VLOOKUP($BF151,RD!$B:$F,3,FALSE)/100)/12 -> 0.006834712817 | BF151: 131 | BH151: 67 | BI151: 1.859425481 | BJ151: 0.4185551092 | BK151: 2.570055085
F152: -257408.1504 | G152: -128978.276 | I152: 67 | J152: 49856 | K152: 18360872.08 | L152: 11131439.58 | M152: 0 | P152: 25113.30655 | Q152: -154444.8903 | R152: 11002108 | S152: 7462815.23 | T152: 24025.4193 | W152: -25113.30655 | X152: -102963.2602 | Y152: 7358764.083 | AA152: 67 | AB152: 49856 | AC152: 1 | AD152: 0.4007851071 | AE152: 0.5992148929 | AG152: 67 | AH152: 49856 | AI152: 1 | AJ152: 0.4 | AK152: 0.6 | AR152: 67 | AS152: 49856 | AT152: 18360872.08 | AU152: 7344348.831 | AV152: 11016523.25 | AX152: 49856 | AY152: 0.03216663761 | BC152: =VLOOKUP($BF152,RD!$B:$F,5,FALSE)/100 -> 0.003219350681 | BD152: =VLOOKUP($BF152,RD!$B:$F,4,FALSE)/100 -> 0.05152804139 | BE152: =(VLOOKUP($BF152,RD!$B:$F,3,FALSE)/100)/12 -> 0.001566666667 | BF152: 211 | BH152: 67 | BI152: 1.836087208 | BJ152: 0.240254193 | BK152: 2.574081504
F153: -259434.2266 | G153: -128978.276 | I153: 67 | J153: 49887 | K153: 18143135.22 | L153: 11002108 | M153: 0 | P153: 14415.25158 | Q153: -155660.536 | R153: 10860862.71 | S153: 7358764.083 | T153: 41697.36562 | W153: -14415.25158 | X153: -103773.6906 | Y153: 7282272.506 | AA153: 67 | AB153: 49887 | AC153: 1 | AD153: 0.4013789469 | AE153: 0.5986210531 | AG153: 67 | AH153: 49887 | AI153: 1 | AJ153: 0.4 | AK153: 0.6 | AR153: 67 | AS153: 49887 | AT153: 18143135.22 | AU153: 7257254.087 | AV153: 10885881.13 | AX153: 49887 | AY153: 0.03256656624 | BC153: =VLOOKUP($BF153,RD!$B:$F,5,FALSE)/100 -> 0.005666354452 | BD153: =VLOOKUP($BF153,RD!$B:$F,4,FALSE)/100 -> 0.0506033169 | BE153: =(VLOOKUP($BF153,RD!$B:$F,3,FALSE)/100)/12 -> 0.007871064468 | BF153: 132 | BH153: 67 | BI153: 1.814313522 | BJ153: 0.4169736562 | BK153: 2.594342266
F154: -260478.6478 | G154: -128978.276 | I154: 67 | J154: 49918 | K154: 18011365.68 | L154: 10860862.71 | M154: 0 | P154: 25018.41937 | Q154: -156287.1887 | R154: 10729593.94 | S154: 7282272.506 | T154: 128709.107 | W154: -25018.41937 | X154: -104191.4591 | Y154: 7281771.735 | AA154: 67 | AB154: 49918 | AC154: 1 | AD154: 0.4042875963 | AE154: 0.5957124037 | AG154: 67 | AH154: 49918 | AI154: 1 | AJ154: 0.4 | AK154: 0.6 | AR154: 67 | AS154: 49918 | AT154: 18011365.68 | AU154: 7204546.271 | AV154: 10806819.41 | AX154: 49918 | AY154: -0.04159875928 | BC154: =VLOOKUP($BF154,RD!$B:$F,5,FALSE)/100 -> 0.01767430522 | BD154: =VLOOKUP($BF154,RD!$B:$F,4,FALSE)/100 -> -0.08182515816 | BE154: =(VLOOKUP($BF154,RD!$B:$F,3,FALSE)/100)/12 -> 0.004025764895 | BF154: 3 | BH154: 67 | BI154: 1.801136568 | BJ154: 1.28709107 | BK154: 2.604786478
F155: -261951.9433 | G155: -128978.276 | I155: 67 | J155: 49948 | K155: 17775119.38 | L155: 10729593.94 | M155: 0 | P155: 77225.46417 | Q155: -157171.166 | R155: 10649648.24 | S155: 7281771.735 | T155: 25705.6492 | W155: -77225.46417 | X155: -104780.7773 | Y155: 7125471.143 | AA155: 67 | AB155: 49948 | AC155: 1 | AD155: 0.4008676954 | AE155: 0.5991323046 | AG155: 67 | AH155: 49948 | AI155: 1 | AJ155: 0.4 | AK155: 0.6 | AR155: 67 | AS155: 49948 | AT155: 17775119.38 | AU155: 7110047.753 | AV155: 10665071.63 | AX155: 49948 | AY155: 0.03681936442 | BC155: =VLOOKUP($BF155,RD!$B:$F,5,FALSE)/100 -> 0.003530136639 | BD155: =VLOOKUP($BF155,RD!$B:$F,4,FALSE)/100 -> 0.059092535 | BE155: =(VLOOKUP($BF155,RD!$B:$F,3,FALSE)/100)/12 -> 0.005656108597 | BF155: 60 | BH155: 67 | BI155: 1.777511938 | BJ155: 0.257056492 | BK155: 2.619519433
F156: -263674.2773 | G156: -128978.276 | I156: 67 | J156: 49979 | K156: 17576253.58 | L156: 10649648.24 | M156: 0 | P156: 15423.38952 | Q156: -158204.5664 | R156: 10506867.06 | S156: =Y155 -> 7125471.143 | T156: 64808.47339 | W156: -15423.38952 | X156: -105469.7109 | Y156: 7069386.515 | AA156: 67 | AB156: 49979 | AC156: 1 | AD156: 0.4022123648 | AE156: 0.5977876352 | AG156: 67 | AH156: 49979 | AI156: 1 | AJ156: 0.4 | AK156: 0.6 | AR156: 67 | AS156: 49979 | AT156: 17576253.58 | AU156: 7030501.431 | AV156: 10545752.15 | AX156: 49979 | AY156: 0.00833785172 | BC156: =VLOOKUP($BF156,RD!$B:$F,5,FALSE)/100 -> 0.009095324659 | BD156: =VLOOKUP($BF156,RD!$B:$F,4,FALSE)/100 -> 0.007828197514 | BE156: =(VLOOKUP($BF156,RD!$B:$F,3,FALSE)/100)/12 -> 0.006575 | BF156: 255 | BH156: 67 | BI156: 1.757625358 | BJ156: 0.6480847339 | BK156: 2.636742773
F157: -265446.7357 | G157: -128978.276 | I157: 67 | J157: 50009 | K157: 17340069.05 | L157: 10506867.06 | M157: 0 | P157: 38885.08403 | Q157: -159268.0414 | R157: 10386484.11 | S157: 7069386.515 | T157: 29262.20838 | W157: -38885.08403 | X157: -106178.6943 | Y157: 6953584.946 | AA157: 67 | AB157: 50009 | AC157: 1 | AD157: 0.4010125291 | AE157: 0.5989874709 | AG157: 67 | AH157: 50009 | AI157: 1 | AJ157: 0.4 | AK157: 0.6 | AR157: 67 | AS157: 50009 | AT157: 17340069.05 | AU157: 6936027.621 | AV157: 10404041.43 | AX157: 50009 | AY157: 0.0507488084 | BC157: =VLOOKUP($BF157,RD!$B:$F,5,FALSE)/100 -> 0.004139285398 | BD157: =VLOOKUP($BF157,RD!$B:$F,4,FALSE)/100 -> 0.0819531384 | BE157: =(VLOOKUP($BF157,RD!$B:$F,3,FALSE)/100)/12 -> 0.006722151088 | BF157: 153 | BH157: 67 | BI157: 1.734006905 | BJ157: 0.2926220838 | BK157: 2.654467357
F158: -267006.1828 | G158: -128978.276 | I158: 67 | J158: 50040 | K158: 17213008.88 | L158: 10386484.11 | M158: 0 | P158: 17557.32503 | Q158: -160203.7097 | R158: 10243837.72 | S158: 6953584.946 | T158: 139946.0126 | W158: -17557.32503 | X158: -106802.4731 | Y158: 6969171.16 | AA158: 67 | AB158: 50040 | AC158: 1 | AD158: 0.4048781482 | AE158: 0.5951218518 | AG158: 67 | AH158: 50040 | AI158: 1 | AJ158: 0.4 | AK158: 0.6 | AR158: 67 | AS158: 50040 | AT158: 17213008.88 | AU158: 6885203.552 | AV158: 10327805.33 | AX158: 50040 | AY158: 0.03165754356 | BC158: =VLOOKUP($BF158,RD!$B:$F,5,FALSE)/100 -> 0.02012573567 | BD158: =VLOOKUP($BF158,RD!$B:$F,4,FALSE)/100 -> 0.03950295708 | BE158: =(VLOOKUP($BF158,RD!$B:$F,3,FALSE)/100)/12 -> 0.005874802528 | BF158: 165 | BH158: 67 | BI158: 1.721300888 | BJ158: 1.399460126 | BK158: 2.670061828
F159: -268617.7195 | G159: -128978.276 | I159: 67 | J159: 50071 | K159: 17044199.48 | L159: 10243837.72 | M159: 0 | P159: 83967.60755 | Q159: -161170.6317 | R159: 10166634.7 | S159: 6969171.16 | T159: 99808.31623 | W159: -83967.60755 | X159: -107447.0878 | Y159: 6877564.781 | AA159: 67 | AB159: 50071 | AC159: 1 | AD159: 0.4035135114 | AE159: 0.5964864886 | AG159: 67 | AH159: 50071 | AI159: 1 | AJ159: 0.4 | AK159: 0.6 | AR159: 67 | AS159: 50071 | AT159: 17044199.48 | AU159: 6817679.791 | AV159: 10226519.69 | AX159: 50071 | AY159: 0.03267807933 | BC159: =VLOOKUP($BF159,RD!$B:$F,5,FALSE)/100 -> 0.01432140407 | BD159: =VLOOKUP($BF159,RD!$B:$F,4,FALSE)/100 -> 0.04509607476 | BE159: =(VLOOKUP($BF159,RD!$B:$F,3,FALSE)/100)/12 -> 0.006035578145 | BF159: 155 | BH159: 67 | BI159: 1.704419948 | BJ159: 0.9980831623 | BK159: 2.686177195
F160: -270244.7812 | G160: -128978.276 | I160: 67 | J160: 50099 | K160: 16774284.79 | L160: 10166634.7 | M160: 0 | P160: 59884.98974 | Q160: -162146.8687 | R160: 10064372.82 | S160: 6877564.781 | T160: 330.0971544 | W160: -59884.98974 | X160: -108097.9125 | Y160: 6709911.976 | AA160: 67 | AB160: 50099 | AC160: 1 | AD160: 0.4000118073 | AE160: 0.5999881927 | AG160: 67 | AH160: 50099 | AI160: 1 | AJ160: 0.4 | AK160: 0.6 | AR160: 67 | AS160: 50099 | AT160: 16774284.79 | AU160: 6709713.917 | AV160: 10064570.88 | AX160: 50099 | AY160: 0.01020321453 | BC160: =VLOOKUP($BF160,RD!$B:$F,5,FALSE)/100 -> 4.799622613e-05 | BD160: =VLOOKUP($BF160,RD!$B:$F,4,FALSE)/100 -> 0.01697369314 | BE160: =(VLOOKUP($BF160,RD!$B:$F,3,FALSE)/100)/12 -> 0.00605716449 | BF160: 58 | BH160: 67 | BI160: 1.677428479 | BJ160: 0.003300971544 | BK160: 2.702447812
F161: -271740.4434 | G161: -128978.276 | I161: 67 | J161: 50130 | K161: 16472135.93 | L161: 10064372.82 | M161: 0 | P161: 198.0582926 | Q161: -163044.266 | R161: 9901526.61 | S161: 6709911.976 | T161: -30408.42277 | W161: -198.0582926 | X161: -108696.1773 | Y161: 6570609.317 | AA161: 67 | AB161: 50130 | AC161: 1 | AD161: 0.3988923687 | AE161: 0.6011076313 | AG161: 67 | AH161: 50130 | AI161: 1 | AJ161: 0.4 | AK161: 0.6 | AR161: 67 | AS161: 50130 | AT161: 16472135.93 | AU161: 6588854.371 | AV161: 9883281.557 | AX161: 50130 | AY161: 0.01064375173 | BC161: =VLOOKUP($BF161,RD!$B:$F,5,FALSE)/100 -> -0.004531866122 | BD161: =VLOOKUP($BF161,RD!$B:$F,4,FALSE)/100 -> 0.02071422469 | BE161: =(VLOOKUP($BF161,RD!$B:$F,3,FALSE)/100)/12 -> 0.005534471853 | BF161: 85 | BH161: 67 | BI161: 1.647213593 | BJ161: -0.3040842277 | BK161: 2.717404434
F162: -273884.3522 | G162: -128978.276 | I162: 68 | J162: 50160 | K162: 16242319.15 | L162: 9901526.61 | M162: 0 | P162: -18245.05366 | Q162: -164330.6113 | R162: 9718950.945 | S162: 6570609.317 | T162: 44067.57671 | W162: 18245.05366 | X162: -109553.7409 | Y162: 6523368.207 | AA162: 68 | AB162: 50160 | AC162: 1 | AD162: 0.40162788 | AE162: 0.59837212 | AG162: 68 | AH162: 50160 | AI162: 1 | AJ162: 0.4 | AK162: 0.6 | AR162: 68 | AS162: 50160 | AT162: 16242319.15 | AU162: 6496927.661 | AV162: 9745391.491 | AX162: 50160 | AY162: -0.06094874166 | BC162: =VLOOKUP($BF162,RD!$B:$F,5,FALSE)/100 -> 0.006706771713 | BD162: =VLOOKUP($BF162,RD!$B:$F,4,FALSE)/100 -> -0.1063591802 | BE162: =(VLOOKUP($BF162,RD!$B:$F,3,FALSE)/100)/12 -> 0.007889546351 | BF162: 133 | BH162: 68 | BI162: 1.624231915 | BJ162: 0.4406757671 | BK162: 2.738843522
F163: -273526.0201 | G163: -128978.276 | I163: 68 | J163: 50191 | K163: 16148736.6 | L163: 9718950.945 | M163: 0 | P163: 26440.54603 | Q163: -164115.6121 | R163: 9581275.879 | S163: 6523368.207 | T163: 179943.471 | W163: -26440.54603 | X163: -109410.4081 | Y163: 6567460.724 | AA163: 68 | AB163: 50191 | AC163: 1 | AD163: 0.4066857294 | AE163: 0.5933142706 | AG163: 68 | AH163: 50191 | AI163: 1 | AJ163: 0.4 | AK163: 0.6 | AR163: 68 | AS163: 50191 | AT163: 16148736.6 | AU163: 6459494.641 | AV163: 9689241.962 | AX163: 50191 | AY163: 0.09676939778 | BC163: =VLOOKUP($BF163,RD!$B:$F,5,FALSE)/100 -> 0.02758444185 | BD163: =VLOOKUP($BF163,RD!$B:$F,4,FALSE)/100 -> 0.1441920466 | BE163: =(VLOOKUP($BF163,RD!$B:$F,3,FALSE)/100)/12 -> -0.001308333333 | BF163: 244 | BH163: 68 | BI163: 1.61487366 | BJ163: 1.79943471 | BK163: 2.735260201
F164: -276644.2168 | G164: -128978.276 | I164: 68 | J164: 50221 | K164: 15905438.98 | L164: 9581275.879 | M164: 0 | P164: 107966.0826 | Q164: -165986.5301 | R164: 9523255.432 | S164: 6567460.724 | T164: 33346.5971 | W164: -107966.0826 | X164: -110657.6867 | Y164: 6382183.552 | AA164: 68 | AB164: 50221 | AC164: 1 | AD164: 0.4012579318 | AE164: 0.5987420682 | AG164: 68 | AH164: 50221 | AI164: 1 | AJ164: 0.4 | AK164: 0.6 | AR164: 68 | AS164: 50221 | AT164: 15905438.98 | AU164: 6362175.593 | AV164: 9543263.39 | AX164: 50221 | AY164: -0.0004258119404 | BC164: =VLOOKUP($BF164,RD!$B:$F,5,FALSE)/100 -> 0.005077548006 | BD164: =VLOOKUP($BF164,RD!$B:$F,4,FALSE)/100 -> -0.004113989117 | BE164: =(VLOOKUP($BF164,RD!$B:$F,3,FALSE)/100)/12 -> 0.0114 | BF164: 265 | BH164: 68 | BI164: 1.590543898 | BJ164: 0.333465971 | BK164: 2.766442168
F165: -277789.0444 | G165: -128978.276 | I165: 68 | J165: 50252 | K165: 15654197.8 | L165: 9523255.432 | M165: 0 | P165: 20007.95826 | Q165: -166673.4266 | R165: 9376589.963 | S165: 6382183.552 | T165: 26547.85868 | W165: -20007.95826 | X165: -111115.6177 | Y165: 6277607.834 | AA165: 68 | AB165: 50252 | AC165: 1 | AD165: 0.4010175363 | AE165: 0.5989824637 | AG165: 68 | AH165: 50252 | AI165: 1 | AJ165: 0.4 | AK165: 0.6 | AR165: 68 | AS165: 50252 | AT165: 15654197.8 | AU165: 6261679.119 | AV165: 9392518.679 | AX165: 50252 | AY165: 0.04355967272 | BC165: =VLOOKUP($BF165,RD!$B:$F,5,FALSE)/100 -> 0.004159682727 | BD165: =VLOOKUP($BF165,RD!$B:$F,4,FALSE)/100 -> 0.06993788557 | BE165: =(VLOOKUP($BF165,RD!$B:$F,3,FALSE)/100)/12 -> 0.004138266796 | BF165: 76 | BH165: 68 | BI165: 1.56541978 | BJ165: 0.2654785868 | BK165: 2.777890444
F166: -278312.2137 | G166: -128978.276 | I166: 68 | J166: 50283 | K166: 15406203.91 | L166: 9376589.963 | M166: 0 | P166: 15928.71521 | Q166: -166987.3282 | R166: 9225531.35 | S166: 6277607.834 | T166: 30318.32463 | W166: -15928.71521 | X166: -111324.8855 | Y166: 6180672.558 | AA166: 68 | AB166: 50283 | AC166: 1 | AD166: 0.4011807578 | AE166: 0.5988192422 | AG166: 68 | AH166: 50283 | AI166: 1 | AJ166: 0.4 | AK166: 0.6 | AR166: 68 | AS166: 50283 | AT166: 15406203.91 | AU166: 6162481.563 | AV166: 9243722.345 | AX166: 50283 | AY166: -0.033738544 | BC166: =VLOOKUP($BF166,RD!$B:$F,5,FALSE)/100 -> 0.00482959838 | BD166: =VLOOKUP($BF166,RD!$B:$F,4,FALSE)/100 -> -0.05957738733 | BE166: =(VLOOKUP($BF166,RD!$B:$F,3,FALSE)/100)/12 -> 0.001883333333 | BF166: 242 | BH166: 68 | BI166: 1.540620391 | BJ166: 0.3031832463 | BK166: 2.783122137
F167: -279190.6252 | G167: -128978.276 | I167: 68 | J167: 50313 | K167: 15396581.68 | L167: 9225531.35 | M167: 0 | P167: 18190.99478 | Q167: -167514.3751 | R167: 9076207.97 | S167: 6180672.558 | T167: 269568.396 | W167: -18190.99478 | X167: -111676.2501 | Y167: 6320373.709 | AA167: 68 | AB167: 50313 | AC167: 1 | AD167: 0.4105049966 | AE167: 0.5894950034 | AG167: 68 | AH167: 50313 | AI167: 1 | AJ167: 0.4 | AK167: 0.6 | AR167: 68 | AS167: 50313 | AT167: 15396581.68 | AU167: 6158632.672 | AV167: 9237949.008 | AX167: 50313 | AY167: 0.01930856002 | BC167: =VLOOKUP($BF167,RD!$B:$F,5,FALSE)/100 -> 0.04361473504 | BD167: =VLOOKUP($BF167,RD!$B:$F,4,FALSE)/100 -> 0.002382536495 | BE167: =(VLOOKUP($BF167,RD!$B:$F,3,FALSE)/100)/12 -> 0.003156208781 | BF167: 202 | BH167: 68 | BI167: 1.539658168 | BJ167: 2.69568396 | BK167: 2.791906252
F168: -281304.0911 | G168: -128978.276 | I168: 68 | J168: 50344 | K168: 15147063.57 | L168: 9076207.97 | M168: 0 | P168: 161741.0376 | Q168: -168782.4547 | R168: 9069166.553 | S168: 6320373.709 | T168: 31785.985 | W168: -161741.0376 | X168: -112521.6364 | Y168: 6077897.02 | AA168: 68 | AB168: 50344 | AC168: 1 | AD168: 0.4012590949 | AE168: 0.5987409051 | AG168: 68 | AH168: 50344 | AI168: 1 | AJ168: 0.4 | AK168: 0.6 | AR168: 68 | AS168: 50344 | AT168: 15147063.57 | AU168: 6058825.429 | AV168: 9088238.144 | AX168: 50344 | AY168: 0.0008450167919 | BC168: =VLOOKUP($BF168,RD!$B:$F,5,FALSE)/100 -> 0.005029130628 | BD168: =VLOOKUP($BF168,RD!$B:$F,4,FALSE)/100 -> -0.001959057085 | BE168: =(VLOOKUP($BF168,RD!$B:$F,3,FALSE)/100)/12 -> 0.007569974555 | BF168: 130 | BH168: 68 | BI168: 1.514706357 | BJ168: 0.31785985 | BK168: 2.813040911
F169: -282380.5098 | G169: -128978.276 | I169: 68 | J169: 50374 | K169: 14900781.03 | L169: 9069166.553 | M169: 0 | P169: 19071.591 | Q169: -169428.3059 | R169: 8918809.838 | S169: 6077897.02 | T169: 36097.96233 | W169: -19071.591 | X169: -112952.2039 | Y169: 5981971.188 | AA169: 68 | AB169: 50374 | AC169: 1 | AD169: 0.401453533 | AE169: 0.598546467 | AG169: 68 | AH169: 50374 | AI169: 1 | AJ169: 0.4 | AK169: 0.6 | AR169: 68 | AS169: 50374 | AT169: 14900781.03 | AU169: 5960312.41 | AV169: 8940468.615 | AX169: 50374 | AY169: 0.05520796529 | BC169: =VLOOKUP($BF169,RD!$B:$F,5,FALSE)/100 -> 0.005939219142 | BD169: =VLOOKUP($BF169,RD!$B:$F,4,FALSE)/100 -> 0.08825320622 | BE169: =(VLOOKUP($BF169,RD!$B:$F,3,FALSE)/100)/12 -> 0.003826530612 | BF169: 65 | BH169: 68 | BI169: 1.490078103 | BJ169: 0.3609796233 | BK169: 2.823805098
F170: -282912.3264 | G170: -128978.276 | I170: 68 | J170: 50405 | K170: 14734480.79 | L170: 8918809.838 | M170: 0 | P170: 21658.7774 | Q170: -169747.3959 | R170: 8770721.22 | S170: 5981971.188 | T170: 116612.0949 | W170: -21658.7774 | X170: -113164.9306 | Y170: 5963759.575 | AA170: 68 | AB170: 50405 | AC170: 1 | AD170: 0.404748539 | AE170: 0.595251461 | AG170: 68 | AH170: 50405 | AI170: 1 | AJ170: 0.4 | AK170: 0.6 | AR170: 68 | AS170: 50405 | AT170: 14734480.79 | AU170: 5893792.318 | AV170: 8840688.477 | AX170: 50405 | AY170: 0.03083027297 | BC170: =VLOOKUP($BF170,RD!$B:$F,5,FALSE)/100 -> 0.01949392454 | BD170: =VLOOKUP($BF170,RD!$B:$F,4,FALSE)/100 -> 0.03853856226 | BE170: =(VLOOKUP($BF170,RD!$B:$F,3,FALSE)/100)/12 -> 0.001883333333 | BF170: 209 | BH170: 68 | BI170: 1.473448079 | BJ170: 1.166120949 | BK170: 2.829123264
F171: -285266.2512 | G171: -128978.276 | I171: 68 | J171: 50436 | K171: 14454797.92 | L171: 8770721.22 | M171: 0 | P171: 69967.25696 | Q171: -171159.7507 | R171: 8669528.726 | S171: 5963759.575 | T171: 5583.376561 | W171: -69967.25696 | X171: -114106.5005 | Y171: 5785269.194 | AA171: 68 | AB171: 50436 | AC171: 1 | AD171: 0.4002317588 | AE171: 0.5997682412 | AG171: 68 | AH171: 50436 | AI171: 1 | AJ171: 0.4 | AK171: 0.6 | AR171: 68 | AS171: 50436 | AT171: 14454797.92 | AU171: 5781919.168 | AV171: 8672878.752 | AX171: 50436 | AY171: 0.006235519717 | BC171: =VLOOKUP($BF171,RD!$B:$F,5,FALSE)/100 -> 0.0009362175808 | BD171: =VLOOKUP($BF171,RD!$B:$F,4,FALSE)/100 -> 0.009771800681 | BE171: =(VLOOKUP($BF171,RD!$B:$F,3,FALSE)/100)/12 -> 0.008320332813 | BF171: 127 | BH171: 68 | BI171: 1.445479792 | BJ171: 0.05583376561 | BK171: 2.852662512
F172: -286583.7459 | G172: -128978.276 | I172: 68 | J172: 50464 | K172: 14204708.72 | L172: 8669528.726 | M172: 0 | P172: 3350.025937 | Q172: -171950.2475 | R172: 8500928.504 | S172: 5785269.194 | T172: 36494.55054 | W172: -3350.025937 | X172: -114633.4984 | Y172: 5703780.22 | AA172: 68 | AB172: 50464 | AC172: 1 | AD172: 0.4015415121 | AE172: 0.5984584879 | AG172: 68 | AH172: 50464 | AI172: 1 | AJ172: 0.4 | AK172: 0.6 | AR172: 68 | AS172: 50464 | AT172: 14204708.72 | AU172: 5681883.49 | AV172: 8522825.235 | AX172: 50464 | AY172: -0.0415360349 | BC172: =VLOOKUP($BF172,RD!$B:$F,5,FALSE)/100 -> 0.006308185379 | BD172: =VLOOKUP($BF172,RD!$B:$F,4,FALSE)/100 -> -0.07363757735 | BE172: =(VLOOKUP($BF172,RD!$B:$F,3,FALSE)/100)/12 -> 0.004618473896 | BF172: 4 | BH172: 68 | BI172: 1.420470872 | BJ172: 0.3649455054 | BK172: 2.865837459
F173: -287708.6217 | G173: -128978.276 | I173: 68 | J173: 50495 | K173: 14018862.08 | L173: 8500928.504 | M173: 0 | P173: 21896.73033 | Q173: -172625.173 | R173: 8350200.062 | S173: 5703780.22 | T173: 101861.9786 | W173: -21896.73033 | X173: -115083.4487 | Y173: 5668662.02 | AA173: 68 | AB173: 50495 | AC173: 1 | AD173: 0.4043596397 | AE173: 0.5956403603 | AG173: 68 | AH173: 50495 | AI173: 1 | AJ173: 0.4 | AK173: 0.6 | AR173: 68 | AS173: 50495 | AT173: 14018862.08 | AU173: 5607544.832 | AV173: 8411317.249 | AX173: 50495 | AY173: 0.03784938335 | BC173: =VLOOKUP($BF173,RD!$B:$F,5,FALSE)/100 -> 0.01785867875 | BD173: =VLOOKUP($BF173,RD!$B:$F,4,FALSE)/100 -> 0.0514203813 | BE173: =(VLOOKUP($BF173,RD!$B:$F,3,FALSE)/100)/12 -> 0.003925120773 | BF173: 43 | BH173: 68 | BI173: 1.401886208 | BJ173: 1.018619786 | BK173: 2.877086217
F174: -287806.9222 | G174: -128978.276 | I174: 69 | J174: 50525 | K174: 13741108.57 | L174: 8350200.062 | M174: 0 | P174: 61117.18715 | Q174: -172684.1533 | R174: 8238633.095 | S174: 5668662.02 | T174: 10053.40962 | W174: -61117.18715 | X174: -115122.7689 | Y174: 5502475.473 | AA174: 69 | AB174: 50525 | AC174: 1 | AD174: 0.4004389781 | AE174: 0.5995610219 | AG174: 69 | AH174: 50525 | AI174: 1 | AJ174: 0.4 | AK174: 0.6 | AR174: 69 | AS174: 50525 | AT174: 13741108.57 | AU174: 5496443.427 | AV174: 8244665.141 | AX174: 50525 | AY174: 0.0169941717 | BC174: =VLOOKUP($BF174,RD!$B:$F,5,FALSE)/100 -> 0.001773506621 | BD174: =VLOOKUP($BF174,RD!$B:$F,4,FALSE)/100 -> 0.02715985517 | BE174: =(VLOOKUP($BF174,RD!$B:$F,3,FALSE)/100)/12 -> 0.0003416666667 | BF174: 248 | BH174: 69 | BI174: 1.374110857 | BJ174: 0.1005340962 | BK174: 2.878069222
F175: -289070.8742 | G175: -128978.276 | I175: 69 | J175: 50556 | K175: 13455370.53 | L175: 8238633.095 | M175: 0 | P175: 6032.045774 | Q175: -173442.5245 | R175: 8071222.617 | S175: 5502475.473 | T175: 3332.831287 | W175: -6032.045774 | X175: -115628.3497 | Y175: 5384147.909 | AA175: 69 | AB175: 50556 | AC175: 1 | AD175: 0.4001486171 | AE175: 0.5998513829 | AG175: 69 | AH175: 50556 | AI175: 1 | AJ175: 0.4 | AK175: 0.6 | AR175: 69 | AS175: 50556 | AT175: 13455370.53 | AU175: 5382148.21 | AV175: 8073222.315 | AX175: 50556 | AY175: 0.03605512814 | BC175: =VLOOKUP($BF175,RD!$B:$F,5,FALSE)/100 -> 0.0006056967092 | BD175: =VLOOKUP($BF175,RD!$B:$F,4,FALSE)/100 -> 0.05970272048 | BE175: =(VLOOKUP($BF175,RD!$B:$F,3,FALSE)/100)/12 -> 0.004391666667 | BF175: 223 | BH175: 69 | BI175: 1.345537053 | BJ175: 0.03332831287 | BK175: 2.890708742
F176: -289732.3636 | G176: -128978.276 | I176: 69 | J176: 50586 | K176: 13224193.33 | L176: 8071222.617 | M176: 0 | P176: 1999.698772 | Q176: -173839.4182 | R176: 7899382.897 | S176: 5384147.909 | T176: 58555.1703 | W176: -1999.698772 | X176: -115892.9455 | Y176: 5324810.435 | AA176: 69 | AB176: 50586 | AC176: 1 | AD176: 0.4026567293 | AE176: 0.5973432707 | AG176: 69 | AH176: 50586 | AI176: 1 | AJ176: 0.4 | AK176: 0.6 | AR176: 69 | AS176: 50586 | AT176: 13224193.33 | AU176: 5289677.333 | AV176: 7934515.999 | AX176: 50586 | AY176: -0.04928992491 | BC176: =VLOOKUP($BF176,RD!$B:$F,5,FALSE)/100 -> 0.0108754758 | BD176: =VLOOKUP($BF176,RD!$B:$F,4,FALSE)/100 -> -0.08984617566 | BE176: =(VLOOKUP($BF176,RD!$B:$F,3,FALSE)/100)/12 -> 0.002288329519 | BF176: 10 | BH176: 69 | BI176: 1.322419333 | BJ176: 0.585551703 | BK176: 2.897323636
F177: -291497.5269 | G177: -128978.276 | I177: 69 | J177: 50617 | K177: 13035057.31 | L177: 7899382.897 | M177: 0 | P177: 35133.10218 | Q177: -174898.5161 | R177: 7759617.483 | S177: 5324810.435 | T177: 102361.5055 | W177: -35133.10218 | X177: -116599.0108 | Y177: 5275439.828 | AA177: 69 | AB177: 50617 | AC177: 1 | AD177: 0.4047116711 | AE177: 0.5952883289 | AG177: 69 | AH177: 50617 | AI177: 1 | AJ177: 0.4 | AK177: 0.6 | AR177: 69 | AS177: 50617 | AT177: 13035057.31 | AU177: 5214022.924 | AV177: 7821034.387 | AX177: 50617 | AY177: 0.01045201539 | BC177: =VLOOKUP($BF177,RD!$B:$F,5,FALSE)/100 -> 0.01922350228 | BD177: =VLOOKUP($BF177,RD!$B:$F,4,FALSE)/100 -> 0.004488647821 | BE177: =(VLOOKUP($BF177,RD!$B:$F,3,FALSE)/100)/12 -> 0.006092392456 | BF177: 156 | BH177: 69 | BI177: 1.303505731 | BJ177: 1.023615055 | BK177: 2.914975269
F178: -292999.7993 | G178: -128978.276 | I178: 69 | J178: 50648 | K178: 12760542.67 | L178: 7759617.483 | M178: 0 | P178: 61416.90333 | Q178: -175799.8796 | R178: 7645234.507 | S178: 5275439.828 | T178: 18485.15427 | W178: -61416.90333 | X178: -117199.9197 | Y178: 5115308.159 | AA178: 69 | AB178: 50648 | AC178: 1 | AD178: 0.4008691709 | AE178: 0.5991308291 | AG178: 69 | AH178: 50648 | AI178: 1 | AJ178: 0.4 | AK178: 0.6 | AR178: 69 | AS178: 50648 | AT178: 12760542.67 | AU178: 5104217.066 | AV178: 7656325.6 | AX178: 50648 | AY178: 0.05110170974 | BC178: =VLOOKUP($BF178,RD!$B:$F,5,FALSE)/100 -> 0.003504002486 | BD178: =VLOOKUP($BF178,RD!$B:$F,4,FALSE)/100 -> 0.08294859947 | BE178: =(VLOOKUP($BF178,RD!$B:$F,3,FALSE)/100)/12 -> 0.005153636717 | BF178: 173 | BH178: 69 | BI178: 1.276054267 | BJ178: 0.1848515427 | BK178: 2.929997993
F179: -294517.3461 | G179: -128978.276 | I179: 69 | J179: 50678 | K179: 12506063.88 | L179: 7645234.507 | M179: 0 | P179: 11091.09256 | Q179: -176710.4077 | R179: 7479615.192 | S179: 5115308.159 | T179: 40038.56407 | W179: -11091.09256 | X179: -117806.9385 | Y179: 5026448.692 | AA179: 69 | AB179: 50678 | AC179: 1 | AD179: 0.4019209192 | AE179: 0.5980790808 | AG179: 69 | AH179: 50678 | AI179: 1 | AJ179: 0.4 | AK179: 0.6 | AR179: 69 | AS179: 50678 | AT179: 12506063.88 | AU179: 5002425.554 | AV179: 7503638.33 | AX179: 50678 | AY179: 0.03857903349 | BC179: =VLOOKUP($BF179,RD!$B:$F,5,FALSE)/100 -> 0.007827204701 | BD179: =VLOOKUP($BF179,RD!$B:$F,4,FALSE)/100 -> 0.05924486798 | BE179: =(VLOOKUP($BF179,RD!$B:$F,3,FALSE)/100)/12 -> 0.005179344465 | BF179: 88 | BH179: 69 | BI179: 1.250606388 | BJ179: 0.4003856407 | BK179: 2.945173461
F180: -296217.2012 | G180: -128978.276 | I180: 69 | J180: 50709 | K180: 12259709.82 | L180: 7479615.192 | M180: 0 | P180: 24023.13844 | Q180: -177730.3207 | R180: 7325908.01 | S180: 5026448.692 | T180: 49863.14129 | W180: -24023.13844 | X180: -118486.8805 | Y180: 4933801.814 | AA180: 69 | AB180: 50709 | AC180: 1 | AD180: 0.402440342 | AE180: 0.597559658 | AG180: 69 | AH180: 50709 | AI180: 1 | AJ180: 0.4 | AK180: 0.6 | AR180: 69 | AS180: 50709 | AT180: 12259709.82 | AU180: 4903883.93 | AV180: 7355825.894 | AX180: 50709 | AY180: 0.02758012269 | BC180: =VLOOKUP($BF180,RD!$B:$F,5,FALSE)/100 -> 0.009920153242 | BD180: =VLOOKUP($BF180,RD!$B:$F,4,FALSE)/100 -> 0.03947363667 | BE180: =(VLOOKUP($BF180,RD!$B:$F,3,FALSE)/100)/12 -> 0.005771663504 | BF180: 82 | BH180: 69 | BI180: 1.225970982 | BJ180: 0.4986314129 | BK180: 2.962172012
F181: -298775.6223 | G181: -128978.276 | I181: 69 | J181: 50739 | K181: 12018471.56 | L181: 7325908.01 | M181: 0 | P181: 29917.88477 | Q181: -179265.3734 | R181: 7176560.521 | S181: 4933801.814 | T181: 57537.35607 | W181: -29917.88477 | X181: -119510.2489 | Y181: 4841911.037 | AA181: 69 | AB181: 50739 | AC181: 1 | AD181: 0.4028724463 | AE181: 0.5971275537 | AG181: 69 | AH181: 50739 | AI181: 1 | AJ181: 0.4 | AK181: 0.6 | AR181: 69 | AS181: 50739 | AT181: 12018471.56 | AU181: 4807388.623 | AV181: 7211082.935 | AX181: 50739 | AY181: 0.04219369404 | BC181: =VLOOKUP($BF181,RD!$B:$F,5,FALSE)/100 -> 0.01166187014 | BD181: =VLOOKUP($BF181,RD!$B:$F,4,FALSE)/100 -> 0.06279302915 | BE181: =(VLOOKUP($BF181,RD!$B:$F,3,FALSE)/100)/12 -> 0.008636977058 | BF181: 123 | BH181: 69 | BI181: 1.201847156 | BJ181: 0.5753735607 | BK181: 2.987756223
F182: -300323.0842 | G182: -128978.276 | I182: 69 | J182: 50770 | K182: 11756047.1 | L182: 7176560.521 | M182: 0 | P182: 34522.41364 | Q182: -180193.8505 | R182: 7030889.084 | S182: 4841911.037 | T182: 37898.62883 | W182: -34522.41364 | X182: -120129.2337 | Y182: 4725158.018 | AA182: 69 | AB182: 50770 | AC182: 1 | AD182: 0.4019342537 | AE182: 0.5980657463 | AG182: 69 | AH182: 50770 | AI182: 1 | AJ182: 0.4 | AK182: 0.6 | AR182: 69 | AS182: 50770 | AT182: 11756047.1 | AU182: 4702418.841 | AV182: 7053628.261 | AX182: 50770 | AY182: 0.03857834786 | BC182: =VLOOKUP($BF182,RD!$B:$F,5,FALSE)/100 -> 0.007827204701 | BD182: =VLOOKUP($BF182,RD!$B:$F,4,FALSE)/100 -> 0.05924486798 | BE182: =(VLOOKUP($BF182,RD!$B:$F,3,FALSE)/100)/12 -> 0.005179344465 | BF182: 88 | BH182: 69 | BI182: 1.17560471 | BJ182: 0.3789862883 | BK182: 3.003230842
F183: -300197.6709 | G183: -128978.276 | I183: 69 | J183: 50801 | K183: 11554488.53 | L183: 7030889.084 | M183: 0 | P183: 22739.1773 | Q183: -180118.6025 | R183: 6873509.659 | S183: 4725158.018 | T183: 98639.10065 | W183: -22739.1773 | X183: -120079.0684 | Y183: 4680978.873 | AA183: 69 | AB183: 50801 | AC183: 1 | AD183: 0.4051221186 | AE183: 0.5948778814 | AG183: 69 | AH183: 50801 | AI183: 1 | AJ183: 0.4 | AK183: 0.6 | AR183: 69 | AS183: 50801 | AT183: 11554488.53 | AU183: 4621795.413 | AV183: 6932693.119 | AX183: 50801 | AY183: -0.01480758807 | BC183: =VLOOKUP($BF183,RD!$B:$F,5,FALSE)/100 -> 0.020875302 | BD183: =VLOOKUP($BF183,RD!$B:$F,4,FALSE)/100 -> -0.03910825292 | BE183: =(VLOOKUP($BF183,RD!$B:$F,3,FALSE)/100)/12 -> -0.0004175946548 | BF183: 180 | BH183: 69 | BI183: 1.155448853 | BJ183: 0.9863910065 | BK183: 3.001976709
F184: -301311.1637 | G184: -128978.276 | I184: 69 | J184: 50829 | K184: 11264775.69 | L184: 6873509.659 | M184: 0 | P184: 59183.46039 | Q184: -180786.6982 | R184: 6751906.421 | S184: 4680978.873 | T184: 11598.32219 | W184: -59183.46039 | X184: -120524.4655 | Y184: 4512869.27 | AA184: 69 | AB184: 50829 | AC184: 1 | AD184: 0.4006177658 | AE184: 0.5993822342 | AG184: 69 | AH184: 50829 | AI184: 1 | AJ184: 0.4 | AK184: 0.6 | AR184: 69 | AS184: 50829 | AT184: 11264775.69 | AU184: 4505910.276 | AV184: 6758865.414 | AX184: 50829 | AY184: 0.02820380054 | BC184: =VLOOKUP($BF184,RD!$B:$F,5,FALSE)/100 -> 0.002477755722 | BD184: =VLOOKUP($BF184,RD!$B:$F,4,FALSE)/100 -> 0.0453986889 | BE184: =(VLOOKUP($BF184,RD!$B:$F,3,FALSE)/100)/12 -> 0.003709198813 | BF184: 74 | BH184: 69 | BI184: 1.126477569 | BJ184: 0.1159832219 | BK184: 3.013111637
F185: -302159.9276 | G185: -128978.276 | I185: 69 | J185: 50860 | K185: 10814253.86 | L185: 6751906.421 | M185: 0 | P185: 6958.993314 | Q185: -181295.9565 | R185: 6577569.458 | S185: 4512869.27 | T185: -148361.9007 | W185: -6958.993314 | X185: -120863.971 | Y185: 4236684.404 | AA185: 69 | AB185: 50860 | AC185: 1 | AD185: 0.3917685361 | AE185: 0.6082314639 | AG185: 69 | AH185: 50860 | AI185: 1 | AJ185: 0.4 | AK185: 0.6 | AR185: 69 | AS185: 50860 | AT185: 10814253.86 | AU185: 4325701.545 | AV185: 6488552.317 | AX185: 50860 | AY185: -0.03979988355 | BC185: =VLOOKUP($BF185,RD!$B:$F,5,FALSE)/100 -> -0.03287529327 | BD185: =VLOOKUP($BF185,RD!$B:$F,4,FALSE)/100 -> -0.04426008785 | BE185: =(VLOOKUP($BF185,RD!$B:$F,3,FALSE)/100)/12 -> 0.002816901408 | BF185: 203 | BH185: 69 | BI185: 1.081425386 | BJ185: -1.483619007 | BK185: 3.021599276
F186: -303129.3573 | G186: -128978.276 | I186: 70 | J186: 50890 | K186: 10579088.65 | L186: 6577569.458 | M186: 0 | P186: -89017.14044 | Q186: -181877.6144 | R186: 6306674.703 | S186: 4236684.404 | T186: 67964.14712 | W186: 89017.14044 | X186: -121251.7429 | Y186: 4272413.949 | AA186: 70 | AB186: 50890 | AC186: 1 | AD186: 0.4038546315 | AE186: 0.5961453685 | AG186: 70 | AH186: 50890 | AI186: 1 | AJ186: 0.4 | AK186: 0.6 | AR186: 70 | AS186: 50890 | AT186: 10579088.65 | AU186: 4231635.461 | AV186: 6347453.191 | AX186: 50890 | AY186: 0.02991744146 | BC186: =VLOOKUP($BF186,RD!$B:$F,5,FALSE)/100 -> 0.01604182437 | BD186: =VLOOKUP($BF186,RD!$B:$F,4,FALSE)/100 -> 0.03931738403 | BE186: =(VLOOKUP($BF186,RD!$B:$F,3,FALSE)/100)/12 -> 0.003208333333 | BF186: 206 | BH186: 70 | BI186: 1.057908865 | BJ186: 0.6796414712 | BK186: 3.031293573
F187: -304829.3719 | G187: -128978.276 | I187: 70 | J187: 50921 | K187: 10270770.26 | L187: 6306674.703 | M187: 0 | P187: 40778.48827 | Q187: -182897.6231 | R187: 6164555.568 | S187: 4272413.949 | T187: -3489.017068 | W187: -40778.48827 | X187: -121931.7488 | Y187: 4106214.695 | AA187: 70 | AB187: 50921 | AC187: 1 | AD187: 0.3997961779 | AE187: 0.6002038221 | AG187: 70 | AH187: 50921 | AI187: 1 | AJ187: 0.4 | AK187: 0.6 | AR187: 70 | AS187: 50921 | AT187: 10270770.26 | AU187: 4108308.105 | AV187: 6162462.158 | AX187: 50921 | AY187: 0.03368053855 | BC187: =VLOOKUP($BF187,RD!$B:$F,5,FALSE)/100 -> -0.0008166383478 | BD187: =VLOOKUP($BF187,RD!$B:$F,4,FALSE)/100 -> 0.05665913176 | BE187: =(VLOOKUP($BF187,RD!$B:$F,3,FALSE)/100)/12 -> 0.00560821485 | BF187: 83 | BH187: 70 | BI187: 1.027077026 | BJ187: -0.03489017068 | BK187: 3.048293719
F188: -305251.106 | G188: -128978.276 | I188: 70 | J188: 50951 | K188: 10056194.87 | L188: 6164555.568 | M188: 0 | P188: -2093.410241 | Q188: -183150.6636 | R188: 5979311.494 | S188: 4106214.695 | T188: 90675.71391 | W188: 2093.410241 | X188: -122100.4424 | Y188: 4076883.377 | AA188: 70 | AB188: 50951 | AC188: 1 | AD188: 0.4054101406 | AE188: 0.5945898594 | AG188: 70 | AH188: 50951 | AI188: 1 | AJ188: 0.4 | AK188: 0.6 | AR188: 70 | AS188: 50951 | AT188: 10056194.87 | AU188: 4022477.948 | AV188: 6033716.923 | AX188: 50951 | AY188: 0.0365339669 | BC188: =VLOOKUP($BF188,RD!$B:$F,5,FALSE)/100 -> 0.0220825555 | BD188: =VLOOKUP($BF188,RD!$B:$F,4,FALSE)/100 -> 0.04638739551 | BE188: =(VLOOKUP($BF188,RD!$B:$F,3,FALSE)/100)/12 -> 0.001383508578 | BF188: 178 | BH188: 70 | BI188: 1.005619487 | BJ188: 0.9067571391 | BK188: 3.05251106
F189: -306385.2661 | G189: -128978.276 | I189: 70 | J189: 50982 | K189: 9931864.92 | L189: 5979311.494 | M189: 0 | P189: 54405.42834 | Q189: -183831.1597 | R189: 5849885.763 | S189: 4076883.377 | T189: 182055.3155 | W189: -54405.42834 | X189: -122554.1064 | Y189: 4081979.157 | AA189: 70 | AB189: 50982 | AC189: 1 | AD189: 0.4109982556 | AE189: 0.5890017444 | AG189: 70 | AH189: 50982 | AI189: 1 | AJ189: 0.4 | AK189: 0.6 | AR189: 70 | AS189: 50982 | AT189: 9931864.92 | AU189: 3972745.968 | AV189: 5959118.952 | AX189: 50982 | AY189: 0.0227960982 | BC189: =VLOOKUP($BF189,RD!$B:$F,5,FALSE)/100 -> 0.04465551222 | BD189: =VLOOKUP($BF189,RD!$B:$F,4,FALSE)/100 -> 0.007542864881 | BE189: =(VLOOKUP($BF189,RD!$B:$F,3,FALSE)/100)/12 -> 0.003715498938 | BF189: 90 | BH189: 70 | BI189: 0.993186492 | BJ189: 1.820553155 | BK189: 3.063852661
F190: -309031.5086 | G190: -128978.276 | I190: 70 | J190: 51013 | K190: 9670436.923 | L190: 5849885.763 | M190: 0 | P190: 109233.1893 | Q190: -185418.9052 | R190: 5773700.047 | S190: 4081979.157 | T190: 47603.51086 | W190: -109233.1893 | X190: -123612.6035 | Y190: 3896736.876 | AA190: 70 | AB190: 51013 | AC190: 1 | AD190: 0.4029535487 | AE190: 0.5970464513 | AG190: 70 | AH190: 51013 | AI190: 1 | AJ190: 0.4 | AK190: 0.6 | AR190: 70 | AS190: 51013 | AT190: 9670436.923 | AU190: 3868174.769 | AV190: 5802262.154 | AX190: 51013 | AY190: 0.04218954718 | BC190: =VLOOKUP($BF190,RD!$B:$F,5,FALSE)/100 -> 0.01166187014 | BD190: =VLOOKUP($BF190,RD!$B:$F,4,FALSE)/100 -> 0.06279302915 | BE190: =(VLOOKUP($BF190,RD!$B:$F,3,FALSE)/100)/12 -> 0.008636977058 | BF190: 123 | BH190: 70 | BI190: 0.9670436923 | BJ190: 0.4760351086 | BK190: 3.090315086
F191: -310495.2458 | G191: -128978.276 | I191: 70 | J191: 51043 | K191: 9309835.97 | L191: 5773700.047 | M191: 0 | P191: 28562.10652 | Q191: -186297.1475 | R191: 5615965.006 | S191: 3896736.876 | T191: -50105.70637 | W191: -28562.10652 | X191: -124198.0983 | Y191: 3693870.964 | AA191: 70 | AB191: 51043 | AC191: 1 | AD191: 0.3967707891 | AE191: 0.6032292109 | AG191: 70 | AH191: 51043 | AI191: 1 | AJ191: 0.4 | AK191: 0.6 | AR191: 70 | AS191: 51043 | AT191: 9309835.97 | AU191: 3723934.388 | AV191: 5585901.582 | AX191: 51043 | AY191: -0.007411580216 | BC191: =VLOOKUP($BF191,RD!$B:$F,5,FALSE)/100 -> -0.0128583756 | BD191: =VLOOKUP($BF191,RD!$B:$F,4,FALSE)/100 -> -0.003828979666 | BE191: =(VLOOKUP($BF191,RD!$B:$F,3,FALSE)/100)/12 -> 0.004736530491 | BF191: 98 | BH191: 70 | BI191: 0.930983597 | BJ191: -0.5010570637 | BK191: 3.104952458
F192: -310393.6173 | G192: -128978.276 | I192: 70 | J192: 51074 | K192: 8995717.429 | L192: 5615965.006 | M192: 0 | P192: -30063.42382 | Q192: -186236.1704 | R192: 5399665.412 | S192: 3693870.964 | T192: -3724.924023 | W192: 30063.42382 | X192: -124157.4469 | Y192: 3596052.017 | AA192: 70 | AB192: 51074 | AC192: 1 | AD192: 0.3997515535 | AE192: 0.6002484465 | AG192: 70 | AH192: 51074 | AI192: 1 | AJ192: 0.4 | AK192: 0.6 | AR192: 70 | AS192: 51074 | AT192: 8995717.429 | AU192: 3598286.972 | AV192: 5397430.457 | AX192: 51074 | AY192: -0.005459349304 | BC192: =VLOOKUP($BF192,RD!$B:$F,5,FALSE)/100 -> -0.001008406644 | BD192: =VLOOKUP($BF192,RD!$B:$F,4,FALSE)/100 -> -0.008423573956 | BE192: =(VLOOKUP($BF192,RD!$B:$F,3,FALSE)/100)/12 -> -0.0003273108143 | BF192: 114 | BH192: 70 | BI192: 0.8995717429 | BJ192: -0.03724924023 | BK192: 3.103936173
F193: -312073.8371 | G193: -128978.276 | I193: 70 | J193: 51104 | K193: 8677905.789 | L193: 5399665.412 | M193: 0 | P193: -2234.954414 | Q193: -187244.3022 | R193: 5210186.155 | S193: 3596052.017 | T193: -5737.803469 | W193: 2234.954414 | X193: -124829.5348 | Y193: 3467719.633 | AA193: 70 | AB193: 51104 | AC193: 1 | AD193: 0.3996032819 | AE193: 0.6003967181 | AG193: 70 | AH193: 51104 | AI193: 1 | AJ193: 0.4 | AK193: 0.6 | AR193: 70 | AS193: 51104 | AT193: 8677905.789 | AU193: 3471162.315 | AV193: 5206743.473 | AX193: 51104 | AY193: -0.0158626648 | BC193: =VLOOKUP($BF193,RD!$B:$F,5,FALSE)/100 -> -0.001595584113 | BD193: =VLOOKUP($BF193,RD!$B:$F,4,FALSE)/100 -> -0.02535834007 | BE193: =(VLOOKUP($BF193,RD!$B:$F,3,FALSE)/100)/12 -> 0.005413190306 | BF193: 49 | BH193: 70 | BI193: 0.8677905789 | BJ193: -0.05737803469 | BK193: 3.120738371
F194: -313875.0222 | G194: -128978.276 | I194: 70 | J194: 51135 | K194: 8398431.076 | L194: 5210186.155 | M194: 0 | P194: -3442.682081 | Q194: -188325.0133 | R194: 5018418.46 | S194: 3467719.633 | T194: 34400.31016 | W194: 3442.682081 | X194: -125550.0089 | Y194: 3380012.617 | AA194: 70 | AB194: 51135 | AC194: 1 | AD194: 0.402457624 | AE194: 0.597542376 | AG194: 70 | AH194: 51135 | AI194: 1 | AJ194: 0.4 | AK194: 0.6 | AR194: 70 | AS194: 51135 | AT194: 8398431.076 | AU194: 3359372.431 | AV194: 5039058.646 | AX194: 51135 | AY194: 0.02757961195 | BC194: =VLOOKUP($BF194,RD!$B:$F,5,FALSE)/100 -> 0.009920153242 | BD194: =VLOOKUP($BF194,RD!$B:$F,4,FALSE)/100 -> 0.03947363667 | BE194: =(VLOOKUP($BF194,RD!$B:$F,3,FALSE)/100)/12 -> 0.005771663504 | BF194: 82 | BH194: 70 | BI194: 0.8398431076 | BJ194: 0.3440031016 | BK194: 3.138750222
F195: -315058.563 | G195: -128978.276 | I195: 70 | J195: 51166 | K195: 8146845.556 | L195: 5018418.46 | M195: 0 | P195: 20640.1861 | Q195: -189035.1378 | R195: 4850023.508 | S195: 3380012.617 | T195: 63473.04209 | W195: -20640.1861 | X195: -126023.4252 | Y195: 3296822.047 | AA195: 70 | AB195: 51166 | AC195: 1 | AD195: 0.4046746713 | AE195: 0.5953253287 | AG195: 70 | AH195: 51166 | AI195: 1 | AJ195: 0.4 | AK195: 0.6 | AR195: 70 | AS195: 51166 | AT195: 8146845.556 | AU195: 3258738.222 | AV195: 4888107.333 | AX195: 51166 | AY195: -0.0775827465 | BC195: =VLOOKUP($BF195,RD!$B:$F,5,FALSE)/100 -> 0.01877893644 | BD195: =VLOOKUP($BF195,RD!$B:$F,4,FALSE)/100 -> -0.1430849694 | BE195: =(VLOOKUP($BF195,RD!$B:$F,3,FALSE)/100)/12 -> 0.003770739065 | BF195: 21 | BH195: 70 | BI195: 0.8146845556 | BJ195: 0.6347304209 | BK195: 3.15058563
F196: -316825.4792 | G196: -128978.276 | I196: 70 | J196: 51195 | K196: 7827327.765 | L196: 4850023.508 | M196: 0 | P196: 38083.82525 | Q196: -190095.2875 | R196: 4698012.046 | S196: 3296822.047 | T196: -2692.31131 | W196: -38083.82525 | X196: -126730.1917 | Y196: 3129315.719 | AA196: 70 | AB196: 51195 | AC196: 1 | AD196: 0.3997936222 | AE196: 0.6002063778 | AG196: 70 | AH196: 51195 | AI196: 1 | AJ196: 0.4 | AK196: 0.6 | AR196: 70 | AS196: 51195 | AT196: 7827327.765 | AU196: 3130931.106 | AV196: 4696396.659 | AX196: 51195 | AY196: 0.03368068544 | BC196: =VLOOKUP($BF196,RD!$B:$F,5,FALSE)/100 -> -0.0008166383478 | BD196: =VLOOKUP($BF196,RD!$B:$F,4,FALSE)/100 -> 0.05665913176 | BE196: =(VLOOKUP($BF196,RD!$B:$F,3,FALSE)/100)/12 -> 0.00560821485 | BF196: 83 | BH196: 70 | BI196: 0.7827327765 | BJ196: -0.0269231131 | BK196: 3.168254792
F197: -319461.5726 | G197: -128978.276 | I197: 70 | J197: 51226 | K197: 7510795.913 | L197: 4698012.046 | M197: 0 | P197: -1615.386786 | Q197: -191676.9436 | R197: 4504719.715 | S197: 3129315.719 | T197: 2929.720392 | W197: 1615.386786 | X197: -127784.629 | Y197: 3006076.197 | AA197: 70 | AB197: 51226 | AC197: 1 | AD197: 0.4002340407 | AE197: 0.5997659593 | AG197: 70 | AH197: 51226 | AI197: 1 | AJ197: 0.4 | AK197: 0.6 | AR197: 70 | AS197: 51226 | AT197: 7510795.913 | AU197: 3004318.365 | AV197: 4506477.548 | AX197: 51226 | AY197: 0.006235499554 | BC197: =VLOOKUP($BF197,RD!$B:$F,5,FALSE)/100 -> 0.0009362175808 | BD197: =VLOOKUP($BF197,RD!$B:$F,4,FALSE)/100 -> 0.009771800681 | BE197: =(VLOOKUP($BF197,RD!$B:$F,3,FALSE)/100)/12 -> 0.008320332813 | BF197: 127 | BH197: 70 | BI197: 0.7510795913 | BJ197: 0.02929720392 | BK197: 3.194615726
F198: -320398.6599 | G198: -128978.276 | I198: 71 | J198: 51256 | K198: 7265295.938 | L198: 4504719.715 | M198: 0 | P198: 1757.832235 | Q198: -192239.1959 | R198: 4314238.352 | S198: 3006076.197 | T198: 74898.68537 | W198: -1757.832235 | X198: -128159.4639 | Y198: 2951057.587 | AA198: 71 | AB198: 51256 | AC198: 1 | AD198: 0.4061854619 | AE198: 0.5938145381 | AG198: =AA198 -> 71 | AH198: 51256 | AI198: =AJ198+AK198 -> 1 | AJ198: =VLOOKUP($AG198,$AM:$AP,3,FALSE) -> 0.4 | AK198: =VLOOKUP($AG198,$AM:$AP,4,FALSE) -> 0.6 | AR198: 71 | AS198: 51256 | AT198: =AU198+AV198 -> 7265295.938 | AU198: 2906118.375 | AV198: 4359177.563 | AX198: 51256 | AY198: 0.002487811509 | BC198: =VLOOKUP($BF198,RD!$B:$F,5,FALSE)/100 -> 0.02491576409 | BD198: =VLOOKUP($BF198,RD!$B:$F,4,FALSE)/100 -> -0.01285352437 | BE198: =(VLOOKUP($BF198,RD!$B:$F,3,FALSE)/100)/12 -> 0.002933333333 | BF198: 241 | BH198: 71 | BI198: 0.7265295938 | BJ198: 0.7489868537 | BK198: 3.203986599
F199: -320772.6661 | G199: -128978.276 | I199: 71 | J199: 51287 | K199: =R199+Y199 -> 6952780.817 | L199: 4314238.352 | M199: =L199*BA199 -> 0 | P199: 44939.21122 | Q199: =F199*AK199 -> -192463.5997 | R199: =L199+M199+N199+O199+Q199+P199 -> 4166713.963 | S199: 2951057.587 | T199: =S199*BC199 -> 8257.544924 | W199: -44939.21122 | X199: =F199*AJ199 -> -128309.0664 | Y199: =S199+T199+U199+V199+X199+W199 -> 2786066.854 | AA199: =I199 -> 71 | AB199: 51287 | AC199: =AD199+AE199 -> 1 | AD199: =Y199/K199 -> 0.4007125965 | AE199: =R199/K199 -> 0.5992874035 | AG199: 71 | AH199: 51287 | AI199: 1 | AJ199: 0.4 | AK199: 0.6 | AR199: =AG199 -> 71 | AS199: 51287 | AT199: 6952780.817 | AU199: =AJ199*K199 -> 2781112.327 | AV199: =AK199*K199 -> 4171668.49 | AX199: 51287 | AY199: =(((BC199*Y199)+(BD199*R199))/(R199+Y199)) -> 0.05697749105 | BC199: =VLOOKUP($BF199,RD!$B:$F,5,FALSE)/100 -> 0.002798164618 | BD199: =VLOOKUP($BF199,RD!$B:$F,4,FALSE)/100 -> 0.09320441396 | BE199: =(VLOOKUP($BF199,RD!$B:$F,3,FALSE)/100)/12 -> 0.001167315175 | BF199: =RANDBETWEEN(1,270) -> 117 | BH199: =I199 -> 71 | BI199: =(K199)/10000000 -> 0.6952780817 | BJ199: 0.08257544924 | BK199: =-F199/100000 -> 3.207726661
F200: =F199*(1+(BE200)) -> -322544.6111 | G200: =G199*(1+(BB200)) -> -128978.276 | I200: =IF(MONTH(J200)=MONTH($J$6),I199+1,I199) -> 71 | J200: =EOMONTH(J199,1) -> 51317 | K200: 6632832.747 | L200: =R199 -> 4166713.963 | M200: 0 | P200: =AV199-R199 -> 4954.526954 | Q200: -193526.7666 | R200: 3978141.724 | S200: =Y199 -> 2786066.854 | T200: 2596.540563 | W200: =AU199-Y199 -> -4954.526954 | X200: -129017.8444 | Y200: 2654691.023 | AA200: 71 | AB200: 51317 | AC200: 1 | AD200: 0.4002348807 | AE200: 0.5997651193 | AG200: 71 | AH200: 51317 | AI200: 1 | AJ200: 0.4 | AK200: 0.6 | AR200: 71 | AS200: 51317 | AT200: 6632832.747 | AU200: 2653133.099 | AV200: 3979699.648 | AX200: =EOMONTH(AX199,1) -> 51317 | AY200: -0.04869598239 | BC200: =VLOOKUP($BF200,RD!$B:$F,5,FALSE)/100 -> 0.0009319735308 | BD200: =VLOOKUP($BF200,RD!$B:$F,4,FALSE)/100 -> -0.0818136786 | BE200: =(VLOOKUP($BF200,RD!$B:$F,3,FALSE)/100)/12 -> 0.005523989899 | BF200: 86 | BH200: 71 | BI200: 0.6632832747 | BJ200: 0.02596540563 | BK200: 3.225446111
F201: -324049.6776 | G201: -128978.276 | I201: 71 | J201: 51348 | K201: 6350990.9 | L201: 3978141.724 | M201: 0 | P201: 1557.924338 | Q201: -194429.8066 | R201: 3785269.841 | S201: 2654691.023 | T201: 42207.83088 | W201: -1557.924338 | X201: -129619.871 | Y201: 2565721.059 | AA201: 71 | AB201: 51348 | AC201: 1 | AD201: 0.4039875193 | AE201: 0.5960124807 | AG201: 71 | AH201: 51348 | AI201: 1 | AJ201: 0.4 | AK201: 0.6 | AR201: 71 | AS201: 51348 | AT201: 6350990.9 | AU201: 2540396.36 | AV201: 3810594.54 | AX201: 51348 | AY201: 0.02551871594 | BC201: =VLOOKUP($BF201,RD!$B:$F,5,FALSE)/100 -> 0.01589933838 | BD201: =VLOOKUP($BF201,RD!$B:$F,4,FALSE)/100 -> 0.03203889565 | BE201: =(VLOOKUP($BF201,RD!$B:$F,3,FALSE)/100)/12 -> 0.004666227492 | BF201: 17 | BH201: 71 | BI201: 0.63509909 | BJ201: =(M201+T201)/100000 -> 0.4220783088 | BK201: 3.240496776
F202: -325372.461 | G202: -128978.276 | I202: 71 | J202: 51379 | K202: 6034708.739 | L202: 3785269.841 | M202: 0 | P202: 25324.69853 | Q202: -195223.4766 | R202: 3615371.063 | S202: 2565721.059 | T202: 9090.30047 | W202: -25324.69853 | X202: -130148.9844 | Y202: 2419337.676 | AA202: 71 | AB202: 51379 | AC202: 1 | AD202: 0.4009038017 | AE202: 0.5990961983 | AG202: 71 | AH202: 51379 | AI202: 1 | AJ202: 0.4 | AK202: 0.6 | AR202: 71 | AS202: 51379 | AT202: 6034708.739 | AU202: 2413883.496 | AV202: 3620825.244 | AX202: 51379 | AY202: 0.02900994706 | BC202: =VLOOKUP($BF202,RD!$B:$F,5,FALSE)/100 -> 0.003542980809 | BD202: =VLOOKUP($BF202,RD!$B:$F,4,FALSE)/100 -> 0.04605195737 | BE202: =(VLOOKUP($BF202,RD!$B:$F,3,FALSE)/100)/12 -> 0.004082039028 | BF202: 45 | BH202: 71 | BI202: 0.6034708739 | BJ202: 0.0909030047 | BK202: 3.25372461
... 476 more rows

Sheet WSOR (hidden)
N1: =WSOR!C28 -> 0.05
K2: =CONCATENATE("K",366+((60-WSOR!$C$12)*12)) -> K426 | AY2: =J6 -> 45412 | AZ2: 0.06 | BA2: 0.11 | BF2: 10000000 | BG2: 100000
AY3: =EOMONTH(AY2,(WSOR!C13-WSOR!C12)*12) -> 58195
F6: =-Input!C16 -> -132664.8853 | G6: =-(G2*(L6+S6))/12 -> 0 | I6: =WSOR!C12 -> 55 | J6: =EOMONTH(WSOR!C11,0) -> 45412 | K6: 30009392.75 | R6: =K6*C32 -> 18005635.65 | Y6: =K6*C31 -> 12003757.1 | AA6: =I6 -> 55 | AB6: =J6 -> 45412 | AC6: =AD6+AE6 -> 1 | AD6: =Y6/K6 -> 0.4 | AE6: =R6/K6 -> 0.6 | AG6: =AA6 -> 55 | AH6: 45412 | AI6: =AJ6+AK6 -> 1 | AJ6: =VLOOKUP($AG6,$AM:$AP,3,FALSE) -> 0.4 | AK6: =VLOOKUP($AG6,$AM:$AP,4,FALSE) -> 0.6 | AM6: =AG6 -> 55 | AN6: =AO6+AP6 -> 1 | AO6: =WSOR!C31 -> 0.4 | AP6: =WSOR!C32 -> 0.6 | AR6: =AG6 -> 55 | AS6: =AH6 -> 45412 | AT6: =AU6+AV6 -> 30009392.75 | AU6: =AJ6*K6 -> 12003757.1 | AV6: =AK6*K6 -> 18005635.65 | AX6: =AY2 -> 45412 | AY6: =(((AZ6*Y6)+(BA6*R6))/(R6+Y6)) -> 0.0075 | AZ6: =$AZ$2/12 -> 0.005 | BA6: =$BA$2/12 -> 0.009166666667 | BE6: =I6 -> 55 | BF6: =(K6)/10000000 -> 3.000939275 | BG6: =BG7 -> 2.250704456 | BH6: =-F6/100000 -> 1.326648853
F7: =F6*(1+($N$1/12)) -> -133217.6556 | G7: =G6*(1+(BB7)) -> 0 | I7: =IF(MONTH(J7)=MONTH($J$6),I6+1,I6) -> 55 | J7: =EOMONTH(J6,1) -> 45443 | K7: =R7+Y7 -> 30101245.54 | L7: =R6 -> 18005635.65 | M7: =L7*BA7 -> 165051.6601 | P7: =AV6-R6 -> 0 | Q7: =F7*AK7 -> -79930.59337 | R7: =L7+M7+N7+O7+Q7+P7 -> 18090756.72 | S7: =Y6 -> 12003757.1 | T7: =S7*AZ7 -> 60018.78551 | V7: =-O7 -> 0 | W7: =AU6-Y6 -> 0 | X7: =F7*AJ7 -> -53287.06224 | Y7: =S7+T7+U7+V7+X7+W7 -> 12010488.82 | AA7: =I7 -> 55 | AB7: 45443 | AC7: =AD7+AE7 -> 1 | AD7: =Y7/K7 -> 0.3990030515 | AE7: =R7/K7 -> 0.6009969485 | AG7: 55 | AH7: 45443 | AI7: 1 | AJ7: 0.4 | AK7: 0.6 | AM7: =AM6+1 -> 56 | AN7: =AO7+AP7 -> 1 | AO7: =AO6 -> 0.4 | AP7: 0.6 | AR7: =AG7 -> 55 | AS7: 45443 | AT7: 30101245.54 | AU7: =AJ7*K7 -> 12040498.22 | AV7: =AK7*K7 -> 18060747.33 | AX7: =EOMONTH(AX6,1) -> 45443 | AY7: =(((AZ7*Y7)+(BA7*R7))/(R7+Y7)) -> 0.007504153952 | AZ7: =$AZ$2/12 -> 0.005 | BA7: =$BA$2/12 -> 0.009166666667 | BE7: =I7 -> 55 | BF7: =(K7)/10000000 -> 3.010124554 | BG7: =(M7+T7)/100000 -> 2.250704456 | BH7: =-F7/100000 -> 1.332176556
F8: =F7*(1+($N$1/12)) -> -133772.7292 | G8: =G7*(1+(BB8)) -> 0 | I8: =IF(MONTH(J8)=MONTH($J$6),I7+1,I7) -> 55 | J8: =EOMONTH(J7,1) -> 45473 | K8: 30193357.19 | L8: =R7 -> 18090756.72 | M8: 165831.9366 | P8: =AV7-R7 -> -30009.39275 | Q8: -80263.63751 | R8: 18146315.63 | S8: =Y7 -> 12010488.82 | T8: 60052.44412 | V8: =-O8 -> 0 | W8: =AU7-Y7 -> 30009.39275 | X8: -53509.09167 | Y8: 12047041.57 | AA8: 55 | AB8: 45473 | AC8: 1 | AD8: 0.3989964247 | AE8: 0.6010035753 | AG8: 55 | AH8: 45473 | AI8: 1 | AJ8: 0.4 | AK8: 0.6 | AM8: =AM7+1 -> 57 | AN8: 1 | AO8: 0.4 | AP8: 0.6 | AR8: 55 | AS8: 45473 | AT8: 30193357.19 | AU8: 12077342.88 | AV8: 18116014.32 | AX8: =EOMONTH(AX7,1) -> 45473 | AY8: 0.007504181564 | AZ8: 0.005 | BA8: 0.009166666667 | BE8: 55 | BF8: 3.019335719 | BG8: 2.258843807 | BH8: 1.337727292
F9: -134330.1155 | G9: 0 | I9: 55 | J9: 45504 | K9: 30285603.51 | L9: 18146315.63 | M9: 166341.2266 | P9: -30301.30816 | Q9: -80598.06933 | R9: 18201757.47 | S9: 12047041.57 | T9: 60235.20785 | V9: 0 | W9: 30301.30816 | X9: -53732.04622 | Y9: 12083846.04 | AA9: 55 | AB9: 45504 | AC9: 1 | AD9: 0.3989963758 | AE9: 0.6010036242 | AG9: 55 | AH9: 45504 | AI9: 1 | AJ9: 0.4 | AK9: 0.6 | AM9: 58 | AN9: 1 | AO9: 0.4 | AP9: 0.6 | AR9: 55 | AS9: 45504 | AT9: 30285603.51 | AU9: 12114241.41 | AV9: 18171362.11 | AX9: 45504 | AY9: 0.007504181768 | AZ9: 0.005 | BA9: 0.009166666667 | BE9: 55 | BF9: 3.028560351 | BG9: 2.265764344 | BH9: 1.343301155
F10: -134889.8244 | G10: 0 | I10: 55 | J10: 45535 | K10: 30377982.36 | L10: 18201757.47 | M10: 166849.4435 | P10: -30395.36592 | Q10: -80933.89462 | R10: 18257277.66 | S10: 12083846.04 | T10: 60419.2302 | V10: 0 | W10: 30395.36592 | X10: -53955.92975 | Y10: 12120704.71 | AA10: 55 | AB10: 45535 | AC10: 1 | AD10: 0.3989963705 | AE10: 0.6010036295 | AG10: 55 | AH10: 45535 | AI10: 1 | AJ10: 0.4 | AK10: 0.6 | AM10: 59 | AN10: 1 | AO10: 0.4 | AP10: 0.6 | AR10: 55 | AS10: 45535 | AT10: 30377982.36 | AU10: 12151192.95 | AV10: 18226789.42 | AX10: 45535 | AY10: 0.00750418179 | AZ10: 0.005 | BA10: 0.009166666667 | BE10: 55 | BF10: 3.037798236 | BG10: 2.272686737 | BH10: 1.348898244 | BK10: =C12 -> 55
C11: =TODAY() -> 45391 | F11: -135451.8653 | G11: 0 | I11: 55 | J11: 45565 | K11: 30470492.4 | L11: 18257277.66 | M11: 167358.3785 | P11: -30488.23929 | Q11: -81271.11918 | R11: 18312876.68 | S11: 12120704.71 | T11: 60603.52353 | V11: 0 | W11: 30488.23929 | X11: -54180.74612 | Y11: 12157615.72 | AA11: 55 | AB11: 45565 | AC11: 1 | AD11: 0.3989963655 | AE11: 0.6010036345 | AG11: 55 | AH11: 45565 | AI11: 1 | AJ11: 0.4 | AK11: 0.6 | AM11: 60 | AN11: 1 | AO11: 0.4 | AP11: 0.6 | AR11: 55 | AS11: 45565 | AT11: 30470492.4 | AU11: 12188196.96 | AV11: 18282295.44 | AX11: 45565 | AY11: 0.00750418181 | AZ11: 0.005 | BA11: 0.009166666667 | BE11: 55 | BF11: 3.04704924 | BG11: 2.279619021 | BH11: 1.354518653
C12: =Input!C12 -> 55 | F12: -136016.2481 | G12: 0 | I12: 55 | J12: 45596 | K12: 30563132.27 | L12: 18312876.68 | M12: 167868.0362 | P12: -30581.23729 | Q12: -81609.74884 | R12: 18368553.73 | S12: 12157615.72 | T12: 60788.07861 | V12: 0 | W12: 30581.23729 | X12: -54406.49923 | Y12: 12194578.54 | AA12: 55 | AB12: 45596 | AC12: 1 | AD12: 0.3989963605 | AE12: 0.6010036395 | AG12: 55 | AH12: 45596 | AI12: 1 | AJ12: 0.4 | AK12: 0.6 | AM12: 61 | AN12: 1 | AO12: 0.4 | AP12: 0.6 | AR12: 55 | AS12: 45596 | AT12: 30563132.27 | AU12: 12225252.91 | AV12: 18337879.36 | AX12: 45596 | AY12: 0.007504181831 | AZ12: 0.005 | BA12: 0.009166666667 | BE12: 55 | BF12: 3.056313227 | BG12: 2.286561148 | BH12: 1.360162481
C13: 90 | F13: -136582.9824 | G13: 0 | I13: 55 | J13: 45626 | K13: 30655900.59 | L13: 18368553.73 | M13: 168378.4092 | P13: -30674.36732 | Q13: -81949.78946 | R13: 18424307.98 | S13: 12194578.54 | T13: 60972.8927 | V13: 0 | W13: 30674.36732 | X13: -54633.19298 | Y13: 12231592.61 | AA13: 55 | AB13: 45626 | AC13: 1 | AD13: 0.3989963554 | AE13: 0.6010036446 | AG13: 55 | AH13: 45626 | AI13: 1 | AJ13: 0.4 | AK13: 0.6 | AM13: 62 | AN13: 1 | AO13: 0.4 | AP13: 0.6 | AR13: 55 | AS13: 45626 | AT13: 30655900.59 | AU13: 12262360.23 | AV13: 18393540.35 | AX13: 45626 | AY13: 0.007504181852 | AZ13: 0.005 | BA13: 0.009166666667 | BE13: 55 | BF13: 3.065590059 | BG13: 2.293513019 | BH13: 1.365829824
F14: -137152.0782 | G14: 0 | I14: 55 | J14: 45657 | K14: 30748795.96 | L14: 18424307.98 | M14: 168889.4898 | P14: -30767.62805 | Q14: -82291.24692 | R14: 18480138.59 | S14: 12231592.61 | T14: 61157.96303 | V14: 0 | W14: 30767.62805 | X14: -54860.83128 | Y14: 12268657.37 | AA14: 55 | AB14: 45657 | AC14: 1 | AD14: 0.3989963504 | AE14: 0.6010036496 | AG14: 55 | AH14: 45657 | AI14: 1 | AJ14: 0.4 | AK14: 0.6 | AM14: 63 | AN14: 1 | AO14: 0.4 | AP14: 0.6 | AR14: 55 | AS14: 45657 | AT14: 30748795.96 | AU14: 12299518.38 | AV14: 18449277.58 | AX14: 45657 | AY14: 0.007504181874 | AZ14: 0.005 | BA14: 0.009166666667 | BE14: 55 | BF14: 3.074879596 | BG14: 2.300474528 | BH14: 1.371520782 | BK14: =C13 -> 90
F15: -137723.5452 | G15: 0 | I15: 55 | J15: 45688 | K15: 30841816.97 | L15: 18480138.59 | M15: 169401.2704 | P15: -30861.01811 | Q15: -82634.12711 | R15: 18536044.72 | S15: 12268657.37 | T15: 61343.28683 | V15: 0 | W15: 30861.01811 | X15: -55089.41808 | Y15: 12305772.25 | AA15: 55 | AB15: 45688 | AC15: 1 | AD15: 0.3989963453 | AE15: 0.6010036547 | AG15: 55 | AH15: 45688 | AI15: 1 | AJ15: 0.4 | AK15: 0.6 | AM15: 64 | AN15: 1 | AO15: 0.4 | AP15: 0.6 | AR15: 55 | AS15: 45688 | AT15: 30841816.97 | AU15: 12336726.79 | AV15: 18505090.18 | AX15: 45688 | AY15: 0.007504181895 | AZ15: 0.005 | BA15: 0.009166666667 | BE15: 55 | BF15: 3.084181697 | BG15: 2.307445573 | BH15: 1.377235452
C16: =100*C32 -> 60 | F16: -138297.3933 | G16: 0 | I16: 55 | J16: 45716 | K16: 30934962.18 | L16: 18536044.72 | M16: 169913.7433 | P16: -30954.53608 | Q16: -82978.43598 | R16: 18592025.49 | S16: 12305772.25 | T16: 61528.86127 | V16: 0 | W16: 30954.53608 | X16: -55318.95732 | Y16: 12342936.69 | AA16: 55 | AB16: 45716 | AC16: 1 | AD16: 0.3989963401 | AE16: 0.6010036599 | AG16: 55 | AH16: 45716 | AI16: 1 | AJ16: 0.4 | AK16: 0.6 | AM16: 65 | AN16: 1 | AO16: 0.4 | AP16: 0.6 | AR16: 55 | AS16: 45716 | AT16: 30934962.18 | AU16: 12373984.87 | AV16: 18560977.31 | AX16: 45716 | AY16: 0.007504181916 | AZ16: 0.005 | BA16: 0.009166666667 | BE16: 55 | BF16: 3.093496218 | BG16: 2.314426045 | BH16: 1.382973933
C17: =100*C31 -> 40 | F17: -138873.6324 | G17: 0 | I17: 55 | J17: 45747 | K17: 31028230.14 | L17: 18592025.49 | M17: 170426.9003 | P17: -31048.18055 | Q17: -83324.17946 | R17: 18648080.03 | S17: 12342936.69 | T17: 61714.68347 | V17: 0 | W17: 31048.18055 | X17: -55549.45297 | Y17: 12380150.1 | AA17: 55 | AB17: 45747 | AC17: 1 | AD17: 0.398996335 | AE17: 0.601003665 | AG17: 55 | AH17: 45747 | AI17: 1 | AJ17: 0.4 | AK17: 0.6 | AM17: 66 | AN17: 1 | AO17: 0.4 | AP17: 0.6 | AR17: 55 | AS17: 45747 | AT17: 31028230.14 | AU17: 12411292.05 | AV17: 18616938.08 | AX17: 45747 | AY17: 0.007504181938 | AZ17: 0.005 | BA17: 0.009166666667 | BE17: 55 | BF17: 3.102823014 | BG17: 2.321415838 | BH17: 1.388736324
F18: -139452.2726 | G18: 0 | I18: 56 | J18: 45777 | K18: 31121619.35 | L18: 18648080.03 | M18: 170940.7336 | P18: -31141.95005 | Q18: -83671.36354 | R18: 18704207.45 | S18: 12380150.1 | T18: 61900.75052 | V18: 0 | W18: 31141.95005 | X18: -55780.90903 | Y18: 12417411.9 | AA18: 56 | AB18: 45777 | AC18: 1 | AD18: 0.3989963298 | AE18: 0.6010036702 | AG18: 56 | AH18: 45777 | AI18: 1 | AJ18: 0.4 | AK18: 0.6 | AM18: 67 | AN18: 1 | AO18: 0.4 | AP18: 0.6 | AR18: 56 | AS18: 45777 | AT18: 31121619.35 | AU18: 12448647.74 | AV18: 18672971.61 | AX18: 45777 | AY18: 0.007504181959 | AZ18: 0.005 | BA18: 0.009166666667 | BE18: 56 | BF18: 3.112161935 | BG18: 2.328414841 | BH18: 1.394522726
F19: -140033.3237 | G19: 0 | I19: 56 | J19: 45808 | K19: 31215128.32 | L19: 18704207.45 | M19: 171455.235 | P19: -31235.84314 | Q19: -84019.99422 | R19: 18760406.85 | S19: 12417411.9 | T19: 62087.05948 | V19: 0 | W19: 31235.84314 | X19: -56013.32948 | Y19: 12454721.47 | AA19: 56 | AB19: 45808 | AC19: 1 | AD19: 0.3989963245 | AE19: 0.6010036755 | AG19: 56 | AH19: 45808 | AI19: 1 | AJ19: 0.4 | AK19: 0.6 | AM19: 68 | AN19: 1 | AO19: 0.4 | AP19: 0.6 | AR19: 56 | AS19: 45808 | AT19: 31215128.32 | AU19: 12486051.33 | AV19: 18729076.99 | AX19: 45808 | AY19: 0.007504181981 | AZ19: 0.005 | BA19: 0.009166666667 | BE19: 56 | BF19: 3.121512832 | BG19: 2.335422944 | BH19: 1.400333237
C20: 600 | F20: -140616.7959 | G20: 0 | I20: 56 | J20: 45838 | K20: 31308755.53 | L20: 18760406.85 | M20: 171970.3961 | P20: -31329.8583 | Q20: -84370.07753 | R20: 18816677.31 | S20: 12454721.47 | T20: 62273.60734 | V20: 0 | W20: 31329.8583 | X20: -56246.71835 | Y20: 12492078.22 | AA20: 56 | AB20: 45838 | AC20: 1 | AD20: 0.3989963193 | AE20: 0.6010036807 | AG20: 56 | AH20: 45838 | AI20: 1 | AJ20: 0.4 | AK20: 0.6 | AM20: 69 | AN20: 1 | AO20: 0.4 | AP20: 0.6 | AR20: 56 | AS20: 45838 | AT20: 31308755.53 | AU20: 12523502.21 | AV20: 18785253.32 | AX20: 45838 | AY20: 0.007504182003 | AZ20: 0.005 | BA20: 0.009166666667 | BE20: 56 | BF20: 3.130875553 | BG20: 2.342440035 | BH20: 1.406167959
C21: 200 | F21: -141202.6992 | G21: 0 | I21: 56 | J21: 45869 | K21: 31402499.43 | L21: 18816677.31 | M21: 172486.2087 | P21: -31423.99404 | Q21: -84721.61952 | R21: 18873017.9 | S21: 12492078.22 | T21: 62460.39108 | V21: 0 | W21: 31423.99404 | X21: -56481.07968 | Y21: 12529481.52 | AA21: 56 | AB21: 45869 | AC21: 1 | AD21: 0.398996314 | AE21: 0.601003686 | AG21: 56 | AH21: 45869 | AI21: 1 | AJ21: 0.4 | AK21: 0.6 | AM21: 70 | AN21: 1 | AO21: 0.4 | AP21: 0.6 | AR21: 56 | AS21: 45869 | AT21: 31402499.43 | AU21: 12560999.77 | AV21: 18841499.66 | AX21: 45869 | AY21: 0.007504182025 | AZ21: 0.005 | BA21: 0.009166666667 | BE21: 56 | BF21: 3.140249943 | BG21: 2.349465997 | BH21: 1.412026992
C22: Based on Distribution | F22: -141791.0438 | G22: 0 | I22: 56 | J22: 45900 | K22: 31496358.45 | L22: 18873017.9 | M22: 173002.6641 | P22: -31518.24882 | Q22: -85074.62627 | R22: 18929427.69 | S22: 12529481.52 | T22: 62647.40761 | V22: 0 | W22: 31518.24882 | X22: -56716.41751 | Y22: 12566930.76 | AA22: 56 | AB22: 45900 | AC22: 1 | AD22: 0.3989963087 | AE22: 0.6010036913 | AG22: 56 | AH22: 45900 | AI22: 1 | AJ22: 0.4 | AK22: 0.6 | AM22: 71 | AN22: 1 | AO22: 0.4 | AP22: 0.6 | AR22: 56 | AS22: 45900 | AT22: 31496358.45 | AU22: 12598543.38 | AV22: 18897815.07 | AX22: 45900 | AY22: 0.007504182047 | AZ22: 0.005 | BA22: 0.009166666667 | BE22: 56 | BF22: 3.149635845 | BG22: 2.356500717 | BH22: 1.417910438
F23: -142381.8398 | G23: 0 | I23: 56 | J23: 45930 | K23: 31590331.02 | L23: 18929427.69 | M23: 173519.7539 | P23: -31612.62108 | Q23: -85429.10388 | R23: 18985905.72 | S23: 12566930.76 | T23: 62834.6538 | V23: 0 | W23: 31612.62108 | X23: -56952.73592 | Y23: 12604425.3 | AA23: 56 | AB23: 45930 | AC23: 1 | AD23: 0.3989963034 | AE23: 0.6010036966 | AG23: 56 | AH23: 45930 | AI23: 1 | AJ23: 0.4 | AK23: 0.6 | AM23: 72 | AN23: 1 | AO23: =AO22 -> 0.4 | AP23: 0.6 | AR23: 56 | AS23: 45930 | AT23: 31590331.02 | AU23: 12636132.41 | AV23: 18954198.61 | AX23: 45930 | AY23: 0.007504182069 | AZ23: 0.005 | BA23: 0.009166666667 | BE23: 56 | BF23: 3.159033102 | BG23: 2.363544077 | BH23: 1.423818398
F24: -142975.0975 | G24: 0 | I24: 56 | J24: 45961 | K24: 31684415.52 | L24: 18985905.72 | M24: 174037.4691 | P24: -31707.10926 | Q24: -85785.05848 | R24: 19042451.02 | S24: 12604425.3 | T24: 63022.1265 | V24: 0 | W24: 31707.10926 | X24: -57190.03899 | Y24: 12641964.5 | AA24: 56 | AB24: 45961 | AC24: 1 | AD24: 0.398996298 | AE24: 0.601003702 | AG24: 56 | AH24: 45961 | AI24: 1 | AJ24: 0.4 | AK24: 0.6 | AM24: 73 | AN24: 1 | AO24: 0.4 | AP24: 0.6 | AR24: 56 | AS24: 45961 | AT24: 31684415.52 | AU24: 12673766.21 | AV24: 19010649.31 | AX24: 45961 | AY24: 0.007504182092 | AZ24: 0.005 | BA24: 0.009166666667 | BE24: 56 | BF24: 3.168441552 | BG24: 2.370595956 | BH24: 1.429750975
F25: -143570.827 | G25: 0 | I25: 56 | J25: 45991 | K25: 31778610.32 | L25: 19042451.02 | M25: 174555.801 | P25: -31801.71175 | Q25: -86142.49622 | R25: 19099062.62 | S25: 12641964.5 | T25: 63209.82248 | V25: 0 | W25: 31801.71175 | X25: -57428.33082 | Y25: 12679547.7 | AA25: 56 | AB25: 45991 | AC25: 1 | AD25: 0.3989962926 | AE25: 0.6010037074 | AG25: 56 | AH25: 45991 | AI25: 1 | AJ25: 0.4 | AK25: 0.6 | AM25: 74 | AN25: 1 | AO25: 0.4 | AP25: 0.6 | AR25: 56 | AS25: 45991 | AT25: 31778610.32 | AU25: 12711444.13 | AV25: 19067166.19 | AX25: 45991 | AY25: 0.007504182114 | AZ25: 0.005 | BA25: 0.009166666667 | BE25: 56 | BF25: 3.177861032 | BG25: 2.377656235 | BH25: 1.43570827
F26: -144169.0388 | G26: 0 | I26: 56 | J26: 46022 | K26: 31872913.76 | L26: 19099062.62 | M26: 175074.7407 | P26: -31896.42693 | Q26: -86501.42329 | R26: 19155739.51 | S26: 12679547.7 | T26: 63397.7385 | V26: 0 | W26: 31896.42693 | X26: -57667.61553 | Y26: 12717174.25 | AA26: 56 | AB26: 46022 | AC26: 1 | AD26: 0.3989962871 | AE26: 0.6010037129 | AG26: 56 | AH26: 46022 | AI26: 1 | AJ26: 0.4 | AK26: 0.6 | AM26: 75 | AN26: 1 | AO26: 0.4 | AP26: 0.6 | AR26: 56 | AS26: 46022 | AT26: 31872913.76 | AU26: 12749165.5 | AV26: 19123748.25 | AX26: 46022 | AY26: 0.007504182137 | AZ26: 0.005 | BA26: 0.009166666667 | BE26: 56 | BF26: 3.187291376 | BG26: 2.384724792 | BH26: 1.441690388
F27: -144769.7431 | G27: 0 | I27: 56 | J27: 46053 | K27: 31967324.16 | L27: 19155739.51 | M27: 175594.2788 | P27: -31991.25316 | Q27: -86861.84589 | R27: 19212480.69 | S27: 12717174.25 | T27: 63585.87125 | V27: 0 | W27: 31991.25316 | X27: -57907.89726 | Y27: 12754843.48 | AA27: 56 | AB27: 46053 | AC27: 1 | AD27: 0.3989962817 | AE27: 0.6010037183 | AG27: 56 | AH27: 46053 | AI27: 1 | AJ27: 0.4 | AK27: 0.6 | AM27: 76 | AN27: 1 | AO27: 0.4 | AP27: 0.6 | AR27: 56 | AS27: 46053 | AT27: 31967324.16 | AU27: 12786929.67 | AV27: 19180394.5 | AX27: 46053 | AY27: 0.00750418216 | AZ27: 0.005 | BA27: 0.009166666667 | BE27: 56 | BF27: 3.196732416 | BG27: 2.391801501 | BH27: 1.447697431
C28: =SOR!C28 -> 0.05 | F28: -145372.9504 | G28: 0 | I28: 56 | J28: 46081 | K28: 32061839.84 | L28: 19212480.69 | M28: 176114.4063 | P28: -32086.18878 | Q28: -87223.77025 | R28: 19269285.13 | S28: 12754843.48 | T28: 63774.21738 | V28: 0 | W28: 32086.18878 | X28: -58149.18016 | Y28: 12792554.7 | AA28: 56 | AB28: 46081 | AC28: 1 | AD28: 0.3989962762 | AE28: 0.6010037238 | AG28: 56 | AH28: 46081 | AI28: 1 | AJ28: 0.4 | AK28: 0.6 | AM28: 77 | AN28: 1 | AO28: 0.4 | AP28: 0.6 | AR28: 56 | AS28: 46081 | AT28: 32061839.84 | AU28: 12824735.93 | AV28: 19237103.9 | AX28: 46081 | AY28: 0.007504182183 | AZ28: 0.005 | BA28: 0.009166666667 | BE28: 56 | BF28: 3.206183984 | BG28: 2.398886237 | BH28: 1.453729504
F29: -145978.671 | G29: 0 | I29: 56 | J29: 46112 | K29: 32156459.05 | L29: 19269285.13 | M29: 176635.1137 | P29: -32181.23209 | Q29: -87587.20262 | R29: 19326151.81 | S29: 12792554.7 | T29: 63962.77351 | V29: 0 | W29: 32181.23209 | X29: -58391.46841 | Y29: 12830307.24 | AA29: 56 | AB29: 46112 | AC29: 1 | AD29: 0.3989962707 | AE29: 0.6010037293 | AG29: 56 | AH29: 46112 | AI29: 1 | AJ29: 0.4 | AK29: 0.6 | AM29: 78 | AN29: 1 | AO29: 0.4 | AP29: 0.6 | AR29: 56 | AS29: 46112 | AT29: 32156459.05 | AU29: 12862583.62 | AV29: 19293875.43 | AX29: 46112 | AY29: 0.007504182206 | AZ29: 0.005 | BA29: 0.009166666667 | BE29: 56 | BF29: 3.215645905 | BG29: 2.405978872 | BH29: 1.45978671
F30: -146586.9155 | G30: 0 | I30: 57 | J30: 46142 | K30: 32251180.07 | L30: 19326151.81 | M30: 177156.3916 | P30: -32276.38138 | Q30: -87952.1493 | R30: 19383079.67 | S30: 12830307.24 | T30: 64151.5362 | V30: 0 | W30: 32276.38138 | X30: -58634.7662 | Y30: 12868100.39 | AA30: 57 | AB30: 46142 | AC30: 1 | AD30: 0.3989962651 | AE30: 0.6010037349 | AG30: 57 | AH30: 46142 | AI30: 1 | AJ30: 0.4 | AK30: 0.6 | AM30: 79 | AN30: 1 | AO30: 0.4 | AP30: 0.6 | AR30: 57 | AS30: 46142 | AT30: 32251180.07 | AU30: 12900472.03 | AV30: 19350708.04 | AX30: 46142 | AY30: 0.007504182229 | AZ30: 0.005 | BA30: 0.009166666667 | BE30: 57 | BF30: 3.225118007 | BG30: 2.413079278 | BH30: 1.465869155
C31: =100%-C32 -> 0.4 | F31: -147197.6943 | G31: 0 | I31: 57 | J31: 46173 | K31: 32346001.1 | L31: 19383079.67 | M31: 177678.2303 | P31: -32371.63493 | Q31: -88318.61659 | R31: 19440067.65 | S31: 12868100.39 | T31: 64340.50196 | W31: 32371.63493 | X31: -58879.07772 | Y31: 12905933.45 | AA31: 57 | AB31: 46173 | AC31: 1 | AD31: 0.3989962595 | AE31: 0.6010037405 | AG31: 57 | AH31: 46173 | AI31: 1 | AJ31: 0.4 | AK31: 0.6 | AM31: 80 | AN31: 1 | AO31: 0.4 | AP31: 0.6 | AR31: 57 | AS31: 46173 | AT31: 32346001.1 | AU31: 12938400.44 | AV31: 19407600.66 | AX31: 46173 | AY31: 0.007504182252 | AZ31: 0.005 | BA31: 0.009166666667 | BE31: 57 | BF31: 3.23460011 | BG31: 2.420187323 | BH31: 1.471976943
C32: =Input!C14 -> 0.6 | F32: -147811.018 | G32: 0 | I32: 57 | J32: 46203 | K32: 32440920.37 | L32: 19440067.65 | M32: 178200.6202 | P32: -32466.99096 | Q32: -88686.61082 | R32: 19497114.67 | S32: 12905933.45 | T32: 64529.66725 | W32: 32466.99096 | X32: -59124.40722 | Y32: 12943805.7 | AA32: 57 | AB32: 46203 | AC32: 1 | AD32: 0.3989962539 | AE32: 0.6010037461 | AG32: 57 | AH32: 46203 | AI32: 1 | AJ32: 0.4 | AK32: 0.6 | AM32: 81 | AN32: 1 | AO32: 0.4 | AP32: 0.6 | AR32: 57 | AS32: 46203 | AT32: 32440920.37 | AU32: 12976368.15 | AV32: 19464552.22 | AX32: 46203 | AY32: 0.007504182275 | AZ32: 0.005 | BA32: 0.009166666667 | BE32: 57 | BF32: 3.244092037 | BG32: 2.427302874 | BH32: 1.47811018
F33: -148426.8973 | G33: 0 | I33: 57 | J33: 46234 | K33: 32535936.06 | L33: 19497114.67 | M33: 178723.5512 | P33: -32562.44771 | Q33: -89056.13837 | R33: 19554219.64 | S33: 12943805.7 | T33: 64719.02851 | W33: 32562.44771 | X33: -59370.75891 | Y33: 12981716.42 | AA33: 57 | AB33: 46234 | AC33: 1 | AD33: 0.3989962482 | AE33: 0.6010037518 | AG33: 57 | AH33: 46234 | AI33: 1 | AJ33: 0.4 | AK33: 0.6 | AM33: 82 | AN33: 1 | AO33: 0.4 | AP33: 0.6 | AR33: 57 | AS33: 46234 | AT33: 32535936.06 | AU33: 13014374.42 | AV33: 19521561.63 | AX33: 46234 | AY33: 0.007504182299 | AZ33: 0.005 | BA33: 0.009166666667 | BE33: 57 | BF33: 3.253593606 | BG33: 2.434425797 | BH33: 1.484268973
F34: -149045.3427 | G34: 0 | I34: 57 | J34: 46265 | K34: 32631046.31 | L34: 19554219.64 | M34: 179247.0133 | P34: -32658.00336 | Q34: -89427.20561 | R34: 19611381.44 | S34: 12981716.42 | T34: 64908.58209 | W34: 32658.00336 | X34: -59618.13707 | Y34: 13019664.87 | AA34: 57 | AB34: 46265 | AC34: 1 | AD34: 0.3989962425 | AE34: 0.6010037575 | AG34: 57 | AH34: 46265 | AI34: 1 | AJ34: 0.4 | AK34: 0.6 | AM34: 83 | AN34: =AO34+AP34 -> 1 | AO34: 0.4 | AP34: 0.6 | AR34: 57 | AS34: 46265 | AT34: 32631046.31 | AU34: 13052418.52 | AV34: 19578627.78 | AX34: 46265 | AY34: 0.007504182323 | AZ34: 0.005 | BA34: 0.009166666667 | BE34: 57 | BF34: 3.263104631 | BG34: 2.441555954 | BH34: 1.490453427
C35: =WSOR!G2 -> 0 | F35: -149666.3649 | G35: 0 | I35: 57 | J35: 46295 | K35: 32726249.26 | L35: 19611381.44 | M35: 179770.9965 | P35: -32753.65608 | Q35: -89799.81897 | R35: 19668598.96 | S35: 13019664.87 | T35: 65098.32434 | W35: 32753.65608 | X35: -59866.54598 | Y35: 13057650.3 | AA35: 57 | AB35: 46295 | AC35: 1 | AD35: 0.3989962368 | AE35: 0.6010037632 | AG35: 57 | AH35: 46295 | AI35: 1 | AJ35: 0.4 | AK35: 0.6 | AM35: 84 | AN35: =AO35+AP35 -> 1 | AO35: 0.4 | AP35: 0.6 | AR35: 57 | AS35: 46295 | AT35: 32726249.26 | AU35: 13090499.71 | AV35: 19635749.56 | AX35: 46295 | AY35: 0.007504182347 | AZ35: 0.005 | BA35: 0.009166666667 | BE35: 57 | BF35: 3.272624926 | BG35: 2.448693209 | BH35: 1.496663649
F36: -150289.9748 | G36: 0 | I36: 57 | J36: 46326 | K36: 32821543.03 | L36: 19668598.96 | M36: 180295.4905 | P36: -32849.40401 | Q36: -90173.98488 | R36: 19725871.06 | S36: 13057650.3 | T36: 65288.25151 | W36: 32849.40401 | X36: -60115.98992 | Y36: 13095671.97 | AA36: 57 | AB36: 46326 | AC36: 1 | AD36: 0.3989962311 | AE36: 0.6010037689 | AG36: 57 | AH36: 46326 | AI36: 1 | AJ36: 0.4 | AK36: 0.6 | AM36: 85 | AN36: =AO36+AP36 -> 1 | AO36: 0.4 | AP36: 0.6 | AR36: 57 | AS36: 46326 | AT36: 32821543.03 | AU36: 13128617.21 | AV36: 19692925.82 | AX36: 46326 | AY36: 0.007504182371 | AZ36: 0.005 | BA36: 0.009166666667 | BE36: 57 | BF36: 3.282154303 | BG36: 2.45583742 | BH36: 1.502899748
C37: 900 | F37: -150916.183 | G37: 0 | I37: 57 | J37: 46356 | K37: 32916925.69 | L37: 19725871.06 | M37: 180820.4848 | P37: -32945.24529 | Q37: -90549.70982 | R37: 19783196.59 | S37: 13095671.97 | T37: 65478.35984 | W37: 32945.24529 | X37: -60366.47321 | Y37: 13133729.1 | AA37: 57 | AB37: 46356 | AC37: 1 | AD37: 0.3989962253 | AE37: 0.6010037747 | AG37: 57 | AH37: 46356 | AI37: 1 | AJ37: 0.4 | AK37: 0.6 | AM37: 86 | AN37: =AO37+AP37 -> 1 | AO37: 0.4 | AP37: 0.6 | AR37: 57 | AS37: 46356 | AT37: 32916925.69 | AU37: 13166770.28 | AV37: 19750155.42 | AX37: 46356 | AY37: 0.007504182395 | AZ37: 0.005 | BA37: 0.009166666667 | BE37: 57 | BF37: 3.291692569 | BG37: 2.462988446 | BH37: 1.50916183
C38: 200 | F38: -151545.0005 | G38: 0 | I38: 57 | J38: 46387 | K38: 33012395.31 | L38: 19783196.59 | M38: 181345.9688 | P38: -33041.178 | Q38: -90927.00028 | R38: 19840574.38 | S38: 13133729.1 | T38: 65668.64549 | W38: 33041.178 | X38: -60618.00018 | Y38: 13171820.92 | AA38: 57 | AB38: 46387 | AC38: 1 | AD38: 0.3989962195 | AE38: 0.6010037805 | AG38: 57 | AH38: 46387 | AI38: 1 | AJ38: 0.4 | AK38: 0.6 | AM38: 87 | AN38: =AO38+AP38 -> 1 | AO38: 0.4 | AP38: 0.6 | AR38: 57 | AS38: 46387 | AT38: 33012395.31 | AU38: 13204958.12 | AV38: 19807437.18 | AX38: 46387 | AY38: 0.007504182419 | AZ38: 0.005 | BA38: 0.009166666667 | BE38: 57 | BF38: 3.301239531 | BG38: 2.470146143 | BH38: 1.515450005
F39: -152176.438 | G39: 0 | I39: 57 | J39: 46418 | K39: 33107949.9 | L39: 19840574.38 | M39: 181871.9319 | P39: -33137.20021 | Q39: -91305.86278 | R39: 19898003.25 | S39: 13171820.92 | T39: 65859.10461 | W39: 33137.20021 | X39: -60870.57518 | Y39: 13209946.65 | AA39: 57 | AB39: 46418 | AC39: 1 | AD39: 0.3989962136 | AE39: 0.6010037864 | AG39: 57 | AH39: 46418 | AI39: 1 | AJ39: 0.4 | AK39: 0.6 | AM39: 88 | AN39: 1 | AO39: =AO38 -> 0.4 | AP39: 0.6 | AR39: 57 | AS39: 46418 | AT39: 33107949.9 | AU39: 13243179.96 | AV39: 19864769.94 | AX39: 46418 | AY39: 0.007504182443 | AZ39: 0.005 | BA39: 0.009166666667 | BE39: 57 | BF39: 3.31079499 | BG39: 2.477310365 | BH39: 1.52176438
F40: -152810.5065 | G40: 0 | I40: 57 | J40: 46446 | K40: 33203587.49 | L40: 19898003.25 | M40: 182398.3632 | P40: -33233.30997 | Q40: -91686.30387 | R40: 19955482 | S40: 13209946.65 | T40: 66049.73326 | W40: 33233.30997 | X40: -61124.20258 | Y40: 13248105.49 | AA40: 57 | AB40: 46446 | AC40: 1 | AD40: 0.3989962077 | AE40: 0.6010037923 | AG40: 57 | AH40: 46446 | AI40: 1 | AJ40: 0.4 | AK40: 0.6 | AM40: 89 | AN40: 1 | AO40: 0.4 | AP40: 0.6 | AR40: 57 | AS40: 46446 | AT40: 33203587.49 | AU40: 13281435 | AV40: 19922152.5 | AX40: 46446 | AY40: 0.007504182468 | AZ40: 0.005 | BA40: 0.009166666667 | BE40: 57 | BF40: 3.320358749 | BG40: 2.484480964 | BH40: 1.528105065
F41: -153447.2169 | G41: 0 | I41: 57 | J41: 46477 | K41: 33299306.06 | L41: 19955482 | M41: 182925.2517 | P41: -33329.5053 | Q41: -92068.33014 | R41: 20013009.42 | S41: 13248105.49 | T41: 66240.52746 | W41: 33329.5053 | X41: -61378.88676 | Y41: 13286296.64 | AA41: 57 | AB41: 46477 | AC41: 1 | AD41: 0.3989962018 | AE41: 0.6010037982 | AG41: 57 | AH41: 46477 | AI41: 1 | AJ41: 0.4 | AK41: 0.6 | AM41: 90 | AN41: 1 | AO41: 0.4 | AP41: 0.6 | AR41: 57 | AS41: 46477 | AT41: 33299306.06 | AU41: 13319722.42 | AV41: 19979583.63 | AX41: 46477 | AY41: 0.007504182493 | AZ41: 0.005 | BA41: 0.009166666667 | BE41: 57 | BF41: 3.329930606 | BG41: 2.491657791 | BH41: 1.534472169
F42: -154086.5803 | G42: 0 | I42: 58 | J42: 46507 | K42: 33395103.55 | L42: 20013009.42 | M42: 183452.5863 | P42: -33425.7842 | Q42: -92451.94818 | R42: 20070584.27 | S42: 13286296.64 | T42: 66431.48319 | W42: 33425.7842 | X42: -61634.63212 | Y42: 13324519.27 | AA42: 58 | AB42: 46507 | AC42: 1 | AD42: 0.3989961958 | AE42: 0.6010038042 | AG42: 58 | AH42: 46507 | AI42: 1 | AJ42: 0.4 | AK42: 0.6 | AM42: 91 | AN42: 1 | AO42: 0.4 | AP42: 0.6 | AR42: 58 | AS42: 46507 | AT42: 33395103.55 | AU42: 13358041.42 | AV42: 20037062.13 | AX42: 46507 | AY42: 0.007504182517 | AZ42: 0.005 | BA42: 0.009166666667 | BE42: 58 | BF42: 3.339510355 | BG42: 2.498840695 | BH42: 1.540865803
F43: -154728.6077 | G43: 0 | I43: 58 | J43: 46538 | K43: 33490977.89 | L43: 20070584.27 | M43: 183980.3558 | P43: -33522.14462 | Q43: -92837.16463 | R43: 20128205.32 | S43: 13324519.27 | T43: 66622.59637 | W43: 33522.14462 | X43: -61891.44309 | Y43: 13362772.57 | AA43: 58 | AB43: 46538 | AC43: 1 | AD43: 0.3989961898 | AE43: 0.6010038102 | AG43: 58 | AH43: 46538 | AI43: 1 | AJ43: 0.4 | AK43: 0.6 | AM43: 92 | AN43: 1 | AO43: 0.4 | AP43: 0.6 | AR43: 58 | AS43: 46538 | AT43: 33490977.89 | AU43: 13396391.16 | AV43: 20094586.73 | AX43: 46538 | AY43: 0.007504182542 | AZ43: 0.005 | BA43: 0.009166666667 | BE43: 58 | BF43: 3.349097789 | BG43: 2.506029522 | BH43: 1.547286077
F44: -155373.3102 | G44: 0 | I44: 58 | J44: 46568 | K44: 33586926.99 | L44: 20128205.32 | M44: 184508.5488 | P44: -33618.58451 | Q44: -93223.98615 | R44: 20185871.3 | S44: 13362772.57 | T44: 66813.86286 | W44: 33618.58451 | X44: -62149.3241 | Y44: 13401055.7 | AA44: 58 | AB44: 46568 | AC44: 1 | AD44: 0.3989961838 | AE44: 0.6010038162 | AG44: 58 | AH44: 46568 | AI44: 1 | AJ44: 0.4 | AK44: 0.6 | AM44: 93 | AN44: 1 | AO44: 0.4 | AP44: 0.6 | AR44: 58 | AS44: 46568 | AT44: 33586926.99 | AU44: 13434770.8 | AV44: 20152156.2 | AX44: 46568 | AY44: 0.007504182568 | AZ44: 0.005 | BA44: 0.009166666667 | BE44: 58 | BF44: 3.358692699 | BG44: 2.513224116 | BH44: 1.553733102
F45: -156020.699 | G45: 0 | I45: 58 | J45: 46599 | K45: 33682948.73 | L45: 20185871.3 | M45: 185037.1536 | P45: -33715.10179 | Q45: -93612.41943 | R45: 20243580.93 | S45: 13401055.7 | T45: 67005.27848 | W45: 33715.10179 | X45: -62408.27962 | Y45: 13439367.8 | AA45: 58 | AB45: 46599 | AC45: 1 | AD45: 0.3989961777 | AE45: 0.6010038223 | AG45: 58 | AH45: 46599 | AI45: 1 | AJ45: 0.4 | AK45: 0.6 | AM45: 94 | AN45: 1 | AO45: 0.4 | AP45: 0.6 | AR45: 58 | AS45: 46599 | AT45: 33682948.73 | AU45: 13473179.49 | AV45: 20209769.24 | AX45: 46599 | AY45: 0.007504182593 | AZ45: 0.005 | BA45: 0.009166666667 | BE45: 58 | BF45: 3.368294873 | BG45: 2.52042432 | BH45: 1.56020699
F46: -156670.7853 | G46: 0 | I46: 58 | J46: 46630 | K46: 33779040.94 | L46: 20243580.93 | M46: 185566.1585 | P46: -33811.69434 | Q46: -94002.47117 | R46: 20301332.92 | S46: 13439367.8 | T46: 67196.83898 | W46: 33811.69434 | X46: -62668.31412 | Y46: 13477708.01 | AA46: 58 | AB46: 46630 | AC46: 1 | AD46: 0.3989961716 | AE46: 0.6010038284 | AG46: 58 | AH46: 46630 | AI46: 1 | AJ46: 0.4 | AK46: 0.6 | AM46: 95 | AN46: 1 | AO46: 0.4 | AP46: 0.6 | AR46: 58 | AS46: 46630 | AT46: 33779040.94 | AU46: 13511616.37 | AV46: 20267424.56 | AX46: 46630 | AY46: 0.007504182618 | AZ46: 0.005 | BA46: 0.009166666667 | BE46: 58 | BF46: 3.377904094 | BG46: 2.527629975 | BH46: 1.566707853
F47: -157323.5802 | G47: 0 | I47: 58 | J47: 46660 | K47: 33875201.45 | L47: 20301332.92 | M47: 186095.5518 | P47: -33908.36002 | Q47: -94394.14814 | R47: 20359125.97 | S47: 13477708.01 | T47: 67388.54007 | W47: 33908.36002 | X47: -62929.43209 | Y47: 13516075.48 | AA47: 58 | AB47: 46660 | AC47: 1 | AD47: 0.3989961655 | AE47: 0.6010038345 | AG47: 58 | AH47: 46660 | AI47: 1 | AJ47: 0.4 | AK47: 0.6 | AM47: 96 | AN47: 1 | AO47: 0.4 | AP47: 0.6 | AR47: 58 | AS47: 46660 | AT47: 33875201.45 | AU47: 13550080.58 | AV47: 20325120.87 | AX47: 46660 | AY47: 0.007504182644 | AZ47: 0.005 | BA47: 0.009166666667 | BE47: 58 | BF47: 3.387520145 | BG47: 2.534840919 | BH47: 1.573235802
F48: -157979.0951 | G48: 0 | I48: 58 | J48: 46691 | K48: 33971428.05 | L48: 20359125.97 | M48: 186625.3214 | P48: -34005.09667 | Q48: -94787.45709 | R48: 20416958.73 | S48: 13516075.48 | T48: 67580.37741 | W48: 34005.09667 | X48: -63191.63806 | Y48: 13554469.32 | AA48: 58 | AB48: 46691 | AC48: 1 | AD48: 0.3989961593 | AE48: 0.6010038407 | AG48: 58 | AH48: 46691 | AI48: 1 | AJ48: 0.4 | AK48: 0.6 | AM48: 97 | AN48: 1 | AO48: 0.4 | AP48: 0.6 | AR48: 58 | AS48: 46691 | AT48: 33971428.05 | AU48: 13588571.22 | AV48: 20382856.83 | AX48: 46691 | AY48: 0.00750418267 | AZ48: 0.005 | BA48: 0.009166666667 | BE48: 58 | BF48: 3.397142805 | BG48: 2.542056988 | BH48: 1.579790951
F49: -158637.3414 | G49: 0 | I49: 58 | J49: 46721 | K49: 34067718.51 | L49: 20416958.73 | M49: 187155.4551 | P49: -34101.90209 | Q49: -95182.40482 | R49: 20474829.88 | S49: 13554469.32 | T49: 67772.34659 | W49: 34101.90209 | X49: -63454.93655 | Y49: 13592888.63 | AA49: 58 | AB49: 46721 | AC49: 1 | AD49: 0.3989961531 | AE49: 0.6010038469 | AG49: 58 | AH49: 46721 | AI49: 1 | AJ49: 0.4 | AK49: 0.6 | AM49: 98 | AN49: 1 | AO49: 0.4 | AP49: 0.6 | AR49: 58 | AS49: 46721 | AT49: 34067718.51 | AU49: 13627087.41 | AV49: 20440631.11 | AX49: 46721 | AY49: 0.007504182695 | AZ49: 0.005 | BA49: 0.009166666667 | BE49: 58 | BF49: 3.406771851 | BG49: 2.549278017 | BH49: 1.586373414
F50: -159298.3303 | G50: 0 | I50: 58 | J50: 46752 | K50: 34164070.57 | L50: 20474829.88 | M50: 187685.9406 | P50: -34198.77407 | Q50: -95578.99818 | R50: 20532738.05 | S50: 13592888.63 | T50: 67964.44316 | W50: 34198.77407 | X50: -63719.33212 | Y50: 13631332.52 | AA50: 58 | AB50: 46752 | AC50: 1 | AD50: 0.3989961468 | AE50: 0.6010038532 | AG50: 58 | AH50: 46752 | AI50: 1 | AJ50: 0.4 | AK50: 0.6 | AM50: 99 | AN50: 1 | AO50: 0.4 | AP50: 0.6 | AR50: 58 | AS50: 46752 | AT50: 34164070.57 | AU50: 13665628.23 | AV50: 20498442.34 | AX50: 46752 | AY50: 0.007504182722 | AZ50: 0.005 | BA50: 0.009166666667 | BE50: 58 | BF50: 3.416407057 | BG50: 2.556503837 | BH50: 1.592983303
F51: -159962.0733 | G51: 0 | I51: 58 | J51: 46783 | K51: 34260481.92 | L51: 20532738.05 | M51: 188216.7655 | P51: -34295.71034 | Q51: -95977.244 | R51: 20590681.86 | S51: 13631332.52 | T51: 68156.66258 | W51: 34295.71034 | X51: -63984.82934 | Y51: 13669800.06 | AA51: 58 | AB51: 46783 | AC51: 1 | AD51: 0.3989961405 | AE51: 0.6010038595 | AG51: 58 | AH51: 46783 | AI51: 1 | AJ51: 0.4 | AK51: 0.6 | AM51: 100 | AN51: 1 | AO51: 0.4 | AP51: 0.6 | AR51: 58 | AS51: 46783 | AT51: 34260481.92 | AU51: 13704192.77 | AV51: 20556289.15 | AX51: 46783 | AY51: 0.007504182748 | AZ51: 0.005 | BA51: 0.009166666667 | BE51: 58 | BF51: 3.426048192 | BG51: 2.56373428 | BH51: 1.599620733
F52: -160628.582 | G52: 0 | I52: 58 | J52: 46812 | K52: 34356950.26 | L52: 20590681.86 | M52: 188747.9171 | P52: -34392.70864 | Q52: -96377.14919 | R52: 20648659.92 | S52: 13669800.06 | T52: 68349.0003 | W52: 34392.70864 | X52: -64251.43279 | Y52: 13708290.34 | AA52: 58 | AB52: 46812 | AC52: 1 | AD52: 0.3989961342 | AE52: 0.6010038658 | AG52: 58 | AH52: 46812 | AI52: 1 | AJ52: 0.4 | AK52: 0.6 | AM52: 101 | AN52: 1 | AO52: 0.4 | AP52: 0.6 | AR52: 58 | AS52: 46812 | AT52: 34356950.26 | AU52: 13742780.1 | AV52: 20614170.15 | AX52: 46812 | AY52: 0.007504182774 | AZ52: 0.005 | BA52: 0.009166666667 | BE52: 58 | BF52: 3.435695026 | BG52: 2.570969174 | BH52: 1.60628582
F53: -161297.8677 | G53: 0 | I53: 58 | J53: 46843 | K53: 34453473.22 | L53: 20648659.92 | M53: 189279.3826 | P53: -34489.76665 | Q53: -96778.72064 | R53: 20706670.82 | S53: 13708290.34 | T53: 68541.45168 | W53: 34489.76665 | X53: -64519.14709 | Y53: 13746802.41 | AA53: 58 | AB53: 46843 | AC53: 1 | AD53: 0.3989961279 | AE53: 0.6010038721 | AG53: 58 | AH53: 46843 | AI53: 1 | AJ53: 0.4 | AK53: 0.6 | AM53: 102 | AN53: 1 | AO53: 0.4 | AP53: 0.6 | AR53: 58 | AS53: 46843 | AT53: 34453473.22 | AU53: 13781389.29 | AV53: 20672083.93 | AX53: 46843 | AY53: 0.007504182801 | AZ53: 0.005 | BA53: 0.009166666667 | BE53: 58 | BF53: 3.445347322 | BG53: 2.578208343 | BH53: 1.612978677
F54: -161969.9422 | G54: 0 | I54: 59 | J54: 46873 | K54: 34550048.44 | L54: 20706670.82 | M54: 189811.1491 | P54: -34586.88203 | Q54: -97181.96531 | R54: 20764713.12 | S54: 13746802.41 | T54: 68734.01204 | W54: 34586.88203 | X54: -64787.97687 | Y54: 13785335.32 | AA54: 59 | AB54: 46873 | AC54: 1 | AD54: 0.3989961215 | AE54: 0.6010038785 | AG54: 59 | AH54: 46873 | AI54: 1 | AJ54: 0.4 | AK54: 0.6 | AM54: 103 | AN54: 1 | AO54: 0.4 | AP54: 0.6 | AR54: 59 | AS54: 46873 | AT54: 34550048.44 | AU54: 13820019.38 | AV54: 20730029.07 | AX54: 46873 | AY54: 0.007504182827 | AZ54: 0.005 | BA54: 0.009166666667 | BE54: 59 | BF54: 3.455004844 | BG54: 2.585451612 | BH54: 1.619699422
F55: -162644.8169 | G55: 0 | I55: 59 | J55: 46904 | K55: 34646673.51 | L55: 20764713.12 | M55: 190343.2036 | P55: -34684.05244 | Q55: -97586.89017 | R55: 20822785.38 | S55: 13785335.32 | T55: 68926.67662 | W55: 34684.05244 | X55: -65057.92678 | Y55: 13823888.13 | AA55: 59 | AB55: 46904 | AC55: 1 | AD55: 0.398996115 | AE55: 0.601003885 | AG55: 59 | AH55: 46904 | AI55: 1 | AJ55: 0.4 | AK55: 0.6 | AM55: 104 | AN55: 1 | AO55: =AO54 -> 0.4 | AP55: 0.6 | AR55: 59 | AS55: 46904 | AT55: 34646673.51 | AU55: 13858669.4 | AV55: 20788004.1 | AX55: 46904 | AY55: 0.007504182854 | AZ55: 0.005 | BA55: 0.009166666667 | BE55: 59 | BF55: 3.464667351 | BG55: 2.592698802 | BH55: 1.626448169
F56: -163322.5037 | G56: 0 | I56: 59 | J56: 46934 | K56: 34743345.97 | L56: 20822785.38 | M56: 190875.5326 | P56: -34781.27546 | Q56: -97993.50221 | R56: 20880886.13 | S56: 13823888.13 | T56: 69119.44063 | W56: 34781.27546 | X56: -65329.00147 | Y56: 13862459.84 | AA56: 59 | AB56: 46934 | AC56: 1 | AD56: 0.3989961085 | AE56: 0.6010038915 | AG56: 59 | AH56: 46934 | AI56: 1 | AJ56: 0.4 | AK56: 0.6 | AM56: 105 | AN56: 1 | AO56: 0.4 | AP56: 0.6 | AR56: 59 | AS56: 46934 | AT56: 34743345.97 | AU56: 13897338.39 | AV56: 20846007.58 | AX56: 46934 | AY56: 0.007504182881 | AZ56: 0.005 | BA56: 0.009166666667 | BE56: 59 | BF56: 3.474334597 | BG56: 2.599949733 | BH56: 1.633225037
F57: -164003.0141 | G57: 0 | I57: 59 | J57: 46965 | K57: 34840063.38 | L57: 20880886.13 | M57: 191408.1229 | P57: -34878.54867 | Q57: -98401.80847 | R57: 20939013.9 | S57: 13862459.84 | T57: 69312.29921 | W57: 34878.54867 | X57: -65601.20565 | Y57: 13901049.48 | AA57: 59 | AB57: 46965 | AC57: 1 | AD57: 0.398996102 | AE57: 0.601003898 | AG57: 59 | AH57: 46965 | AI57: 1 | AJ57: 0.4 | AK57: 0.6 | AM57: 106 | AN57: 1 | AO57: 0.4 | AP57: 0.6 | AR57: 59 | AS57: 46965 | AT57: 34840063.38 | AU57: 13936025.35 | AV57: 20904038.03 | AX57: 46965 | AY57: 0.007504182908 | AZ57: 0.005 | BA57: 0.009166666667 | BE57: 59 | BF57: 3.484006338 | BG57: 2.607204221 | BH57: 1.640030141
F58: -164686.36 | G58: 0 | I58: 59 | J58: 46996 | K58: 34936823.23 | L58: 20939013.9 | M58: 191940.9607 | P58: -34975.86963 | Q58: -98811.816 | R58: 20997167.17 | S58: 13901049.48 | T58: 69505.24742 | W58: 34975.86963 | X58: -65874.544 | Y58: 13939656.06 | AA58: 59 | AB58: 46996 | AC58: 1 | AD58: 0.3989960954 | AE58: 0.6010039046 | AG58: 59 | AH58: 46996 | AI58: 1 | AJ58: 0.4 | AK58: 0.6 | AM58: 107 | AN58: 1 | AO58: 0.4 | AP58: 0.6 | AR58: 59 | AS58: 46996 | AT58: 34936823.23 | AU58: 13974729.29 | AV58: 20962093.94 | AX58: 46996 | AY58: 0.007504182936 | AZ58: 0.005 | BA58: 0.009166666667 | BE58: 59 | BF58: 3.493682323 | BG58: 2.614462082 | BH58: 1.6468636
F59: -165372.5532 | G59: 0 | I59: 59 | J59: 47026 | K59: 35033622.99 | L59: 20997167.17 | M59: 192474.0324 | P59: -35073.23585 | Q59: -99223.5319 | R59: 21055344.44 | S59: 13939656.06 | T59: 69698.28028 | W59: 35073.23585 | X59: -66149.02127 | Y59: 13978278.55 | AA59: 59 | AB59: 47026 | AC59: 1 | AD59: 0.3989960888 | AE59: 0.6010039112 | AG59: 59 | AH59: 47026 | AI59: 1 | AJ59: 0.4 | AK59: 0.6 | AM59: 108 | AN59: 1 | AO59: 0.4 | AP59: 0.6 | AR59: 59 | AS59: 47026 | AT59: 35033622.99 | AU59: 14013449.2 | AV59: 21020173.79 | AX59: 47026 | AY59: 0.007504182963 | AZ59: 0.005 | BA59: 0.009166666667 | BE59: 59 | BF59: 3.503362299 | BG59: 2.621723127 | BH59: 1.653725532
F60: -166061.6055 | G60: 0 | I60: 59 | J60: 47057 | K60: 35130460.1 | L60: 21055344.44 | M60: 193007.324 | P60: -35170.6448 | Q60: -99636.96329 | R60: 21113544.15 | S60: 13978278.55 | T60: 69891.39276 | W60: 35170.6448 | X60: -66424.64219 | Y60: 14016915.95 | AA60: 59 | AB60: 47057 | AC60: 1 | AD60: 0.3989960822 | AE60: 0.6010039178 | AG60: 59 | AH60: 47057 | AI60: 1 | AJ60: 0.4 | AK60: 0.6 | AM60: 109 | AN60: 1 | AO60: 0.4 | AP60: 0.6 | AR60: 59 | AS60: 47057 | AT60: 35130460.1 | AU60: 14052184.04 | AV60: 21078276.06 | AX60: 47057 | AY60: 0.007504182991 | AZ60: 0.005 | BA60: 0.009166666667 | BE60: 59 | BF60: 3.51304601 | BG60: 2.628987168 | BH60: 1.660616055
F61: -166753.5288 | G61: 0 | I61: 59 | J61: 47087 | K61: 35227331.97 | L61: 21113544.15 | M61: 193540.8214 | P61: -35268.09396 | Q61: -100052.1173 | R61: 21171764.77 | S61: 14016915.95 | T61: 70084.57973 | W61: 35268.09396 | X61: -66701.41153 | Y61: 14055567.21 | AA61: 59 | AB61: 47087 | AC61: 1 | AD61: 0.3989960755 | AE61: 0.6010039245 | AG61: 59 | AH61: 47087 | AI61: 1 | AJ61: 0.4 | AK61: 0.6 | AM61: 110 | AN61: 1 | AO61: 0.4 | AP61: 0.6 | AR61: 59 | AS61: 47087 | AT61: 35227331.97 | AU61: 14090932.79 | AV61: 21136399.18 | AX61: 47087 | AY61: 0.007504183019 | AZ61: 0.005 | BA61: 0.009166666667 | BE61: 59 | BF61: 3.522733197 | BG61: 2.636254012 | BH61: 1.667535288
F62: -167448.3352 | G62: 0 | I62: 59 | J62: 47118 | K62: 35324235.99 | L62: 21171764.77 | M62: 194074.5103 | P62: -35365.58073 | Q62: -100469.0011 | R62: 21230004.69 | S62: 14055567.21 | T62: 70277.83604 | W62: 35365.58073 | X62: -66979.33408 | Y62: 14094231.29 | AA62: 59 | AB62: 47118 | AC62: 1 | AD62: 0.3989960688 | AE62: 0.6010039312 | AG62: 59 | AH62: 47118 | AI62: 1 | AJ62: 0.4 | AK62: 0.6 | AM62: 111 | AN62: 1 | AO62: 0.4 | AP62: 0.6 | AR62: 59 | AS62: 47118 | AT62: 35324235.99 | AU62: =AJ62*K62 -> 14129694.39 | AV62: 21194541.59 | AX62: 47118 | AY62: 0.007504183047 | AZ62: 0.005 | BA62: 0.009166666667 | BE62: 59 | BF62: 3.532423599 | BG62: 2.643523464 | BH62: 1.674483352
F63: -168146.0366 | G63: 0 | I63: 59 | J63: 47149 | K63: 35421169.48 | L63: 21230004.69 | M63: 194608.3764 | P63: -35463.10251 | Q63: -100887.622 | R63: 21288262.35 | S63: 14094231.29 | T63: 70471.15646 | W63: 35463.10251 | X63: -67258.41464 | Y63: 14132907.14 | AA63: 59 | AB63: 47149 | AC63: 1 | AD63: 0.398996062 | AE63: 0.601003938 | AG63: 59 | AH63: 47149 | AI63: 1 | AJ63: 0.4 | AK63: 0.6 | AR63: 59 | AS63: 47149 | AT63: 35421169.48 | AU63: 14168467.79 | AV63: 21252701.69 | AX63: 47149 | AY63: 0.007504183075 | AZ63: 0.005 | BA63: 0.009166666667 | BE63: 59 | BF63: 3.542116948 | BG63: 2.650795328 | BH63: 1.681460366
F64: -168846.6451 | G64: 0 | I64: 59 | J64: 47177 | K64: 35518129.78 | L64: 21288262.35 | M64: 195142.4048 | P64: -35560.65667 | Q64: -101307.9871 | R64: 21346536.11 | S64: 14132907.14 | T64: 70664.53568 | W64: 35560.65667 | X64: -67538.65803 | Y64: 14171593.67 | AA64: 59 | AB64: 47177 | AC64: 1 | AD64: 0.3989960552 | AE64: 0.6010039448 | AG64: 59 | AH64: 47177 | AI64: 1 | AJ64: 0.4 | AK64: 0.6 | AR64: 59 | AS64: 47177 | AT64: 35518129.78 | AU64: 14207251.91 | AV64: 21310877.87 | AX64: 47177 | AY64: 0.007504183103 | AZ64: 0.005 | BA64: 0.009166666667 | BE64: 59 | BF64: 3.551812978 | BG64: 2.658069405 | BH64: 1.688466451
F65: -169550.1728 | G65: 0 | I65: 59 | J65: 47208 | K65: 35615114.15 | L65: 21346536.11 | M65: 195676.581 | P65: -35658.24053 | Q65: -101730.1037 | R65: 21404824.34 | S65: 14171593.67 | T65: 70857.96835 | W65: 35658.24053 | X65: -67820.06911 | Y65: 14210289.81 | AA65: 59 | AB65: 47208 | AC65: 1 | AD65: 0.3989960484 | AE65: 0.6010039516 | AG65: 59 | AH65: 47208 | AI65: 1 | AJ65: 0.4 | AK65: 0.6 | AR65: 59 | AS65: 47208 | AT65: 35615114.15 | AU65: 14246045.66 | AV65: 21369068.49 | AX65: 47208 | AY65: 0.007504183132 | AZ65: 0.005 | BA65: 0.009166666667 | BE65: 59 | BF65: 3.561511415 | BG65: 2.665345493 | BH65: 1.695501728
F66: -170256.6318 | G66: 0 | I66: 60 | J66: 47238 | K66: 35712119.86 | L66: 21404824.34 | M66: 196210.8898 | P66: -35755.85138 | Q66: -102153.9791 | R66: 21463125.4 | S66: 14210289.81 | T66: 71051.44905 | W66: 35755.85138 | X66: -68102.65273 | Y66: 14248994.46 | AA66: 60 | AB66: 47238 | AC66: 1 | AD66: 0.3989960415 | AE66: 0.6010039585 | AG66: 60 | AH66: 47238 | AI66: 1 | AJ66: 0.4 | AK66: 0.6 | AR66: 60 | AS66: 47238 | AT66: 35712119.86 | AU66: 14284847.94 | AV66: 21427271.92 | AX66: 47238 | AY66: 0.00750418316 | AZ66: 0.005 | BA66: 0.009166666667 | BE66: 60 | BF66: 3.571211986 | BG66: 2.672623389 | BH66: 1.702566318
F67: -170966.0345 | G67: 0 | I67: 60 | J67: 47269 | K67: 35809144.11 | L67: 21463125.4 | M67: 196745.3162 | P67: -35853.4865 | Q67: -102579.6207 | R67: 21521437.61 | S67: 14248994.46 | T67: 71244.97229 | W67: 35853.4865 | X67: -68386.41378 | Y67: 14287706.5 | AA67: 60 | AB67: 47269 | AC67: 1 | AD67: 0.3989960346 | AE67: 0.6010039654 | AG67: 60 | AH67: 47269 | AI67: 1 | AJ67: 0.4 | AK67: 0.6 | AR67: 60 | AS67: 47269 | AT67: 35809144.11 | AU67: 14323657.65 | AV67: 21485486.47 | AX67: 47269 | AY67: 0.007504183189 | AZ67: 0.005 | BA67: 0.009166666667 | BE67: 60 | BF67: 3.580914411 | BG67: 2.679902885 | BH67: 1.709660345
F68: -171678.3929 | G68: 0 | I68: 60 | J68: 47299 | K68: 35906184.1 | L68: 21521437.61 | M68: 197279.8448 | P68: -35951.1431 | Q68: -103007.0358 | R68: 21579759.28 | S68: 14287706.5 | T68: 71438.53251 | W68: 35951.1431 | X68: -68671.35717 | Y68: 14326424.82 | AA68: 60 | AB68: 47299 | AC68: 1 | AD68: 0.3989960276 | AE68: 0.6010039724 | AG68: 60 | AH68: 47299 | AI68: 1 | AJ68: 0.4 | AK68: 0.6 | AR68: 60 | AS68: 47299 | AT68: 35906184.1 | AU68: 14362473.64 | AV68: 21543710.46 | AX68: 47299 | AY68: 0.007504183218 | AZ68: 0.005 | BA68: 0.009166666667 | BE68: 60 | BF68: 3.59061841 | BG68: 2.687183773 | BH68: 1.716783929
F69: -172393.7196 | G69: 0 | I69: 60 | J69: 47330 | K69: 36003236.96 | L69: 21579759.28 | M69: 197814.46 | P69: -36048.8184 | Q69: -103436.2317 | R69: 21638088.69 | S69: 14326424.82 | T69: 71632.12411 | W69: 36048.8184 | X69: -68957.48783 | Y69: 14365148.28 | AA69: 60 | AB69: 47330 | AC69: 1 | AD69: 0.3989960206 | AE69: 0.6010039794 | AG69: 60 | AH69: 47330 | AI69: 1 | AJ69: 0.4 | AK69: 0.6 | AR69: 60 | AS69: 47330 | AT69: 36003236.96 | AU69: 14401294.79 | AV69: 21601942.18 | AX69: 47330 | AY69: 0.007504183248 | AZ69: 0.005 | BA69: 0.009166666667 | BE69: 60 | BF69: 3.600323696 | BG69: 2.694465842 | BH69: 1.723937196
F70: -173112.0267 | G70: 0 | I70: 60 | J70: 47361 | K70: 36100299.82 | L70: 21638088.69 | M70: 198349.1463 | P70: -36146.50955 | Q70: -103867.216 | R70: 21696424.11 | S70: 14365148.28 | T70: 71825.74138 | W70: 36146.50955 | X70: -69244.8107 | Y70: 14403875.72 | AA70: 60 | AB70: 47361 | AC70: 1 | AD70: 0.3989960135 | AE70: 0.6010039865 | AG70: =AA70 -> 60 | AH70: 47361 | AI70: =AJ70+AK70 -> 1 | AJ70: =VLOOKUP($AG70,$AM:$AP,3,FALSE) -> 0.4 | AK70: =VLOOKUP($AG70,$AM:$AP,4,FALSE) -> 0.6 | AR70: 60 | AS70: 47361 | AT70: =AU70+AV70 -> 36100299.82 | AU70: 14440119.93 | AV70: 21660179.89 | AX70: 47361 | AY70: 0.007504183277 | AZ70: 0.005 | BA70: 0.009166666667 | BE70: 60 | BF70: 3.610029982 | BG70: 2.701748877 | BH70: 1.731120267
F71: -173833.3269 | G71: 0 | I71: 60 | J71: 47391 | K71: =R71+Y71 -> 36197369.76 | L71: 21696424.11 | M71: =L71*BA71 -> 198883.8877 | P71: -36244.21369 | Q71: =F71*AK71 -> -104299.9961 | R71: =L71+M71+N71+O71+Q71+P71 -> 21754763.79 | S71: 14403875.72 | T71: =S71*AZ71 -> 72019.37858 | W71: 36244.21369 | X71: =F71*AJ71 -> -69533.33074 | Y71: =S71+T71+U71+V71+X71+W71 -> 14442605.98 | AA71: =I71 -> 60 | AB71: 47391 | AC71: =AD71+AE71 -> 1 | AD71: =Y71/K71 -> 0.3989960064 | AE71: =R71/K71 -> 0.6010039936 | AG71: 60 | AH71: 47391 | AI71: 1 | AJ71: 0.4 | AK71: 0.6 | AR71: =AG71 -> 60 | AS71: 47391 | AT71: 36197369.76 | AU71: =AJ71*K71 -> 14478947.91 | AV71: =AK71*K71 -> 21718421.86 | AX71: 47391 | AY71: =(((AZ71*Y71)+(BA71*R71))/(R71+Y71)) -> 0.007504183307 | AZ71: =$AZ$2/12 -> 0.005 | BA71: =$BA$2/12 -> 0.009166666667 | BE71: =I71 -> 60 | BF71: =(K71)/10000000 -> 3.619736976 | BG71: =(M71+T71)/100000 -> 2.709032662 | BH71: =-F71/100000 -> 1.738333269
F72: =F71*(1+($N$1/12)) -> -174557.6324 | G72: =G71*(1+(BB72)) -> 0 | I72: =IF(MONTH(J72)=MONTH($J$6),I71+1,I71) -> 60 | J72: =EOMONTH(J71,1) -> 47422 | K72: 36294443.83 | L72: =R71 -> 21754763.79 | M72: 199418.668 | P72: =AV71-R71 -> -36341.92792 | Q72: -104734.5794 | R72: 21813105.95 | S72: =Y71 -> 14442605.98 | T72: 72213.02989 | W72: =AU71-Y71 -> 36341.92792 | X72: -69823.05295 | Y72: 14481337.88 | AA72: 60 | AB72: 47422 | AC72: 1 | AD72: 0.3989959992 | AE72: 0.6010040008 | AG72: 60 | AH72: 47422 | AI72: 1 | AJ72: 0.4 | AK72: 0.6 | AR72: 60 | AS72: 47422 | AT72: 36294443.83 | AU72: 14517777.53 | AV72: 21776666.3 | AX72: =EOMONTH(AX71,1) -> 47422 | AY72: 0.007504183337 | AZ72: 0.005 | BA72: 0.009166666667 | BE72: 60 | BF72: 3.629444383 | BG72: 2.716316979 | BH72: 1.745576324
F73: -175284.9558 | G73: 0 | I73: 60 | J73: 47452 | K73: 36391519.03 | L73: 21813105.95 | M73: 199953.4712 | P73: -36439.64928 | Q73: -105170.9735 | R73: 21871448.8 | S73: 14481337.88 | T73: 72406.68941 | W73: 36439.64928 | X73: -70113.98234 | Y73: 14520070.24 | AA73: 60 | AB73: 47452 | AC73: 1 | AD73: 0.398995992 | AE73: 0.601004008 | AG73: 60 | AH73: 47452 | AI73: 1 | AJ73: 0.4 | AK73: 0.6 | AR73: 60 | AS73: 47452 | AT73: 36391519.03 | AU73: 14556607.61 | AV73: 21834911.42 | AX73: 47452 | AY73: 0.007504183367 | AZ73: 0.005 | BA73: 0.009166666667 | BE73: 60 | BF73: 3.639151903 | BG73: 2.723601606 | BH73: 1.752849558
F74: -176015.3098 | G74: 0 | I74: 60 | J74: 47483 | K74: 36488592.36 | L74: 21871448.8 | M74: 200488.2806 | P74: -36537.37482 | Q74: -105609.1859 | R74: 21929790.52 | S74: 14520070.24 | T74: 72600.35119 | W74: 36537.37482 | X74: -70406.12393 | Y74: 14558801.84 | AA74: 60 | AB74: 47483 | AC74: 1 | AD74: 0.3989959848 | AE74: 0.6010040152 | AG74: 60 | AH74: 47483 | AI74: 1 | AJ74: 0.4 | AK74: 0.6 | AR74: 60 | AS74: 47483 | AT74: 36488592.36 | AU74: 14595436.94 | AV74: 21893155.41 | AX74: 47483 | AY74: 0.007504183397 | AZ74: 0.005 | BA74: 0.009166666667 | BE74: 60 | BF74: 3.648859236 | BG74: 2.730886318 | BH74: 1.760153098
F75: -176748.707 | G75: 0 | I75: 60 | J75: 47514 | K75: 36585660.74 | L75: 21929790.52 | M75: 201023.0797 | P75: -36635.10153 | Q75: -106049.2242 | R75: 21988129.27 | S75: 14558801.84 | T75: 72794.0092 | W75: 36635.10153 | X75: -70699.48278 | Y75: 14597531.47 | AA75: 60 | AB75: 47514 | AC75: 1 | AD75: 0.3989959775 | AE75: 0.6010040225 | AG75: 60 | AH75: 47514 | AI75: 1 | AJ75: 0.4 | AK75: 0.6 | AR75: 60 | AS75: 47514 | AT75: 36585660.74 | AU75: 14634264.3 | AV75: 21951396.44 | AX75: 47514 | AY75: 0.007504183427 | AZ75: 0.005 | BA75: 0.009166666667 | BE75: 60 | BF75: 3.658566074 | BG75: 2.738170889 | BH75: 1.76748707
F76: -177485.1599 | G76: 0 | I76: 60 | J76: 47542 | K76: 36682721.09 | L76: 21988129.27 | M76: 201557.8516 | P76: -36732.82637 | Q76: -106491.0959 | R76: 22046463.2 | S76: 14597531.47 | T76: 72987.65734 | W76: 36732.82637 | X76: -70994.06396 | Y76: 14636257.89 | AA76: 60 | AB76: 47542 | AC76: 1 | AD76: 0.3989959702 | AE76: 0.6010040298 | AG76: 60 | AH76: 47542 | AI76: 1 | AJ76: 0.4 | AK76: 0.6 | AR76: 60 | AS76: 47542 | AT76: 36682721.09 | AU76: 14673088.43 | AV76: 22009632.65 | AX76: 47542 | AY76: 0.007504183458 | AZ76: 0.005 | BA76: 0.009166666667 | BE76: 60 | BF76: 3.668272109 | BG76: 2.74545509 | BH76: 1.774851599
F77: -178224.6814 | G77: 0 | I77: 60 | J77: 47573 | K77: 36779770.27 | L77: 22046463.2 | M77: 202092.5793 | P77: -36830.54625 | Q77: -106934.8088 | R77: 22104790.42 | S77: 14636257.89 | T77: 73181.28944 | W77: 36830.54625 | X77: -71289.87256 | Y77: 14674979.85 | AA77: 60 | AB77: 47573 | AC77: 1 | AD77: 0.3989959628 | AE77: 0.6010040372 | AG77: 60 | AH77: 47573 | AI77: 1 | AJ77: 0.4 | AK77: 0.6 | AR77: 60 | AS77: 47573 | AT77: 36779770.27 | AU77: 14711908.11 | AV77: 22067862.16 | AX77: 47573 | AY77: 0.007504183488 | AZ77: 0.005 | BA77: 0.009166666667 | BE77: 60 | BF77: 3.677977027 | BG77: 2.752738688 | BH77: 1.782246814
F78: -178967.2842 | G78: 0 | I78: 61 | J78: 47603 | K78: 36876805.13 | L78: 22104790.42 | M78: 202627.2455 | P78: -36928.25806 | Q78: -107380.3705 | R78: 22163109.04 | S78: 14674979.85 | T78: 73374.89926 | W78: 36928.25806 | X78: -71586.9137 | Y78: 14713696.1 | AA78: 61 | AB78: 47603 | AC78: 1 | AD78: 0.3989959554 | AE78: 0.6010040446 | AG78: 61 | AH78: 47603 | AI78: 1 | AJ78: 0.4 | AK78: 0.6 | AR78: 61 | AS78: 47603 | AT78: 36876805.13 | AU78: 14750722.05 | AV78: 22126083.08 | AX78: 47603 | AY78: 0.007504183519 | AZ78: 0.005 | BA78: 0.009166666667 | BE78: 61 | BF78: 3.687680513 | BG78: 2.760021448 | BH78: 1.789672842
F79: -179712.9813 | G79: 0 | I79: 61 | J79: 47634 | K79: 36973822.47 | L79: 22163109.04 | M79: 203161.8329 | P79: -37025.95866 | Q79: -107827.7888 | R79: 22221417.13 | S79: 14713696.1 | T79: 73568.48048 | W79: 37025.95866 | X79: -71885.1925 | Y79: 14752405.34 | AA79: 61 | AB79: 47634 | AC79: 1 | AD79: 0.3989959479 | AE79: 0.6010040521 | AG79: 61 | AH79: 47634 | AI79: 1 | AJ79: 0.4 | AK79: 0.6 | AR79: 61 | AS79: 47634 | AT79: 36973822.47 | AU79: 14789528.99 | AV79: 22184293.48 | AX79: 47634 | AY79: 0.007504183551 | AZ79: 0.005 | BA79: 0.009166666667 | BE79: 61 | BF79: 3.697382247 | BG79: 2.767303133 | BH79: 1.797129813
F80: -180461.7853 | G80: 0 | I80: 61 | J80: 47664 | K80: 37070819.03 | L80: 22221417.13 | M80: 203696.3236 | P80: -37123.64486 | Q80: -108277.0712 | R80: 22279712.73 | S80: 14752405.34 | T80: 73762.02671 | W80: 37123.64486 | X80: -72184.71414 | Y80: 14791106.3 | AA80: 61 | AB80: 47664 | AC80: 1 | AD80: 0.3989959404 | AE80: 0.6010040596 | AG80: 61 | AH80: 47664 | AI80: 1 | AJ80: 0.4 | AK80: 0.6 | AR80: 61 | AS80: 47664 | AT80: 37070819.03 | AU80: 14828327.61 | AV80: 22242491.42 | AX80: 47664 | AY80: 0.007504183582 | AZ80: 0.005 | BA80: 0.009166666667 | BE80: 61 | BF80: 3.707081903 | BG80: 2.774583504 | BH80: 1.804617853
F81: -181213.7095 | G81: 0 | I81: 61 | J81: 47695 | K81: 37167791.55 | L81: 22279712.73 | M81: 204230.7 | P81: -37221.31343 | Q81: -108728.2257 | R81: 22337993.89 | S81: 14791106.3 | T81: 73955.5315 | W81: 37221.31343 | X81: -72485.48378 | Y81: 14829797.66 | AA81: 61 | AB81: 47695 | AC81: 1 | AD81: 0.3989959328 | AE81: 0.6010040672 | AG81: 61 | AH81: 47695 | AI81: 1 | AJ81: 0.4 | AK81: 0.6 | AR81: 61 | AS81: 47695 | AT81: 37167791.55 | AU81: 14867116.62 | AV81: 22300674.93 | AX81: 47695 | AY81: 0.007504183613 | AZ81: 0.005 | BA81: 0.009166666667 | BE81: 61 | BF81: 3.716779155 | BG81: 2.781862315 | BH81: 1.812137095
F82: -181968.7666 | G82: 0 | I82: 61 | J82: 47726 | K82: 37264736.72 | L82: 22337993.89 | M82: 204764.944 | P82: -37318.96112 | Q82: -109181.2599 | R82: 22396258.62 | S82: 14829797.66 | T82: 74148.9883 | W82: 37318.96112 | X82: -72787.50663 | Y82: 14868478.1 | AA82: 61 | AB82: 47726 | AC82: 1 | AD82: 0.3989959252 | AE82: 0.6010040748 | AG82: 61 | AH82: 47726 | AI82: 1 | AJ82: 0.4 | AK82: 0.6 | AR82: 61 | AS82: 47726 | AT82: 37264736.72 | AU82: 14905894.69 | AV82: 22358842.03 | AX82: 47726 | AY82: 0.007504183645 | AZ82: 0.005 | BA82: 0.009166666667 | BE82: 61 | BF82: 3.726473672 | BG82: 2.789139323 | BH82: 1.819687666
F83: -182726.9698 | G83: 0 | I83: 61 | J83: 47756 | K83: 37361651.18 | L83: 22396258.62 | M83: 205299.0373 | P83: -37416.58463 | Q83: -109636.1819 | R83: 22454504.89 | S83: 14868478.1 | T83: 74342.39052 | W83: 37416.58463 | X83: -73090.78791 | Y83: 14907146.29 | AA83: 61 | AB83: 47756 | AC83: 1 | AD83: 0.3989959175 | AE83: 0.6010040825 | AG83: 61 | AH83: 47756 | AI83: 1 | AJ83: 0.4 | AK83: 0.6 | AR83: 61 | AS83: 47756 | AT83: 37361651.18 | AU83: 14944660.47 | AV83: 22416990.71 | AX83: 47756 | AY83: 0.007504183677 | AZ83: 0.005 | BA83: 0.009166666667 | BE83: 61 | BF83: 3.736165118 | BG83: 2.796414278 | BH83: 1.827269698
F84: -183488.3321 | G84: 0 | I84: 61 | J84: 47787 | K84: 37458531.54 | L84: 22454504.89 | M84: 205832.9615 | P84: -37514.18062 | Q84: -110092.9993 | R84: 22512730.67 | S84: 14907146.29 | T84: 74535.73145 | W84: 37514.18062 | X84: -73395.33286 | Y84: 14945800.87 | AA84: 61 | AB84: 47787 | AC84: 1 | AD84: 0.3989959098 | AE84: 0.6010040902 | AG84: 61 | AH84: 47787 | AI84: 1 | AJ84: 0.4 | AK84: 0.6 | AR84: 61 | AS84: 47787 | AT84: 37458531.54 | AU84: 14983412.62 | AV84: 22475118.92 | AX84: 47787 | AY84: 0.007504183709 | AZ84: 0.005 | BA84: 0.009166666667 | BE84: 61 | BF84: 3.745853154 | BG84: 2.803686929 | BH84: 1.834883321
F85: -184252.8669 | G85: 0 | I85: 61 | J85: 47817 | K85: 37555374.37 | L85: 22512730.67 | M85: 206366.6978 | P85: -37611.74572 | Q85: -110551.7201 | R85: 22570933.9 | S85: 14945800.87 | T85: 74729.00435 | W85: 37611.74572 | X85: -73701.14674 | Y85: 14984440.47 | AA85: 61 | AB85: 47817 | AC85: 1 | AD85: 0.398995902 | AE85: 0.601004098 | AG85: 61 | AH85: 47817 | AI85: 1 | AJ85: 0.4 | AK85: 0.6 | AR85: 61 | AS85: 47817 | AT85: 37555374.37 | AU85: 15022149.75 | AV85: 22533224.62 | AX85: 47817 | AY85: 0.007504183742 | AZ85: 0.005 | BA85: 0.009166666667 | BE85: 61 | BF85: 3.755537437 | BG85: 2.810957021 | BH85: 1.842528669
F86: -185020.5871 | G86: 0 | I86: 61 | J86: 47848 | K86: 37652176.22 | L86: 22570933.9 | M86: 206900.2274 | P86: -37709.27651 | Q86: -111012.3523 | R86: 22629112.5 | S86: 14984440.47 | T86: 74922.20237 | W86: 37709.27651 | X86: -74008.23485 | Y86: 15023063.72 | AA86: 61 | AB86: 47848 | AC86: 1 | AD86: 0.3989958942 | AE86: 0.6010041058 | AG86: 61 | AH86: 47848 | AI86: 1 | AJ86: 0.4 | AK86: 0.6 | AR86: 61 | AS86: 47848 | AT86: 37652176.22 | AU86: 15060870.49 | AV86: 22591305.73 | AX86: 47848 | AY86: 0.007504183774 | AZ86: 0.005 | BA86: 0.009166666667 | BE86: 61 | BF86: 3.765217622 | BG86: 2.818224298 | BH86: 1.850205871
F87: -185791.5063 | G87: 0 | I87: 61 | J87: 47879 | K87: 37748933.56 | L87: 22629112.5 | M87: 207433.5312 | P87: -37806.76955 | Q87: -111474.9038 | R87: 22687264.36 | S87: 15023063.72 | T87: 75115.31859 | W87: 37806.76955 | X87: -74316.6025 | Y87: 15061669.2 | AA87: 61 | AB87: 47879 | AC87: 1 | AD87: 0.3989958863 | AE87: 0.6010041137 | AG87: 61 | AH87: 47879 | AI87: 1 | AJ87: 0.4 | AK87: 0.6 | AR87: 61 | AS87: 47879 | AT87: 37748933.56 | AU87: 15099573.42 | AV87: 22649360.14 | AX87: 47879 | AY87: 0.007504183807 | AZ87: 0.005 | BA87: 0.009166666667 | BE87: 61 | BF87: 3.774893356 | BG87: 2.825488498 | BH87: 1.857915063
F88: -186565.6375 | G88: 0 | I88: 61 | J88: 47907 | K88: 37845642.86 | L88: 22687264.36 | M88: 207966.5899 | P88: -37904.22135 | Q88: -111939.3825 | R88: 22745387.34 | S88: 15061669.2 | T88: 75308.34601 | W88: 37904.22135 | X88: -74626.25501 | Y88: 15100255.52 | AA88: 61 | AB88: 47907 | AC88: 1 | AD88: 0.3989958784 | AE88: 0.6010041216 | AG88: 61 | AH88: 47907 | AI88: 1 | AJ88: 0.4 | AK88: 0.6 | AR88: 61 | AS88: 47907 | AT88: 37845642.86 | AU88: 15138257.14 | AV88: 22707385.72 | AX88: 47907 | AY88: 0.00750418384 | AZ88: 0.005 | BA88: 0.009166666667 | BE88: 61 | BF88: 3.784564286 | BG88: 2.83274936 | BH88: 1.865656375
F89: -187342.9943 | G89: 0 | I89: 61 | J89: 47938 | K89: 37942300.53 | L89: 22745387.34 | M89: 208499.384 | P89: -38001.62837 | Q89: -112405.7966 | R89: 22803479.3 | S89: 15100255.52 | T89: 75501.27758 | W89: 38001.62837 | X89: -74937.19774 | Y89: 15138821.22 | AA89: 61 | AB89: 47938 | AC89: 1 | AD89: 0.3989958704 | AE89: 0.6010041296 | AG89: 61 | AH89: 47938 | AI89: 1 | AJ89: 0.4 | AK89: 0.6 | AR89: 61 | AS89: 47938 | AT89: 37942300.53 | AU89: 15176920.21 | AV89: 22765380.32 | AX89: 47938 | AY89: 0.007504183873 | AZ89: 0.005 | BA89: 0.009166666667 | BE89: 61 | BF89: 3.794230053 | BG89: 2.840006616 | BH89: 1.873429943
F90: -188123.5902 | G90: 0 | I90: 62 | J90: 47968 | K90: 38038902.94 | L90: 22803479.3 | M90: 209031.8936 | P90: -38098.98705 | Q90: -112874.1541 | R90: 22861538.06 | S90: 15138821.22 | T90: 75694.10612 | W90: 38098.98705 | X90: -75249.43606 | Y90: 15177364.88 | AA90: 62 | AB90: 47968 | AC90: 1 | AD90: 0.3989958624 | AE90: 0.6010041376 | AG90: 62 | AH90: 47968 | AI90: 1 | AJ90: 0.4 | AK90: 0.6 | AR90: 62 | AS90: 47968 | AT90: 38038902.94 | AU90: 15215561.17 | AV90: 22823341.76 | AX90: 47968 | AY90: 0.007504183907 | AZ90: 0.005 | BA90: 0.009166666667 | BE90: 62 | BF90: 3.803890294 | BG90: 2.847259997 | BH90: 1.881235902
F91: -188907.4385 | G91: 0 | I91: 62 | J91: 47999 | K91: 38135446.42 | L91: 22861538.06 | M91: 209564.0988 | P91: -38196.29377 | Q91: -113344.4631 | R91: 22919561.4 | S91: 15177364.88 | T91: 75886.8244 | W91: 38196.29377 | X91: -75562.97538 | Y91: 15215885.02 | AA91: 62 | AB91: 47999 | AC91: 1 | AD91: 0.3989958543 | AE91: 0.6010041457 | AG91: 62 | AH91: 47999 | AI91: 1 | AJ91: 0.4 | AK91: 0.6 | AR91: 62 | AS91: 47999 | AT91: 38135446.42 | AU91: 15254178.57 | AV91: 22881267.85 | AX91: 47999 | AY91: 0.00750418394 | AZ91: 0.005 | BA91: 0.009166666667 | BE91: 62 | BF91: 3.813544642 | BG91: 2.854509232 | BH91: 1.889074385
F92: -189694.5528 | G92: 0 | I92: 62 | J92: 48029 | K92: 38231927.27 | L92: 22919561.4 | M92: 210095.9795 | P92: -38293.54489 | Q92: -113816.7317 | R92: 22977547.1 | S92: 15215885.02 | T92: 76079.42512 | W92: 38293.54489 | X92: -75877.82111 | Y92: 15254380.17 | AA92: 62 | AB92: 48029 | AC92: 1 | AD92: 0.3989958462 | AE92: 0.6010041538 | AG92: 62 | AH92: 48029 | AI92: 1 | AJ92: 0.4 | AK92: 0.6 | AR92: 62 | AS92: 48029 | AT92: 38231927.27 | AU92: 15292770.91 | AV92: 22939156.36 | AX92: 48029 | AY92: 0.007504183974 | AZ92: 0.005 | BA92: 0.009166666667 | BE92: 62 | BF92: 3.823192727 | BG92: 2.861754046 | BH92: 1.896945528
F93: -190484.9467 | G93: 0 | I93: 62 | J93: 48060 | K93: 38328341.74 | L93: 22977547.1 | M93: 210627.5151 | P93: -38390.73672 | Q93: -114290.968 | R93: 23035492.91 | S93: 15254380.17 | T93: 76271.90086 | W93: 38390.73672 | X93: -76193.9787 | Y93: 15292848.83 | AA93: 62 | AB93: 48060 | AC93: 1 | AD93: 0.398995838 | AE93: 0.601004162 | AG93: 62 | AH93: 48060 | AI93: 1 | AJ93: 0.4 | AK93: 0.6 | AR93: 62 | AS93: 48060 | AT93: 38328341.74 | AU93: 15331336.7 | AV93: 22997005.04 | AX93: 48060 | AY93: 0.007504184008 | AZ93: 0.005 | BA93: 0.009166666667 | BE93: 62 | BF93: 3.832834174 | BG93: 2.868994159 | BH93: 1.904849467
F94: -191278.634 | G94: 0 | I94: 62 | J94: 48091 | K94: 38424686.04 | L94: 23035492.91 | M94: 211158.685 | P94: -38487.86552 | Q94: -114767.1804 | R94: 23093396.55 | S94: 15292848.83 | T94: 76464.24415 | W94: 38487.86552 | X94: -76511.45361 | Y94: 15331289.49 | AA94: 62 | AB94: 48091 | AC94: 1 | AD94: 0.3989958297 | AE94: 0.6010041703 | AG94: 62 | AH94: 48091 | AI94: 1 | AJ94: 0.4 | AK94: 0.6 | AR94: 62 | AS94: 48091 | AT94: 38424686.04 | AU94: 15369874.41 | AV94: 23054811.62 | AX94: 48091 | AY94: 0.007504184043 | AZ94: 0.005 | BA94: 0.009166666667 | BE94: 62 | BF94: 3.842468604 | BG94: 2.876229292 | BH94: 1.91278634
F95: -192075.6283 | G95: 0 | I95: 62 | J95: 48121 | K95: 38520956.32 | L95: 23093396.55 | M95: 211689.4684 | P95: -38584.92751 | Q95: -115245.377 | R95: 23151255.71 | S95: 15331289.49 | T95: 76656.44744 | W95: 38584.92751 | X95: -76830.25133 | Y95: 15369700.61 | AA95: 62 | AB95: 48121 | AC95: 1 | AD95: 0.3989958214 | AE95: 0.6010041786 | AG95: 62 | AH95: 48121 | AI95: 1 | AJ95: 0.4 | AK95: 0.6 | AR95: 62 | AS95: 48121 | AT95: 38520956.32 | AU95: 15408382.53 | AV95: 23112573.79 | AX95: 48121 | AY95: 0.007504184077 | AZ95: 0.005 | BA95: 0.009166666667 | BE95: 62 | BF95: 3.852095632 | BG95: 2.883459158 | BH95: 1.920756283
F96: -192875.9435 | G96: 0 | I96: 62 | J96: 48152 | K96: 38617148.73 | L96: 23151255.71 | M96: 212219.844 | P96: -38681.91889 | Q96: -115725.5661 | R96: 23209068.07 | S96: 15369700.61 | T96: 76848.50305 | W96: 38681.91889 | X96: -77150.37738 | Y96: 15408080.66 | AA96: 62 | AB96: 48152 | AC96: 1 | AD96: 0.3989958131 | AE96: 0.6010041869 | AG96: 62 | AH96: 48152 | AI96: 1 | AJ96: 0.4 | AK96: 0.6 | AR96: 62 | AS96: 48152 | AT96: 38617148.73 | AU96: 15446859.49 | AV96: 23170289.24 | AX96: 48152 | AY96: 0.007504184112 | AZ96: 0.005 | BA96: 0.009166666667 | BE96: 62 | BF96: 3.861714873 | BG96: 2.890683471 | BH96: 1.928759435
F97: -193679.5932 | G97: 0 | I97: 62 | J97: 48182 | K97: 38713259.33 | L97: 23209068.07 | M97: 212749.7907 | P97: -38778.83578 | Q97: -116207.7559 | R97: 23266831.27 | S97: 15408080.66 | T97: 77040.40328 | W97: 38778.83578 | X97: -77471.83729 | Y97: 15446428.06 | AA97: 62 | AB97: 48182 | AC97: 1 | AD97: 0.3989958047 | AE97: 0.6010041953 | AG97: 62 | AH97: 48182 | AI97: 1 | AJ97: 0.4 | AK97: 0.6 | AR97: 62 | AS97: 48182 | AT97: 38713259.33 | AU97: 15485303.73 | AV97: 23227955.6 | AX97: 48182 | AY97: 0.007504184147 | AZ97: 0.005 | BA97: 0.009166666667 | BE97: 62 | BF97: 3.871325933 | BG97: 2.897901939 | BH97: 1.936795932
F98: -194486.5915 | G98: 0 | I98: 62 | J98: 48213 | K98: 38809284.16 | L98: 23266831.27 | M98: 213279.2867 | P98: -38875.6743 | Q98: -116691.9549 | R98: 23324542.93 | S98: 15446428.06 | T98: 77232.14028 | W98: 38875.6743 | X98: -77794.63661 | Y98: 15484741.23 | AA98: 62 | AB98: 48213 | AC98: 1 | AD98: 0.3989957962 | AE98: 0.6010042038 | AG98: 62 | AH98: 48213 | AI98: 1 | AJ98: 0.4 | AK98: 0.6 | AR98: 62 | AS98: 48213 | AT98: 38809284.16 | AU98: 15523713.67 | AV98: 23285570.5 | AX98: 48213 | AY98: 0.007504184182 | AZ98: 0.005 | BA98: 0.009166666667 | BE98: 62 | BF98: 3.880928416 | BG98: 2.905114269 | BH98: 1.944865915
F99: -195296.9523 | G99: 0 | I99: 62 | J99: 48244 | K99: 38905219.23 | L99: 23324542.93 | M99: 213808.3102 | P99: -38972.43049 | Q99: -117178.1714 | R99: 23382200.64 | S99: 15484741.23 | T99: 77423.70617 | W99: 38972.43049 | X99: -78118.78093 | Y99: 15523018.59 | AA99: 62 | AB99: 48244 | AC99: 1 | AD99: 0.3989957877 | AE99: 0.6010042123 | AG99: 62 | AH99: 48244 | AI99: 1 | AJ99: 0.4 | AK99: 0.6 | AR99: 62 | AS99: 48244 | AT99: 38905219.23 | AU99: 15562087.69 | AV99: 23343131.54 | AX99: 48244 | AY99: 0.007504184218 | AZ99: 0.005 | BA99: 0.009166666667 | BE99: 62 | BF99: 3.890521923 | BG99: 2.912320164 | BH99: 1.952969523
F100: -196110.6896 | G100: 0 | I100: 62 | J100: 48273 | K100: 39001060.47 | L100: 23382200.64 | M100: 214336.8392 | P100: -39069.10037 | Q100: -117666.4138 | R100: 23439801.96 | S100: 15523018.59 | T100: 77615.09295 | W100: 39069.10037 | X100: -78444.27585 | Y100: 15561258.51 | AA100: 62 | AB100: 48273 | AC100: 1 | AD100: 0.3989957791 | AE100: 0.6010042209 | AG100: 62 | AH100: 48273 | AI100: 1 | AJ100: 0.4 | AK100: 0.6 | AR100: 62 | AS100: 48273 | AT100: 39001060.47 | AU100: 15600424.19 | AV100: 23400636.28 | AX100: 48273 | AY100: 0.007504184254 | AZ100: 0.005 | BA100: 0.009166666667 | BE100: 62 | BF100: 3.900106047 | BG100: 2.919519321 | BH100: 1.961106896
F101: -196927.8175 | G101: 0 | I101: 62 | J101: 48304 | K101: 39096803.8 | L101: 23439801.96 | M101: 214864.8513 | P101: -39165.6799 | Q101: -118156.6905 | R101: 23497344.44 | S101: 15561258.51 | T101: 77806.29254 | W101: 39165.6799 | X101: -78771.127 | Y101: 15599459.35 | AA101: 62 | AB101: 48304 | AC101: 1 | AD101: 0.3989957705 | AE101: 0.6010042295 | AG101: 62 | AH101: 48304 | AI101: 1 | AJ101: 0.4 | AK101: 0.6 | AR101: 62 | AS101: 48304 | AT101: 39096803.8 | AU101: 15638721.52 | AV101: 23458082.28 | AX101: 48304 | AY101: 0.00750418429 | AZ101: 0.005 | BA101: 0.009166666667 | BE101: 62 | BF101: 3.90968038 | BG101: 2.926711439 | BH101: 1.969278175
F102: -197748.3501 | G102: 0 | I102: 63 | J102: 48334 | K102: 39192445.07 | L102: 23497344.44 | M102: 215392.3241 | P102: -39262.165 | Q102: -118649.01 | R102: 23554825.59 | S102: 15599459.35 | T102: 77997.29677 | W102: 39262.165 | X102: -79099.34003 | Y102: 15637619.48 | AA102: 63 | AB102: 48334 | AC102: 1 | AD102: 0.3989957618 | AE102: 0.6010042382 | AG102: 63 | AH102: 48334 | AI102: 1 | AJ102: 0.4 | AK102: 0.6 | AR102: 63 | AS102: 48334 | AT102: 39192445.07 | AU102: 15676978.03 | AV102: 23515467.04 | AX102: 48334 | AY102: 0.007504184326 | AZ102: 0.005 | BA102: 0.009166666667 | BE102: 63 | BF102: 3.919244507 | BG102: 2.933896208 | BH102: 1.977483501
F103: -198572.3015 | G103: 0 | I103: 63 | J103: 48365 | K103: 39287980.1 | L103: 23554825.59 | M103: 215919.2346 | P103: -39358.55156 | Q103: -119143.3809 | R103: 23612242.89 | S103: 15637619.48 | T103: 78188.09738 | W103: 39358.55156 | X103: -79428.92061 | Y103: 15675737.2 | AA103: 63 | AB103: 48365 | AC103: 1 | AD103: 0.398995753 | AE103: 0.601004247 | AG103: 63 | AH103: 48365 | AI103: 1 | AJ103: 0.4 | AK103: 0.6 | AR103: 63 | AS103: 48365 | AT103: 39287980.1 | AU103: 15715192.04 | AV103: 23572788.06 | AX103: 48365 | AY103: 0.007504184362 | AZ103: 0.005 | BA103: 0.009166666667 | BE103: 63 | BF103: 3.92879801 | BG103: 2.94107332 | BH103: 1.985723015
F104: -199399.6861 | G104: 0 | I104: 63 | J104: 48395 | K104: 39383404.66 | L104: 23612242.89 | M104: 216445.5599 | P104: -39454.83541 | Q104: -119639.8117 | R104: 23669593.81 | S104: 15675737.2 | T104: 78378.68602 | W104: 39454.83541 | X104: -79759.87445 | Y104: 15713810.85 | AA104: 63 | AB104: 48395 | AC104: 1 | AD104: 0.3989957442 | AE104: 0.6010042558 | AG104: 63 | AH104: 48395 | AI104: 1 | AJ104: 0.4 | AK104: 0.6 | AR104: 63 | AS104: 48395 | AT104: 39383404.66 | AU104: 15753361.86 | AV104: 23630042.79 | AX104: 48395 | AY104: 0.007504184399 | AZ104: 0.005 | BA104: 0.009166666667 | BE104: 63 | BF104: 3.938340466 | BG104: 2.948242459 | BH104: 1.993996861
F105: -200230.5181 | G105: 0 | I105: 63 | J105: 48426 | K105: 39478714.47 | L105: 23669593.81 | M105: 216971.2766 | P105: -39551.01233 | Q105: -120138.3109 | R105: 23726875.76 | S105: 15713810.85 | T105: 78569.05425 | W105: 39551.01233 | X105: -80092.20726 | Y105: 15751838.71 | AA105: 63 | AB105: 48426 | AC105: 1 | AD105: 0.3989957353 | AE105: 0.6010042647 | AG105: 63 | AH105: 48426 | AI105: 1 | AJ105: 0.4 | AK105: 0.6 | AR105: 63 | AS105: 48426 | AT105: 39478714.47 | AU105: 15791485.79 | AV105: 23687228.68 | AX105: 48426 | AY105: 0.007504184436 | AZ105: 0.005 | BA105: 0.009166666667 | BE105: 63 | BF105: 3.947871447 | BG105: 2.955403308 | BH105: 2.002305181
F106: -201064.812 | G106: 0 | I106: 63 | J106: 48457 | K106: 39573905.21 | L106: 23726875.76 | M106: 217496.3611 | P106: -39647.07807 | Q106: -120638.8872 | R106: 23784086.16 | S106: 15751838.71 | T106: 78759.19355 | W106: 39647.07807 | X106: -80425.92479 | Y106: 15789819.06 | AA106: 63 | AB106: 48457 | AC106: 1 | AD106: 0.3989957264 | AE106: 0.6010042736 | AG106: 63 | AH106: 48457 | AI106: 1 | AJ106: 0.4 | AK106: 0.6 | AR106: 63 | AS106: 48457 | AT106: 39573905.21 | AU106: 15829562.09 | AV106: 23744343.13 | AX106: 48457 | AY106: 0.007504184473 | AZ106: 0.005 | BA106: 0.009166666667 | BE106: 63 | BF106: 3.957390521 | BG106: 2.962555547 | BH106: 2.01064812
F107: -201902.582 | G107: 0 | I107: 63 | J107: 48487 | K107: 39668972.52 | L107: 23784086.16 | M107: 218020.7898 | P107: -39743.02832 | Q107: -121141.5492 | R107: 23841222.37 | S107: 15789819.06 | T107: 78949.09528 | W107: 39743.02832 | X107: -80761.03281 | Y107: 15827750.15 | AA107: 63 | AB107: 48487 | AC107: 1 | AD107: 0.3989957174 | AE107: 0.6010042826 | AG107: 63 | AH107: 48487 | AI107: 1 | AJ107: 0.4 | AK107: 0.6 | AR107: 63 | AS107: 48487 | AT107: 39668972.52 | AU107: 15867589.01 | AV107: 23801383.51 | AX107: 48487 | AY107: 0.007504184511 | AZ107: 0.005 | BA107: 0.009166666667 | BE107: 63 | BF107: 3.966897252 | BG107: 2.96969885 | BH107: 2.01902582
F108: -202743.8428 | G108: 0 | I108: 63 | J108: 48518 | K108: 39763911.96 | L108: 23841222.37 | M108: 218544.5384 | P108: -39838.85874 | Q108: -121646.3057 | R108: 23898281.74 | S108: 15827750.15 | T108: 79138.75074 | W108: 39838.85874 | X108: -81097.53711 | Y108: 15865630.22 | AA108: 63 | AB108: 48518 | AC108: 1 | AD108: 0.3989957083 | AE108: 0.6010042917 | AG108: 63 | AH108: 48518 | AI108: 1 | AJ108: 0.4 | AK108: 0.6 | AR108: 63 | AS108: 48518 | AT108: 39763911.96 | AU108: 15905564.78 | AV108: 23858347.18 | AX108: 48518 | AY108: 0.007504184549 | AZ108: 0.005 | BA108: 0.009166666667 | BE108: 63 | BF108: 3.976391196 | BG108: 2.976832891 | BH108: 2.027438428
F109: -203588.6088 | G109: 0 | I109: 63 | J109: 48548 | K109: 39858719.09 | L109: 23898281.74 | M109: 219067.5826 | P109: -39934.56491 | Q109: -122153.1653 | R109: 23955261.59 | S109: 15865630.22 | T109: 79328.1511 | W109: 39934.56491 | X109: -81435.44351 | Y109: 15903457.49 | AA109: 63 | AB109: 48548 | AC109: 1 | AD109: 0.3989956992 | AE109: 0.6010043008 | AG109: 63 | AH109: 48548 | AI109: 1 | AJ109: 0.4 | AK109: 0.6 | AR109: 63 | AS109: 48548 | AT109: 39858719.09 | AU109: 15943487.63 | AV109: 23915231.45 | AX109: 48548 | AY109: 0.007504184587 | AZ109: 0.005 | BA109: 0.009166666667 | BE109: 63 | BF109: 3.985871909 | BG109: 2.983957337 | BH109: 2.035886088
F110: -204436.8947 | G110: 0 | I110: 63 | J110: 48579 | K110: 39953389.38 | L110: 23955261.59 | M110: 219589.898 | P110: -40030.14239 | Q110: -122662.1368 | R110: 24012159.21 | S110: 15903457.49 | T110: 79517.28746 | W110: 40030.14239 | X110: -81774.75786 | Y110: 15941230.16 | AA110: 63 | AB110: 48579 | AC110: 1 | AD110: 0.39899569 | AE110: 0.60100431 | AG110: 63 | AH110: 48579 | AI110: 1 | AJ110: 0.4 | AK110: 0.6 | AR110: 63 | AS110: 48579 | AT110: 39953389.38 | AU110: 15981355.75 | AV110: 23972033.63 | AX110: 48579 | AY110: 0.007504184625 | AZ110: 0.005 | BA110: 0.009166666667 | BE110: 63 | BF110: 3.995338938 | BG110: 2.991071854 | BH110: 2.044368947
F111: -205288.7151 | G111: 0 | I111: 63 | J111: 48610 | K111: 40047918.27 | L111: 24012159.21 | M111: 220111.4595 | P111: -40125.5867 | Q111: -123173.229 | R111: 24068971.86 | S111: 15941230.16 | T111: 79706.15082 | W111: 40125.5867 | X111: -82115.48602 | Y111: 15978946.42 | AA111: 63 | AB111: 48610 | AC111: 1 | AD111: 0.3989956808 | AE111: 0.6010043192 | AG111: 63 | AH111: 48610 | AI111: 1 | AJ111: 0.4 | AK111: 0.6 | AR111: 63 | AS111: 48610 | AT111: 40047918.27 | AU111: 16019167.31 | AV111: 24028750.96 | AX111: 48610 | AY111: 0.007504184663 | AZ111: 0.005 | BA111: 0.009166666667 | BE111: 63 | BF111: 4.004791827 | BG111: 2.998176103 | BH111: 2.052887151
F112: -206144.0847 | G112: 0 | I112: 63 | J112: 48638 | K112: 40142301.16 | L112: 24068971.86 | M112: 220632.242 | P112: -40220.89329 | Q112: -123686.4508 | R112: 24125696.76 | S112: 15978946.42 | T112: 79894.73208 | W112: 40220.89329 | X112: -82457.63388 | Y112: 16016604.41 | AA112: 63 | AB112: 48638 | AC112: 1 | AD112: 0.3989956715 | AE112: 0.6010043285 | AG112: 63 | AH112: 48638 | AI112: 1 | AJ112: 0.4 | AK112: 0.6 | AR112: 63 | AS112: 48638 | AT112: 40142301.16 | AU112: 16056920.47 | AV112: 24085380.7 | AX112: 48638 | AY112: 0.007504184702 | AZ112: 0.005 | BA112: 0.009166666667 | BE112: 63 | BF112: 4.014230116 | BG112: 3.005269741 | BH112: 2.061440847
F113: -207003.0184 | G113: 0 | I113: 63 | J113: 48669 | K113: 40236533.39 | L113: 24125696.76 | M113: 221152.2203 | P113: -40316.05756 | Q113: -124201.811 | R113: 24182331.11 | S113: 16016604.41 | T113: 80083.02204 | W113: 40316.05756 | X113: -82801.20735 | Y113: 16054202.28 | AA113: 63 | AB113: 48669 | AC113: 1 | AD113: 0.3989956621 | AE113: 0.6010043379 | AG113: 63 | AH113: 48669 | AI113: 1 | AJ113: 0.4 | AK113: 0.6 | AR113: 63 | AS113: 48669 | AT113: 40236533.39 | AU113: 16094613.35 | AV113: 24141920.03 | AX113: 48669 | AY113: 0.007504184741 | AZ113: 0.005 | BA113: 0.009166666667 | BE113: 63 | BF113: 4.023653339 | BG113: 3.012352423 | BH113: 2.070030184
F114: -207865.531 | G114: 0 | I114: 64 | J114: 48699 | K114: 40330610.24 | L114: 24182331.11 | M114: 221671.3685 | P114: -40411.07488 | Q114: -124719.3186 | R114: 24238872.08 | S114: 16054202.28 | T114: 80271.0114 | W114: 40411.07488 | X114: -83146.21238 | Y114: 16091738.15 | AA114: 64 | AB114: 48699 | AC114: 1 | AD114: 0.3989956527 | AE114: 0.6010043473 | AG114: 64 | AH114: 48699 | AI114: 1 | AJ114: 0.4 | AK114: 0.6 | AR114: 64 | AS114: 48699 | AT114: 40330610.24 | AU114: 16132244.09 | AV114: 24198366.14 | AX114: 48699 | AY114: 0.007504184781 | AZ114: 0.005 | BA114: 0.009166666667 | BE114: 64 | BF114: 4.033061024 | BG114: 3.019423799 | BH114: 2.07865531
F115: -208731.6373 | G115: 0 | I115: 64 | J115: 48730 | K115: 40424526.95 | L115: 24238872.08 | M115: 222189.6607 | P115: -40505.94055 | Q115: -125238.9824 | R115: 24295316.82 | S115: =Y114 -> 16091738.15 | T115: 80458.69077 | W115: 40505.94055 | X115: -83492.65494 | Y115: 16129210.13 | AA115: 64 | AB115: 48730 | AC115: 1 | AD115: 0.3989956432 | AE115: 0.6010043568 | AG115: 64 | AH115: 48730 | AI115: 1 | AJ115: 0.4 | AK115: 0.6 | AR115: 64 | AS115: 48730 | AT115: 40424526.95 | AU115: 16169810.78 | AV115: 24254716.17 | AX115: 48730 | AY115: 0.00750418482 | AZ115: 0.005 | BA115: 0.009166666667 | BE115: 64 | BF115: 4.042452695 | BG115: 3.026483515 | BH115: 2.087316373
F116: -209601.3525 | G116: 0 | I116: 64 | J116: 48760 | K116: 40518278.72 | L116: 24295316.82 | M116: 222707.0708 | P116: -40600.64984 | Q116: -125760.8115 | R116: 24351662.43 | S116: 16129210.13 | T116: 80646.05065 | W116: 40600.64984 | X116: -83840.541 | Y116: 16166616.29 | AA116: 64 | AB116: 48760 | AC116: 1 | AD116: 0.3989956336 | AE116: 0.6010043664 | AG116: 64 | AH116: 48760 | AI116: 1 | AJ116: 0.4 | AK116: 0.6 | AR116: 64 | AS116: 48760 | AT116: 40518278.72 | AU116: 16207311.49 | AV116: 24310967.23 | AX116: 48760 | AY116: 0.00750418486 | AZ116: 0.005 | BA116: 0.009166666667 | BE116: 64 | BF116: 4.051827872 | BG116: 3.033531215 | BH116: 2.096013525
F117: -210474.6915 | G117: 0 | I117: 64 | J117: 48791 | K117: 40611860.68 | L117: 24351662.43 | M117: 223223.5723 | P117: -40695.19795 | Q117: -126284.8149 | R117: 24407905.99 | S117: 16166616.29 | T117: 80833.08145 | W117: 40695.19795 | X117: -84189.87659 | Y117: 16203954.69 | AA117: 64 | AB117: 48791 | AC117: 1 | AD117: 0.398995624 | AE117: 0.601004376 | AG117: 64 | AH117: 48791 | AI117: 1 | AJ117: 0.4 | AK117: 0.6 | AR117: 64 | AS117: 48791 | AT117: 40611860.68 | AU117: 16244744.27 | AV117: 24367116.41 | AX117: 48791 | AY117: 0.0075041849 | AZ117: 0.005 | BA117: 0.009166666667 | BE117: 64 | BF117: 4.061186068 | BG117: 3.040566537 | BH117: 2.104746915
F118: -211351.6693 | G118: 0 | I118: 64 | J118: 48822 | K118: 40705267.92 | L118: 24407905.99 | M118: 223739.1382 | P118: -40789.58004 | Q118: -126811.0016 | R118: 24464044.55 | S118: 16203954.69 | T118: 81019.77346 | W118: 40789.58004 | X118: -84540.66774 | Y118: 16241223.38 | AA118: 64 | AB118: 48822 | AC118: 1 | AD118: 0.3989956142 | AE118: 0.6010043858 | AG118: 64 | AH118: 48822 | AI118: 1 | AJ118: 0.4 | AK118: 0.6 | AR118: 64 | AS118: 48822 | AT118: 40705267.92 | AU118: 16282107.17 | AV118: 24423160.75 | AX118: 48822 | AY118: 0.007504184941 | AZ118: 0.005 | BA118: 0.009166666667 | BE118: 64 | BF118: 4.070526792 | BG118: 3.047589117 | BH118: 2.113516693
F119: -212232.3013 | G119: 0 | I119: 64 | J119: 48852 | K119: 40798495.48 | L119: 24464044.55 | M119: 224253.7417 | P119: -40883.79121 | Q119: -127339.3808 | R119: 24520075.11 | S119: 16241223.38 | T119: 81206.11689 | W119: 40883.79121 | X119: -84892.92052 | Y119: 16278420.37 | AA119: 64 | AB119: 48852 | AC119: 1 | AD119: 0.3989956045 | AE119: 0.6010043955 | AG119: 64 | AH119: 48852 | AI119: 1 | AJ119: 0.4 | AK119: 0.6 | AR119: 64 | AS119: 48852 | AT119: 40798495.48 | AU119: 16319398.19 | AV119: 24479097.29 | AX119: 48852 | AY119: 0.007504184981 | AZ119: 0.005 | BA119: 0.009166666667 | BE119: 64 | BF119: 4.079849548 | BG119: 3.054598586 | BH119: 2.122323013
F120: -213116.6026 | G120: 0 | I120: 64 | J120: 48883 | K120: 40891538.33 | L120: 24520075.11 | M120: 224767.3552 | P120: -40977.82653 | Q120: -127869.9615 | R120: 24575994.68 | S120: 16278420.37 | T120: 81392.10183 | W120: 40977.82653 | X120: -85246.64102 | Y120: 16315543.65 | AA120: 64 | AB120: 48883 | AC120: 1 | AD120: 0.3989955946 | AE120: 0.6010044054 | AG120: 64 | AH120: 48883 | AI120: 1 | AJ120: 0.4 | AK120: 0.6 | AR120: 64 | AS120: 48883 | AT120: 40891538.33 | AU120: 16356615.33 | AV120: 24534923 | AX120: 48883 | AY120: 0.007504185022 | AZ120: 0.005 | BA120: 0.009166666667 | BE120: 64 | BF120: 4.089153833 | BG120: 3.06159457 | BH120: 2.131166026
F121: -214004.5884 | G121: 0 | I121: 64 | J121: 48913 | K121: 40984391.42 | L121: 24575994.68 | M121: 225279.9513 | P121: -41071.68099 | Q121: -128402.753 | R121: 24631800.2 | S121: 16315543.65 | T121: 81577.71826 | W121: 41071.68099 | X121: -85601.83536 | Y121: 16352591.22 | AA121: 64 | AB121: 48913 | AC121: 1 | AD121: 0.3989955847 | AE121: 0.6010044153 | AG121: 64 | AH121: 48913 | AI121: 1 | AJ121: 0.4 | AK121: 0.6 | AR121: 64 | AS121: 48913 | AT121: 40984391.42 | AU121: 16393756.57 | AV121: 24590634.85 | AX121: 48913 | AY121: 0.007504185064 | AZ121: 0.005 | BA121: 0.009166666667 | BE121: 64 | BF121: 4.098439142 | BG121: 3.068576695 | BH121: 2.140045884
F122: -214896.2742 | G122: 0 | I122: 64 | J122: 48944 | K122: 41077049.6 | L122: 24631800.2 | M122: 225791.5018 | P122: -41165.34954 | Q122: -128937.7645 | R122: 24687488.59 | S122: 16352591.22 | T122: 81762.95608 | W122: 41165.34954 | X122: -85958.50967 | Y122: 16389561.01 | AA122: 64 | AB122: 48944 | AC122: 1 | AD122: 0.3989955747 | AE122: 0.6010044253 | AG122: 64 | AH122: 48944 | AI122: 1 | AJ122: 0.4 | AK122: 0.6 | AR122: 64 | AS122: 48944 | AT122: 41077049.6 | AU122: 16430819.84 | AV122: 24646229.76 | AX122: 48944 | AY122: 0.007504185105 | AZ122: 0.005 | BA122: 0.009166666667 | BE122: 64 | BF122: 4.10770496 | BG122: 3.075544579 | BH122: 2.148962742
F123: -215791.6753 | G123: 0 | I123: 64 | J123: 48975 | K123: 41169507.71 | L123: 24687488.59 | M123: 226301.9787 | P123: -41258.82708 | Q123: -129475.0052 | R123: 24743056.73 | S123: 16389561.01 | T123: 81947.80506 | W123: 41258.82708 | X123: -86316.67013 | Y123: 16426450.97 | AA123: 64 | AB123: 48975 | AC123: 1 | AD123: 0.3989955647 | AE123: 0.6010044353 | AG123: 64 | AH123: 48975 | AI123: 1 | AJ123: 0.4 | AK123: 0.6 | AR123: 64 | AS123: 48975 | AT123: 41169507.71 | AU123: 16467803.08 | AV123: 24701704.62 | AX123: 48975 | AY123: 0.007504185147 | AZ123: 0.005 | BA123: 0.009166666667 | BE123: 64 | BF123: 4.116950771 | BG123: 3.082497838 | BH123: 2.157916753
F124: -216690.8073 | G124: 0 | I124: 64 | J124: 49003 | K124: 41261760.51 | L124: 24743056.73 | M124: 226811.3534 | P124: -41352.10845 | Q124: -130014.4844 | R124: 24798501.49 | S124: 16426450.97 | T124: 82132.25487 | W124: 41352.10845 | X124: -86676.32292 | Y124: 16463259.02 | AA124: 64 | AB124: 49003 | AC124: 1 | AD124: 0.3989955545 | AE124: 0.6010044455 | AG124: 64 | AH124: 49003 | AI124: 1 | AJ124: 0.4 | AK124: 0.6 | AR124: 64 | AS124: 49003 | AT124: 41261760.51 | AU124: 16504704.2 | AV124: 24757056.31 | AX124: 49003 | AY124: 0.007504185189 | AZ124: 0.005 | BA124: 0.009166666667 | BE124: 64 | BF124: 4.126176051 | BG124: 3.089436083 | BH124: 2.166908073
F125: -217593.6857 | G125: 0 | I125: 64 | J125: 49034 | K125: 41353802.72 | L125: 24798501.49 | M125: 227319.597 | P125: -41445.18843 | Q125: -130556.2114 | R125: 24853819.69 | S125: 16463259.02 | T125: 82316.29508 | W125: 41445.18843 | X125: -87037.47427 | Y125: 16499983.02 | AA125: 64 | AB125: 49034 | AC125: 1 | AD125: 0.3989955443 | AE125: 0.6010044557 | AG125: 64 | AH125: 49034 | AI125: 1 | AJ125: 0.4 | AK125: 0.6 | AR125: 64 | AS125: 49034 | AT125: 41353802.72 | AU125: 16541521.09 | AV125: 24812281.63 | AX125: 49034 | AY125: 0.007504185232 | AZ125: 0.005 | BA125: 0.009166666667 | BE125: 64 | BF125: 4.135380272 | BG125: 3.096358921 | BH125: 2.175936857
F126: -218500.326 | G126: 0 | I126: 65 | J126: 49064 | K126: 41445628.99 | L126: 24853819.69 | M126: 227826.6805 | P126: -41538.06177 | Q126: -131100.1956 | R126: 24909008.11 | S126: 16499983.02 | T126: 82499.91512 | W126: 41538.06177 | X126: -87400.13041 | Y126: 16536620.87 | AA126: 65 | AB126: 49064 | AC126: 1 | AD126: 0.398995534 | AE126: 0.601004466 | AG126: 65 | AH126: 49064 | AI126: 1 | AJ126: 0.4 | AK126: 0.6 | AR126: 65 | AS126: 49064 | AT126: 41445628.99 | AU126: 16578251.59 | AV126: 24867377.39 | AX126: 49064 | AY126: 0.007504185275 | AZ126: 0.005 | BA126: 0.009166666667 | BE126: 65 | BF126: 4.144562899 | BG126: 3.103265956 | BH126: 2.18500326
F127: -219410.7441 | G127: 0 | I127: 65 | J127: 49095 | K127: 41537233.92 | L127: 24909008.11 | M127: 228332.5744 | P127: -41630.72313 | Q127: -131646.4464 | R127: 24964063.52 | S127: 16536620.87 | T127: 82683.10435 | W127: 41630.72313 | X127: -87764.29762 | Y127: 16573170.4 | AA127: 65 | AB127: 49095 | AC127: 1 | AD127: 0.3989955237 | AE127: 0.6010044763 | AG127: 65 | AH127: 49095 | AI127: 1 | AJ127: 0.4 | AK127: 0.6 | AR127: 65 | AS127: 49095 | AT127: 41537233.92 | AU127: 16614893.57 | AV127: 24922340.35 | AX127: 49095 | AY127: 0.007504185318 | AZ127: 0.005 | BA127: 0.009166666667 | BE127: 65 | BF127: 4.153723392 | BG127: 3.110156787 | BH127: 2.194107441
F128: -220324.9555 | G128: 0 | I128: 65 | J128: 49125 | K128: 41628612.07 | L128: 24964063.52 | M128: 228837.2489 | P128: -41723.16714 | Q128: -132194.9733 | R128: 25018982.63 | S128: 16573170.4 | T128: 82865.852 | W128: 41723.16714 | X128: -88129.98219 | Y128: 16609629.44 | AA128: 65 | AB128: 49125 | AC128: 1 | AD128: 0.3989955133 | AE128: 0.6010044867 | AG128: 65 | AH128: 49125 | AI128: 1 | AJ128: 0.4 | AK128: 0.6 | AR128: 65 | AS128: 49125 | AT128: 41628612.07 | AU128: 16651444.83 | AV128: 24977167.24 | AX128: 49125 | AY128: 0.007504185361 | AZ128: 0.005 | BA128: 0.009166666667 | BE128: 65 | BF128: 4.162861207 | BG128: 3.117031009 | BH128: 2.203249555
F129: -221242.9761 | G129: 0 | I129: 65 | J129: 49156 | K129: 41719757.91 | L129: 25018982.63 | M129: 229340.6741 | P129: -41815.38837 | Q129: -132745.7857 | R129: 25073762.13 | S129: 16609629.44 | T129: 83048.14719 | W129: 41815.38837 | X129: -88497.19045 | Y129: 16645995.78 | AA129: 65 | AB129: 49156 | AC129: 1 | AD129: 0.3989955028 | AE129: 0.6010044972 | AG129: 65 | AH129: 49156 | AI129: 1 | AJ129: 0.4 | AK129: 0.6 | AR129: 65 | AS129: 49156 | AT129: 41719757.91 | AU129: 16687903.16 | AV129: 25031854.75 | AX129: 49156 | AY129: 0.007504185405 | AZ129: 0.005 | BA129: 0.009166666667 | BE129: 65 | BF129: 4.171975791 | BG129: 3.123888213 | BH129: 2.212429761
F130: -222164.8219 | G130: 0 | I130: 65 | J130: 49187 | K130: 41810665.89 | L130: 25073762.13 | M130: 229842.8195 | P130: -41907.38132 | Q130: -133298.8931 | R130: 25128398.67 | S130: 16645995.78 | T130: 83229.97891 | W130: 41907.38132 | X130: -88865.92875 | Y130: 16682267.21 | AA130: 65 | AB130: 49187 | AC130: 1 | AD130: 0.3989954922 | AE130: 0.6010045078 | AG130: 65 | AH130: 49187 | AI130: 1 | AJ130: 0.4 | AK130: 0.6 | AR130: 65 | AS130: 49187 | AT130: 41810665.89 | AU130: 16724266.35 | AV130: 25086399.53 | AX130: 49187 | AY130: 0.007504185449 | AZ130: 0.005 | BA130: 0.009166666667 | BE130: 65 | BF130: 4.181066589 | BG130: 3.130727984 | BH130: 2.221648219
F131: -223090.5086 | G131: 0 | I131: 65 | J131: 49217 | K131: 41901330.37 | L131: 25128398.67 | M131: 230343.6545 | P131: -41999.14045 | Q131: -133854.3052 | R131: 25182888.88 | S131: 16682267.21 | T131: 83411.33607 | W131: 41999.14045 | X131: -89236.20345 | Y131: 16718441.49 | AA131: 65 | AB131: 49217 | AC131: 1 | AD131: 0.3989954815 | AE131: 0.6010045185 | AG131: 65 | AH131: 49217 | AI131: 1 | AJ131: 0.4 | AK131: 0.6 | AR131: 65 | AS131: 49217 | AT131: 41901330.37 | AU131: 16760532.15 | AV131: 25140798.22 | AX131: 49217 | AY131: 0.007504185494 | AZ131: 0.005 | BA131: 0.009166666667 | BE131: 65 | BF131: 4.190133037 | BG131: 3.137549906 | BH131: 2.230905086
F132: -224020.0524 | G132: 0 | I132: 65 | J132: 49248 | K132: 41991745.67 | L132: 25182888.88 | M132: 230843.1481 | P132: -42090.66016 | Q132: -134412.0314 | R132: 25237229.34 | S132: 16718441.49 | T132: 83592.20744 | W132: 42090.66016 | X132: -89608.02097 | Y132: 16754516.33 | AA132: 65 | AB132: 49248 | AC132: 1 | AD132: 0.3989954708 | AE132: 0.6010045292 | AG132: 65 | AH132: 49248 | AI132: 1 | AJ132: 0.4 | AK132: 0.6 | AR132: 65 | AS132: 49248 | AT132: 41991745.67 | AU132: 16796698.27 | AV132: 25195047.4 | AX132: 49248 | AY132: 0.007504185538 | AZ132: 0.005 | BA132: 0.009166666667 | BE132: 65 | BF132: 4.199174567 | BG132: 3.144353555 | BH132: 2.240200524
F133: -224953.4693 | G133: 0 | I133: 65 | J133: 49278 | K133: 42081906.05 | L133: 25237229.34 | M133: 231341.2689 | P133: -42181.93477 | Q133: -134972.0816 | R133: 25291416.59 | S133: 16754516.33 | T133: 83772.58167 | W133: 42181.93477 | X133: -89981.38772 | Y133: 16790489.46 | AA133: 65 | AB133: 49278 | AC133: 1 | AD133: 0.39899546 | AE133: 0.60100454 | AG133: 65 | AH133: 49278 | AI133: 1 | AJ133: 0.4 | AK133: 0.6 | AR133: 65 | AS133: 49278 | AT133: 42081906.05 | AU133: 16832762.42 | AV133: 25249143.63 | AX133: 49278 | AY133: 0.007504185583 | AZ133: 0.005 | BA133: 0.009166666667 | BE133: 65 | BF133: 4.208190605 | BG133: 3.151138506 | BH133: 2.249534693
F134: -225890.7754 | G134: 0 | I134: 65 | J134: 49309 | K134: 42171805.71 | L134: 25291416.59 | M134: 231837.9854 | P134: -42272.95857 | Q134: -135534.4653 | R134: 25345447.15 | S134: 16790489.46 | T134: 83952.44731 | W134: 42272.95857 | X134: -90356.31017 | Y134: 16826358.56 | AA134: 65 | AB134: 49309 | AC134: 1 | AD134: 0.3989954491 | AE134: 0.6010045509 | AG134: =AA134 -> 65 | AH134: 49309 | AI134: =AJ134+AK134 -> 1 | AJ134: =VLOOKUP($AG134,$AM:$AP,3,FALSE) -> 0.4 | AK134: =VLOOKUP($AG134,$AM:$AP,4,FALSE) -> 0.6 | AR134: 65 | AS134: 49309 | AT134: =AU134+AV134 -> 42171805.71 | AU134: 16868722.28 | AV134: 25303083.43 | AX134: 49309 | AY134: 0.007504185629 | AZ134: 0.005 | BA134: 0.009166666667 | BE134: 65 | BF134: 4.217180571 | BG134: 3.157904327 | BH134: 2.258907754
F135: -226831.987 | G135: 0 | I135: 65 | J135: 49340 | K135: =R135+Y135 -> 42261438.78 | L135: 25345447.15 | M135: =L135*BA135 -> 232333.2656 | P135: -42363.72578 | Q135: =F135*AK135 -> -136099.1922 | R135: =L135+M135+N135+O135+Q135+P135 -> 25399317.5 | S135: 16826358.56 | T135: =S135*AZ135 -> 84131.79279 | W135: 42363.72578 | X135: =F135*AJ135 -> -90732.79479 | Y135: =S135+T135+U135+V135+X135+W135 -> 16862121.28 | AA135: =I135 -> 65 | AB135: 49340 | AC135: =AD135+AE135 -> 1 | AD135: =Y135/K135 -> 0.3989954381 | AE135: =R135/K135 -> 0.6010045619 | AG135: 65 | AH135: 49340 | AI135: 1 | AJ135: 0.4 | AK135: 0.6 | AR135: =AG135 -> 65 | AS135: 49340 | AT135: 42261438.78 | AU135: =AJ135*K135 -> 16904575.51 | AV135: =AK135*K135 -> 25356863.27 | AX135: 49340 | AY135: =(((AZ135*Y135)+(BA135*R135))/(R135+Y135)) -> 0.007504185675 | AZ135: =$AZ$2/12 -> 0.005 | BA135: =$BA$2/12 -> 0.009166666667 | BE135: =I135 -> 65 | BF135: =(K135)/10000000 -> 4.226143878 | BG135: =(M135+T135)/100000 -> 3.164650584 | BH135: =-F135/100000 -> 2.26831987
F136: =F135*(1+($N$1/12)) -> -227777.1203 | G136: =G135*(1+(BB136)) -> 0 | I136: =IF(MONTH(J136)=MONTH($J$6),I135+1,I135) -> 65 | J136: =EOMONTH(J135,1) -> 49368 | K136: 42350799.35 | L136: =R135 -> 25399317.5 | M136: 232827.0771 | P136: =AV135-R135 -> -42454.23055 | Q136: -136666.2722 | R136: 25453024.07 | S136: =Y135 -> 16862121.28 | T136: 84310.60641 | W136: =AU135-Y135 -> 42454.23055 | X136: -91110.84811 | Y136: 16897775.27 | AA136: 65 | AB136: 49368 | AC136: 1 | AD136: 0.3989954271 | AE136: 0.6010045729 | AG136: 65 | AH136: 49368 | AI136: 1 | AJ136: 0.4 | AK136: 0.6 | AR136: 65 | AS136: 49368 | AT136: 42350799.35 | AU136: 16940319.74 | AV136: 25410479.61 | AX136: =EOMONTH(AX135,1) -> 49368 | AY136: 0.007504185721 | AZ136: 0.005 | BA136: 0.009166666667 | BE136: 65 | BF136: 4.235079935 | BG136: 3.171376835 | BH136: 2.277771203
F137: -228726.1916 | G137: 0 | I137: 65 | J137: 49399 | K137: 42439881.42 | L137: 25453024.07 | M137: 233319.3873 | P137: -42544.46699 | Q137: -137235.715 | R137: 25506563.28 | S137: 16897775.27 | T137: 84488.87636 | W137: 42544.46699 | X137: -91490.47664 | Y137: 16933318.14 | AA137: 65 | AB137: 49399 | AC137: 1 | AD137: 0.3989954159 | AE137: 0.6010045841 | AG137: 65 | AH137: 49399 | AI137: 1 | AJ137: 0.4 | AK137: 0.6 | AR137: 65 | AS137: 49399 | AT137: 42439881.42 | AU137: 16975952.57 | AV137: 25463928.85 | AX137: 49399 | AY137: 0.007504185767 | AZ137: 0.005 | BA137: 0.009166666667 | BE137: 65 | BF137: 4.243988142 | BG137: 3.178082637 | BH137: 2.287261916
F138: -229679.2174 | G138: 0 | I138: 66 | J138: 49429 | K138: 42528678.95 | L138: 25506563.28 | M138: 233810.1634 | P138: -42634.42913 | Q138: -137807.5304 | R138: 25559931.48 | S138: 16933318.14 | T138: 84666.59069 | W138: 42634.42913 | X138: -91871.68696 | Y138: 16968747.47 | AA138: 66 | AB138: 49429 | AC138: 1 | AD138: 0.3989954047 | AE138: 0.6010045953 | AG138: 66 | AH138: 49429 | AI138: 1 | AJ138: 0.4 | AK138: 0.6 | AR138: 66 | AS138: 49429 | AT138: 42528678.95 | AU138: 17011471.58 | AV138: 25517207.37 | AX138: 49429 | AY138: 0.007504185814 | AZ138: 0.005 | BA138: 0.009166666667 | BE138: 66 | BF138: 4.252867895 | BG138: 3.184767541 | BH138: 2.296792174
F139: -230636.2141 | G139: 0 | I139: 66 | J139: 49460 | K139: 42617185.85 | L139: 25559931.48 | M139: 234299.3719 | P139: -42724.11094 | Q139: -138381.7285 | R139: 25613125.02 | S139: 16968747.47 | T139: 84843.73735 | W139: 42724.11094 | X139: -92254.48565 | Y139: 17004060.83 | AA139: 66 | AB139: 49460 | AC139: 1 | AD139: 0.3989953934 | AE139: 0.6010046066 | AG139: 66 | AH139: 49460 | AI139: 1 | AJ139: 0.4 | AK139: 0.6 | AR139: 66 | AS139: 49460 | AT139: 42617185.85 | AU139: 17046874.34 | AV139: 25570311.51 | AX139: 49460 | AY139: 0.007504185861 | AZ139: 0.005 | BA139: 0.009166666667 | BE139: 66 | BF139: 4.261718585 | BG139: 3.191431093 | BH139: 2.306362141
F140: -231597.1984 | G140: 0 | I140: 66 | J140: 49490 | K140: 42705395.93 | L140: 25613125.02 | M140: 234786.9793 | P140: -42813.50636 | Q140: -138958.319 | R140: 25666140.17 | S140: 17004060.83 | T140: 85020.30417 | W140: 42813.50636 | X140: -92638.87934 | Y140: 17039255.76 | AA140: 66 | AB140: 49490 | AC140: 1 | AD140: 0.398995382 | AE140: 0.601004618 | AG140: 66 | AH140: 49490 | AI140: 1 | AJ140: 0.4 | AK140: 0.6 | AR140: 66 | AS140: 49490 | AT140: 42705395.93 | AU140: 17082158.37 | AV140: 25623237.56 | AX140: 49490 | AY140: 0.007504185908 | AZ140: 0.005 | BA140: 0.009166666667 | BE140: 66 | BF140: 4.270539593 | BG140: 3.198072835 | BH140: 2.315971984
F141: -232562.1867 | G141: 0 | I141: 66 | J141: 49521 | K141: 42793302.98 | L141: 25666140.17 | M141: 235272.9516 | P141: -42902.60922 | Q141: -139537.312 | R141: 25718973.2 | S141: 17039255.76 | T141: 85196.27882 | W141: 42902.60922 | X141: -93024.87467 | Y141: 17074329.78 | AA141: 66 | AB141: 49521 | AC141: 1 | AD141: 0.3989953705 | AE141: 0.6010046295 | AG141: 66 | AH141: 49521 | AI141: 1 | AJ141: 0.4 | AK141: 0.6 | AR141: 66 | AS141: 49521 | AT141: 42793302.98 | AU141: 17117321.19 | AV141: 25675981.79 | AX141: 49521 | AY141: 0.007504185956 | AZ141: 0.005 | BA141: 0.009166666667 | BE141: 66 | BF141: 4.279330298 | BG141: 3.204692304 | BH141: 2.325621867
F142: -233531.1958 | G142: 0 | I142: 66 | J142: 49552 | K142: 42880900.69 | L142: 25718973.2 | M142: 235757.2543 | P142: -42991.41333 | Q142: -140118.7175 | R142: 25771620.32 | S142: 17074329.78 | T142: 85371.64889 | W142: 42991.41333 | X142: -93412.47832 | Y142: 17109280.36 | AA142: 66 | AB142: 49552 | AC142: 1 | AD142: 0.398995359 | AE142: 0.601004641 | AG142: 66 | AH142: 49552 | AI142: 1 | AJ142: 0.4 | AK142: 0.6 | AR142: 66 | AS142: 49552 | AT142: 42880900.69 | AU142: 17152360.27 | AV142: 25728540.41 | AX142: 49552 | AY142: 0.007504186004 | AZ142: 0.005 | BA142: 0.009166666667 | BE142: 66 | BF142: 4.288090069 | BG142: 3.211289032 | BH142: 2.335311958
F143: -234504.2424 | G143: 0 | I143: 66 | J143: 49582 | K143: 42968182.7 | L143: 25771620.32 | M143: 236239.853 | P143: -43079.9124 | Q143: -140702.5455 | R143: 25824077.72 | S143: 17109280.36 | T143: 85546.40181 | W143: 43079.9124 | X143: -93801.69698 | Y143: 17144104.98 | AA143: 66 | AB143: 49582 | AC143: 1 | AD143: 0.3989953473 | AE143: 0.6010046527 | AG143: 66 | AH143: 49582 | AI143: 1 | AJ143: 0.4 | AK143: 0.6 | AR143: 66 | AS143: 49582 | AT143: 42968182.7 | AU143: 17187273.08 | AV143: 25780909.62 | AX143: 49582 | AY143: 0.007504186053 | AZ143: 0.005 | BA143: 0.009166666667 | BE143: 66 | BF143: 4.29681827 | BG143: 3.217862548 | BH143: 2.345042424
F144: -235481.3435 | G144: 0 | I144: 66 | J144: 49613 | K144: 43055142.59 | L144: 25824077.72 | M144: 236720.7124 | P144: -43168.1001 | Q144: -141288.8061 | R144: 25876341.53 | S144: 17144104.98 | T144: 85720.5249 | W144: 43168.1001 | X144: -94192.53738 | Y144: 17178801.07 | AA144: 66 | AB144: 49613 | AC144: 1 | AD144: 0.3989953356 | AE144: 0.6010046644 | AG144: 66 | AH144: 49613 | AI144: 1 | AJ144: 0.4 | AK144: 0.6 | AR144: 66 | AS144: 49613 | AT144: 43055142.59 | AU144: 17222057.04 | AV144: 25833085.55 | AX144: 49613 | AY144: 0.007504186102 | AZ144: 0.005 | BA144: 0.009166666667 | BE144: 66 | BF144: 4.305514259 | BG144: 3.224412373 | BH144: 2.354813435
F145: -236462.5157 | G145: 0 | I145: 66 | J145: 49643 | K145: 43141773.88 | L145: 25876341.53 | M145: 237199.7973 | P145: -43255.97003 | Q145: -141877.5094 | R145: 25928407.84 | S145: 17178801.07 | T145: 85894.00533 | W145: 43255.97003 | X145: -94585.00629 | Y145: 17213366.04 | AA145: 66 | AB145: 49643 | AC145: 1 | AD145: 0.3989953237 | AE145: 0.6010046763 | AG145: 66 | AH145: 49643 | AI145: 1 | AJ145: 0.4 | AK145: 0.6 | AR145: 66 | AS145: 49643 | AT145: 43141773.88 | AU145: 17256709.55 | AV145: 25885064.33 | AX145: 49643 | AY145: 0.007504186151 | AZ145: 0.005 | BA145: 0.009166666667 | BE145: 66 | BF145: 4.314177388 | BG145: 3.230938026 | BH145: 2.364625157
F146: -237447.7762 | G146: 0 | I146: 66 | J146: 49674 | K146: 43228070 | L146: 25928407.84 | M146: 237677.0719 | P146: -43343.51573 | Q146: -142468.6657 | R146: 25980272.73 | S146: 17213366.04 | T146: 86066.83018 | W146: 43343.51573 | X146: -94979.11048 | Y146: 17247797.27 | AA146: 66 | AB146: 49674 | AC146: 1 | AD146: 0.3989953118 | AE146: 0.6010046882 | AG146: 66 | AH146: 49674 | AI146: 1 | AJ146: 0.4 | AK146: 0.6 | AR146: 66 | AS146: 49674 | AT146: 43228070 | AU146: 17291228 | AV146: 25936842 | AX146: 49674 | AY146: 0.007504186201 | AZ146: 0.005 | BA146: 0.009166666667 | BE146: 66 | BF146: 4.322807 | BG146: 3.237439021 | BH146: 2.374477762
F147: -238437.1419 | G147: 0 | I147: 66 | J147: 49705 | K147: 43314024.35 | L147: 25980272.73 | M147: 238152.5001 | P147: -43430.73065 | Q147: -143062.2852 | R147: 26031932.22 | S147: 17247797.27 | T147: 86238.98636 | W147: 43430.73065 | X147: -95374.85678 | Y147: 17282092.13 | AA147: 66 | AB147: 49705 | AC147: 1 | AD147: 0.3989952998 | AE147: 0.6010047002 | AG147: 66 | AH147: 49705 | AI147: 1 | AJ147: 0.4 | AK147: 0.6 | AR147: 66 | AS147: 49705 | AT147: 43314024.35 | AU147: 17325609.74 | AV147: 25988414.61 | AX147: 49705 | AY147: 0.007504186251 | AZ147: 0.005 | BA147: 0.009166666667 | BE147: 66 | BF147: 4.331402435 | BG147: 3.243914864 | BH147: 2.384371419
F148: -239430.63 | G148: 0 | I148: 66 | J148: 49734 | K148: 43399630.22 | L148: 26031932.22 | M148: 238626.0453 | P148: -43517.60821 | Q148: -143658.378 | R148: 26083382.28 | S148: 17282092.13 | T148: 86410.46066 | W148: 43517.60821 | X148: -95772.25201 | Y148: 17316247.95 | AA148: 66 | AB148: 49734 | AC148: 1 | AD148: 0.3989952877 | AE148: 0.6010047123 | AG148: 66 | AH148: 49734 | AI148: 1 | AJ148: 0.4 | AK148: 0.6 | AR148: 66 | AS148: 49734 | AT148: 43399630.22 | AU148: 17359852.09 | AV148: 26039778.13 | AX148: 49734 | AY148: 0.007504186301 | AZ148: 0.005 | BA148: 0.009166666667 | BE148: 66 | BF148: 4.339963022 | BG148: 3.25036506 | BH148: 2.3943063
F149: -240428.2577 | G149: 0 | I149: 66 | J149: 49765 | K149: 43484880.88 | L149: 26083382.28 | M149: 239097.6709 | P149: -43604.14174 | Q149: -144256.9546 | R149: 26134618.85 | S149: 17316247.95 | T149: 86581.23974 | W149: 43604.14174 | X149: -96171.30306 | Y149: 17350262.03 | AA149: 66 | AB149: 49765 | AC149: 1 | AD149: 0.3989952755 | AE149: 0.6010047245 | AG149: 66 | AH149: 49765 | AI149: 1 | AJ149: 0.4 | AK149: 0.6 | AR149: 66 | AS149: 49765 | AT149: 43484880.88 | AU149: 17393952.35 | AV149: 26090928.53 | AX149: 49765 | AY149: 0.007504186352 | AZ149: 0.005 | BA149: 0.009166666667 | BE149: 66 | BF149: 4.348488088 | BG149: 3.256789106 | BH149: 2.404282577
F150: -241430.0421 | G150: 0 | I150: 67 | J150: 49795 | K150: 43569769.49 | L150: 26134618.85 | M150: 239567.3395 | P150: -43690.3245 | Q150: -144858.0252 | R150: 26185637.84 | S150: =Y149 -> 17350262.03 | T150: 86751.31013 | W150: 43690.3245 | X150: -96572.01682 | Y150: 17384131.64 | AA150: 67 | AB150: 49795 | AC150: 1 | AD150: 0.3989952632 | AE150: 0.6010047368 | AG150: 67 | AH150: 49795 | AI150: 1 | AJ150: 0.4 | AK150: 0.6 | AR150: 67 | AS150: 49795 | AT150: 43569769.49 | AU150: 17427907.79 | AV150: 26141861.69 | AX150: 49795 | AY150: 0.007504186403 | AZ150: 0.005 | BA150: 0.009166666667 | BE150: 67 | BF150: 4.356976949 | BG150: 3.263186496 | BH150: 2.414300421
F151: -242436.0006 | G151: 0 | I151: 67 | J151: 49826 | K151: 43654289.16 | L151: 26185637.84 | M151: 240035.0135 | P151: -43776.14971 | Q151: -145461.6003 | R151: 26236435.1 | S151: 17384131.64 | T151: 86920.65822 | W151: 43776.14971 | X151: -96974.40023 | Y151: 17417854.05 | AA151: 67 | AB151: 49826 | AC151: 1 | AD151: 0.3989952508 | AE151: 0.6010047492 | AG151: 67 | AH151: 49826 | AI151: 1 | AJ151: 0.4 | AK151: 0.6 | AR151: 67 | AS151: 49826 | AT151: 43654289.16 | AU151: 17461715.66 | AV151: 26192573.49 | AX151: 49826 | AY151: 0.007504186455 | AZ151: 0.005 | BA151: 0.009166666667 | BE151: 67 | BF151: 4.365428916 | BG151: 3.269556718 | BH151: 2.424360006
F152: -243446.1506 | G152: 0 | I152: 67 | J152: 49856 | K152: 43738432.93 | L152: 26236435.1 | M152: 240500.6551 | P152: -43861.61048 | Q152: -146067.6903 | R152: 26287006.46 | S152: 17417854.05 | T152: 87089.27026 | W152: 43861.61048 | X152: -97378.46023 | Y152: 17451426.47 | AA152: 67 | AB152: 49856 | AC152: 1 | AD152: 0.3989952384 | AE152: 0.6010047616 | AG152: 67 | AH152: 49856 | AI152: 1 | AJ152: 0.4 | AK152: 0.6 | AR152: 67 | AS152: 49856 | AT152: 43738432.93 | AU152: 17495373.17 | AV152: 26243059.76 | AX152: 49856 | AY152: 0.007504186507 | AZ152: 0.005 | BA152: 0.009166666667 | BE152: 67 | BF152: 4.373843293 | BG152: 3.275899254 | BH152: 2.434461506
F153: -244460.5095 | G153: 0 | I153: 67 | J153: 49887 | K153: 43822193.78 | L153: 26287006.46 | M153: 240964.2259 | P153: -43946.69989 | Q153: -146676.3057 | R153: 26337347.68 | S153: 17451426.47 | T153: 87257.13236 | W153: 43946.69989 | X153: -97784.20381 | Y153: 17484846.1 | AA153: 67 | AB153: 49887 | AC153: 1 | AD153: 0.3989952258 | AE153: 0.6010047742 | AG153: 67 | AH153: 49887 | AI153: 1 | AJ153: 0.4 | AK153: 0.6 | AR153: 67 | AS153: 49887 | AT153: 43822193.78 | AU153: 17528877.51 | AV153: 26293316.27 | AX153: 49887 | AY153: 0.007504186559 | AZ153: 0.005 | BA153: 0.009166666667 | BE153: 67 | BF153: 4.382219378 | BG153: 3.282213582 | BH153: 2.444605095
F154: -245479.095 | G154: 0 | I154: 67 | J154: 49918 | K154: 43905564.6 | L154: 26337347.68 | M154: 241425.6871 | P154: -44031.41093 | Q154: -147287.457 | R154: 26387454.5 | S154: 17484846.1 | T154: 87424.23051 | W154: 44031.41093 | X154: -98191.638 | Y154: 17518110.1 | AA154: 67 | AB154: 49918 | AC154: 1 | AD154: 0.3989952131 | AE154: 0.6010047869 | AG154: 67 | AH154: 49918 | AI154: 1 | AJ154: 0.4 | AK154: 0.6 | AR154: 67 | AS154: 49918 | AT154: 43905564.6 | AU154: 17562225.84 | AV154: 26343338.76 | AX154: 49918 | AY154: 0.007504186612 | AZ154: 0.005 | BA154: 0.009166666667 | BE154: 67 | BF154: 4.39055646 | BG154: 3.288499176 | BH154: 2.45479095
F155: -246501.9246 | G155: 0 | I155: 67 | J155: 49948 | K155: 43988538.23 | L155: 26387454.5 | M155: 241884.9996 | P155: -44115.73652 | Q155: -147901.1547 | R155: 26437322.61 | S155: 17518110.1 | T155: 87590.55052 | W155: 44115.73652 | X155: -98600.76982 | Y155: 17551215.62 | AA155: 67 | AB155: 49948 | AC155: 1 | AD155: 0.3989952003 | AE155: 0.6010047997 | AG155: 67 | AH155: 49948 | AI155: 1 | AJ155: 0.4 | AK155: 0.6 | AR155: 67 | AS155: 49948 | AT155: 43988538.23 | AU155: 17595415.29 | AV155: 26393122.94 | AX155: 49948 | AY155: 0.007504186665 | AZ155: 0.005 | BA155: 0.009166666667 | BE155: 67 | BF155: 4.398853823 | BG155: 3.294755501 | BH155: 2.465019246
F156: -247529.0159 | G156: 0 | I156: 67 | J156: 49979 | K156: 44071107.41 | L156: 26437322.61 | M156: 242342.1239 | P156: -44199.66951 | Q156: -148517.4095 | R156: 26486947.65 | S156: =Y155 -> 17551215.62 | T156: 87756.07811 | W156: 44199.66951 | X156: -99011.60636 | Y156: 17584159.76 | AA156: 67 | AB156: 49979 | AC156: 1 | AD156: 0.3989951874 | AE156: 0.6010048126 | AG156: 67 | AH156: 49979 | AI156: 1 | AJ156: 0.4 | AK156: 0.6 | AR156: 67 | AS156: 49979 | AT156: 44071107.41 | AU156: 17628442.97 | AV156: 26442664.45 | AX156: 49979 | AY156: 0.007504186719 | AZ156: 0.005 | BA156: 0.009166666667 | BE156: 67 | BF156: 4.407110741 | BG156: 3.30098202 | BH156: 2.475290159
F157: -248560.3868 | G157: 0 | I157: 67 | J157: 50009 | K157: 44153264.85 | L157: 26486947.65 | M157: 242797.0201 | P157: -44283.20269 | Q157: -149136.2321 | R157: 26536325.24 | S157: 17584159.76 | T157: 87920.79882 | W157: 44283.20269 | X157: -99424.15472 | Y157: 17616939.61 | AA157: 67 | AB157: 50009 | AC157: 1 | AD157: 0.3989951744 | AE157: 0.6010048256 | AG157: 67 | AH157: 50009 | AI157: 1 | AJ157: 0.4 | AK157: 0.6 | AR157: 67 | AS157: 50009 | AT157: 44153264.85 | AU157: 17661305.94 | AV157: 26491958.91 | AX157: 50009 | AY157: 0.007504186773 | AZ157: 0.005 | BA157: 0.009166666667 | BE157: 67 | BF157: 4.415326485 | BG157: 3.30717819 | BH157: 2.485603868
F158: -249596.0551 | G158: 0 | I158: 67 | J158: 50040 | K158: 44235003.14 | L158: 26536325.24 | M158: 243249.648 | P158: -44366.32877 | Q158: -149757.633 | R158: 26585450.92 | S158: 17616939.61 | T158: 88084.69805 | W158: 44366.32877 | X158: -99838.42203 | Y158: 17649552.21 | AA158: 67 | AB158: 50040 | AC158: 1 | AD158: 0.3989951614 | AE158: 0.6010048386 | AG158: 67 | AH158: 50040 | AI158: 1 | AJ158: 0.4 | AK158: 0.6 | AR158: 67 | AS158: 50040 | AT158: 44235003.14 | AU158: 17694001.25 | AV158: 26541001.88 | AX158: 50040 | AY158: 0.007504186828 | AZ158: 0.005 | BA158: 0.009166666667 | BE158: 67 | BF158: 4.423500314 | BG158: 3.313343461 | BH158: 2.495960551
F159: -250636.0386 | G159: 0 | I159: 67 | J159: 50071 | K159: 44316314.83 | L159: 26585450.92 | M159: 243699.9668 | P159: -44449.04037 | Q159: -150381.6232 | R159: 26634320.23 | S159: 17649552.21 | T159: 88247.76107 | W159: 44449.04037 | X159: -100254.4155 | Y159: 17681994.6 | AA159: 67 | AB159: 50071 | AC159: 1 | AD159: 0.3989951482 | AE159: 0.6010048518 | AG159: 67 | AH159: 50071 | AI159: 1 | AJ159: 0.4 | AK159: 0.6 | AR159: 67 | AS159: 50071 | AT159: 44316314.83 | AU159: 17726525.93 | AV159: 26589788.9 | AX159: 50071 | AY159: 0.007504186883 | AZ159: 0.005 | BA159: 0.009166666667 | BE159: 67 | BF159: 4.431631483 | BG159: 3.319477279 | BH159: 2.506360386
F160: -251680.3555 | G160: 0 | I160: 67 | J160: 50099 | K160: 44397192.38 | L160: 26634320.23 | M160: 244147.9354 | P160: -44531.33007 | Q160: -151008.2133 | R160: 26682928.62 | S160: 17681994.6 | T160: 88409.973 | W160: 44531.33007 | X160: -100672.1422 | Y160: 17714263.76 | AA160: 67 | AB160: 50099 | AC160: 1 | AD160: 0.3989951349 | AE160: 0.6010048651 | AG160: 67 | AH160: 50099 | AI160: 1 | AJ160: 0.4 | AK160: 0.6 | AR160: 67 | AS160: 50099 | AT160: 44397192.38 | AU160: 17758876.95 | AV160: 26638315.43 | AX160: 50099 | AY160: 0.007504186938 | AZ160: 0.005 | BA160: 0.009166666667 | BE160: 67 | BF160: 4.439719238 | BG160: 3.325579084 | BH160: 2.516803555
F161: -252729.0236 | G161: 0 | I161: 67 | J161: 50130 | K161: 44477628.19 | L161: 26682928.62 | M161: 244593.5123 | P161: -44613.19036 | Q161: -151637.4142 | R161: 26731271.53 | S161: 17714263.76 | T161: 88571.31881 | W161: 44613.19036 | X161: -101091.6094 | Y161: 17746356.66 | AA161: 67 | AB161: 50130 | AC161: 1 | AD161: 0.3989951215 | AE161: 0.6010048785 | AG161: 67 | AH161: 50130 | AI161: 1 | AJ161: 0.4 | AK161: 0.6 | AR161: 67 | AS161: 50130 | AT161: 44477628.19 | AU161: 17791051.27 | AV161: 26686576.91 | AX161: 50130 | AY161: 0.007504186994 | AZ161: 0.005 | BA161: 0.009166666667 | BE161: 67 | BF161: 4.447762819 | BG161: 3.331648311 | BH161: 2.527290236
F162: -253782.0612 | G162: 0 | I162: 68 | J162: 50160 | K162: 44557614.56 | L162: 26731271.53 | M162: 245036.6557 | P162: -44694.61365 | Q162: -152269.2367 | R162: 26779344.33 | S162: 17746356.66 | T162: 88731.78331 | W162: 44694.61365 | X162: -101512.8245 | Y162: 17778270.23 | AA162: 68 | AB162: 50160 | AC162: 1 | AD162: 0.398995108 | AE162: 0.601004892 | AG162: 68 | AH162: 50160 | AI162: 1 | AJ162: 0.4 | AK162: 0.6 | AR162: 68 | AS162: 50160 | AT162: 44557614.56 | AU162: 17823045.83 | AV162: 26734568.74 | AX162: 50160 | AY162: 0.00750418705 | AZ162: 0.005 | BA162: 0.009166666667 | BE162: 68 | BF162: 4.455761456 | BG162: 3.33768439 | BH162: 2.537820612
F163: -254839.4865 | G163: 0 | I163: 68 | J163: 50191 | K163: 44637143.75 | L163: 26779344.33 | M163: 245477.323 | P163: -44775.59228 | Q163: -152903.6919 | R163: 26827142.37 | S163: 17778270.23 | T163: 88891.35117 | W163: 44775.59228 | X163: -101935.7946 | Y163: 17810001.38 | AA163: 68 | AB163: 50191 | AC163: 1 | AD163: 0.3989950943 | AE163: 0.6010049057 | AG163: 68 | AH163: 50191 | AI163: 1 | AJ163: 0.4 | AK163: 0.6 | AR163: 68 | AS163: 50191 | AT163: 44637143.75 | AU163: 17854857.5 | AV163: 26782286.25 | AX163: 50191 | AY163: 0.007504187107 | AZ163: 0.005 | BA163: 0.009166666667 | BE163: 68 | BF163: 4.463714375 | BG163: 3.343686742 | BH163: 2.548394865
F164: -255901.3177 | G164: 0 | I164: 68 | J164: 50221 | K164: 44716207.91 | L164: 26827142.37 | M164: 245915.4717 | P164: -44856.11851 | Q164: -153540.7906 | R164: 26874660.93 | S164: 17810001.38 | T164: 89050.00691 | W164: 44856.11851 | X164: -102360.5271 | Y164: 17841546.98 | AA164: 68 | AB164: 50221 | AC164: 1 | AD164: 0.3989950806 | AE164: 0.6010049194 | AG164: 68 | AH164: 50221 | AI164: 1 | AJ164: 0.4 | AK164: 0.6 | AR164: 68 | AS164: 50221 | AT164: 44716207.91 | AU164: 17886483.17 | AV164: 26829724.75 | AX164: 50221 | AY164: 0.007504187164 | AZ164: 0.005 | BA164: 0.009166666667 | BE164: 68 | BF164: 4.471620791 | BG164: 3.349654786 | BH164: 2.559013177
F165: -256967.5732 | G165: 0 | I165: 68 | J165: 50252 | K165: 44794799.13 | L165: 26874660.93 | M165: 246351.0585 | P165: -44936.18454 | Q165: -154180.5439 | R165: 26921895.26 | S165: 17841546.98 | T165: 89207.7349 | W165: 44936.18454 | X165: -102787.0293 | Y165: 17872903.87 | AA165: 68 | AB165: 50252 | AC165: 1 | AD165: 0.3989950668 | AE165: 0.6010049332 | AG165: 68 | AH165: 50252 | AI165: 1 | AJ165: 0.4 | AK165: 0.6 | AR165: 68 | AS165: 50252 | AT165: 44794799.13 | AU165: 17917919.65 | AV165: 26876879.48 | AX165: 50252 | AY165: 0.007504187222 | AZ165: 0.005 | BA165: 0.009166666667 | BE165: 68 | BF165: 4.479479913 | BG165: 3.355587935 | BH165: 2.569675732
F166: -258038.2714 | G166: 0 | I166: 68 | J166: 50283 | K166: 44872909.42 | L166: 26921895.26 | M166: 246784.0399 | P166: -45015.78248 | Q166: -154822.9628 | R166: 26968840.56 | S166: 17872903.87 | T166: 89364.51936 | W166: 45015.78248 | X166: -103215.3086 | Y166: 17904068.86 | AA166: 68 | AB166: 50283 | AC166: 1 | AD166: 0.3989950528 | AE166: 0.6010049472 | AG166: 68 | AH166: 50283 | AI166: 1 | AJ166: 0.4 | AK166: 0.6 | AR166: 68 | AS166: 50283 | AT166: 44872909.42 | AU166: 17949163.77 | AV166: 26923745.65 | AX166: 50283 | AY166: 0.00750418728 | AZ166: 0.005 | BA166: 0.009166666667 | BE166: 68 | BF166: 4.487290942 | BG166: 3.361485593 | BH166: 2.580382714
F167: -259113.4308 | G167: 0 | I167: 68 | J167: 50313 | K167: 44950530.71 | L167: 26968840.56 | M167: 247214.3718 | P167: -45094.90435 | Q167: -155468.0585 | R167: 27015491.97 | S167: 17904068.86 | T167: 89520.34432 | W167: 45094.90435 | X167: -103645.3723 | Y167: 17935038.74 | AA167: 68 | AB167: 50313 | AC167: 1 | AD167: 0.3989950387 | AE167: 0.6010049613 | AG167: 68 | AH167: 50313 | AI167: 1 | AJ167: 0.4 | AK167: 0.6 | AR167: 68 | AS167: 50313 | AT167: 44950530.71 | AU167: 17980212.28 | AV167: 26970318.42 | AX167: 50313 | AY167: 0.007504187339 | AZ167: 0.005 | BA167: 0.009166666667 | BE167: 68 | BF167: 4.495053071 | BG167: 3.367347161 | BH167: 2.591134308
F168: -260193.0701 | G168: 0 | I168: 68 | J168: 50344 | K168: 45027654.84 | L168: 27015491.97 | M168: 247642.0097 | P168: -45173.54212 | Q168: -156115.8421 | R168: 27061844.59 | S168: 17935038.74 | T168: 89675.1937 | W168: 45173.54212 | X168: -104077.2281 | Y168: 17965810.25 | AA168: 68 | AB168: 50344 | AC168: 1 | AD168: 0.3989950246 | AE168: 0.6010049754 | AG168: 68 | AH168: 50344 | AI168: 1 | AJ168: 0.4 | AK168: 0.6 | AR168: 68 | AS168: 50344 | AT168: 45027654.84 | AU168: 18011061.94 | AV168: 27016592.9 | AX168: 50344 | AY168: 0.007504187398 | AZ168: 0.005 | BA168: 0.009166666667 | BE168: 68 | BF168: 4.502765484 | BG168: 3.373172034 | BH168: 2.601930701
F169: -261277.2079 | G169: 0 | I169: 68 | J169: 50374 | K169: 45104273.59 | L169: 27061844.59 | M169: 248066.9088 | P169: -45251.68765 | Q169: -156766.3248 | R169: 27107893.49 | S169: 17965810.25 | T169: 89829.05124 | W169: 45251.68765 | X169: -104510.8832 | Y169: 17996380.1 | AA169: 68 | AB169: 50374 | AC169: 1 | AD169: 0.3989950102 | AE169: 0.6010049898 | AG169: 68 | AH169: 50374 | AI169: 1 | AJ169: 0.4 | AK169: 0.6 | AR169: 68 | AS169: 50374 | AT169: 45104273.59 | AU169: 18041709.44 | AV169: 27062564.16 | AX169: 50374 | AY169: 0.007504187457 | AZ169: 0.005 | BA169: 0.009166666667 | BE169: 68 | BF169: 4.510427359 | BG169: 3.3789596 | BH169: 2.612772079
F170: -262365.863 | G170: 0 | I170: 68 | J170: 50405 | K170: 45180378.65 | L170: 27107893.49 | M170: 248489.0236 | P170: -45329.33276 | Q170: -157419.5178 | R170: 27153633.66 | S170: 17996380.1 | T170: 89981.90052 | W170: 45329.33276 | X170: -104946.3452 | Y170: 18026744.99 | AA170: 68 | AB170: 50405 | AC170: 1 | AD170: 0.3989949958 | AE170: 0.6010050042 | AG170: 68 | AH170: 50405 | AI170: 1 | AJ170: 0.4 | AK170: 0.6 | AR170: 68 | AS170: 50405 | AT170: 45180378.65 | AU170: 18072151.46 | AV170: 27108227.19 | AX170: 50405 | AY170: 0.007504187517 | AZ170: 0.005 | BA170: 0.009166666667 | BE170: 68 | BF170: 4.518037865 | BG170: 3.384709242 | BH170: 2.62365863
F171: -263459.0541 | G171: 0 | I171: 68 | J171: 50436 | K171: 45255961.63 | L171: 27153633.66 | M171: 248908.3086 | P171: -45406.46914 | Q171: -158075.4324 | R171: 27199060.07 | S171: 18026744.99 | T171: 90133.72496 | W171: 45406.46914 | X171: -105383.6216 | Y171: 18056901.56 | AA171: 68 | AB171: 50436 | AC171: 1 | AD171: 0.3989949813 | AE171: 0.6010050187 | AG171: 68 | AH171: 50436 | AI171: 1 | AJ171: 0.4 | AK171: 0.6 | AR171: 68 | AS171: 50436 | AT171: 45255961.63 | AU171: 18102384.65 | AV171: 27153576.98 | AX171: 50436 | AY171: 0.007504187578 | AZ171: 0.005 | BA171: 0.009166666667 | BE171: 68 | BF171: 4.525596163 | BG171: 3.390420335 | BH171: 2.634590541
F172: -264556.8001 | G172: 0 | I172: 68 | J172: 50464 | K172: 45331014.06 | L172: 27199060.07 | M172: 249324.7173 | P172: -45483.08845 | Q172: -158734.0801 | R172: 27244167.62 | S172: 18056901.56 | T172: 90284.50782 | W172: 45483.08845 | X172: -105822.72 | Y172: 18086846.44 | AA172: 68 | AB172: 50464 | AC172: 1 | AD172: 0.3989949666 | AE172: 0.6010050334 | AG172: 68 | AH172: 50464 | AI172: 1 | AJ172: 0.4 | AK172: 0.6 | AR172: 68 | AS172: 50464 | AT172: 45331014.06 | AU172: 18132405.62 | AV172: 27198608.43 | AX172: 50464 | AY172: 0.007504187639 | AZ172: 0.005 | BA172: 0.009166666667 | BE172: 68 | BF172: 4.533101406 | BG172: 3.396092251 | BH172: 2.645568001
F173: -265659.1201 | G173: 0 | I173: 68 | J173: 50495 | K173: 45405527.37 | L173: 27244167.62 | M173: 249738.2032 | P173: -45559.18222 | Q173: -159395.4721 | R173: 27288951.17 | S173: 18086846.44 | T173: 90434.2322 | W173: 45559.18222 | X173: -106263.648 | Y173: 18116576.21 | AA173: 68 | AB173: 50495 | AC173: 1 | AD173: 0.3989949518 | AE173: 0.6010050482 | AG173: 68 | AH173: 50495 | AI173: 1 | AJ173: 0.4 | AK173: 0.6 | AR173: 68 | AS173: 50495 | AT173: 45405527.37 | AU173: 18162210.95 | AV173: 27243316.42 | AX173: 50495 | AY173: 0.007504187701 | AZ173: 0.005 | BA173: 0.009166666667 | BE173: 68 | BF173: 4.540552737 | BG173: 3.401724354 | BH173: 2.656591201
F174: -266766.0331 | G174: 0 | I174: 69 | J174: 50525 | K174: 45479492.94 | L174: 27288951.17 | M174: 250148.719 | P174: -45634.74194 | Q174: -160059.6199 | R174: 27333405.52 | S174: 18116576.21 | T174: 90582.88104 | W174: 45634.74194 | X174: -106706.4132 | Y174: 18146087.42 | AA174: 69 | AB174: 50525 | AC174: 1 | AD174: 0.3989949369 | AE174: 0.6010050631 | AG174: 69 | AH174: 50525 | AI174: 1 | AJ174: 0.4 | AK174: 0.6 | AR174: 69 | AS174: 50525 | AT174: 45479492.94 | AU174: 18191797.18 | AV174: 27287695.76 | AX174: 50525 | AY174: 0.007504187763 | AZ174: 0.005 | BA174: 0.009166666667 | BE174: 69 | BF174: 4.547949294 | BG174: 3.407316001 | BH174: 2.667660331
F175: -267877.5583 | G175: 0 | I175: 69 | J175: 50556 | K175: 45552902.04 | L175: 27333405.52 | M175: 250556.2173 | P175: -45709.75899 | Q175: -160726.535 | R175: 27377525.45 | S175: 18146087.42 | T175: 90730.43709 | W175: 45709.75899 | X175: -107151.0233 | Y175: 18175376.59 | AA175: 69 | AB175: 50556 | AC175: 1 | AD175: 0.3989949219 | AE175: 0.6010050781 | AG175: 69 | AH175: 50556 | AI175: 1 | AJ175: 0.4 | AK175: 0.6 | AR175: 69 | AS175: 50556 | AT175: 45552902.04 | AU175: 18221160.81 | AV175: 27331741.22 | AX175: 50556 | AY175: 0.007504187825 | AZ175: 0.005 | BA175: 0.009166666667 | BE175: 69 | BF175: 4.555290204 | BG175: 3.412866544 | BH175: 2.678775583
F176: -268993.7148 | G176: 0 | I176: 69 | J176: 50586 | K176: 45625745.85 | L176: 27377525.45 | M176: 250960.6499 | P176: -45784.22467 | Q176: -161396.2289 | R176: 27421305.64 | S176: 18175376.59 | T176: 90876.88295 | W176: 45784.22467 | X176: -107597.4859 | Y176: 18204440.21 | AA176: 69 | AB176: 50586 | AC176: 1 | AD176: 0.3989949067 | AE176: 0.6010050933 | AG176: 69 | AH176: 50586 | AI176: 1 | AJ176: 0.4 | AK176: 0.6 | AR176: 69 | AS176: 50586 | AT176: 45625745.85 | AU176: 18250298.34 | AV176: 27375447.51 | AX176: 50586 | AY176: 0.007504187889 | AZ176: 0.005 | BA176: 0.009166666667 | BE176: 69 | BF176: 4.562574585 | BG176: 3.418375329 | BH176: 2.689937148
F177: -270114.5219 | G177: 0 | I177: 69 | J177: 50617 | K177: 45698015.5 | L177: 27421305.64 | M177: 251361.9684 | P177: -45858.1302 | Q177: -162068.7131 | R177: 27464740.77 | S177: 18204440.21 | T177: 91022.20106 | W177: 45858.1302 | X177: -108045.8088 | Y177: 18233274.73 | AA177: 69 | AB177: 50617 | AC177: 1 | AD177: 0.3989948914 | AE177: 0.6010051086 | AG177: 69 | AH177: 50617 | AI177: 1 | AJ177: 0.4 | AK177: 0.6 | AR177: 69 | AS177: 50617 | AT177: 45698015.5 | AU177: 18279206.2 | AV177: 27418809.3 | AX177: 50617 | AY177: 0.007504187952 | AZ177: 0.005 | BA177: 0.009166666667 | BE177: 69 | BF177: 4.56980155 | BG177: 3.423841694 | BH177: 2.701145219
F178: -271239.9991 | G178: 0 | I178: 69 | J178: 50648 | K178: 45769702 | L178: 27464740.77 | M178: 251760.1237 | P178: -45931.46672 | Q178: -162743.9994 | R178: 27507825.43 | S178: 18233274.73 | T178: 91166.37367 | W178: 45931.46672 | X178: -108495.9996 | Y178: 18261876.57 | AA178: 69 | AB178: 50648 | AC178: 1 | AD178: 0.398994876 | AE178: 0.601005124 | AG178: 69 | AH178: 50648 | AI178: 1 | AJ178: 0.4 | AK178: 0.6 | AR178: 69 | AS178: 50648 | AT178: 45769702 | AU178: 18307880.8 | AV178: 27461821.2 | AX178: 50648 | AY178: 0.007504188017 | AZ178: 0.005 | BA178: 0.009166666667 | BE178: 69 | BF178: 4.5769702 | BG178: 3.429264974 | BH178: 2.712399991
F179: -272370.1657 | G179: 0 | I179: 69 | J179: 50678 | K179: 45840796.28 | L179: 27507825.43 | M179: 252155.0664 | P179: -46004.22528 | Q179: -163422.0994 | R179: 27550554.17 | S179: 18261876.57 | T179: 91309.38287 | W179: 46004.22528 | X179: -108948.0663 | Y179: 18290242.12 | AA179: 69 | AB179: 50678 | AC179: 1 | AD179: 0.3989948605 | AE179: 0.6010051395 | AG179: 69 | AH179: 50678 | AI179: 1 | AJ179: 0.4 | AK179: 0.6 | AR179: 69 | AS179: 50678 | AT179: 45840796.28 | AU179: 18336318.51 | AV179: 27504477.77 | AX179: 50678 | AY179: 0.007504188081 | AZ179: 0.005 | BA179: 0.009166666667 | BE179: 69 | BF179: 4.584079628 | BG179: 3.434644493 | BH179: 2.723701657
F180: -273505.0414 | G180: 0 | I180: 69 | J180: 50709 | K180: 45911289.2 | L180: 27550554.17 | M180: 252546.7465 | P180: -46076.39684 | Q180: -164103.0249 | R180: 27592921.49 | S180: 18290242.12 | T180: 91451.21058 | W180: 46076.39684 | X180: -109402.0166 | Y180: 18318367.71 | AA180: 69 | AB180: 50709 | AC180: 1 | AD180: 0.3989948448 | AE180: 0.6010051552 | AG180: 69 | AH180: 50709 | AI180: 1 | AJ180: 0.4 | AK180: 0.6 | AR180: 69 | AS180: 50709 | AT180: 45911289.2 | AU180: 18364515.68 | AV180: 27546773.52 | AX180: 50709 | AY180: 0.007504188147 | AZ180: 0.005 | BA180: 0.009166666667 | BE180: 69 | BF180: 4.59112892 | BG180: 3.439979571 | BH180: 2.735050414
F181: -274644.6458 | G181: 0 | I181: 69 | J181: 50739 | K181: 45981171.51 | L181: 27592921.49 | M181: 252935.1137 | P181: -46147.97226 | Q181: -164786.7875 | R181: 27634921.85 | S181: 18318367.71 | T181: 91591.83854 | W181: 46147.97226 | X181: -109857.8583 | Y181: 18346249.66 | AA181: 69 | AB181: 50739 | AC181: 1 | AD181: 0.398994829 | AE181: 0.601005171 | AG181: 69 | AH181: 50739 | AI181: 1 | AJ181: 0.4 | AK181: 0.6 | AR181: 69 | AS181: 50739 | AT181: 45981171.51 | AU181: 18392468.6 | AV181: 27588702.9 | AX181: 50739 | AY181: 0.007504188213 | AZ181: 0.005 | BA181: 0.009166666667 | BE181: 69 | BF181: 4.598117151 | BG181: 3.445269522 | BH181: 2.746446458
F182: -275788.9985 | G182: 0 | I182: 69 | J182: 50770 | K182: 46050433.87 | L182: 27634921.85 | M182: 253320.1169 | P182: -46218.94235 | Q182: -165473.3991 | R182: 27676549.62 | S182: 18346249.66 | T182: 91731.2483 | W182: 46218.94235 | X182: -110315.5994 | Y182: 18373884.25 | AA182: 69 | AB182: 50770 | AC182: 1 | AD182: 0.398994813 | AE182: 0.601005187 | AG182: 69 | AH182: 50770 | AI182: 1 | AJ182: 0.4 | AK182: 0.6 | AR182: 69 | AS182: 50770 | AT182: 46050433.87 | AU182: 18420173.55 | AV182: 27630260.32 | AX182: 50770 | AY182: 0.007504188279 | AZ182: 0.005 | BA182: 0.009166666667 | BE182: 69 | BF182: 4.605043387 | BG182: 3.450513652 | BH182: 2.757889985
F183: -276938.1193 | G183: 0 | I183: 69 | J183: 50801 | K183: 46119066.88 | L183: 27676549.62 | M183: 253701.7049 | P183: -46289.29779 | Q183: -166162.8716 | R183: 27717799.16 | S183: 18373884.25 | T183: 91869.42126 | W183: 46289.29779 | X183: -110775.2477 | Y183: 18401267.72 | AA183: 69 | AB183: 50801 | AC183: 1 | AD183: 0.3989947969 | AE183: 0.6010052031 | AG183: 69 | AH183: 50801 | AI183: 1 | AJ183: 0.4 | AK183: 0.6 | AR183: 69 | AS183: 50801 | AT183: 46119066.88 | AU183: 18447626.75 | AV183: 27671440.13 | AX183: 50801 | AY183: 0.007504188346 | AZ183: 0.005 | BA183: 0.009166666667 | BE183: 69 | BF183: 4.611906688 | BG183: 3.455711261 | BH183: 2.769381193
F184: -278092.0281 | G184: 0 | I184: 69 | J184: 50829 | K184: 46187061.02 | L184: 27717799.16 | M184: 254079.8256 | P184: -46359.02919 | Q184: -166855.2169 | R184: 27758664.74 | S184: 18401267.72 | T184: 92006.33861 | W184: 46359.02919 | X184: -111236.8112 | Y184: 18428396.28 | AA184: 69 | AB184: 50829 | AC184: 1 | AD184: 0.3989947807 | AE184: 0.6010052193 | AG184: 69 | AH184: 50829 | AI184: 1 | AJ184: 0.4 | AK184: 0.6 | AR184: 69 | AS184: 50829 | AT184: 46187061.02 | AU184: 18474824.41 | AV184: 27712236.61 | AX184: 50829 | AY184: 0.007504188414 | AZ184: 0.005 | BA184: 0.009166666667 | BE184: 69 | BF184: 4.618706102 | BG184: 3.460861642 | BH184: 2.780920281
F185: -279250.7449 | G185: 0 | I185: 69 | J185: 50860 | K185: 46254406.68 | L185: 27758664.74 | M185: 254454.4268 | P185: -46428.12707 | Q185: -167550.4469 | R185: 27799140.59 | S185: 18428396.28 | T185: 92141.9814 | W185: 46428.12707 | X185: -111700.298 | Y185: 18455266.09 | AA185: 69 | AB185: 50860 | AC185: 1 | AD185: 0.3989947643 | AE185: 0.6010052357 | AG185: 69 | AH185: 50860 | AI185: 1 | AJ185: 0.4 | AK185: 0.6 | AR185: 69 | AS185: 50860 | AT185: 46254406.68 | AU185: 18501762.67 | AV185: 27752644.01 | AX185: 50860 | AY185: 0.007504188482 | AZ185: 0.005 | BA185: 0.009166666667 | BE185: 69 | BF185: 4.625440668 | BG185: 3.465964081 | BH185: 2.792507449
F186: -280414.2897 | G186: 0 | I186: 70 | J186: 50890 | K186: 46321094.17 | L186: 27799140.59 | M186: 254825.4554 | P186: -46496.58186 | Q186: -168248.5738 | R186: 27839220.89 | S186: 18455266.09 | T186: 92276.33045 | W186: 46496.58186 | X186: -112165.7159 | Y186: 18481873.29 | AA186: 70 | AB186: 50890 | AC186: 1 | AD186: 0.3989947478 | AE186: 0.6010052522 | AG186: 70 | AH186: 50890 | AI186: 1 | AJ186: 0.4 | AK186: 0.6 | AR186: 70 | AS186: 50890 | AT186: 46321094.17 | AU186: 18528437.67 | AV186: 27792656.5 | AX186: 50890 | AY186: 0.007504188551 | AZ186: 0.005 | BA186: 0.009166666667 | BE186: 70 | BF186: 4.632109417 | BG186: 3.471017858 | BH186: 2.804142897
F187: -281582.6825 | G187: 0 | I187: 70 | J187: 50921 | K187: 46387113.72 | L187: 27839220.89 | M187: 255192.8581 | P187: -46564.38389 | Q187: -168949.6095 | R187: 27878899.75 | S187: 18481873.29 | T187: 92409.36643 | W187: 46564.38389 | X187: -112633.073 | Y187: 18508213.96 | AA187: 70 | AB187: 50921 | AC187: 1 | AD187: 0.3989947311 | AE187: 0.6010052689 | AG187: 70 | AH187: 50921 | AI187: 1 | AJ187: 0.4 | AK187: 0.6 | AR187: 70 | AS187: 50921 | AT187: 46387113.72 | AU187: 18554845.49 | AV187: 27832268.23 | AX187: 50921 | AY187: 0.00750418862 | AZ187: 0.005 | BA187: 0.009166666667 | BE187: 70 | BF187: 4.638711372 | BG187: 3.476022246 | BH187: 2.815826825
F188: -282755.9437 | G188: 0 | I188: 70 | J188: 50951 | K188: 46452455.42 | L188: 27878899.75 | M188: 255556.5811 | P188: -46631.5234 | Q188: -169653.5662 | R188: 27918171.25 | S188: 18508213.96 | T188: 92541.06982 | W188: 46631.5234 | X188: -113102.3775 | Y188: 18534284.18 | AA188: 70 | AB188: 50951 | AC188: 1 | AD188: 0.3989947143 | AE188: 0.6010052857 | AG188: 70 | AH188: 50951 | AI188: 1 | AJ188: 0.4 | AK188: 0.6 | AR188: 70 | AS188: 50951 | AT188: 46452455.42 | AU188: 18580982.17 | AV188: 27871473.25 | AX188: 50951 | AY188: 0.007504188691 | AZ188: 0.005 | BA188: 0.009166666667 | BE188: 70 | BF188: 4.645245542 | BG188: 3.480976509 | BH188: 2.827559437
F189: -283934.0935 | G189: 0 | I189: 70 | J189: 50982 | K189: 46517109.32 | L189: 27918171.25 | M189: 255916.5697 | P189: -46697.99054 | Q189: -170360.4561 | R189: 27957029.37 | S189: 18534284.18 | T189: 92671.4209 | W189: 46697.99054 | X189: -113573.6374 | Y189: 18560079.95 | AA189: 70 | AB189: 50982 | AC189: 1 | AD189: 0.3989946973 | AE189: 0.6010053027 | AG189: 70 | AH189: 50982 | AI189: 1 | AJ189: 0.4 | AK189: 0.6 | AR189: 70 | AS189: 50982 | AT189: 46517109.32 | AU189: 18606843.73 | AV189: 27910265.59 | AX189: 50982 | AY189: 0.007504188761 | AZ189: 0.005 | BA189: 0.009166666667 | BE189: 70 | BF189: 4.651710932 | BG189: 3.485879906 | BH189: 2.839340935
F190: -285117.1522 | G190: 0 | I190: 70 | J190: 51013 | K190: 46581065.34 | L190: 27957029.37 | M190: 256272.7692 | P190: -46763.77536 | Q190: -171070.2913 | R190: 27995468.07 | S190: 18560079.95 | T190: 92800.39977 | W190: 46763.77536 | X190: -114046.8609 | Y190: 18585597.27 | AA190: 70 | AB190: 51013 | AC190: 1 | AD190: 0.3989946802 | AE190: 0.6010053198 | AG190: 70 | AH190: 51013 | AI190: 1 | AJ190: 0.4 | AK190: 0.6 | AR190: 70 | AS190: 51013 | AT190: 46581065.34 | AU190: 18632426.14 | AV190: 27948639.2 | AX190: 51013 | AY190: 0.007504188833 | AZ190: 0.005 | BA190: 0.009166666667 | BE190: 70 | BF190: 4.658106534 | BG190: 3.49073169 | BH190: 2.851171522
F191: -286305.1403 | G191: 0 | I191: 70 | J191: 51043 | K191: 46644313.31 | L191: 27995468.07 | M191: 256625.124 | P191: -46828.86782 | Q191: -171783.0842 | R191: 28033481.24 | S191: 18585597.27 | T191: 92927.98634 | W191: 46828.86782 | X191: -114522.0561 | Y191: 18610832.07 | AA191: 70 | AB191: 51043 | AC191: 1 | AD191: 0.3989946629 | AE191: 0.6010053371 | AG191: 70 | AH191: 51043 | AI191: 1 | AJ191: 0.4 | AK191: 0.6 | AR191: 70 | AS191: 51043 | AT191: 46644313.31 | AU191: 18657725.32 | AV191: 27986587.98 | AX191: 51043 | AY191: 0.007504188905 | AZ191: 0.005 | BA191: 0.009166666667 | BE191: 70 | BF191: 4.664431331 | BG191: 3.495531103 | BH191: 2.863051403
F192: -287498.0784 | G192: 0 | I192: 70 | J192: 51074 | K192: 46706842.97 | L192: 28033481.24 | M192: 256973.5781 | P192: -46893.25779 | Q192: -172498.8471 | R192: 28071062.72 | S192: 18610832.07 | T192: 93054.16033 | W192: 46893.25779 | X192: -114999.2314 | Y192: 18635780.25 | AA192: 70 | AB192: 51074 | AC192: 1 | AD192: 0.3989946455 | AE192: 0.6010053545 | AG192: 70 | AH192: 51074 | AI192: 1 | AJ192: 0.4 | AK192: 0.6 | AR192: 70 | AS192: 51074 | AT192: 46706842.97 | AU192: 18682737.19 | AV192: 28024105.78 | AX192: 51074 | AY192: 0.007504188977 | AZ192: 0.005 | BA192: 0.009166666667 | BE192: 70 | BF192: 4.670684297 | BG192: 3.500277384 | BH192: 2.874980784
F193: -288695.9871 | G193: 0 | I193: 70 | J193: 51104 | K193: 46768643.96 | L193: 28071062.72 | M193: 257318.0749 | P193: -46956.93503 | Q193: -173217.5922 | R193: 28108206.26 | S193: 18635780.25 | T193: 93178.90126 | W193: 46956.93503 | X193: -115478.3948 | Y193: 18660437.69 | AA193: 70 | AB193: 51104 | AC193: 1 | AD193: 0.3989946279 | AE193: 0.6010053721 | AG193: 70 | AH193: 51104 | AI193: 1 | AJ193: 0.4 | AK193: 0.6 | AR193: 70 | AS193: 51104 | AT193: 46768643.96 | AU193: 18707457.58 | AV193: 28061186.37 | AX193: 51104 | AY193: 0.00750418905 | AZ193: 0.005 | BA193: 0.009166666667 | BE193: 70 | BF193: 4.676864396 | BG193: 3.504969762 | BH193: 2.886959871
F194: -289898.887 | G194: 0 | I194: 70 | J194: 51135 | K194: 46829705.82 | L194: 28108206.26 | M194: 257658.5574 | P194: -47019.8892 | Q194: -173939.3322 | R194: 28144905.6 | S194: 18660437.69 | T194: 93302.18847 | W194: 47019.8892 | X194: -115959.5548 | Y194: 18684800.22 | AA194: 70 | AB194: 51135 | AC194: 1 | AD194: 0.3989946102 | AE194: 0.6010053898 | AG194: 70 | AH194: 51135 | AI194: 1 | AJ194: 0.4 | AK194: 0.6 | AR194: 70 | AS194: 51135 | AT194: 46829705.82 | AU194: 18731882.33 | AV194: 28097823.49 | AX194: 51135 | AY194: 0.007504189124 | AZ194: 0.005 | BA194: 0.009166666667 | BE194: 70 | BF194: 4.682970582 | BG194: 3.509607459 | BH194: 2.89898887
F195: -291106.7991 | G195: 0 | I195: 70 | J195: 51166 | K195: 46890017.99 | L195: 28144905.6 | M195: 257994.968 | P195: -47082.10989 | Q195: -174664.0794 | R195: 28181154.38 | S195: 18684800.22 | T195: 93424.00108 | W195: 47082.10989 | X195: -116442.7196 | Y195: 18708863.61 | AA195: 70 | AB195: 51166 | AC195: 1 | AD195: 0.3989945923 | AE195: 0.6010054077 | AG195: 70 | AH195: 51166 | AI195: 1 | AJ195: 0.4 | AK195: 0.6 | AR195: 70 | AS195: 51166 | AT195: 46890017.99 | AU195: 18756007.19 | AV195: 28134010.79 | AX195: 51166 | AY195: 0.007504189199 | AZ195: 0.005 | BA195: 0.009166666667 | BE195: 70 | BF195: 4.689001799 | BG195: 3.514189691 | BH195: 2.911067991
F196: -292319.7441 | G196: 0 | I196: 70 | J196: 51195 | K196: 46949569.81 | L196: 28181154.38 | M196: 258327.2485 | P196: -47143.58655 | Q196: -175391.8464 | R196: 28216946.19 | S196: 18708863.61 | T196: 93544.31804 | W196: 47143.58655 | X196: -116927.8976 | Y196: 18732623.61 | AA196: 70 | AB196: 51195 | AC196: 1 | AD196: 0.3989945742 | AE196: 0.6010054258 | AG196: 70 | AH196: 51195 | AI196: 1 | AJ196: 0.4 | AK196: 0.6 | AR196: 70 | AS196: 51195 | AT196: 46949569.81 | AU196: 18779827.92 | AV196: 28169741.89 | AX196: 51195 | AY196: 0.007504189274 | AZ196: 0.005 | BA196: 0.009166666667 | BE196: 70 | BF196: 4.694956981 | BG196: 3.518715665 | BH196: 2.923197441
F197: -293537.743 | G197: 0 | I197: 70 | J197: 51226 | K197: 47008350.52 | L197: 28216946.19 | M197: 258655.3401 | P197: -47204.30856 | Q197: -176122.6458 | R197: 28252274.58 | S197: 18732623.61 | T197: 93663.11807 | W197: 47204.30856 | X197: -117415.0972 | Y197: 18756075.94 | AA197: 70 | AB197: 51226 | AC197: 1 | AD197: 0.398994556 | AE197: 0.601005444 | AG197: 70 | AH197: 51226 | AI197: 1 | AJ197: 0.4 | AK197: 0.6 | AR197: 70 | AS197: 51226 | AT197: 47008350.52 | AU197: 18803340.21 | AV197: 28205010.31 | AX197: 51226 | AY197: 0.00750418935 | AZ197: 0.005 | BA197: 0.009166666667 | BE197: 70 | BF197: 4.700835052 | BG197: 3.523184582 | BH197: 2.93537743
F198: -294760.8169 | G198: 0 | I198: 71 | J198: 51256 | K198: 47066349.27 | L198: 28252274.58 | M198: 258979.1836 | P198: -47264.2652 | Q198: -176856.4902 | R198: 28287133.01 | S198: 18756075.94 | T198: 93780.37972 | W198: 47264.2652 | X198: -117904.3268 | Y198: 18779216.26 | AA198: 71 | AB198: 51256 | AC198: 1 | AD198: 0.3989945376 | AE198: 0.6010054624 | AG198: =AA198 -> 71 | AH198: 51256 | AI198: =AJ198+AK198 -> 1 | AJ198: =VLOOKUP($AG198,$AM:$AP,3,FALSE) -> 0.4 | AK198: =VLOOKUP($AG198,$AM:$AP,4,FALSE) -> 0.6 | AR198: 71 | AS198: 51256 | AT198: =AU198+AV198 -> 47066349.27 | AU198: 18826539.71 | AV198: 28239809.56 | AX198: 51256 | AY198: 0.007504189427 | AZ198: 0.005 | BA198: 0.009166666667 | BE198: 71 | BF198: 4.706634927 | BG198: 3.527595634 | BH198: 2.947608169
